Workbook

Sheet Cover
A1: 931
C6: COVIDTracer Advanced
C10: A Planning Tool to Illustrate the Resources Needed and Potential Impact of Contact Tracing and Monitoring of COVID-19 cases
C13: Special Edition: School Mitigations and Averted Hospitalizations
C16: Authors (alphabetical order):
C17: Bishwa B. Adhikari | I17: Gloria J. Kang
C18: Aziza Arifkhanova | I18: Martin I. Meltzer
C19: Fatima Coronado | I19: Gabrielle Miller
C20: Leah S. Fischer | I20: Gabriel Rainisch
C21: Bradford Greening Jr. | I21: Ketra Rice
C22: Seonghye Jeon | I22: Michael L. Washington
C23: Emily B. Kahn
C25: Health Economics and Modeling Unit: hemu@cdc.gov
D27: Centers for Disease Control and Prevention
C28: Atlanta, Georgia
B29: Updated: | C29: 2020-12-09 | J29: Note: For COVIDTracer to work correctly, users must meet ALL of the following criteria: 1) Enable macros by clicking the "Enable Content" button when opening file. 2) Use Microsoft Office Excel 2013 or later in a Windows environment 3) Do not use browser or mobile version of Office - open file in Desktop app.

Sheet A. Outbreak Details
BE5: Yes | BF5: Daily case counts are rapidly increasing
BE6: No | BF6: Daily case counts are slowly increasing
BF7: Daily case counts have plateaued
BF8: Daily case counts are slowly decreasing
B9: Step 1: | C9: Enter the population of your jurisdiction | BF9: Daily case counts are rapidly decreasing
C10: Total Population | F10: =$M$12 -> 592 | G10: persons | K10: Students | M10: 526 | BF10: Manually enter % effectiveness
K11: Students per staff | M11: 8
B12: Step 2: | C12: Enter information about case counts in your jurisdiction | K12: Total Population | M12: =M10+ROUNDUP(M10/M11, 0) -> 592
C13: Today's Date | F13: 2021-01-07
C14: Total cases to date | F14: 0 | G14: cases
C15: Cases in the last 14 days | F15: 0 | G15: cases
C16: Note: These data inputs will only create curves for the purpose of calculating resources needs. They are not intended as, nor should be intepreted as, forecasts of future cases
B18: Step3: | C18: Enter estimates about the effectiveness of community interventions implemented through the present date
C19: Are community interventions currently in place? | F19: No
C20: Will community interventions begin before initiating contact tracing? | F20: No
C21: Date community interventions will begin in jurisdiction | F21: 2020-10-10 | G21: =IF(F19="Yes", $F$13, IF(F20="No", 'B. Impact of contact tracing'!$F$12, F21)) -> 2021-01-07
C22: Pattern of change in daily case counts over the last 14 days | F22: Manually enter % effectiveness | G22: 0 | H22: =IF(F22=BF10, G22, IF(F22=BF5, 'Initial Case Distribution'!H70, IF(F22=BF6, 'Initial Case Distribution'!H71, IF(F22=BF7, 'Initial Case Distribution'!H72, IF(F22=BF8, 'Initial Case Distribution'!H73, 'Initial Case Distribution'!H74))))) -> 0
B24: Step 4: | C24: (OPTIONAL/ADVANCED) Epidemiologic Parameters
C25: ^It is recommended that the default parameters be used, however, if the user understands the implications for results, changes can be made below.
E26: Allows the user to modify the parameters that inform the modeled estimates of future cases.
E30: Allows the user to add additional cases for which the source of infection was outside the school (imported cases)

Sheet Data (hidden)
A1: Duration: | B1: 1 | C1: 6 | D1: 0.15
A2: Attack rate: | B2: 1 | C2: 8 | D2: 0.25
C3: 12 | D3: 0.35

Sheet B. Impact of contact tracing
BC5: Low Estimate: Initial R0 | BF5: Manual
BC6: High Estimate: Initial R0 | BF6: Days past Peak | BH6: Modified Infectivity Distributions
BC7: Low Estimate: Initial R0 | BI7: Base | BJ7: S1 | BK7: S2 | BL7: S3
B8: Step 1: | C8: Enter the date on which contact tracing interventions will begin | BF8: Symptoms | BH8: 1 | BI8: ='D. Epi Parameters'!D14 -> 0 | BJ8: =IF($BH8<F$17, $BI8, 0) -> 0 | BK8: =IF($BH8<G$17, $BI8, 0) -> 0 | BL8: 0
C9: Choose entry method | F9: Manual | BF9: Contact ID | BH9: 2 | BI9: ='D. Epi Parameters'!D15 -> 0 | BJ9: =IF($BH9<F$17, $BI9, 0) -> 0 | BK9: =IF($BH9<G$17, $BI9, 0) -> 0 | BL9: =IF($BH9<H$17, $BI9, 0) -> 0
C10: Days past epidemic peak | G10: 10 | K10: Timing of Case Isolation | BH10: 3 | BI10: ='D. Epi Parameters'!D16 -> 0 | BJ10: 0 | BK10: 0 | BL10: 0
C11: Date contact tracing begins (no ramp-up) | F11: ='A. Outbreak Details'!F13 -> 2021-01-07 | G11: Hit refresh - I schange | K11: Day | L11: Strategy 1 | M11: Strategy 2 | N11: Strategy 3 | BF11: Yes | BH11: 4 | BI11: ='D. Epi Parameters'!D17 -> 0.1677720969 | BJ11: 0.1677720969 | BK11: 0.1677720969 | BL11: 0.1677720969
C12: Date chosen | F12: =IF($F$9=$BF$5, $F$11, $G$11) -> 2021-01-07 | G12: =IF($F$9=$BF$6,_xlfn.CONCAT("(Peak + ",$G$10," days)"), "") ->  | K12: 1 | L12: =BJ8 -> 0 | M12: =BK8 -> 0 | N12: =BL8 -> 0 | BF12: No | BH12: 5 | BI12: ='D. Epi Parameters'!D18 -> 0.1802607219 | BJ12: 0.1802607219 | BK12: 0.1802607219 | BL12: 0.1802607219
K13: 2 | L13: 0 | M13: 0 | N13: 0 | BH13: 6 | BI13: ='D. Epi Parameters'!D19 -> 0.1707119341 | BJ13: 0.1707119341 | BK13: 0 | BL13: 0
B14: Step 2: | C14: Set up the scenarios for contact tracing strategies | K14: 3 | L14: 0 | M14: 0 | N14: 0 | BH14: 7 | BI14: ='D. Epi Parameters'!D20 -> 0.1451776603 | BJ14: 0 | BK14: 0 | BL14: 0
K15: 4 | L15: 0.1677720969 | M15: 0.1677720969 | N15: 0.1677720969 | BH15: 8 | BI15: ='D. Epi Parameters'!D21 -> 0.112677035 | BJ15: 0 | BK15: 0 | BL15: 0
F16: Strategy 1 | G16: Strategy 2 | H16: Strategy 3 | K16: 5 | L16: 0.1802607219 | M16: 0.1802607219 | N16: 0.1802607219 | BH16: 9 | BI16: ='D. Epi Parameters'!D22 -> 0.08101811276 | BJ16: 0 | BK16: 0 | BL16: 0
C17: Number of days after infection that case is isolated | F17: 7 | G17: 6 | H17: 6 | K17: 6 | L17: 0.1707119341 | M17: 0 | N17: 0 | BH17: 10 | BI17: ='D. Epi Parameters'!D23 -> 0.05481117246 | BJ17: 0 | BK17: 0 | BL17: 0
C18: % of all cases successfully isolated and contacts traced and monitored | F18: 0.4 | G18: 0.5 | H18: 0.7 | K18: 7 | L18: 0 | M18: 0 | N18: 0 | BH18: 11 | BI18: ='D. Epi Parameters'!D24 -> 0.03553690464 | BJ18: 0 | BK18: 0 | BL18: 0
C19: Strategy Trigger | F19: Symptoms | G19: Contact ID | H19: Contact ID | K19: 8 | L19: 0 | M19: 0 | N19: 0 | BH19: 12 | BI19: ='D. Epi Parameters'!D25 -> 0.02262657797 | BJ19: 0 | BK19: 0 | BL19: 0
C20: Contacts are identified and listed? | F20: Yes | G20: Yes | H20: Yes | K20: 9 | L20: 0 | M20: 0 | N20: 0 | BH20: 13 | BI20: ='D. Epi Parameters'!D26 -> 0.01462363492 | BJ20: 0 | BK20: 0 | BL20: 0
C21: Contacts follow-up occurs? | F21: Yes | G21: Yes | H21: Yes | K21: 10 | L21: 0 | M21: 0 | N21: 0 | P21: Legend | BH21: 14 | BI21: ='D. Epi Parameters'!D27 -> 0.01478414908 | BJ21: 0 | BK21: 0 | BL21: 0
C22: *Successfully traced = the strategy worked as assumed and transmission to the next generation was prevented | K22: 11 | L22: 0 | M22: 0 | N22: 0 | O22: Infected, not yet infectious
K23: 12 | L23: 0 | M23: 0 | N23: 0 | O23: Infectious, pre-symptomatic
B24: Step 3: | C24: Account for additional effects of continued community interventions (e.g., facemask use, social distancing measures, school/business closures etc.) | K24: 13 | L24: 0 | M24: 0 | N24: 0 | O24: Infectious & symptomatic
K25: 14 | L25: 0 | M25: 0 | N25: 0 | O25: Recovering, no longer infectious
F26: Strategy 1 | G26: Strategy 2 | H26: Strategy 3
C27: Are there additional, non-contact tracing interventions? | F27: Yes | G27: Yes | H27: Yes
C28: Estimated % reduction in transmission due to non-contact tracing interventions | F28: ='F. Impact of Interventions'!$E$18 -> 0.35981025 | G28: ='F. Impact of Interventions'!$E$18 -> 0.35981025 | H28: ='F. Impact of Interventions'!$E$18 -> 0.35981025
C29: Combined % reduction in transmission from contact tracing + other interventions, if applicable | F29: =IF(F27=$BF$12, 'Calc - Likely, S1'!$B$39, MIN(1, SUM(F28, 'Calc - Likely, S1'!$B$39))) -> 0.4881449826 | G29: =IF(G27=$BF$12, 'Calc - Likely, S2'!$B$39, MIN(1, SUM(G28, 'Calc - Likely, S2'!$B$39))) -> 0.6857938406 | H29: =IF(H27=$BF$12, 'Calc - Likely, S3'!$B$39, MIN(1, SUM(H28, 'Calc - Likely, S3'!$B$39))) -> 0.8161872769
B45: *These figures show the reduction in cases that may occur compared to the base case if contact tracing were initiated on the chosen date, given all of the provided assumptions. The red dotted line shows when contact tracing strategies were initiated.

Sheet C. Tracing Resources
BA5: 1
BA6: 2
B8: Step 1: | C8: Enter the estimated number of contacts per case | D8: Lower | E8: Upper
C9: Contacts per case | D9: 5 | E9: 20 | F9: contacts per case
C10: False Alerts per case | D10: 0 | E10: 0 | F10: alerts per case
C11: Number of days contacts are monitored | D11: 7 | E11: 14 | F11: days
B13: Step 2: | C13: Enter the daily work hours and overhead hours | D13: Lower | E13: Upper
C14: Daily shift length (hours) | D14: 8 | E14: 12 | F14: hours per day
C15: Overhead hours (e.g., prep time, supervisory time, support staff) | D15: 0.05 | E15: 0.05 | F15: of total hours needed
B17: Step 3: | C17: Enter the estimated time needed to interview and monitor cases and contacts
D18: Staff Group | E18: Lower | F18: Upper
C19: Initial case interviews | D19: 1 | E19: 0.5 | F19: 1 | G19: hours per case
C20: Initial case interviews (false case alerts) | D20: 1 | E20: 0.5 | F20: 1 | G20: hours per alert
C21: Initial contact interviews | D21: 1 | E21: 0.5 | F21: 1 | G21: hours per contact
C22: Case/contact monitoring & follow-up | D22: 2 | E22: 0.25 | F22: 0.5 | G22: hours per day
C23: †For each case, there are a number of associated contacts (see Step 1). The time entered here represents the daily hours per case/contact required to monitor both the cases and associated contacts. If the number of assumed contacts-per-case are notably changed (in Step 1), users are advised to concurrently alter the monitoring time.

Sheet D. Epi Parameters
BA5: New Daily Cases
BA6: Cumulative Cases | BG6: Disease Stage Text | BP6: Day | BQ6: % | BR6: Cumulative
BG7: =K17 -> 3 | BH7: =H17 -> Infected, not yet infectious | BI7: 1 | BJ7: =IFERROR(INDEX($BH$7:$BH$10, MATCH(BI7, $BG$7:$BG$10, 0)), "") ->  | BP7: =C14 -> 1 | BQ7: =D14 -> 0 | BR7: =BQ7 -> 0
BA8: Chart Titles | BB8: Y-Limits | BC8: X-Limits | BG8: =BG7+K18 -> 5 | BH8: =H18 -> Infectious, pre-symptomatic | BI8: 2 | BP8: 2 | BQ8: 0 | BR8: =BQ8+BR7 -> 0
B9: Step 1: | C9: Enter information about how quickly the disease spreads without mitigation | BA9: =_xlfn.CONCAT(BA5, "(R0 = ", TEXT($F$10, "0.00"), ")") -> New Daily Cases (R0 = 2.50) | BB9: 0 | BC9: ='A. Outbreak Details'!F13-10 -> 2020-12-28 | BG9: =BG8+K19 -> 14 | BH9: Infectious & symptomatic | BI9: 3 | BJ9: =IFERROR(INDEX($BH$7:$BH$10, MATCH(BI9, $BG$7:$BG$10, 0)), "") -> Infected, not yet infectious | BP9: 3 | BQ9: 0 | BR9: =BQ9+BR8 -> 0
C10: New Infections per Case (R0) | F10: 2.5 | G10: infections | BA10: =_xlfn.CONCAT(BA6, "(R0 = ", TEXT($F$10, "0.00"), ")") -> Cumulative Cases (R0 = 2.50) | BB10: ='A. Outbreak Details'!F10*0.9 -> 532.8 | BC10: =BC9+385 -> 2022-01-17 | BG10: =BG9+K20 -> 14 | BH10: Recovering, no longer infectious | BI10: 4 | BJ10: =IFERROR(INDEX($BH$7:$BH$10, MATCH(BI10, $BG$7:$BG$10, 0)), "") ->  | BP10: 4 | BQ10: 0.1677720969 | BR10: 0.1677720969
BI11: 5 | BJ11: Infectious, pre-symptomatic | BP11: 5 | BQ11: 0.1802607219 | BR11: 0.3480328188
B12: Step 2: | C12: Enter information about how the disease transmission occurs over the duration of illness (without mitigation) | BI12: 6 | BP12: 6 | BQ12: 0.1707119341 | BR12: 0.5187447529
C13: Day | BI13: 7 | BP13: 7 | BQ13: 0.1451776603 | BR13: 0.6639224132
C14: 1 | D14: 0 | E14: =BJ7 ->  | BI14: 8 | BP14: 8 | BQ14: 0.112677035 | BR14: 0.7765994482
C15: 2 | D15: 0 | E15: =BJ8 ->  | BI15: 9 | BP15: 9 | BQ15: 0.08101811276 | BR15: 0.8576175609
C16: 3 | D16: 0 | E16: Infected, not yet infectious | H16: Disease Stage (with Color Legend) | BI16: 10 | BP16: 10 | BQ16: 0.05481117246 | BR16: 0.9124287334
C17: 4 | D17: 0.1677720969 | H17: Infected, not yet infectious | K17: 3 | L17: days | BI17: 11 | BP17: 11 | BQ17: 0.03553690464 | BR17: 0.947965638
C18: 5 | D18: 0.1802607219 | E18: Infectious, pre-symptomatic | H18: Infectious, pre-symptomatic | K18: 2 | L18: days | BI18: 12 | BP18: 12 | BQ18: 0.02262657797 | BR18: 0.970592216
C19: 6 | D19: 0.1707119341 | H19: Infectious & symptomatic | K19: 9 | L19: days | BI19: 13 | BP19: 13 | BQ19: 0.01462363492 | BR19: 0.9852158509
C20: 7 | D20: 0.1451776603 | H20: Recovering, no longer infectious | K20: =14-SUM($K$17:$K$19) -> 0 | L20: days | BI20: 14 | BJ20: Infectious & symptomatic | BP20: 14 | BQ20: 0.01478414908 | BR20: =BQ20+BR19 -> 1
C21: 8 | D21: 0.112677035 | H21: Total Duration of Infection/Illness | K21: =SUM(K17:K20) -> 14 | L21: days | CA21: Step 3: | CB21: Enter information about how deadly the illness is
C22: 9 | D22: 0.08101811276 | CB22: Estimated Case Fatality Rate | CE22: 0.0109
C23: 10 | D23: 0.05481117246 | CB23: % Increase in Case Fatality Rate if Hospitals Overloaded | CE23: 0.0102
C24: 11 | D24: 0.03553690464
C25: 12 | D25: 0.02262657797
C26: 13 | D26: 0.01462363492
C27: 14 | D27: 0.01478414908 | E27: Infectious & symptomatic
D28: =SUM(D14:D27) -> 1 | E28: (Must equal 100%)
B30: Step 3: | C30: Enter information about asymptomatic cases
C31: % of cases that are asymptomatic | F31: 0.4 | G31: of cases
C32: Infectiousness of Asymptomatic Cases (Relative to Symptomatic Cases) | F32: 0.75 | N32: *These figures show the cases that may occur if current social distancing interventions were to continue unchanged into the future (Base case for the model).
C48: *Default infectivity profile based on He et al 2020 and Ferreti et al 2020.

Sheet D.2 Imported Cases
BA8: 5
B9: Step 1: | C9: Imported cases are cases that have been caused by exposure to a person that exists outside of the population being modeled. | BA9: 100
C10: Enter the number of imported cases that occur on each day. | BA10: 250
C12: ='Case Counts'!T3 -> Day | D12: ='Case Counts'!U3 -> Date | E12: DoW | F12: # of Imported Cases | K12: Community Prevalence (per 100,000) | L12: 250
C13: ='Case Counts'!T4 -> 0 | D13: ='Case Counts'!U4 -> 2021-01-07 | E13: =TEXT(D13,"ddd") -> Thu | F13: =IF(E13="Mon", $L$14, 0) -> 0 | K13: School Size | L13: ='A. Outbreak Details'!$F$10 -> 592
C14: ='Case Counts'!T5 -> 1 | D14: ='Case Counts'!U5 -> 2021-01-08 | E14: =TEXT(D14,"ddd") -> Fri | F14: =IF(E14="Mon", $L$14, 0) -> 0 | K14: Cases / week | L14: =(L12/100000)*$L$13 -> 1.48
C15: ='Case Counts'!T6 -> 2 | D15: ='Case Counts'!U6 -> 2021-01-09 | E15: Sat | F15: 0 | K15: 1 case every X weeks | L15: =1/L14 -> 0.6756756757
C16: ='Case Counts'!T7 -> 3 | D16: ='Case Counts'!U7 -> 2021-01-10 | E16: Sun | F16: 0
C17: ='Case Counts'!T8 -> 4 | D17: ='Case Counts'!U8 -> 2021-01-11 | E17: Mon | F17: 1.48
C18: ='Case Counts'!T9 -> 5 | D18: ='Case Counts'!U9 -> 2021-01-12 | E18: Tue | F18: 0
C19: ='Case Counts'!T10 -> 6 | D19: ='Case Counts'!U10 -> 2021-01-13 | E19: Wed | F19: 0
C20: ='Case Counts'!T11 -> 7 | D20: ='Case Counts'!U11 -> 2021-01-14 | E20: Thu | F20: 0
C21: ='Case Counts'!T12 -> 8 | D21: ='Case Counts'!U12 -> 2021-01-15 | E21: Fri | F21: 0
C22: ='Case Counts'!T13 -> 9 | D22: ='Case Counts'!U13 -> 2021-01-16 | E22: Sat | F22: 0
C23: ='Case Counts'!T14 -> 10 | D23: ='Case Counts'!U14 -> 2021-01-17 | E23: Sun | F23: 0
C24: ='Case Counts'!T15 -> 11 | D24: ='Case Counts'!U15 -> 2021-01-18 | E24: Mon | F24: 1.48
C25: ='Case Counts'!T16 -> 12 | D25: ='Case Counts'!U16 -> 2021-01-19 | E25: Tue | F25: 0
C26: ='Case Counts'!T17 -> 13 | D26: ='Case Counts'!U17 -> 2021-01-20 | E26: Wed | F26: 0
C27: ='Case Counts'!T18 -> 14 | D27: ='Case Counts'!U18 -> 2021-01-21 | E27: Thu | F27: 0
C28: ='Case Counts'!T19 -> 15 | D28: ='Case Counts'!U19 -> 2021-01-22 | E28: Fri | F28: 0
C29: ='Case Counts'!T20 -> 16 | D29: ='Case Counts'!U20 -> 2021-01-23 | E29: Sat | F29: 0
C30: ='Case Counts'!T21 -> 17 | D30: ='Case Counts'!U21 -> 2021-01-24 | E30: Sun | F30: 0
C31: ='Case Counts'!T22 -> 18 | D31: ='Case Counts'!U22 -> 2021-01-25 | E31: Mon | F31: 1.48
C32: ='Case Counts'!T23 -> 19 | D32: ='Case Counts'!U23 -> 2021-01-26 | E32: Tue | F32: 0
C33: ='Case Counts'!T24 -> 20 | D33: ='Case Counts'!U24 -> 2021-01-27 | E33: Wed | F33: 0
C34: ='Case Counts'!T25 -> 21 | D34: ='Case Counts'!U25 -> 2021-01-28 | E34: Thu | F34: 0
C35: ='Case Counts'!T26 -> 22 | D35: ='Case Counts'!U26 -> 2021-01-29 | E35: Fri | F35: 0
C36: ='Case Counts'!T27 -> 23 | D36: ='Case Counts'!U27 -> 2021-01-30 | E36: Sat | F36: 0
C37: ='Case Counts'!T28 -> 24 | D37: ='Case Counts'!U28 -> 2021-01-31 | E37: Sun | F37: 0
C38: ='Case Counts'!T29 -> 25 | D38: ='Case Counts'!U29 -> 2021-02-01 | E38: Mon | F38: 1.48
C39: ='Case Counts'!T30 -> 26 | D39: ='Case Counts'!U30 -> 2021-02-02 | E39: Tue | F39: 0
C40: ='Case Counts'!T31 -> 27 | D40: ='Case Counts'!U31 -> 2021-02-03 | E40: Wed | F40: 0
C41: ='Case Counts'!T32 -> 28 | D41: ='Case Counts'!U32 -> 2021-02-04 | E41: Thu | F41: 0
C42: ='Case Counts'!T33 -> 29 | D42: ='Case Counts'!U33 -> 2021-02-05 | E42: Fri | F42: 0
C43: ='Case Counts'!T34 -> 30 | D43: ='Case Counts'!U34 -> 2021-02-06 | E43: Sat | F43: 0
C44: ='Case Counts'!T35 -> 31 | D44: ='Case Counts'!U35 -> 2021-02-07 | E44: Sun | F44: 0
C45: ='Case Counts'!T36 -> 32 | D45: ='Case Counts'!U36 -> 2021-02-08 | E45: Mon | F45: 1.48
C46: ='Case Counts'!T37 -> 33 | D46: ='Case Counts'!U37 -> 2021-02-09 | E46: Tue | F46: 0
C47: ='Case Counts'!T38 -> 34 | D47: ='Case Counts'!U38 -> 2021-02-10 | E47: Wed | F47: 0
C48: ='Case Counts'!T39 -> 35 | D48: ='Case Counts'!U39 -> 2021-02-11 | E48: Thu | F48: 0
C49: ='Case Counts'!T40 -> 36 | D49: ='Case Counts'!U40 -> 2021-02-12 | E49: Fri | F49: 0
C50: ='Case Counts'!T41 -> 37 | D50: ='Case Counts'!U41 -> 2021-02-13 | E50: Sat | F50: 0
C51: ='Case Counts'!T42 -> 38 | D51: ='Case Counts'!U42 -> 2021-02-14 | E51: Sun | F51: 0
C52: ='Case Counts'!T43 -> 39 | D52: ='Case Counts'!U43 -> 2021-02-15 | E52: Mon | F52: 1.48
C53: ='Case Counts'!T44 -> 40 | D53: ='Case Counts'!U44 -> 2021-02-16 | E53: Tue | F53: 0
C54: ='Case Counts'!T45 -> 41 | D54: ='Case Counts'!U45 -> 2021-02-17 | E54: Wed | F54: 0
C55: ='Case Counts'!T46 -> 42 | D55: ='Case Counts'!U46 -> 2021-02-18 | E55: Thu | F55: 0
C56: ='Case Counts'!T47 -> 43 | D56: ='Case Counts'!U47 -> 2021-02-19 | E56: Fri | F56: 0
C57: ='Case Counts'!T48 -> 44 | D57: ='Case Counts'!U48 -> 2021-02-20 | E57: Sat | F57: 0
C58: ='Case Counts'!T49 -> 45 | D58: ='Case Counts'!U49 -> 2021-02-21 | E58: Sun | F58: 0
C59: ='Case Counts'!T50 -> 46 | D59: ='Case Counts'!U50 -> 2021-02-22 | E59: Mon | F59: 1.48
C60: ='Case Counts'!T51 -> 47 | D60: ='Case Counts'!U51 -> 2021-02-23 | E60: Tue | F60: 0
C61: ='Case Counts'!T52 -> 48 | D61: ='Case Counts'!U52 -> 2021-02-24 | E61: Wed | F61: 0
C62: ='Case Counts'!T53 -> 49 | D62: ='Case Counts'!U53 -> 2021-02-25 | E62: Thu | F62: 0
C63: ='Case Counts'!T54 -> 50 | D63: ='Case Counts'!U54 -> 2021-02-26 | E63: Fri | F63: 0
C64: ='Case Counts'!T55 -> 51 | D64: ='Case Counts'!U55 -> 2021-02-27 | E64: Sat | F64: 0
C65: ='Case Counts'!T56 -> 52 | D65: ='Case Counts'!U56 -> 2021-02-28 | E65: Sun | F65: 0
C66: ='Case Counts'!T57 -> 53 | D66: ='Case Counts'!U57 -> 2021-03-01 | E66: Mon | F66: 1.48
C67: ='Case Counts'!T58 -> 54 | D67: ='Case Counts'!U58 -> 2021-03-02 | E67: Tue | F67: 0
C68: ='Case Counts'!T59 -> 55 | D68: ='Case Counts'!U59 -> 2021-03-03 | E68: Wed | F68: 0
C69: ='Case Counts'!T60 -> 56 | D69: ='Case Counts'!U60 -> 2021-03-04 | E69: Thu | F69: 0
C70: ='Case Counts'!T61 -> 57 | D70: ='Case Counts'!U61 -> 2021-03-05 | E70: Fri | F70: 0
C71: ='Case Counts'!T62 -> 58 | D71: ='Case Counts'!U62 -> 2021-03-06 | E71: Sat | F71: 0
C72: ='Case Counts'!T63 -> 59 | D72: ='Case Counts'!U63 -> 2021-03-07 | E72: Sun | F72: 0
C73: ='Case Counts'!T64 -> 60 | D73: ='Case Counts'!U64 -> 2021-03-08 | E73: Mon | F73: 1.48
C74: ='Case Counts'!T65 -> 61 | D74: ='Case Counts'!U65 -> 2021-03-09 | E74: Tue | F74: 0
C75: ='Case Counts'!T66 -> 62 | D75: ='Case Counts'!U66 -> 2021-03-10 | E75: Wed | F75: 0
C76: ='Case Counts'!T67 -> 63 | D76: ='Case Counts'!U67 -> 2021-03-11 | E76: Thu | F76: 0
C77: ='Case Counts'!T68 -> 64 | D77: ='Case Counts'!U68 -> 2021-03-12 | E77: Fri | F77: 0
C78: ='Case Counts'!T69 -> 65 | D78: ='Case Counts'!U69 -> 2021-03-13 | E78: =TEXT(D78,"ddd") -> Sat | F78: =IF(E78="Mon", $L$14, 0) -> 0
C79: ='Case Counts'!T70 -> 66 | D79: ='Case Counts'!U70 -> 2021-03-14 | E79: Sun | F79: 0
C80: ='Case Counts'!T71 -> 67 | D80: ='Case Counts'!U71 -> 2021-03-15 | E80: Mon | F80: 1.48
C81: ='Case Counts'!T72 -> 68 | D81: ='Case Counts'!U72 -> 2021-03-16 | E81: Tue | F81: 0
C82: ='Case Counts'!T73 -> 69 | D82: ='Case Counts'!U73 -> 2021-03-17 | E82: Wed | F82: 0
C83: ='Case Counts'!T74 -> 70 | D83: ='Case Counts'!U74 -> 2021-03-18 | E83: Thu | F83: 0
C84: ='Case Counts'!T75 -> 71 | D84: ='Case Counts'!U75 -> 2021-03-19 | E84: Fri | F84: 0
C85: ='Case Counts'!T76 -> 72 | D85: ='Case Counts'!U76 -> 2021-03-20 | E85: Sat | F85: 0
C86: ='Case Counts'!T77 -> 73 | D86: ='Case Counts'!U77 -> 2021-03-21 | E86: Sun | F86: 0
C87: ='Case Counts'!T78 -> 74 | D87: ='Case Counts'!U78 -> 2021-03-22 | E87: Mon | F87: 1.48
C88: ='Case Counts'!T79 -> 75 | D88: ='Case Counts'!U79 -> 2021-03-23 | E88: Tue | F88: 0
C89: ='Case Counts'!T80 -> 76 | D89: ='Case Counts'!U80 -> 2021-03-24 | E89: Wed | F89: 0
C90: ='Case Counts'!T81 -> 77 | D90: ='Case Counts'!U81 -> 2021-03-25 | E90: Thu | F90: 0
C91: ='Case Counts'!T82 -> 78 | D91: ='Case Counts'!U82 -> 2021-03-26 | E91: Fri | F91: 0
C92: ='Case Counts'!T83 -> 79 | D92: ='Case Counts'!U83 -> 2021-03-27 | E92: Sat | F92: 0
C93: ='Case Counts'!T84 -> 80 | D93: ='Case Counts'!U84 -> 2021-03-28 | E93: Sun | F93: 0
C94: ='Case Counts'!T85 -> 81 | D94: ='Case Counts'!U85 -> 2021-03-29 | E94: Mon | F94: 1.48
C95: ='Case Counts'!T86 -> 82 | D95: ='Case Counts'!U86 -> 2021-03-30 | E95: Tue | F95: 0
C96: ='Case Counts'!T87 -> 83 | D96: ='Case Counts'!U87 -> 2021-03-31 | E96: Wed | F96: 0
C97: ='Case Counts'!T88 -> 84 | D97: ='Case Counts'!U88 -> 2021-04-01 | E97: Thu | F97: 0
C98: ='Case Counts'!T89 -> 85 | D98: ='Case Counts'!U89 -> 2021-04-02 | E98: Fri | F98: 0
C99: ='Case Counts'!T90 -> 86 | D99: ='Case Counts'!U90 -> 2021-04-03 | E99: Sat | F99: 0
C100: ='Case Counts'!T91 -> 87 | D100: ='Case Counts'!U91 -> 2021-04-04 | E100: Sun | F100: 0
C101: ='Case Counts'!T92 -> 88 | D101: ='Case Counts'!U92 -> 2021-04-05 | E101: Mon | F101: 1.48
C102: ='Case Counts'!T93 -> 89 | D102: ='Case Counts'!U93 -> 2021-04-06 | E102: Tue | F102: 0
C103: ='Case Counts'!T94 -> 90 | D103: ='Case Counts'!U94 -> 2021-04-07 | E103: Wed | F103: 0
C104: ='Case Counts'!T95 -> 91 | D104: ='Case Counts'!U95 -> 2021-04-08 | E104: Thu | F104: 0
C105: ='Case Counts'!T96 -> 92 | D105: ='Case Counts'!U96 -> 2021-04-09 | E105: Fri | F105: 0
C106: ='Case Counts'!T97 -> 93 | D106: ='Case Counts'!U97 -> 2021-04-10 | E106: Sat | F106: 0
C107: ='Case Counts'!T98 -> 94 | D107: ='Case Counts'!U98 -> 2021-04-11 | E107: Sun | F107: 0
C108: ='Case Counts'!T99 -> 95 | D108: ='Case Counts'!U99 -> 2021-04-12 | E108: Mon | F108: 1.48
C109: ='Case Counts'!T100 -> 96 | D109: ='Case Counts'!U100 -> 2021-04-13 | E109: Tue | F109: 0
C110: ='Case Counts'!T101 -> 97 | D110: ='Case Counts'!U101 -> 2021-04-14 | E110: Wed | F110: 0
C111: ='Case Counts'!T102 -> 98 | D111: ='Case Counts'!U102 -> 2021-04-15 | E111: Thu | F111: 0
C112: ='Case Counts'!T103 -> 99 | D112: ='Case Counts'!U103 -> 2021-04-16 | E112: Fri | F112: 0
C113: ='Case Counts'!T104 -> 100 | D113: ='Case Counts'!U104 -> 2021-04-17 | E113: Sat | F113: 0
C114: ='Case Counts'!T105 -> 101 | D114: ='Case Counts'!U105 -> 2021-04-18 | E114: Sun | F114: 0
C115: ='Case Counts'!T106 -> 102 | D115: ='Case Counts'!U106 -> 2021-04-19 | E115: Mon | F115: 1.48
C116: ='Case Counts'!T107 -> 103 | D116: ='Case Counts'!U107 -> 2021-04-20 | E116: Tue | F116: 0
C117: ='Case Counts'!T108 -> 104 | D117: ='Case Counts'!U108 -> 2021-04-21 | E117: Wed | F117: 0
C118: ='Case Counts'!T109 -> 105 | D118: ='Case Counts'!U109 -> 2021-04-22 | E118: Thu | F118: 0
C119: ='Case Counts'!T110 -> 106 | D119: ='Case Counts'!U110 -> 2021-04-23 | E119: Fri | F119: 0
C120: ='Case Counts'!T111 -> 107 | D120: ='Case Counts'!U111 -> 2021-04-24 | E120: Sat | F120: 0
C121: ='Case Counts'!T112 -> 108 | D121: ='Case Counts'!U112 -> 2021-04-25 | E121: Sun | F121: 0
C122: ='Case Counts'!T113 -> 109 | D122: ='Case Counts'!U113 -> 2021-04-26 | E122: Mon | F122: 1.48
C123: ='Case Counts'!T114 -> 110 | D123: ='Case Counts'!U114 -> 2021-04-27 | E123: Tue | F123: 0
C124: ='Case Counts'!T115 -> 111 | D124: ='Case Counts'!U115 -> 2021-04-28 | E124: Wed | F124: 0
C125: ='Case Counts'!T116 -> 112 | D125: ='Case Counts'!U116 -> 2021-04-29 | E125: Thu | F125: 0
C126: ='Case Counts'!T117 -> 113 | D126: ='Case Counts'!U117 -> 2021-04-30 | E126: Fri | F126: 0
C127: ='Case Counts'!T118 -> 114 | D127: ='Case Counts'!U118 -> 2021-05-01 | E127: Sat | F127: 0
C128: ='Case Counts'!T119 -> 115 | D128: ='Case Counts'!U119 -> 2021-05-02 | E128: Sun | F128: 0
C129: ='Case Counts'!T120 -> 116 | D129: ='Case Counts'!U120 -> 2021-05-03 | E129: Mon | F129: 1.48
C130: ='Case Counts'!T121 -> 117 | D130: ='Case Counts'!U121 -> 2021-05-04 | E130: Tue | F130: 0
C131: ='Case Counts'!T122 -> 118 | D131: ='Case Counts'!U122 -> 2021-05-05 | E131: Wed | F131: 0
C132: ='Case Counts'!T123 -> 119 | D132: ='Case Counts'!U123 -> 2021-05-06 | E132: Thu | F132: 0
C133: ='Case Counts'!T124 -> 120 | D133: ='Case Counts'!U124 -> 2021-05-07 | E133: Fri | F133: 0
C134: ='Case Counts'!T125 -> 121 | D134: ='Case Counts'!U125 -> 2021-05-08 | E134: Sat | F134: 0
C135: ='Case Counts'!T126 -> 122 | D135: ='Case Counts'!U126 -> 2021-05-09 | E135: Sun | F135: 0
C136: ='Case Counts'!T127 -> 123 | D136: ='Case Counts'!U127 -> 2021-05-10 | E136: Mon | F136: 1.48
C137: ='Case Counts'!T128 -> 124 | D137: ='Case Counts'!U128 -> 2021-05-11 | E137: Tue | F137: 0
C138: ='Case Counts'!T129 -> 125 | D138: ='Case Counts'!U129 -> 2021-05-12 | E138: Wed | F138: 0
C139: ='Case Counts'!T130 -> 126 | D139: ='Case Counts'!U130 -> 2021-05-13 | E139: Thu | F139: 0
C140: ='Case Counts'!T131 -> 127 | D140: ='Case Counts'!U131 -> 2021-05-14 | E140: Fri | F140: 0
C141: ='Case Counts'!T132 -> 128 | D141: ='Case Counts'!U132 -> 2021-05-15 | E141: Sat | F141: 0
C142: ='Case Counts'!T133 -> 129 | D142: ='Case Counts'!U133 -> 2021-05-16 | E142: =TEXT(D142,"ddd") -> Sun | F142: =IF(E142="Mon", $L$14, 0) -> 0
C143: ='Case Counts'!T134 -> 130 | D143: ='Case Counts'!U134 -> 2021-05-17 | E143: Mon | F143: 1.48
C144: ='Case Counts'!T135 -> 131 | D144: ='Case Counts'!U135 -> 2021-05-18 | E144: Tue | F144: 0
C145: ='Case Counts'!T136 -> 132 | D145: ='Case Counts'!U136 -> 2021-05-19 | E145: Wed | F145: 0
C146: ='Case Counts'!T137 -> 133 | D146: ='Case Counts'!U137 -> 2021-05-20 | E146: Thu | F146: 0
C147: ='Case Counts'!T138 -> 134 | D147: ='Case Counts'!U138 -> 2021-05-21 | E147: Fri | F147: 0
C148: ='Case Counts'!T139 -> 135 | D148: ='Case Counts'!U139 -> 2021-05-22 | E148: Sat | F148: 0
C149: ='Case Counts'!T140 -> 136 | D149: ='Case Counts'!U140 -> 2021-05-23 | E149: Sun | F149: 0
C150: ='Case Counts'!T141 -> 137 | D150: ='Case Counts'!U141 -> 2021-05-24 | E150: Mon | F150: 1.48
C151: ='Case Counts'!T142 -> 138 | D151: ='Case Counts'!U142 -> 2021-05-25 | E151: Tue | F151: 0
C152: ='Case Counts'!T143 -> 139 | D152: ='Case Counts'!U143 -> 2021-05-26 | E152: Wed | F152: 0
C153: ='Case Counts'!T144 -> 140 | D153: ='Case Counts'!U144 -> 2021-05-27 | E153: Thu | F153: 0
C154: ='Case Counts'!T145 -> 141 | D154: ='Case Counts'!U145 -> 2021-05-28 | E154: Fri | F154: 0
C155: ='Case Counts'!T146 -> 142 | D155: ='Case Counts'!U146 -> 2021-05-29 | E155: Sat | F155: 0
C156: ='Case Counts'!T147 -> 143 | D156: ='Case Counts'!U147 -> 2021-05-30 | E156: Sun | F156: 0
C157: ='Case Counts'!T148 -> 144 | D157: ='Case Counts'!U148 -> 2021-05-31 | E157: Mon | F157: 1.48
C158: ='Case Counts'!T149 -> 145 | D158: ='Case Counts'!U149 -> 2021-06-01 | E158: Tue | F158: 0
C159: ='Case Counts'!T150 -> 146 | D159: ='Case Counts'!U150 -> 2021-06-02 | E159: Wed | F159: 0
C160: ='Case Counts'!T151 -> 147 | D160: ='Case Counts'!U151 -> 2021-06-03 | E160: Thu | F160: 0
C161: ='Case Counts'!T152 -> 148 | D161: ='Case Counts'!U152 -> 2021-06-04 | E161: Fri | F161: 0
C162: ='Case Counts'!T153 -> 149 | D162: ='Case Counts'!U153 -> 2021-06-05 | E162: Sat | F162: 0
C163: ='Case Counts'!T154 -> 150 | D163: ='Case Counts'!U154 -> 2021-06-06 | E163: Sun | F163: 0
C164: ='Case Counts'!T155 -> 151 | D164: ='Case Counts'!U155 -> 2021-06-07 | E164: Mon | F164: 1.48
C165: ='Case Counts'!T156 -> 152 | D165: ='Case Counts'!U156 -> 2021-06-08 | E165: Tue | F165: 0
C166: ='Case Counts'!T157 -> 153 | D166: ='Case Counts'!U157 -> 2021-06-09 | E166: Wed | F166: 0
C167: ='Case Counts'!T158 -> 154 | D167: ='Case Counts'!U158 -> 2021-06-10 | E167: Thu | F167: 0
C168: ='Case Counts'!T159 -> 155 | D168: ='Case Counts'!U159 -> 2021-06-11 | E168: Fri | F168: 0
C169: ='Case Counts'!T160 -> 156 | D169: ='Case Counts'!U160 -> 2021-06-12 | E169: Sat | F169: 0
C170: ='Case Counts'!T161 -> 157 | D170: ='Case Counts'!U161 -> 2021-06-13 | E170: Sun | F170: 0
C171: ='Case Counts'!T162 -> 158 | D171: ='Case Counts'!U162 -> 2021-06-14 | E171: Mon | F171: 1.48
C172: ='Case Counts'!T163 -> 159 | D172: ='Case Counts'!U163 -> 2021-06-15 | E172: Tue | F172: 0
C173: ='Case Counts'!T164 -> 160 | D173: ='Case Counts'!U164 -> 2021-06-16 | E173: Wed | F173: 0
C174: ='Case Counts'!T165 -> 161 | D174: ='Case Counts'!U165 -> 2021-06-17 | E174: Thu | F174: 0
C175: ='Case Counts'!T166 -> 162 | D175: ='Case Counts'!U166 -> 2021-06-18 | E175: Fri | F175: 0
C176: ='Case Counts'!T167 -> 163 | D176: ='Case Counts'!U167 -> 2021-06-19 | E176: Sat | F176: 0
C177: ='Case Counts'!T168 -> 164 | D177: ='Case Counts'!U168 -> 2021-06-20 | E177: Sun | F177: 0
C178: ='Case Counts'!T169 -> 165 | D178: ='Case Counts'!U169 -> 2021-06-21 | E178: Mon | F178: 1.48
C179: ='Case Counts'!T170 -> 166 | D179: ='Case Counts'!U170 -> 2021-06-22 | E179: Tue | F179: 0
C180: ='Case Counts'!T171 -> 167 | D180: ='Case Counts'!U171 -> 2021-06-23 | E180: Wed | F180: 0
C181: ='Case Counts'!T172 -> 168 | D181: ='Case Counts'!U172 -> 2021-06-24 | E181: Thu | F181: 0
C182: ='Case Counts'!T173 -> 169 | D182: ='Case Counts'!U173 -> 2021-06-25 | E182: Fri | F182: 0
C183: ='Case Counts'!T174 -> 170 | D183: ='Case Counts'!U174 -> 2021-06-26 | E183: Sat | F183: 0
C184: ='Case Counts'!T175 -> 171 | D184: ='Case Counts'!U175 -> 2021-06-27 | E184: Sun | F184: 0
C185: ='Case Counts'!T176 -> 172 | D185: ='Case Counts'!U176 -> 2021-06-28 | E185: Mon | F185: 1.48
C186: ='Case Counts'!T177 -> 173 | D186: ='Case Counts'!U177 -> 2021-06-29 | E186: Tue | F186: 0
C187: ='Case Counts'!T178 -> 174 | D187: ='Case Counts'!U178 -> 2021-06-30 | E187: Wed | F187: 0
C188: ='Case Counts'!T179 -> 175 | D188: ='Case Counts'!U179 -> 2021-07-01 | E188: Thu | F188: 0
C189: ='Case Counts'!T180 -> 176 | D189: ='Case Counts'!U180 -> 2021-07-02 | E189: Fri | F189: 0
C190: ='Case Counts'!T181 -> 177 | D190: ='Case Counts'!U181 -> 2021-07-03 | E190: Sat | F190: 0
C191: ='Case Counts'!T182 -> 178 | D191: ='Case Counts'!U182 -> 2021-07-04 | E191: Sun | F191: 0
C192: ='Case Counts'!T183 -> 179 | D192: ='Case Counts'!U183 -> 2021-07-05 | E192: Mon | F192: 1.48
C193: ='Case Counts'!T184 -> 180 | D193: ='Case Counts'!U184 -> 2021-07-06 | E193: Tue | F193: 0
C194: ='Case Counts'!T185 -> 181 | D194: ='Case Counts'!U185 -> 2021-07-07 | E194: Wed | F194: 0
C195: ='Case Counts'!T186 -> 182 | D195: ='Case Counts'!U186 -> 2021-07-08 | E195: Thu | F195: 0
C196: ='Case Counts'!T187 -> 183 | D196: ='Case Counts'!U187 -> 2021-07-09 | E196: Fri | F196: 0
C197: ='Case Counts'!T188 -> 184 | D197: ='Case Counts'!U188 -> 2021-07-10 | E197: Sat | F197: 0
C198: ='Case Counts'!T189 -> 185 | D198: ='Case Counts'!U189 -> 2021-07-11 | E198: Sun | F198: 0
C199: ='Case Counts'!T190 -> 186 | D199: ='Case Counts'!U190 -> 2021-07-12 | E199: Mon | F199: 1.48
C200: ='Case Counts'!T191 -> 187 | D200: ='Case Counts'!U191 -> 2021-07-13 | E200: Tue | F200: 0
C201: ='Case Counts'!T192 -> 188 | D201: ='Case Counts'!U192 -> 2021-07-14 | E201: Wed | F201: 0
C202: ='Case Counts'!T193 -> 189 | D202: ='Case Counts'!U193 -> 2021-07-15 | E202: Thu | F202: 0
C203: ='Case Counts'!T194 -> 190 | D203: ='Case Counts'!U194 -> 2021-07-16 | E203: Fri | F203: 0
C204: ='Case Counts'!T195 -> 191 | D204: ='Case Counts'!U195 -> 2021-07-17 | E204: Sat | F204: 0
C205: ='Case Counts'!T196 -> 192 | D205: ='Case Counts'!U196 -> 2021-07-18 | E205: Sun | F205: 0
C206: ='Case Counts'!T197 -> 193 | D206: ='Case Counts'!U197 -> 2021-07-19 | E206: =TEXT(D206,"ddd") -> Mon | F206: =IF(E206="Mon", $L$14, 0) -> 1.48
C207: ='Case Counts'!T198 -> 194 | D207: ='Case Counts'!U198 -> 2021-07-20 | E207: Tue | F207: 0
C208: ='Case Counts'!T199 -> 195 | D208: ='Case Counts'!U199 -> 2021-07-21 | E208: Wed | F208: 0
... 170 more rows

Sheet E.1. Hospitalization Inputs
BA5: Outbreak start
BA6: Model start | BB6: Model end | BD6: Percentages
BA7: Custom date | BB7: Custom date | BD7: Case Numbers | BJ7: =IFERROR(INDEX($BH$7:$BH$10, MATCH(BI7, $BG$7:$BG$10, 0)), "") -> 
B9: Step 1: | C9: Enter information about the time horizon | BA9: Start Date | BB9: End Date | BD9: % of All Cases Admitted for Hospital Care | BE9: % of Admitted Cases Requiring ICU Care | BF9: % of ICU Cases That Will Require Mechanical Ventilation
C10: Choose a starting date | F10: Model start | G10: 2020-07-31 | BA10: =IF(F12="N/A", 'Case Counts'!U4, F12) -> 2021-01-07 | BB10: =G12 -> 2021-07-07 | BD10: # of Cases Admitted for Hospital Care | BE10: # of Admitted Cases Requiring ICU Care | BF10: # of ICU Cases That Will Require Mechanical Ventilation
C11: Choose an ending date | F11: Custom date | G11: 2021-07-07
C12: Chosen date range (start, end) | F12: =IF($F$10=$BA$7, G10, 'Case Counts'!$U$4) -> 2021-01-07 | G12: =IF($F$11=$BB$7, G11, 'Case Counts'!$U$369) -> 2021-07-07 | BA12: Age Groups
BA13: 0-17
C14: Total Cases in Chosen Date Range | BA14: 18-64
C15: Base Case | D15: Strategy 1 | E15: Strategy 2 | F15: Strategy 3 | BA15: 65+
C16: =SUMIFS('Case Counts'!V4:V369,'Case Counts'!$U$4:$U$369,">="&$BA$10,'Case Counts'!$U$4:$U$369,"<="&$BB$10) -> 539.1224667 | D16: =SUMIFS('Case Counts'!W4:W369,'Case Counts'!$U$4:$U$369,">="&$BA$10,'Case Counts'!$U$4:$U$369,"<="&$BB$10) -> 303.4353935 | E16: =SUMIFS('Case Counts'!X4:X369,'Case Counts'!$U$4:$U$369,">="&$BA$10,'Case Counts'!$U$4:$U$369,"<="&$BB$10) -> 111.5863328 | F16: =SUMIFS('Case Counts'!Y4:Y369,'Case Counts'!$U$4:$U$369,">="&$BA$10,'Case Counts'!$U$4:$U$369,"<="&$BB$10) -> 62.8398233
B18: Step 2: | C18: Enter information about the risk of hospitalization by age group
C19: I wish to enter data based on | F19: Percentages | G19: (% sign not shown in data table; enter 45% as 45)
C21: Hospitalized Cases
C22: Age (year) | D22: =IF($F$19=$BD$6, BD9, BD10) -> % of All Cases Admitted for Hospital Care | E22: =IF($F$19=$BD$6, BE9, BE10) -> % of Admitted Cases Requiring ICU Care | F22: =IF($F$19=$BD$6, BF9, BF10) -> % of ICU Cases That Will Require Mechanical Ventilation
C23: =$BA$13 -> 0-17 | D23: 0.205 | E23: 33.2 | F23: 17.39130435
C24: =$BA$14 -> 18-64 | D24: 2.165335893 | E24: 29.9 | F24: 16.23602661
C25: =$BA$15 -> 65+ | D25: 4.118695937 | E25: 35 | F25: 21.1
B27: Step 3: | C27: Enter information about the percentage of all cases in your jurisdiction that belong to each age group
C28: Cases by Age Group
C29: Age (year) | D29: % of Total Cases
C30: =$BA$13 -> 0-17 | D30: 0.88
C31: =$BA$14 -> 18-64 | D31: 0.06
C32: =$BA$15 -> 65+ | D32: 0.06
D33: =SUM(D30:D32) -> 1 | E33: (must equal 100%)

Sheet E.2. Costing Inputs
BA6: Ward Types
BA7: Hospitalized, non-ICU | BJ7: =IFERROR(INDEX($BH$7:$BH$10, MATCH(BI7, $BG$7:$BG$10, 0)), "") -> 
BA8: ICU (No Ventilator)
B9: Step 1: | C9: Enter information about the proportion of patients covered by Medicaid | BA9: ICU + Ventilator
C10: % of Hospitalized Patients Covered by Medicaid
C11: Age (year) | D11: % Medicaid | E11: % Other Insurance* | F11: Total
C12: ='E.1. Hospitalization Inputs'!BA13 -> 0-17 | D12: 0.18 | E12: =1-D12 -> 0.82 | F12: =SUM(D12:E12) -> 1
C13: ='E.1. Hospitalization Inputs'!BA14 -> 18-64 | D13: 0.18 | E13: =1-D13 -> 0.82 | F13: =SUM(D13:E13) -> 1
C14: ='E.1. Hospitalization Inputs'!BA15 -> 65+ | D14: 0.18 | E14: 0.82 | F14: 1
B17: Step 2: | C17: Enter information about treatment charges per day & median length of stay (LOS) for hospitalized patients covered by OTHER INSURANCE*.
C18: Direct Medical Charges (Hospitalized Cases using Other Insurance*)
C19: Age (year) | D19: Per case ($)/day | G19: Median Length of Stay (days)
D20: =$BA$7 -> Hospitalized, non-ICU | E20: =$BA$8 -> ICU (No Ventilator) | F20: =$BA$9 -> ICU + Ventilator | G20: =$D$20 -> Hospitalized, non-ICU | H20: =$E$20 -> ICU (No Ventilator) | I20: =$F$20 -> ICU + Ventilator
C21: =C12 -> 0-17 | D21: 2462.25 | E21: 3814.79 | F21: 5371.76 | G21: 2.5 | H21: 5 | I21: 9
C22: =C13 -> 18-64 | D22: 2006.58 | E22: 2067.43 | F22: 3677.58 | G22: 4 | H22: 5 | I22: 14
C23: 65+ | D23: 2039.3 | E23: 2065.99 | F23: 3599.66 | G23: 5 | H23: 6 | I23: 12
C24: *Note: Other insurance includes private insurance and Medicare
B26: Step 3: | C26: Enter information about treatment charges per day & median length of stay (LOS) for hospitalized patients covered by MEDICAID.
C27: Direct Medical Charges (Hospitalized Cases using Medicaid)
C28: Age (year) | D28: Per case ($)/day | G28: Median Length of Stay (days)
D29: =$BA$7 -> Hospitalized, non-ICU | E29: =$BA$8 -> ICU (No Ventilator) | F29: =$BA$9 -> ICU + Ventilator | G29: =$D$20 -> Hospitalized, non-ICU | H29: =$E$20 -> ICU (No Ventilator) | I29: =$F$20 -> ICU + Ventilator
C30: =C12 -> 0-17 | D30: 2506.08 | E30: 3760.92 | F30: 4858.98 | G30: 2 | H30: 4 | I30: 9
C31: =C13 -> 18-64 | D31: 2365.17 | E31: 2223.86 | F31: 3969.74 | G31: 3 | H31: 5 | I31: 15
C32: 65+ | D32: 2540.87 | E32: 2229.26 | F32: 4062.07 | G32: 5 | H32: 7 | I32: 13
C33: Source: Premier Healthcare Database (hospitalization charges and LOS); Note: charges are higher than costs for both "Other insurance" and Medicaid.
B35: Step 4: | C35: Enter Cost to Charge ratio
C36: Cost to Charge Ratio
C37: Other Insurance* | D37: 1
C38: Medicaid | D38: 1
C39: Source: Centers for Medicare and Medicaid Services
C40: *Note: Cost to charge ratios for private insurance are difficult to find, and vary across insurers and plans. This estimate of 80% is an assumed value and users may wish to alter this number.

Sheet F. Impact of Interventions
BB6: Age groups
BB7: Low | BC7: 0.6 | BD7: 0.2 | BK7: =IFERROR(INDEX($BI$7:$BI$10, MATCH(BJ7, $BH$7:$BH$10, 0)), "") -> 
BB8: High | BC8: 0.5 | BD8: 0.1
B9: Step 1: | C9: Enter estimates of efficacy and compliance for each intervention | BC9: 0.5 | BD9: 0.1
C10: Aggregate Impact of Community Interventions | J10: t | BC10: 0.5 | BD10: 0.05
C11: Intervention | D11: % Efficacy | E11: % Compliance | F11: Net % Effectiveness | H11: References | J11: 0.5
C12: Mask wearing | D12: =IF($J$13="Low", BC7, BC12) -> 0.79 | E12: =IF($J$13="Low", BD7, BD12) -> 0.41 | F12: =D12*E12 -> 0.3239 | H12: 1-6 | BC12: 0.79 | BD12: 0.41
C13: Cleaning and Disinfection | D13: =IF($J$13="Low", BC8, BC13) -> 0.23 | E13: 0.35 | F13: =D13*E13 -> 0.0805 | H13: 7 | I13: Level of Impact | J13: High | BC13: 0.23 | BD13: 0.35
C14: Hand hygiene | D14: 0.16 | E14: 0.2 | F14: 0.032 | H14: 3,7 | BC14: 0.16 | BD14: 0.2
C15: Social Distancing | D15: 0.77 | E15: 0.1 | F15: 0.077 | H15: 7 | BC15: 0.77 | BD15: 0.1
C18: Total Reduction in Transmission (Effectiveness) | E18: =MIN(1,MAX($F$12:F16)+(SUM($F$12:F16)-MAX($F$12:F16))^(1/$J$11)) -> 0.35981025
C20: NOTE: This calculator is intended to aid the user in building potential estimates of effectiveness of interventions other than contact tracing. Due to the likely scarcity of empirical data to directly inform these estimates, the user is encourage to consider running several "what if" or alternate estimates and scenarios.
C24: Definitions
C25: Efficacy - the impact of the intervention under optimal conditions that would assure maximum impact
C26: Compliance - the percentage of the population that adheres to the intervention in a manner that assumes maximum impact. This percentage may vary considerably between communities and over time.
C27: Overall Effectiveness / Net Impact - the estimated reduction in onward transmission, calculated as (efficacy * compliance)
C29: ^ There is little data recording the efficacy of cleaning and disinfection in an environment such as a school. The provided default value assumes equivalency to hand washing
C30: ^^ The maximum efficacy of social distancing is based on a combination of individuals distancing 6 feet or more for less than 15 minutes
C32: References
C33: 1. Chu et al. Lancet. 2020 Jun 27;395(10242):1973-1987
C34: 2. Ueki H et al mSphere 5:e00637-20. https://doi.org/10.1128/mSphere.00637-20.
C35: 3. Wang et al. BMJ Global Health 2020;5:e002794. doi:10.1136/bmjgh-2020-002794
C36: 4. Leung et al Nat Med. 2020 Jun;26(6):981. doi: 10.1038/s41591-020-0946-9.
C37: 5. Shacham et al. medRxiv preprint doi: https://doi.org/10.1101/2020.10.28.20221705; this version posted October 30, 2020.
C38: 6. CDC: https://www.cdc.gov/coronavirus/2019-ncov/more/masking-science-sars-cov2.html (access 11 Nov 2020).
C39: 7. Doung-Ngern et al. Emerg Infect Dis. 2020 Nov;26(11):2607-2616.

Sheet RESULTS
B5: Results: Potential impact of Contact Tracing on COVID-19 cases and resources needed | BA5: Chart Text
BA6: Maximum daily staff needed by strategy | BD6: Staffing Needs by Group
BA7: Maximum staff needed per day
B8: Result 1: Potential Impact of Contact Tracing Strategies on Future Epidemic Trajectory | BA8: New cases per day by strategy
BA9: Cumulative cases by strategy
BA10: Contact Tracing Starts | BB10: =TEXT($S$13, "[$-en-US]d-mmm-yyyy;@") -> 7-Jan-2021
BA11: Chart Titles
N12: Table 1: Outbreak duration and total cases by type of intervention | BA12: =IFERROR(_xlfn.CONCAT(BA6, "(", $BA$10, " ", $BB$10, ")"), CONCATENATE(BA6, "(", $BA$10, " ", $BB$10, ")")) -> Maximum daily staff needed by strategy (Contact Tracing Starts 7-Jan-2021)
R13: contact tracing start date: | S13: ='B. Impact of contact tracing'!$F$12 -> 2021-01-07 | BA13: =IFERROR(_xlfn.CONCAT(BA8, "(", $BA$10, " ", $BB$10, ")"), CONCATENATE(BA8, "(", $BA$10, " ", $BB$10, ")")) -> New cases per day by strategy (Contact Tracing Starts 7-Jan-2021)
P14: Type of contact tracing | BA14: =IFERROR(_xlfn.CONCAT(BA9, "(", $BA$10, " ", $BB$10, ")"), CONCATENATE(BA9, "(", $BA$10, " ", $BB$10, ")")) -> Cumulative cases by strategy (Contact Tracing Starts 7-Jan-2021)
P15: Base Case | Q15: ='B. Impact of contact tracing'!F16 -> Strategy 1 | R15: ='B. Impact of contact tracing'!G16 -> Strategy 2 | S15: ='B. Impact of contact tracing'!H16 -> Strategy 3 | BA15: Y-axis labels | BB15: X-axis labels
N16: Duration (days) | P16: =IF('Case Counts'!V369>=1,"> 365",SUM(COUNTIF('Case Counts'!V5:V369,">=1"))) -> 53 | Q16: =IF('Case Counts'!W369>=1,"> 365",SUM(COUNTIF('Case Counts'!W5:W369,">=1"))) -> 103 | R16: =IF('Case Counts'!X369>=1,"> 365",SUM(COUNTIF('Case Counts'!X5:X369,">=1"))) -> 52 | S16: =IF('Case Counts'!Y369>=1,"> 365",SUM(COUNTIF('Case Counts'!Y5:Y369,">=1"))) -> 52 | BA16: Cases | BB16: Days
N17: Date of Peak | P17: =INDEX('Case Counts'!$U$4:$U$369, MATCH('Calc - Base'!S5, 'Case Counts'!$T$4:$T$369, 0)) -> 2021-02-15 | Q17: =INDEX('Case Counts'!$U$4:$U$369, MATCH('Calc - Likely, S1'!S5, 'Case Counts'!$T$4:$T$369, 0)) -> 2021-03-15 | R17: =INDEX('Case Counts'!$U$4:$U$369, MATCH('Calc - Likely, S2'!S5, 'Case Counts'!$T$4:$T$369, 0)) -> 2021-02-22 | S17: =INDEX('Case Counts'!$U$4:$U$369, MATCH('Calc - Likely, S3'!S5, 'Case Counts'!$T$4:$T$369, 0)) -> 2021-02-01 | BA17: Staff
N18: Cases on Peak Day | P18: ='Calc - Base'!S4 -> 22.74078462 | Q18: ='Calc - Likely, S1'!S4 -> 4.97387584 | R18: ='Calc - Likely, S2'!S4 -> 1.916845363 | S18: ='Calc - Likely, S3'!S4 -> 1.574743373
N19: Total number of cases | P19: =MAX('Case Counts'!Z59:Z424) -> 543.3397101 | Q19: =MAX('Case Counts'!AA52:AA417) -> 345.7590219 | R19: =MAX('Case Counts'!AB52:AB417) -> 183.7548449 | S19: =MAX('Case Counts'!AC52:AC417) -> 116.7965041
BB24: Lower | BC24: Upper
B25: Result 2: Estimated Staffing Needs | BA25: =J30 -> Strategy 1 | BB25: =J32 -> 1.924923033 | BC25: =K32 -> 17.34526556
BA26: =L30 -> Strategy 2 | BB26: =L32 -> 0.6194901468 | BC26: =M32 -> 5.972811874
I27: Table 2: Contact tracing resource needs | BA27: =N30 -> Strategy 3 | BB27: =N32 -> 0.470463118 | BC27: =O32 -> 4.677862995
N28: contact tracing start date: | O28: ='B. Impact of contact tracing'!$F$12 -> 2021-01-07
J29: Type of contact tracing | BB29: Lower | BC29: Upper
J30: =Q15 -> Strategy 1 | L30: =R15 -> Strategy 2 | N30: =S15 -> Strategy 3 | BA30: =J30 -> Strategy 1 | BB30: =J35 -> 1723.606217 | BC30: =K35 -> 10156.88774
J31: Lower | K31: Upper | L31: Lower | M31: Upper | N31: Lower | O31: Upper | BA31: =L30 -> Strategy 2 | BB31: =L35 -> 914.9802447 | BC31: =M35 -> 5388.003746
I32: Max daily staff needs | J32: =MAX('Staff Needed'!V5:V370) -> 1.924923033 | K32: =MAX('Staff Needed'!W5:W370) -> 17.34526556 | L32: =MAX('Staff Needed'!X5:X370) -> 0.6194901468 | M32: =MAX('Staff Needed'!Y5:Y370) -> 5.972811874 | N32: =MAX('Staff Needed'!Z5:Z370) -> 0.470463118 | O32: =MAX('Staff Needed'!AA5:AA370) -> 4.677862995 | BA32: =N30 -> Strategy 3 | BB32: =N35 -> 581.354486 | BC32: =O35 -> 3422.158577
I33: Group 1 | J33: =MAX('Staff Needed'!AB5:AB370) -> 1.305642408 | K33: =MAX('Staff Needed'!AC5:AC370) -> 13.70924528 | L33: =MAX('Staff Needed'!AD5:AD370) -> 0.5031719079 | M33: =MAX('Staff Needed'!AE5:AE370) -> 5.283305033 | N33: =MAX('Staff Needed'!AF5:AF370) -> 0.4133701354 | O33: =MAX('Staff Needed'!AG5:AG370) -> 4.340386422
I34: Group 2 | J34: =MAX('Staff Needed'!AH5:AH370) -> 0.6200731697 | K34: =MAX('Staff Needed'!AI5:AI370) -> 3.691913156 | L34: =MAX('Staff Needed'!AJ5:AJ370) -> 0.1173636801 | M34: =MAX('Staff Needed'!AK5:AK370) -> 0.7029022218 | N34: =MAX('Staff Needed'!AL5:AL370) -> 0.0577814477 | O34: =MAX('Staff Needed'!AM5:AM370) -> 0.3462273282 | BB34: Strategy 1 | BD34: Strategy 2 | BF34: Strategy 3
I35: Total hours needed | J35: =SUM('Person Hours'!V5:V370) -> 1723.606217 | K35: =SUM('Person Hours'!W5:W370) -> 10156.88774 | L35: =SUM('Person Hours'!X5:X370) -> 914.9802447 | M35: =SUM('Person Hours'!Y5:Y370) -> 5388.003746 | N35: =SUM('Person Hours'!Z5:Z370) -> 581.354486 | O35: =SUM('Person Hours'!AA5:AA370) -> 3422.158577 | BB35: Lower | BC35: Upper | BD35: Lower | BE35: Upper | BF35: Lower | BG35: Upper
I36: =I33 -> Group 1 | J36: =SUM('Person Hours'!AB5:AB370) -> 1089.140919 | K36: =SUM('Person Hours'!AC5:AC370) -> 7623.986434 | L36: =SUM('Person Hours'!AD5:AD370) -> 578.8277614 | M36: =SUM('Person Hours'!AE5:AE370) -> 4051.79433 | N36: =SUM('Person Hours'!AF5:AF370) -> 367.908988 | O36: =SUM('Person Hours'!AG5:AG370) -> 2575.362916 | BA36: Group 1 | BB36: =J36/SUM(J36:J37) -> 0.6318966061 | BC36: 0.7506222994 | BD36: 0.6326123047 | BE36: 0.7520028791 | BF36: 0.6328479384 | BG36: 0.7525551075
I37: =I34 -> Group 2 | J37: =SUM('Person Hours'!AH5:AH370) -> 634.4652984 | K37: =SUM('Person Hours'!AI5:AI370) -> 2532.90131 | L37: =SUM('Person Hours'!AJ5:AJ370) -> 336.1524833 | M37: =SUM('Person Hours'!AK5:AK370) -> 1336.209416 | N37: =SUM('Person Hours'!AL5:AL370) -> 213.4454981 | O37: =SUM('Person Hours'!AM5:AM370) -> 846.7956612 | BA37: Group 2 | BB37: =J37/SUM(J36:J37) -> 0.3681033939 | BC37: 0.2493777006 | BD37: 0.3673876953 | BE37: 0.2479971209 | BF37: 0.3671520616 | BG37: 0.2474448925

Sheet RESULTS_Costs
B5: Results: Estimated Hospitalizations Averted
AB8: 1 | AC8: Total Cases by age group | AL8: Age Groups | AN8: Ward Types | AR8: Hospitalization Risk entered in: | AS8: ='E.1. Hospitalization Inputs'!F19 -> Percentages
AB9: 2 | AC9: Total Hospitalizations (+ Hospitalizations Averted) by age group and severity | AL9: ='E.1. Hospitalization Inputs'!BA13 -> 0-17 | AN9: ='E.2. Costing Inputs'!BA7 -> Hospitalized, non-ICU
AB10: 3 | AC10: Total Direct Medical Costs (+ Averted) by age group and severity | AL10: ='E.1. Hospitalization Inputs'!BA14 -> 18-64 | AN10: ='E.2. Costing Inputs'!BA8 -> ICU (No Ventilator)
AB11: 4 | AC11: Total Medicaid Expenditures by age group | AL11: ='E.1. Hospitalization Inputs'!BA15 -> 65+ | AN11: ='E.2. Costing Inputs'!BA9 -> ICU + Ventilator
AG12: *Data are summarized over user-defined time horizon entered on Tab E.1. Hospitalization Inputs
AC13: Total Cases (by Age Group)* | AI13: Total Hospitalized Cases (All Ward Types, by Age Group)* | AO13: Total Cases Admitted to ICU (Vent + no Vent, by Age Group)*
AC14: Age | AD14: Base Case | AE14: Strategy 1 | AF14: Strategy 2 | AG14: Strategy 3 | AI14: Age | AJ14: Base Case | AK14: Strategy 1 | AL14: Strategy 2 | AM14: Strategy 3 | AO14: Age | AP14: Base Case | AQ14: Strategy 1 | AR14: Strategy 2 | AS14: Strategy 3
AC15: =$AL$9 -> 0-17 | AD15: ='E.1. Hospitalization Inputs'!C$16*'E.1. Hospitalization Inputs'!$D30 -> 474.4277707 | AE15: ='E.1. Hospitalization Inputs'!D$16*'E.1. Hospitalization Inputs'!$D30 -> 267.0231463 | AF15: ='E.1. Hospitalization Inputs'!E$16*'E.1. Hospitalization Inputs'!$D30 -> 98.19597283 | AG15: ='E.1. Hospitalization Inputs'!F$16*'E.1. Hospitalization Inputs'!$D30 -> 55.2990445 | AI15: =$AL$9 -> 0-17 | AJ15: =IF($AS$8='E.1. Hospitalization Inputs'!$BD$6, AD15*'E.1. Hospitalization Inputs'!$D23/100, FALSE) -> 0.97257693 | AK15: =IF($AS$8='E.1. Hospitalization Inputs'!$BD$6, AE15*'E.1. Hospitalization Inputs'!$D23/100, FALSE) -> 0.5473974499 | AL15: =IF($AS$8='E.1. Hospitalization Inputs'!$BD$6, AF15*'E.1. Hospitalization Inputs'!$D23/100, FALSE) -> 0.2013017443 | AM15: =IF($AS$8='E.1. Hospitalization Inputs'!$BD$6, AG15*'E.1. Hospitalization Inputs'!$D23/100, FALSE) -> 0.1133630412 | AO15: =$AL$9 -> 0-17 | AP15: =IF($AS$8='E.1. Hospitalization Inputs'!$BD$6, AJ15*'E.1. Hospitalization Inputs'!$E23/100, FALSE) -> 0.3228955408 | AQ15: =IF($AS$8='E.1. Hospitalization Inputs'!$BD$6, AK15*'E.1. Hospitalization Inputs'!$E23/100, FALSE) -> 0.1817359534 | AR15: =IF($AS$8='E.1. Hospitalization Inputs'!$BD$6, AL15*'E.1. Hospitalization Inputs'!$E23/100, FALSE) -> 0.06683217911 | AS15: =IF($AS$8='E.1. Hospitalization Inputs'!$BD$6, AM15*'E.1. Hospitalization Inputs'!$E23/100, FALSE) -> 0.03763652969
AC16: =$AL$10 -> 18-64 | AD16: ='E.1. Hospitalization Inputs'!C$16*'E.1. Hospitalization Inputs'!$D31 -> 32.347348 | AE16: ='E.1. Hospitalization Inputs'!D$16*'E.1. Hospitalization Inputs'!$D31 -> 18.20612361 | AF16: ='E.1. Hospitalization Inputs'!E$16*'E.1. Hospitalization Inputs'!$D31 -> 6.695179966 | AG16: ='E.1. Hospitalization Inputs'!F$16*'E.1. Hospitalization Inputs'!$D31 -> 3.770389398 | AI16: =$AL$10 -> 18-64 | AJ16: =IF($AS$8='E.1. Hospitalization Inputs'!$BD$6, AD16*'E.1. Hospitalization Inputs'!$D24/100, FALSE) -> 0.7004287366 | AK16: =IF($AS$8='E.1. Hospitalization Inputs'!$BD$6, AE16*'E.1. Hospitalization Inputs'!$D24/100, FALSE) -> 0.3942237292 | AL16: =IF($AS$8='E.1. Hospitalization Inputs'!$BD$6, AF16*'E.1. Hospitalization Inputs'!$D24/100, FALSE) -> 0.1449731349 | AM16: =IF($AS$8='E.1. Hospitalization Inputs'!$BD$6, AG16*'E.1. Hospitalization Inputs'!$D24/100, FALSE) -> 0.08164159492 | AO16: =$AL$10 -> 18-64 | AP16: =IF($AS$8='E.1. Hospitalization Inputs'!$BD$6, AJ16*'E.1. Hospitalization Inputs'!$E24/100, FALSE) -> 0.2094281922 | AQ16: =IF($AS$8='E.1. Hospitalization Inputs'!$BD$6, AK16*'E.1. Hospitalization Inputs'!$E24/100, FALSE) -> 0.117872895 | AR16: =IF($AS$8='E.1. Hospitalization Inputs'!$BD$6, AL16*'E.1. Hospitalization Inputs'!$E24/100, FALSE) -> 0.04334696733 | AS16: =IF($AS$8='E.1. Hospitalization Inputs'!$BD$6, AM16*'E.1. Hospitalization Inputs'!$E24/100, FALSE) -> 0.02441083688
AC17: =$AL$11 -> 65+ | AD17: ='E.1. Hospitalization Inputs'!C$16*'E.1. Hospitalization Inputs'!$D32 -> 32.347348 | AE17: ='E.1. Hospitalization Inputs'!D$16*'E.1. Hospitalization Inputs'!$D32 -> 18.20612361 | AF17: ='E.1. Hospitalization Inputs'!E$16*'E.1. Hospitalization Inputs'!$D32 -> 6.695179966 | AG17: ='E.1. Hospitalization Inputs'!F$16*'E.1. Hospitalization Inputs'!$D32 -> 3.770389398 | AI17: =$AL$11 -> 65+ | AJ17: =IF($AS$8='E.1. Hospitalization Inputs'!$BD$6, AD17*'E.1. Hospitalization Inputs'!$D25/100, FALSE) -> 1.332288908 | AK17: =IF($AS$8='E.1. Hospitalization Inputs'!$BD$6, AE17*'E.1. Hospitalization Inputs'!$D25/100, FALSE) -> 0.7498548735 | AL17: =IF($AS$8='E.1. Hospitalization Inputs'!$BD$6, AF17*'E.1. Hospitalization Inputs'!$D25/100, FALSE) -> 0.2757541052 | AM17: =IF($AS$8='E.1. Hospitalization Inputs'!$BD$6, AG17*'E.1. Hospitalization Inputs'!$D25/100, FALSE) -> 0.1552908749 | AO17: =$AL$11 -> 65+ | AP17: =IF($AS$8='E.1. Hospitalization Inputs'!$BD$6, AJ17*'E.1. Hospitalization Inputs'!$E25/100, FALSE) -> 0.4663011178 | AQ17: =IF($AS$8='E.1. Hospitalization Inputs'!$BD$6, AK17*'E.1. Hospitalization Inputs'!$E25/100, FALSE) -> 0.2624492057 | AR17: =IF($AS$8='E.1. Hospitalization Inputs'!$BD$6, AL17*'E.1. Hospitalization Inputs'!$E25/100, FALSE) -> 0.09651393683 | AS17: =IF($AS$8='E.1. Hospitalization Inputs'!$BD$6, AM17*'E.1. Hospitalization Inputs'!$E25/100, FALSE) -> 0.05435180623
AC18: Total | AD18: =SUM(AD15:AD17) -> 539.1224667 | AE18: =SUM(AE15:AE17) -> 303.4353935 | AF18: 111.5863328 | AG18: 62.8398233 | AI18: Total | AJ18: =SUM(AJ15:AJ17) -> 3.005294575 | AK18: =SUM(AK15:AK17) -> 1.691476053 | AL18: 0.6220289844 | AM18: 0.3502955111 | AO18: Total | AP18: =SUM(AP15:AP17) -> 0.9986248508 | AQ18: =SUM(AQ15:AQ17) -> 0.5620580541 | AR18: 0.2066930833 | AS18: 0.1163991728
AQ20: Hospitalizations Averted Relative to Base Case (by Age Group and Ward Type)*
AC21: Total Hospitalizations (by Age Group and Ward Type)*
AD22: Base Case | AG22: Strategy 1 | AJ22: Strategy 2 | AM22: Strategy 3 | AR22: Strategy 1 | AU22: Strategy 2 | AX22: Strategy 3
AC23: Age | AD23: =$AN$9 -> Hospitalized, non-ICU | AE23: =$AN$10 -> ICU (No Ventilator) | AF23: =$AN$11 -> ICU + Ventilator | AG23: =$AN$9 -> Hospitalized, non-ICU | AH23: =$AN$10 -> ICU (No Ventilator) | AI23: =$AN$11 -> ICU + Ventilator | AJ23: =$AN$9 -> Hospitalized, non-ICU | AK23: =$AN$10 -> ICU (No Ventilator) | AL23: =$AN$11 -> ICU + Ventilator | AM23: =$AN$9 -> Hospitalized, non-ICU | AN23: =$AN$10 -> ICU (No Ventilator) | AO23: =$AN$11 -> ICU + Ventilator | AQ23: Age | AR23: =$AN$9 -> Hospitalized, non-ICU | AS23: =$AN$10 -> ICU (No Ventilator) | AT23: =$AN$11 -> ICU + Ventilator | AU23: =$AN$9 -> Hospitalized, non-ICU | AV23: =$AN$10 -> ICU (No Ventilator) | AW23: =$AN$11 -> ICU + Ventilator | AX23: =$AN$9 -> Hospitalized, non-ICU | AY23: =$AN$10 -> ICU (No Ventilator) | AZ23: =$AN$11 -> ICU + Ventilator
AC24: =$AL$9 -> 0-17 | AD24: =AJ15-AP15 -> 0.6496813892 | AE24: =AP15-AF24 -> 0.2667397945 | AF24: =IF($AS$8='E.1. Hospitalization Inputs'!$BD$6, $AP15*'E.1. Hospitalization Inputs'!$F23/100, FALSE) -> 0.05615574622 | AG24: =AK15-AQ15 -> 0.3656614965 | AH24: =AQ15-AI24 -> 0.1501297006 | AI24: =IF($AS$8='E.1. Hospitalization Inputs'!$BD$6, $AQ15*'E.1. Hospitalization Inputs'!$F23/100, FALSE) -> 0.03160625276 | AJ24: =AL15-AR15 -> 0.1344695652 | AK24: =AR15-AL24 -> 0.05520919144 | AL24: =IF($AS$8='E.1. Hospitalization Inputs'!$BD$6, $AR15*'E.1. Hospitalization Inputs'!$F23/100, FALSE) -> 0.01162298767 | AM24: =AM15-AS15 -> 0.07572651154 | AN24: =AS15-AO24 -> 0.03109104626 | AO24: =IF($AS$8='E.1. Hospitalization Inputs'!$BD$6, $AS15*'E.1. Hospitalization Inputs'!$F23/100, FALSE) -> 0.006545483424 | AQ24: =$AL$9 -> 0-17 | AR24: =AD24-AG24 -> 0.2840198927 | AS24: =AE24-AH24 -> 0.1166100939 | AT24: 0.02454949346 | AU24: =AD24-AJ24 -> 0.515211824 | AV24: =AE24-AK24 -> 0.2115306031 | AW24: 0.04453275855 | AX24: =AD24-AM24 -> 0.5739548777 | AY24: =AE24-AN24 -> 0.2356487483 | AZ24: 0.04961026279
AC25: =$AL$10 -> 18-64 | AD25: =AJ16-AP16 -> 0.4910005444 | AE25: =AP16-AF25 -> 0.1754253752 | AF25: =IF($AS$8='E.1. Hospitalization Inputs'!$BD$6, $AP16*'E.1. Hospitalization Inputs'!$F24/100, FALSE) -> 0.03400281702 | AG25: =AK16-AQ16 -> 0.2763508342 | AH25: =AQ16-AI25 -> 0.09873502042 | AI25: =IF($AS$8='E.1. Hospitalization Inputs'!$BD$6, $AQ16*'E.1. Hospitalization Inputs'!$F24/100, FALSE) -> 0.0191378746 | AJ25: =AL16-AR16 -> 0.1016261675 | AK25: =AR16-AL25 -> 0.03630914218 | AL25: =IF($AS$8='E.1. Hospitalization Inputs'!$BD$6, $AR16*'E.1. Hospitalization Inputs'!$F24/100, FALSE) -> 0.007037825149 | AM25: =AM16-AS16 -> 0.05723075804 | AN25: =AS16-AO25 -> 0.02044748691 | AO25: =IF($AS$8='E.1. Hospitalization Inputs'!$BD$6, $AS16*'E.1. Hospitalization Inputs'!$F24/100, FALSE) -> 0.003963349971 | AQ25: =$AL$10 -> 18-64 | AR25: =AD25-AG25 -> 0.2146497102 | AS25: 0.0766903548 | AT25: 0.01486494242 | AU25: =AD25-AJ25 -> 0.3893743768 | AV25: 0.139116233 | AW25: 0.02696499187 | AX25: =AD25-AM25 -> 0.4337697863 | AY25: 0.1549778883 | AZ25: 0.03003946705
AC26: =$AL$11 -> 65+ | AD26: 0.8659877902 | AE26: 0.3679115819 | AF26: =IF($AS$8='E.1. Hospitalization Inputs'!$BD$6, $AP17*'E.1. Hospitalization Inputs'!$F25/100, FALSE) -> 0.09838953586 | AG26: 0.4874056677 | AH26: 0.2070724233 | AI26: =IF($AS$8='E.1. Hospitalization Inputs'!$BD$6, $AQ17*'E.1. Hospitalization Inputs'!$F25/100, FALSE) -> 0.0553767824 | AJ26: 0.1792401684 | AK26: 0.07614949616 | AL26: =IF($AS$8='E.1. Hospitalization Inputs'!$BD$6, $AR17*'E.1. Hospitalization Inputs'!$F25/100, FALSE) -> 0.02036444067 | AM26: 0.1009390687 | AN26: 0.04288357512 | AO26: =IF($AS$8='E.1. Hospitalization Inputs'!$BD$6, $AS17*'E.1. Hospitalization Inputs'!$F25/100, FALSE) -> 0.01146823111 | AQ26: =$AL$11 -> 65+ | AR26: 0.3785821224 | AS26: 0.1608391586 | AT26: 0.04301275345 | AU26: 0.6867476218 | AV26: 0.2917620858 | AW26: 0.07802509518 | AX26: 0.7650487215 | AY26: 0.3250280068 | AZ26: 0.08692130474
AC27: Total | AD27: =SUM(AD24:AD26) -> 2.006669724 | AE27: =SUM(AE24:AE26) -> 0.8100767517 | AF27: 0.1885480991 | AG27: 1.129417998 | AH27: 0.4559371443 | AI27: 0.1061209098 | AJ27: 0.4153359011 | AK27: 0.1676678298 | AL27: 0.03902525349 | AM27: 0.2338963383 | AN27: 0.09442210829 | AO27: 0.02197706451 | AQ27: Total | AR27: =SUM(AR24:AR26) -> 0.8772517253 | AS27: 0.3541396074 | AT27: 0.08242718933 | AU27: 1.591333823 | AV27: 0.6424089219 | AW27: 0.1495228456 | AX27: 1.772773385 | AY27: 0.7156546434 | AZ27: 0.1665710346
AD28: =SUM(AD27:AF27) -> 3.005294575 | AG28: =SUM(AG27:AI27) -> 1.691476053 | AJ28: =SUM(AJ27:AL27) -> 0.6220289844 | AM28: =SUM(AM27:AO27) -> 0.3502955111
B34: =AG12 -> *Data are summarized over user-defined time horizon entered on Tab E.1. Hospitalization Inputs
B36: Total Hospitalizations Averted
C37: Strategy 1 | G37: Strategy 2 | K37: Strategy 3
B38: Age (year) | C38: Non-ICU | D38: ICU | E38: ICU + Ventilator | F38: Total | G38: Non-ICU | H38: ICU | I38: ICU + Ventilator | J38: Total | K38: Non-ICU | L38: ICU | M38: ICU + Ventilator | N38: Total
B39: =AL9 -> 0-17 | C39: =AR24 -> 0.2840198927 | D39: 0.1166100939 | E39: 0.02454949346 | F39: =SUM(C39:E39) -> 0.4251794801 | G39: =AU24 -> 0.515211824 | H39: 0.2115306031 | I39: 0.04453275855 | J39: =SUM(G39:I39) -> 0.7712751857 | K39: =AX24 -> 0.5739548777 | L39: 0.2356487483 | M39: 0.04961026279 | N39: =SUM(K39:M39) -> 0.8592138888
B40: =AL10 -> 18-64 | C40: 0.2146497102 | D40: 0.0766903548 | E40: 0.01486494242 | F40: =SUM(C40:E40) -> 0.3062050074 | G40: 0.3893743768 | H40: 0.139116233 | I40: 0.02696499187 | J40: =SUM(G40:I40) -> 0.5554556017 | K40: 0.4337697863 | L40: 0.1549778883 | M40: 0.03003946705 | N40: =SUM(K40:M40) -> 0.6187871417
B41: 65+ | C41: 0.3785821224 | D41: 0.1608391586 | E41: 0.04301275345 | F41: 0.5824340345 | G41: 0.6867476218 | H41: 0.2917620858 | I41: 0.07802509518 | J41: 1.056534803 | K41: 0.7650487215 | L41: 0.3250280068 | M41: 0.08692130474 | N41: 1.176998033
B42: Total | C42: =SUM(C39:C41) -> 0.8772517253 | D42: =SUM(D39:D41) -> 0.3541396074 | E42: 0.08242718933 | F42: 1.313818522 | G42: =SUM(G39:G41) -> 1.591333823 | H42: =SUM(H39:H41) -> 0.6424089219 | I42: 0.1495228456 | J42: 2.38326559 | K42: =SUM(K39:K41) -> 1.772773385 | L42: =SUM(L39:L41) -> 0.7156546434 | M42: 0.1665710346 | N42: 2.654999063

Sheet RESULTS_Costs_2
B5: Results: Estimated Direct Medical Costs* Averted | BA5: Chart Text
BA6: Maximum daily staff needed by strategy | BD6: Staffing Needs by Group
BA7: Maximum staff needed per day
AB8: 1 | AC8: Total Cases by age group | AL8: Age Groups | AN8: Ward Types | AR8: Hospitalization Risk entered in: | AS8: ='E.1. Hospitalization Inputs'!F19 -> Percentages
AB9: 2 | AC9: Total Hospitalizations (+ Hospitalizations Averted) by age group and severity | AL9: ='E.1. Hospitalization Inputs'!BA13 -> 0-17 | AN9: ='E.2. Costing Inputs'!BA7 -> Hospitalized, non-ICU
AB10: 3 | AC10: Total Direct Medical Costs (+ Averted) by age group and severity | AL10: ='E.1. Hospitalization Inputs'!BA14 -> 18-64 | AN10: ='E.2. Costing Inputs'!BA8 -> ICU (No Ventilator)
AB11: 4 | AC11: Total Medicaid Expenditures by age group | AL11: ='E.1. Hospitalization Inputs'!BA15 -> 65+ | AN11: ='E.2. Costing Inputs'!BA9 -> ICU + Ventilator
AK13: *Data is summarized over user-defined time horizon from Tab E. Costing Inputs
AQ20: Hospitalizations Averted Relative to Base Case (by Age Group and Ward Type)*
AC21: Total Hospitalizations (by Age Group and Ward Type)*
AD22: Base Case | AG22: Strategy 1 | AJ22: Strategy 2 | AM22: Strategy 3 | AR22: Strategy 1 | AU22: Strategy 2 | AX22: Strategy 3
AC23: Age | AD23: =$AN$9 -> Hospitalized, non-ICU | AE23: =$AN$10 -> ICU (No Ventilator) | AF23: =$AN$11 -> ICU + Ventilator | AG23: =$AN$9 -> Hospitalized, non-ICU | AH23: =$AN$10 -> ICU (No Ventilator) | AI23: =$AN$11 -> ICU + Ventilator | AJ23: =$AN$9 -> Hospitalized, non-ICU | AK23: =$AN$10 -> ICU (No Ventilator) | AL23: =$AN$11 -> ICU + Ventilator | AM23: =$AN$9 -> Hospitalized, non-ICU | AN23: =$AN$10 -> ICU (No Ventilator) | AO23: =$AN$11 -> ICU + Ventilator | AQ23: Age | AR23: =$AN$9 -> Hospitalized, non-ICU | AS23: =$AN$10 -> ICU (No Ventilator) | AT23: =$AN$11 -> ICU + Ventilator | AU23: =$AN$9 -> Hospitalized, non-ICU | AV23: =$AN$10 -> ICU (No Ventilator) | AW23: =$AN$11 -> ICU + Ventilator | AX23: =$AN$9 -> Hospitalized, non-ICU | AY23: =$AN$10 -> ICU (No Ventilator) | AZ23: =$AN$11 -> ICU + Ventilator
AC24: =$AL$9 -> 0-17 | AD24: =RESULTS_Costs!AD24 -> 0.6496813892 | AE24: =RESULTS_Costs!AE24 -> 0.2667397945 | AF24: =RESULTS_Costs!AF24 -> 0.05615574622 | AG24: =RESULTS_Costs!AG24 -> 0.3656614965 | AH24: =RESULTS_Costs!AH24 -> 0.1501297006 | AI24: =RESULTS_Costs!AI24 -> 0.03160625276 | AJ24: =RESULTS_Costs!AJ24 -> 0.1344695652 | AK24: =RESULTS_Costs!AK24 -> 0.05520919144 | AL24: =RESULTS_Costs!AL24 -> 0.01162298767 | AM24: =RESULTS_Costs!AM24 -> 0.07572651154 | AN24: =RESULTS_Costs!AN24 -> 0.03109104626 | AO24: =RESULTS_Costs!AO24 -> 0.006545483424 | AQ24: =$AL$9 -> 0-17 | AR24: =AD24-AG24 -> 0.2840198927 | AS24: =AE24-AH24 -> 0.1166100939 | AT24: 0.02454949346 | AU24: =AD24-AJ24 -> 0.515211824 | AV24: =AE24-AK24 -> 0.2115306031 | AW24: 0.04453275855 | AX24: =AD24-AM24 -> 0.5739548777 | AY24: =AE24-AN24 -> 0.2356487483 | AZ24: 0.04961026279
AC25: =$AL$10 -> 18-64 | AD25: =RESULTS_Costs!AD25 -> 0.4910005444 | AE25: =RESULTS_Costs!AE25 -> 0.1754253752 | AF25: =RESULTS_Costs!AF25 -> 0.03400281702 | AG25: =RESULTS_Costs!AG25 -> 0.2763508342 | AH25: =RESULTS_Costs!AH25 -> 0.09873502042 | AI25: =RESULTS_Costs!AI25 -> 0.0191378746 | AJ25: =RESULTS_Costs!AJ25 -> 0.1016261675 | AK25: =RESULTS_Costs!AK25 -> 0.03630914218 | AL25: =RESULTS_Costs!AL25 -> 0.007037825149 | AM25: =RESULTS_Costs!AM25 -> 0.05723075804 | AN25: =RESULTS_Costs!AN25 -> 0.02044748691 | AO25: =RESULTS_Costs!AO25 -> 0.003963349971 | AQ25: =$AL$10 -> 18-64 | AR25: =AD25-AG25 -> 0.2146497102 | AS25: =AE25-AH25 -> 0.0766903548 | AT25: =AF25-AI25 -> 0.01486494242 | AU25: =AD25-AJ25 -> 0.3893743768 | AV25: =AE25-AK25 -> 0.139116233 | AW25: =AF25-AL25 -> 0.02696499187 | AX25: =AD25-AM25 -> 0.4337697863 | AY25: =AE25-AN25 -> 0.1549778883 | AZ25: =AF25-AO25 -> 0.03003946705
AC26: =$AL$11 -> 65+ | AD26: =RESULTS_Costs!AD26 -> 0.8659877902 | AE26: =RESULTS_Costs!AE26 -> 0.3679115819 | AF26: =RESULTS_Costs!AF26 -> 0.09838953586 | AG26: =RESULTS_Costs!AG26 -> 0.4874056677 | AH26: =RESULTS_Costs!AH26 -> 0.2070724233 | AI26: =RESULTS_Costs!AI26 -> 0.0553767824 | AJ26: =RESULTS_Costs!AJ26 -> 0.1792401684 | AK26: =RESULTS_Costs!AK26 -> 0.07614949616 | AL26: =RESULTS_Costs!AL26 -> 0.02036444067 | AM26: =RESULTS_Costs!AM26 -> 0.1009390687 | AN26: =RESULTS_Costs!AN26 -> 0.04288357512 | AO26: =RESULTS_Costs!AO26 -> 0.01146823111 | AQ26: =$AL$11 -> 65+ | AR26: 0.3785821224 | AS26: 0.1608391586 | AT26: 0.04301275345 | AU26: 0.6867476218 | AV26: 0.2917620858 | AW26: 0.07802509518 | AX26: 0.7650487215 | AY26: 0.3250280068 | AZ26: 0.08692130474
AC27: Total | AD27: =SUM(AD24:AD26) -> 2.006669724 | AE27: =SUM(AE24:AE26) -> 0.8100767517 | AF27: 0.1885480991 | AG27: 1.129417998 | AH27: 0.4559371443 | AI27: 0.1061209098 | AJ27: 0.4153359011 | AK27: 0.1676678298 | AL27: 0.03902525349 | AM27: 0.2338963383 | AN27: 0.09442210829 | AO27: 0.02197706451 | AQ27: Total | AR27: =SUM(AR24:AR26) -> 0.8772517253 | AS27: =SUM(AS24:AS26) -> 0.3541396074 | AT27: =SUM(AT24:AT26) -> 0.08242718933 | AU27: =SUM(AU24:AU26) -> 1.591333823 | AV27: =SUM(AV24:AV26) -> 0.6424089219 | AW27: =SUM(AW24:AW26) -> 0.1495228456 | AX27: =SUM(AX24:AX26) -> 1.772773385 | AY27: =SUM(AY24:AY26) -> 0.7156546434 | AZ27: =SUM(AZ24:AZ26) -> 0.1665710346
AQ29: Direct Medical Costs Averted for Other Insurance Relative to Base Case (by Age Group and Ward Type)*
AC30: Estimated Direct Medical Costs Incurred to Other Insurance (by Age Group and Ward Type)*
AD31: Base Case | AG31: Strategy 1 | AJ31: Strategy 2 | AM31: Strategy 3 | AR31: Strategy 1 | AU31: Strategy 2 | AX31: Strategy 3
AC32: Age | AD32: =$AN$9 -> Hospitalized, non-ICU | AE32: =$AN$10 -> ICU (No Ventilator) | AF32: =$AN$11 -> ICU + Ventilator | AG32: =$AN$9 -> Hospitalized, non-ICU | AH32: =$AN$10 -> ICU (No Ventilator) | AI32: =$AN$11 -> ICU + Ventilator | AJ32: =$AN$9 -> Hospitalized, non-ICU | AK32: =$AN$10 -> ICU (No Ventilator) | AL32: =$AN$11 -> ICU + Ventilator | AM32: =$AN$9 -> Hospitalized, non-ICU | AN32: =$AN$10 -> ICU (No Ventilator) | AO32: =$AN$11 -> ICU + Ventilator | AQ32: Age | AR32: =$AN$9 -> Hospitalized, non-ICU | AS32: =$AN$10 -> ICU (No Ventilator) | AT32: =$AN$11 -> ICU + Ventilator | AU32: =$AN$9 -> Hospitalized, non-ICU | AV32: =$AN$10 -> ICU (No Ventilator) | AW32: =$AN$11 -> ICU + Ventilator | AX32: =$AN$9 -> Hospitalized, non-ICU | AY32: =$AN$10 -> ICU (No Ventilator) | AZ32: =$AN$11 -> ICU + Ventilator
AC33: =$AL$9 -> 0-17 | AD33: =AD24*'E.2. Costing Inputs'!$E12*'E.2. Costing Inputs'!D21*'E.2. Costing Inputs'!G21*'E.2. Costing Inputs'!$D$37 -> 3279.339901 | AE33: =AE24*'E.2. Costing Inputs'!$E12*'E.2. Costing Inputs'!E21*'E.2. Costing Inputs'!H21*'E.2. Costing Inputs'!$D$37 -> 4171.980833 | AF33: =AF24*'E.2. Costing Inputs'!$E12*'E.2. Costing Inputs'!F21*'E.2. Costing Inputs'!I21*'E.2. Costing Inputs'!$D$37 -> 2226.215312 | AG33: =AG24*'E.2. Costing Inputs'!$E12*'E.2. Costing Inputs'!D21*'E.2. Costing Inputs'!G21*'E.2. Costing Inputs'!$D$37 -> 1845.717541 | AH33: =AH24*'E.2. Costing Inputs'!$E12*'E.2. Costing Inputs'!E21*'E.2. Costing Inputs'!H21*'E.2. Costing Inputs'!$D$37 -> 2348.12445 | AI33: =AI24*'E.2. Costing Inputs'!$E12*'E.2. Costing Inputs'!F21*'E.2. Costing Inputs'!I21*'E.2. Costing Inputs'!$D$37 -> 1252.985288 | AJ33: =AJ24*'E.2. Costing Inputs'!$E12*'E.2. Costing Inputs'!D21*'E.2. Costing Inputs'!G21*'E.2. Costing Inputs'!$D$37 -> 678.7502582 | AK33: =AK24*'E.2. Costing Inputs'!$E12*'E.2. Costing Inputs'!E21*'E.2. Costing Inputs'!H21*'E.2. Costing Inputs'!$D$37 -> 863.5070328 | AL33: =AL24*'E.2. Costing Inputs'!$E12*'E.2. Costing Inputs'!F21*'E.2. Costing Inputs'!I21*'E.2. Costing Inputs'!$D$37 -> 460.7769439 | AM33: =AM24*'E.2. Costing Inputs'!$E12*'E.2. Costing Inputs'!D21*'E.2. Costing Inputs'!G21*'E.2. Costing Inputs'!$D$37 -> 382.2380862 | AN33: =AN24*'E.2. Costing Inputs'!$E12*'E.2. Costing Inputs'!E21*'E.2. Costing Inputs'!H21*'E.2. Costing Inputs'!$D$37 -> 486.2838308 | AO33: =AO24*'E.2. Costing Inputs'!$E12*'E.2. Costing Inputs'!F21*'E.2. Costing Inputs'!I21*'E.2. Costing Inputs'!$D$37 -> 259.4864534 | AQ33: =$AL$9 -> 0-17 | AR33: =AD33-AG33 -> 1433.622361 | AS33: =AE33-AH33 -> 1823.856383 | AT33: =AF33-AI33 -> 973.2300239 | AU33: =AD33-AJ33 -> 2600.589643 | AV33: =AE33-AK33 -> 3308.4738 | AW33: =AF33-AL33 -> 1765.438368 | AX33: =AD33-AM33 -> 2897.101815 | AY33: =AE33-AN33 -> 3685.697003 | AZ33: =AF33-AO33 -> 1966.728858
B34: =RESULTS_Costs!AG12 -> *Data are summarized over user-defined time horizon entered on Tab E.1. Hospitalization Inputs | AC34: =$AL$10 -> 18-64 | AD34: =AD25*'E.2. Costing Inputs'!$E13*'E.2. Costing Inputs'!D22*'E.2. Costing Inputs'!G22*'E.2. Costing Inputs'!$D$37 -> 3231.560541 | AE34: =AE25*'E.2. Costing Inputs'!$E13*'E.2. Costing Inputs'!E22*'E.2. Costing Inputs'!H22*'E.2. Costing Inputs'!$D$37 -> 1486.986702 | AF34: =AF25*'E.2. Costing Inputs'!$E13*'E.2. Costing Inputs'!F22*'E.2. Costing Inputs'!I22*'E.2. Costing Inputs'!$D$37 -> 1435.551956 | AG34: =AG25*'E.2. Costing Inputs'!$E13*'E.2. Costing Inputs'!D22*'E.2. Costing Inputs'!G22*'E.2. Costing Inputs'!$D$37 -> 1818.825786 | AH34: =AH25*'E.2. Costing Inputs'!$E13*'E.2. Costing Inputs'!E22*'E.2. Costing Inputs'!H22*'E.2. Costing Inputs'!$D$37 -> 836.9237474 | AI34: =AI25*'E.2. Costing Inputs'!$E13*'E.2. Costing Inputs'!F22*'E.2. Costing Inputs'!I22*'E.2. Costing Inputs'!$D$37 -> 807.9746248 | AJ34: =AJ25*'E.2. Costing Inputs'!$E13*'E.2. Costing Inputs'!D22*'E.2. Costing Inputs'!G22*'E.2. Costing Inputs'!$D$37 -> 668.8609957 | AK34: =AK25*'E.2. Costing Inputs'!$E13*'E.2. Costing Inputs'!E22*'E.2. Costing Inputs'!H22*'E.2. Costing Inputs'!$D$37 -> 307.7731002 | AL34: =AL25*'E.2. Costing Inputs'!$E13*'E.2. Costing Inputs'!F22*'E.2. Costing Inputs'!I22*'E.2. Costing Inputs'!$D$37 -> 297.1272543 | AM34: =AM25*'E.2. Costing Inputs'!$E13*'E.2. Costing Inputs'!D22*'E.2. Costing Inputs'!G22*'E.2. Costing Inputs'!$D$37 -> 376.6689498 | AN34: =AN25*'E.2. Costing Inputs'!$E13*'E.2. Costing Inputs'!E22*'E.2. Costing Inputs'!H22*'E.2. Costing Inputs'!$D$37 -> 173.3223662 | AO34: =AO25*'E.2. Costing Inputs'!$E13*'E.2. Costing Inputs'!F22*'E.2. Costing Inputs'!I22*'E.2. Costing Inputs'!$D$37 -> 167.32716 | AQ34: =$AL$10 -> 18-64 | AR34: =AD34-AG34 -> 1412.734755 | AS34: 650.0629549 | AT34: 627.5773315 | AU34: =AD34-AJ34 -> 2562.699545 | AV34: 1179.213602 | AW34: 1138.424702 | AX34: =AD34-AM34 -> 2854.891591 | AY34: 1313.664336 | AZ34: 1268.224796
AC35: =$AL$11 -> 65+ | AD35: =AD26*'E.2. Costing Inputs'!$E14*'E.2. Costing Inputs'!D23*'E.2. Costing Inputs'!G23*'E.2. Costing Inputs'!$D$37 -> 7240.636492 | AE35: =AE26*'E.2. Costing Inputs'!$E14*'E.2. Costing Inputs'!E23*'E.2. Costing Inputs'!H23*'E.2. Costing Inputs'!$D$37 -> 3739.700114 | AF35: =AF26*'E.2. Costing Inputs'!$E14*'E.2. Costing Inputs'!F23*'E.2. Costing Inputs'!I23*'E.2. Costing Inputs'!$D$37 -> 3485.021746 | AG35: =AG26*'E.2. Costing Inputs'!$E14*'E.2. Costing Inputs'!D23*'E.2. Costing Inputs'!G23*'E.2. Costing Inputs'!$D$37 -> 4075.262151 | AH35: =AH26*'E.2. Costing Inputs'!$E14*'E.2. Costing Inputs'!E23*'E.2. Costing Inputs'!H23*'E.2. Costing Inputs'!$D$37 -> 2104.823015 | AI35: =AI26*'E.2. Costing Inputs'!$E14*'E.2. Costing Inputs'!F23*'E.2. Costing Inputs'!I23*'E.2. Costing Inputs'!$D$37 -> 1961.481871 | AJ35: =AJ26*'E.2. Costing Inputs'!$E14*'E.2. Costing Inputs'!D23*'E.2. Costing Inputs'!G23*'E.2. Costing Inputs'!$D$37 -> 1498.650349 | AK35: =AK26*'E.2. Costing Inputs'!$E14*'E.2. Costing Inputs'!E23*'E.2. Costing Inputs'!H23*'E.2. Costing Inputs'!$D$37 -> 774.0345601 | AL35: =AL26*'E.2. Costing Inputs'!$E14*'E.2. Costing Inputs'!F23*'E.2. Costing Inputs'!I23*'E.2. Costing Inputs'!$D$37 -> 721.3218151 | AM35: =AM26*'E.2. Costing Inputs'!$E14*'E.2. Costing Inputs'!D23*'E.2. Costing Inputs'!G23*'E.2. Costing Inputs'!$D$37 -> 843.9646756 | AN35: =AN26*'E.2. Costing Inputs'!$E14*'E.2. Costing Inputs'!E23*'E.2. Costing Inputs'!H23*'E.2. Costing Inputs'!$D$37 -> 435.8974238 | AO35: =AO26*'E.2. Costing Inputs'!$E14*'E.2. Costing Inputs'!F23*'E.2. Costing Inputs'!I23*'E.2. Costing Inputs'!$D$37 -> 406.2122509 | AQ35: =$AL$11 -> 65+ | AR35: 3165.374341 | AS35: 1634.877099 | AT35: 1523.539875 | AU35: 5741.986143 | AV35: 2965.665554 | AW35: 2763.699931 | AX35: 6396.671817 | AY35: 3303.80269 | AZ35: 3078.809495
B36: Total Direct Medical Costs Averted Relative to Base Case | AC36: Total | AD36: =SUM(AD33:AD35) -> 13751.53693 | AE36: =SUM(AE33:AE35) -> 9398.66765 | AF36: =SUM(AF33:AF35) -> 7146.789014 | AG36: =SUM(AG33:AG35) -> 7739.805478 | AH36: =SUM(AH33:AH35) -> 5289.871212 | AI36: =SUM(AI33:AI35) -> 4022.441784 | AJ36: =SUM(AJ33:AJ35) -> 2846.261603 | AK36: =SUM(AK33:AK35) -> 1945.314693 | AL36: =SUM(AL33:AL35) -> 1479.226013 | AM36: =SUM(AM33:AM35) -> 1602.871712 | AN36: =SUM(AN33:AN35) -> 1095.503621 | AO36: =SUM(AO33:AO35) -> 833.0258643 | AQ36: Total | AR36: =SUM(AR33:AR35) -> 6011.731457 | AS36: =SUM(AS33:AS35) -> 4108.796437 | AT36: =SUM(AT33:AT35) -> 3124.34723 | AU36: =SUM(AU33:AU35) -> 10905.27533 | AV36: =SUM(AV33:AV35) -> 7453.352957 | AW36: =SUM(AW33:AW35) -> 5667.563001 | AX36: =SUM(AX33:AX35) -> 12148.66522 | AY36: =SUM(AY33:AY35) -> 8303.164029 | AZ36: =SUM(AZ33:AZ35) -> 6313.76315
C37: =RESULTS_Costs!$C$37 -> Strategy 1 | G37: =RESULTS_Costs!$G$37 -> Strategy 2 | K37: =RESULTS_Costs!$K$37 -> Strategy 3
B38: Age (year) | C38: =$AN$9 -> Hospitalized, non-ICU | D38: =$AN$10 -> ICU (No Ventilator) | E38: =$AN$11 -> ICU + Ventilator | F38: Total | G38: =$AN$9 -> Hospitalized, non-ICU | H38: =$AN$10 -> ICU (No Ventilator) | I38: =$AN$11 -> ICU + Ventilator | J38: Total | K38: =$AN$9 -> Hospitalized, non-ICU | L38: =$AN$10 -> ICU (No Ventilator) | M38: =$AN$11 -> ICU + Ventilator | N38: Total | AQ38: Direct Medical Costs Averted for Medicaid Relative to Base Case (by Age Group and Ward Type)*
B39: =$AL$9 -> 0-17 | C39: =AR51 -> 1689.861927 | D39: =AS51 -> 2139.620472 | E39: 1166.47253 | F39: =SUM(C39:E39) -> 4995.954929 | G39: =AU51 -> 3065.40798 | H39: =AV51 -> 3881.269567 | I39: 2115.980097 | J39: =SUM(G39:I39) -> 9062.657644 | K39: =AX51 -> 3414.917477 | L39: =AY51 -> 4323.801388 | M39: 2357.238403 | N39: =SUM(K39:M39) -> 10095.95727 | AC39: Estimated Direct Medical Costs Incurred to Medicaid (by Age Group and Ward Type)*
B40: =$AL$10 -> 18-64 | C40: =AR52 -> 1686.883605 | D40: =AS52 -> 803.5567061 | E40: =AT52 -> 786.9042141 | F40: =SUM(C40:E40) -> 3277.344525 | G40: =AU52 -> 3060.005307 | H40: =AV52 -> 1457.651126 | I40: =AW52 -> 1427.44352 | J40: =SUM(G40:I40) -> 5945.099953 | K40: =AX52 -> 3408.898805 | L40: =AY52 -> 1623.84855 | M40: =AZ52 -> 1590.196756 | N40: =SUM(K40:M40) -> 6622.944111 | AD40: Base Case | AG40: Strategy 1 | AJ40: Strategy 2 | AM40: Strategy 3 | AR40: Strategy 1 | AU40: Strategy 2 | AX40: Strategy 3
B41: =$AL$11 -> 65+ | C41: 4031.109503 | D41: 2086.653001 | E41: 1932.386583 | F41: 8050.149087 | G41: 7312.42893 | H41: 3785.186624 | I41: 3505.347483 | J41: 14602.96304 | K41: 8146.172227 | L41: 4216.763328 | M41: 3905.017688 | N41: 16267.95324 | AC41: Age | AD41: =$AN$9 -> Hospitalized, non-ICU | AE41: =$AN$10 -> ICU (No Ventilator) | AF41: =$AN$11 -> ICU + Ventilator | AG41: =$AN$9 -> Hospitalized, non-ICU | AH41: =$AN$10 -> ICU (No Ventilator) | AI41: =$AN$11 -> ICU + Ventilator | AJ41: =$AN$9 -> Hospitalized, non-ICU | AK41: =$AN$10 -> ICU (No Ventilator) | AL41: =$AN$11 -> ICU + Ventilator | AM41: =$AN$9 -> Hospitalized, non-ICU | AN41: =$AN$10 -> ICU (No Ventilator) | AO41: =$AN$11 -> ICU + Ventilator | AQ41: Age | AR41: =$AN$9 -> Hospitalized, non-ICU | AS41: =$AN$10 -> ICU (No Ventilator) | AT41: =$AN$11 -> ICU + Ventilator | AU41: =$AN$9 -> Hospitalized, non-ICU | AV41: =$AN$10 -> ICU (No Ventilator) | AW41: =$AN$11 -> ICU + Ventilator | AX41: =$AN$9 -> Hospitalized, non-ICU | AY41: =$AN$10 -> ICU (No Ventilator) | AZ41: =$AN$11 -> ICU + Ventilator
C42: =SUM(C39:C41) -> 7407.855035 | D42: =SUM(D39:D41) -> 5029.830179 | E42: =SUM(E39:E41) -> 3885.763327 | F42: 16323.44854 | G42: =SUM(G39:G41) -> 13437.84222 | H42: =SUM(H39:H41) -> 9124.107316 | I42: =SUM(I39:I41) -> 7048.7711 | J42: 29610.72063 | K42: =SUM(K39:K41) -> 14969.98851 | L42: =SUM(L39:L41) -> 10164.41327 | M42: =SUM(M39:M41) -> 7852.452847 | N42: 32986.85462 | AC42: =$AL$9 -> 0-17 | AD42: =AD24*'E.2. Costing Inputs'!$D12*'E.2. Costing Inputs'!D30*'E.2. Costing Inputs'!G30*'E.2. Costing Inputs'!$D$38 -> 586.1352729 | AE42: =AE24*'E.2. Costing Inputs'!$D12*'E.2. Costing Inputs'!E30*'E.2. Costing Inputs'!H30*'E.2. Costing Inputs'!$D$38 -> 722.2946602 | AF42: =AF24*'E.2. Costing Inputs'!$D12*'E.2. Costing Inputs'!F30*'E.2. Costing Inputs'!I30*'E.2. Costing Inputs'!$D$38 -> 442.0326294 | AG42: =AG24*'E.2. Costing Inputs'!$D12*'E.2. Costing Inputs'!D30*'E.2. Costing Inputs'!G30*'E.2. Costing Inputs'!$D$38 -> 329.8957068 | AH42: =AH24*'E.2. Costing Inputs'!$D12*'E.2. Costing Inputs'!E30*'E.2. Costing Inputs'!H30*'E.2. Costing Inputs'!$D$38 -> 406.5305714 | AI42: =AI24*'E.2. Costing Inputs'!$D12*'E.2. Costing Inputs'!F30*'E.2. Costing Inputs'!I30*'E.2. Costing Inputs'!$D$38 -> 248.7901231 | AJ42: =AJ24*'E.2. Costing Inputs'!$D12*'E.2. Costing Inputs'!D30*'E.2. Costing Inputs'!G30*'E.2. Costing Inputs'!$D$38 -> 121.3169357 | AK42: =AK24*'E.2. Costing Inputs'!$D12*'E.2. Costing Inputs'!E30*'E.2. Costing Inputs'!H30*'E.2. Costing Inputs'!$D$38 -> 149.4988936 | AL42: =AL24*'E.2. Costing Inputs'!$D12*'E.2. Costing Inputs'!F30*'E.2. Costing Inputs'!I30*'E.2. Costing Inputs'!$D$38 -> 91.49090071 | AM42: =AM24*'E.2. Costing Inputs'!$D12*'E.2. Costing Inputs'!D30*'E.2. Costing Inputs'!G30*'E.2. Costing Inputs'!$D$38 -> 68.31961058 | AN42: =AN24*'E.2. Costing Inputs'!$D12*'E.2. Costing Inputs'!E30*'E.2. Costing Inputs'!H30*'E.2. Costing Inputs'!$D$38 -> 84.19027516 | AO42: =AO24*'E.2. Costing Inputs'!$D12*'E.2. Costing Inputs'!F30*'E.2. Costing Inputs'!I30*'E.2. Costing Inputs'!$D$38 -> 51.52308434 | AQ42: =$AL$9 -> 0-17 | AR42: =AD42-AG42 -> 256.2395662 | AS42: =AE42-AH42 -> 315.7640888 | AT42: =AF42-AI42 -> 193.2425063 | AU42: =AD42-AJ42 -> 464.8183373 | AV42: =AE42-AK42 -> 572.7957666 | AW42: =AF42-AL42 -> 350.5417287 | AX42: =AD42-AM42 -> 517.8156624 | AY42: =AE42-AN42 -> 638.1043851 | AZ42: =AF42-AO42 -> 390.509545
AC43: =$AL$10 -> 18-64 | AD43: =AD25*'E.2. Costing Inputs'!$D13*'E.2. Costing Inputs'!D31*'E.2. Costing Inputs'!G31*'E.2. Costing Inputs'!$D$38 -> 627.1018691 | AE43: =AE25*'E.2. Costing Inputs'!$D13*'E.2. Costing Inputs'!E31*'E.2. Costing Inputs'!H31*'E.2. Costing Inputs'!$D$38 -> 351.1093275 | AF43: =AF25*'E.2. Costing Inputs'!$D13*'E.2. Costing Inputs'!F31*'E.2. Costing Inputs'!I31*'E.2. Costing Inputs'!$D$38 -> 364.4523256 | AG43: =AG25*'E.2. Costing Inputs'!$D13*'E.2. Costing Inputs'!D31*'E.2. Costing Inputs'!G31*'E.2. Costing Inputs'!$D$38 -> 352.9530193 | AH43: =AH25*'E.2. Costing Inputs'!$D13*'E.2. Costing Inputs'!E31*'E.2. Costing Inputs'!H31*'E.2. Costing Inputs'!$D$38 -> 197.6155763 | AI43: =AI25*'E.2. Costing Inputs'!$D13*'E.2. Costing Inputs'!F31*'E.2. Costing Inputs'!I31*'E.2. Costing Inputs'!$D$38 -> 205.1254431 | AJ43: =AJ25*'E.2. Costing Inputs'!$D13*'E.2. Costing Inputs'!D31*'E.2. Costing Inputs'!G31*'E.2. Costing Inputs'!$D$38 -> 129.7961079 | AK43: =AK25*'E.2. Costing Inputs'!$D13*'E.2. Costing Inputs'!E31*'E.2. Costing Inputs'!H31*'E.2. Costing Inputs'!$D$38 -> 72.67180403 | AL43: =AL25*'E.2. Costing Inputs'!$D13*'E.2. Costing Inputs'!F31*'E.2. Costing Inputs'!I31*'E.2. Costing Inputs'!$D$38 -> 75.43350722 | AM43: =AM25*'E.2. Costing Inputs'!$D13*'E.2. Costing Inputs'!D31*'E.2. Costing Inputs'!G31*'E.2. Costing Inputs'!$D$38 -> 73.09465488 | AN43: =AN25*'E.2. Costing Inputs'!$D13*'E.2. Costing Inputs'!E31*'E.2. Costing Inputs'!H31*'E.2. Costing Inputs'!$D$38 -> 40.92511342 | AO43: =AO25*'E.2. Costing Inputs'!$D13*'E.2. Costing Inputs'!F31*'E.2. Costing Inputs'!I31*'E.2. Costing Inputs'!$D$38 -> 42.48036607 | AQ43: =$AL$10 -> 18-64 | AR43: =AD43-AG43 -> 274.1488497 | AS43: 153.4937512 | AT43: 159.3268826 | AU43: =AD43-AJ43 -> 497.3057612 | AV43: 278.4375234 | AW43: 289.0188184 | AX43: =AD43-AM43 -> 554.0072142 | AY43: 310.184214 | AZ43: 321.9719596
B44: Total Medicaid Expenditures Averted Relative to Base Case | AC44: =$AL$11 -> 65+ | AD44: =AD26*'E.2. Costing Inputs'!$D14*'E.2. Costing Inputs'!D32*'E.2. Costing Inputs'!G32*'E.2. Costing Inputs'!$D$38 -> 1980.326157 | AE44: =AE26*'E.2. Costing Inputs'!$D14*'E.2. Costing Inputs'!E32*'E.2. Costing Inputs'!H32*'E.2. Costing Inputs'!$D$38 -> 1033.414922 | AF44: =AF26*'E.2. Costing Inputs'!$D14*'E.2. Costing Inputs'!F32*'E.2. Costing Inputs'!I32*'E.2. Costing Inputs'!$D$38 -> 935.2165257 | AG44: =AG26*'E.2. Costing Inputs'!$D14*'E.2. Costing Inputs'!D32*'E.2. Costing Inputs'!G32*'E.2. Costing Inputs'!$D$38 -> 1114.590995 | AH44: =AH26*'E.2. Costing Inputs'!$D14*'E.2. Costing Inputs'!E32*'E.2. Costing Inputs'!H32*'E.2. Costing Inputs'!$D$38 -> 581.6390207 | AI44: =AI26*'E.2. Costing Inputs'!$D14*'E.2. Costing Inputs'!F32*'E.2. Costing Inputs'!I32*'E.2. Costing Inputs'!$D$38 -> 526.3698176 | AJ44: =AJ26*'E.2. Costing Inputs'!$D14*'E.2. Costing Inputs'!D32*'E.2. Costing Inputs'!G32*'E.2. Costing Inputs'!$D$38 -> 409.88337 | AK44: =AK26*'E.2. Costing Inputs'!$D14*'E.2. Costing Inputs'!E32*'E.2. Costing Inputs'!H32*'E.2. Costing Inputs'!$D$38 -> 213.8938525 | AL44: =AL26*'E.2. Costing Inputs'!$D14*'E.2. Costing Inputs'!F32*'E.2. Costing Inputs'!I32*'E.2. Costing Inputs'!$D$38 -> 193.5689734 | AM44: =AM26*'E.2. Costing Inputs'!$D14*'E.2. Costing Inputs'!D32*'E.2. Costing Inputs'!G32*'E.2. Costing Inputs'!$D$38 -> 230.8257464 | AN44: =AN26*'E.2. Costing Inputs'!$D14*'E.2. Costing Inputs'!E32*'E.2. Costing Inputs'!H32*'E.2. Costing Inputs'!$D$38 -> 120.4542847 | AO44: =AO26*'E.2. Costing Inputs'!$D14*'E.2. Costing Inputs'!F32*'E.2. Costing Inputs'!I32*'E.2. Costing Inputs'!$D$38 -> 109.0083327 | AQ44: =$AL$11 -> 65+ | AR44: 865.7351617 | AS44: 451.7759015 | AT44: 408.8467081 | AU44: 1570.442787 | AV44: 819.5210697 | AW44: 741.6475522 | AX44: 1749.50041 | AY44: 912.9606375 | AZ44: 826.208193
C45: =RESULTS_Costs!$C$37 -> Strategy 1 | G45: =RESULTS_Costs!$G$37 -> Strategy 2 | K45: =RESULTS_Costs!$K$37 -> Strategy 3 | AC45: Total | AD45: =SUM(AD42:AD44) -> 3193.563299 | AE45: =SUM(AE42:AE44) -> 2106.81891 | AF45: =SUM(AF42:AF44) -> 1741.701481 | AG45: =SUM(AG42:AG44) -> 1797.439721 | AH45: =SUM(AH42:AH44) -> 1185.785168 | AI45: =SUM(AI42:AI44) -> 980.2853837 | AJ45: =SUM(AJ42:AJ44) -> 660.9964135 | AK45: =SUM(AK42:AK44) -> 436.0645502 | AL45: =SUM(AL42:AL44) -> 360.4933814 | AM45: =SUM(AM42:AM44) -> 372.2400118 | AN45: =SUM(AN42:AN44) -> 245.5696733 | AO45: =SUM(AO42:AO44) -> 203.0117831 | AQ45: Total | AR45: =SUM(AR42:AR44) -> 1396.123578 | AS45: =SUM(AS42:AS44) -> 921.0337415 | AT45: =SUM(AT42:AT44) -> 761.416097 | AU45: =SUM(AU42:AU44) -> 2532.566885 | AV45: =SUM(AV42:AV44) -> 1670.75436 | AW45: =SUM(AW42:AW44) -> 1381.208099 | AX45: =SUM(AX42:AX44) -> 2821.323287 | AY45: =SUM(AY42:AY44) -> 1861.249237 | AZ45: =SUM(AZ42:AZ44) -> 1538.689698
B46: Age (year) | C46: =$AN$9 -> Hospitalized, non-ICU | D46: =$AN$10 -> ICU (No Ventilator) | E46: =$AN$11 -> ICU + Ventilator | F46: Total | G46: =$AN$9 -> Hospitalized, non-ICU | H46: =$AN$10 -> ICU (No Ventilator) | I46: =$AN$11 -> ICU + Ventilator | J46: Total | K46: =$AN$9 -> Hospitalized, non-ICU | L46: =$AN$10 -> ICU (No Ventilator) | M46: =$AN$11 -> ICU + Ventilator | N46: Total
B47: =$AL$9 -> 0-17 | C47: =AR42 -> 256.2395662 | D47: 315.7640888 | E47: 193.2425063 | F47: =SUM(C47:E47) -> 765.2461613 | G47: =AU42 -> 464.8183373 | H47: 572.7957666 | I47: 350.5417287 | J47: =SUM(G47:I47) -> 1388.155833 | K47: =AX42 -> 517.8156624 | L47: 638.1043851 | M47: 390.509545 | N47: =SUM(K47:M47) -> 1546.429592 | AQ47: Total Direct Medical Costs Averted Relative to Base Case (by Age Group and Ward Type)*
B48: =$AL$10 -> 18-64 | C48: 274.1488497 | D48: 153.4937512 | E48: 159.3268826 | F48: =SUM(C48:E48) -> 586.9694835 | G48: 497.3057612 | H48: 278.4375234 | I48: 289.0188184 | J48: =SUM(G48:I48) -> 1064.762103 | K48: 554.0072142 | L48: 310.184214 | M48: 321.9719596 | N48: =SUM(K48:M48) -> 1186.163388 | AC48: Estimated Total Direct Medical Costs (by Age Group and Ward Type)*
B49: =$AL$11 -> 65+ | C49: 865.7351617 | D49: 451.7759015 | E49: 408.8467081 | F49: 1726.357771 | G49: 1570.442787 | H49: 819.5210697 | I49: 741.6475522 | J49: 3131.611409 | K49: 1749.50041 | L49: 912.9606375 | M49: 826.208193 | N49: 3488.669241 | AD49: Base Case | AG49: Strategy 1 | AJ49: Strategy 2 | AM49: Strategy 3 | AR49: Strategy 1 | AU49: Strategy 2 | AX49: Strategy 3
C50: =SUM(C47:C49) -> 1396.123578 | D50: =SUM(D47:D49) -> 921.0337415 | E50: =SUM(E47:E49) -> 761.416097 | F50: 3078.573416 | G50: =SUM(G47:G49) -> 2532.566885 | H50: =SUM(H47:H49) -> 1670.75436 | I50: =SUM(I47:I49) -> 1381.208099 | J50: 5584.529344 | K50: =SUM(K47:K49) -> 2821.323287 | L50: =SUM(L47:L49) -> 1861.249237 | M50: =SUM(M47:M49) -> 1538.689698 | N50: 6221.262221 | AC50: Age | AD50: =$AN$9 -> Hospitalized, non-ICU | AE50: =$AN$10 -> ICU (No Ventilator) | AF50: =$AN$11 -> ICU + Ventilator | AG50: =$AN$9 -> Hospitalized, non-ICU | AH50: =$AN$10 -> ICU (No Ventilator) | AI50: =$AN$11 -> ICU + Ventilator | AJ50: =$AN$9 -> Hospitalized, non-ICU | AK50: =$AN$10 -> ICU (No Ventilator) | AL50: =$AN$11 -> ICU + Ventilator | AM50: =$AN$9 -> Hospitalized, non-ICU | AN50: =$AN$10 -> ICU (No Ventilator) | AO50: =$AN$11 -> ICU + Ventilator | AQ50: Age | AR50: =$AN$9 -> Hospitalized, non-ICU | AS50: =$AN$10 -> ICU (No Ventilator) | AT50: =$AN$11 -> ICU + Ventilator | AU50: =$AN$9 -> Hospitalized, non-ICU | AV50: =$AN$10 -> ICU (No Ventilator) | AW50: =$AN$11 -> ICU + Ventilator | AX50: =$AN$9 -> Hospitalized, non-ICU | AY50: =$AN$10 -> ICU (No Ventilator) | AZ50: =$AN$11 -> ICU + Ventilator
AC51: =$AL$9 -> 0-17 | AD51: =SUM(AD33,AD42) -> 3865.475174 | AE51: =SUM(AE33,AE42) -> 4894.275493 | AF51: 2668.247941 | AG51: 2175.613247 | AH51: 2754.655022 | AI51: 1501.775411 | AJ51: 800.0671938 | AK51: 1013.005926 | AL51: 552.2678446 | AM51: 450.5576968 | AN51: 570.4741059 | AO51: 311.0095377 | AQ51: =$AL$9 -> 0-17 | AR51: =AD51-AG51 -> 1689.861927 | AS51: =AE51-AH51 -> 2139.620472 | AT51: =AF51-AI51 -> 1166.47253 | AU51: =AD51-AJ51 -> 3065.40798 | AV51: =AE51-AK51 -> 3881.269567 | AW51: =AF51-AL51 -> 2115.980097 | AX51: =AD51-AM51 -> 3414.917477 | AY51: =AE51-AN51 -> 4323.801388 | AZ51: =AF51-AO51 -> 2357.238403
B52: *Note: Costs are calculated using this formula: Cost = Charges per day * LOS (days) * Cost to charge ratio | AC52: =$AL$10 -> 18-64 | AD52: =SUM(AD34,AD43) -> 3858.66241 | AE52: 1838.09603 | AF52: 1800.004282 | AG52: 2171.778806 | AH52: 1034.539324 | AI52: 1013.100068 | AJ52: 798.6571035 | AK52: 380.4449043 | AL52: 372.5607616 | AM52: 449.7636047 | AN52: 214.2474796 | AO52: 209.8075261 | AQ52: =$AL$10 -> 18-64 | AR52: =AD52-AG52 -> 1686.883605 | AS52: 803.5567061 | AT52: 786.9042141 | AU52: =AD52-AJ52 -> 3060.005307 | AV52: 1457.651126 | AW52: 1427.44352 | AX52: =AD52-AM52 -> 3408.898805 | AY52: 1623.84855 | AZ52: 1590.196756
AC53: =$AL$11 -> 65+ | AD53: =SUM(AD35,AD44) -> 9220.962649 | AE53: 4773.115036 | AF53: 4420.238272 | AG53: 5189.853146 | AH53: 2686.462035 | AI53: 2487.851689 | AJ53: 1908.533719 | AK53: 987.9284126 | AL53: 914.8907885 | AM53: 1074.790422 | AN53: 556.3517085 | AO53: 515.2205836 | AQ53: =$AL$11 -> 65+ | AR53: 4031.109503 | AS53: 2086.653001 | AT53: 1932.386583 | AU53: 7312.42893 | AV53: 3785.186624 | AW53: 3505.347483 | AX53: 8146.172227 | AY53: 4216.763328 | AZ53: 3905.017688
AC54: Total | AD54: =SUM(AD51:AD53) -> 16945.10023 | AE54: =SUM(AE51:AE53) -> 11505.48656 | AF54: 8888.490495 | AG54: 9537.245199 | AH54: 6475.656381 | AI54: 5002.727168 | AJ54: 3507.258017 | AK54: 2381.379243 | AL54: 1839.719395 | AM54: 1975.111723 | AN54: 1341.073294 | AO54: 1036.037647 | AQ54: Total | AR54: =SUM(AR51:AR53) -> 7407.855035 | AS54: 5029.830179 | AT54: 3885.763327 | AU54: 13437.84222 | AV54: 9124.107316 | AW54: 7048.7711 | AX54: 14969.98851 | AY54: 10164.41327 | AZ54: 7852.452847
AC56: *Note: Other insurance includes private insurance and Medicare

Sheet SA_Case Counts
B5: "What-If" Sensitivity Analysis: Potential Impact of Contact Tracing on Future Case Counts | BA5: Chart Text | BF5: Scenario Options | BJ5: Chosen Scenario | BK5: =$E$9 -> Strategy 3 | BL5: =IF($BK$5 = $BF$6, 'B. Impact of contact tracing'!$F$19, IF($BK$5 = $BF$7, 'B. Impact of contact tracing'!$G$19, 'B. Impact of contact tracing'!$H$19)) -> Contact ID | BR5: R0 | BS5: Date CT Begins | BT5: Isolation Day | BU5: % Adherence | BW5: Modified Infectivity Distributions
BA6: Maximum daily staff needed by strategy | BF6: =TRIM('B. Impact of contact tracing'!F16) -> Strategy 1 | BL6: New Cases By Day | BN6: Cumulative Cases | BQ6: =BF6 -> Strategy 1 | BR6: ='D. Epi Parameters'!$F$10 -> 2.5 | BS6: ='B. Impact of contact tracing'!$F$12 -> 2021-01-07 | BT6: ='B. Impact of contact tracing'!F17 -> 7 | BU6: ='B. Impact of contact tracing'!F18 -> 0.4 | BX6: Base | BY6: What-If
BA7: Maximum staff needed per day | BF7: =TRIM('B. Impact of contact tracing'!G16) -> Strategy 2 | BL7: Chosen Scenario | BM7: What-If | BN7: Chosen Scenario | BO7: What-If | BQ7: =BF7 -> Strategy 2 | BR7: ='D. Epi Parameters'!$F$10 -> 2.5 | BS7: ='B. Impact of contact tracing'!$F$12 -> 2021-01-07 | BT7: ='B. Impact of contact tracing'!G17 -> 6 | BU7: ='B. Impact of contact tracing'!G18 -> 0.5 | BW7: 1 | BX7: ='D. Epi Parameters'!D14 -> 0 | BY7: =IF($BW7<$F$15, $BX7, 0) -> 0
BA8: New daily cases by strategy | BF8: =TRIM('B. Impact of contact tracing'!H16) -> Strategy 3 | BJ8: Day | BK8: Date | BQ8: =BF8 -> Strategy 3 | BR8: ='D. Epi Parameters'!$F$10 -> 2.5 | BS8: ='B. Impact of contact tracing'!$F$12 -> 2021-01-07 | BT8: ='B. Impact of contact tracing'!H17 -> 6 | BU8: ='B. Impact of contact tracing'!H18 -> 0.7 | BW8: 2 | BX8: ='D. Epi Parameters'!D15 -> 0 | BY8: 0
B9: Step 1: | C9: Choose A Contact Tracing Strategy | E9: Strategy 3 | I9: Your "what-if" scenario would change the estimated outbreak trajectory as follows: | P9: Staffing needs would change like this: | BA9: Cumulative cases by strategy | BJ9: 0 | BK9: =VLOOKUP(BJ9, 'Calc - Base'!$H$35:$I$400, 2) -> 2021-01-07 | BL9: =IF($BK$5 = $BF$6, 'Case Counts'!W4, IF($BK$5 = $BF$7, 'Case Counts'!X4, 'Case Counts'!Y4)) -> 0 | BM9: ='Calc - SA_Case Counts'!L35 -> 0 | BN9: =IF($BK$5 = $BF$6, 'Case Counts'!AA4, IF($BK$5 = $BF$7, 'Case Counts'!AB4, 'Case Counts'!AC4)) -> 0 | BO9: =BM9 -> 0 | BW9: 3 | BX9: ='D. Epi Parameters'!D16 -> 0 | BY9: 0
BA10: Contact Tracing Starts | BB10: =TEXT($S$13, "[$-en-US]d-mmm-yyyy;@") -> 0-Jan-1900 | BJ10: 1 | BK10: =VLOOKUP(BJ10, 'Calc - Base'!$H$35:$I$400, 2) -> 2021-01-08 | BL10: =IF($BK$5 = $BF$6, 'Case Counts'!W5, IF($BK$5 = $BF$7, 'Case Counts'!X5, 'Case Counts'!Y5)) -> 0 | BM10: ='Calc - SA_Case Counts'!L36 -> 0 | BN10: =IF($BK$5 = $BF$6, 'Case Counts'!AA5, IF($BK$5 = $BF$7, 'Case Counts'!AB5, 'Case Counts'!AC5)) -> 0 | BO10: =BO9+BM10 -> 0 | BW10: 4 | BX10: ='D. Epi Parameters'!D17 -> 0.1677720969 | BY10: 0.1677720969
B11: Step 2: | C11: Set your "What-If" Scenario | BA11: Chart Titles | BJ11: 2 | BK11: =VLOOKUP(BJ11, 'Calc - Base'!$H$35:$I$400, 2) -> 2021-01-09 | BL11: =IF($BK$5 = $BF$6, 'Case Counts'!W6, IF($BK$5 = $BF$7, 'Case Counts'!X6, 'Case Counts'!Y6)) -> 0 | BM11: ='Calc - SA_Case Counts'!L37 -> 0 | BN11: =IF($BK$5 = $BF$6, 'Case Counts'!AA6, IF($BK$5 = $BF$7, 'Case Counts'!AB6, 'Case Counts'!AC6)) -> 0 | BO11: =BO10+BM11 -> 0 | BQ11: Ranges | BW11: 5 | BX11: ='D. Epi Parameters'!D18 -> 0.1802607219 | BY11: 0.1802607219
E12: Original Scenario | F12: What-If | BA12: Maximum staff needed per day | BJ12: 3 | BK12: =VLOOKUP(BJ12, 'Calc - Base'!$H$35:$I$400, 2) -> 2021-01-10 | BL12: =IF($BK$5 = $BF$6, 'Case Counts'!W7, IF($BK$5 = $BF$7, 'Case Counts'!X7, 'Case Counts'!Y7)) -> 0 | BM12: ='Calc - SA_Case Counts'!L38 -> 0 | BN12: =IF($BK$5 = $BF$6, 'Case Counts'!AA7, IF($BK$5 = $BF$7, 'Case Counts'!AB7, 'Case Counts'!AC7)) -> 0 | BO12: 0 | BQ12: 0 | BR12: 0 | BW12: 6 | BX12: ='D. Epi Parameters'!D19 -> 0.1707119341 | BY12: 0
C13: R0 | E13: =IF($BK$5 = $BF$6, BR6, IF($BK$5 = $BF$7, BR7, BR8)) -> 2.5 | F13: 2 | BA13: New cases, daily | BJ13: 4 | BK13: =VLOOKUP(BJ13, 'Calc - Base'!$H$35:$I$400, 2) -> 2021-01-11 | BL13: =IF($BK$5 = $BF$6, 'Case Counts'!W8, IF($BK$5 = $BF$7, 'Case Counts'!X8, 'Case Counts'!Y8)) -> 1.48 | BM13: ='Calc - SA_Case Counts'!L39 -> 1.48 | BN13: =IF($BK$5 = $BF$6, 'Case Counts'!AA8, IF($BK$5 = $BF$7, 'Case Counts'!AB8, 'Case Counts'!AC8)) -> 1.48 | BO13: 1.48 | BQ13: =ROUNDUP(MAX(BL9:BM374), -2) -> 100 | BR13: =ROUNDUP(MAX(BN9:BO374), -2) -> 200 | BW13: 7 | BX13: ='D. Epi Parameters'!D20 -> 0.1451776603 | BY13: 0
C14: Date Contact Tracing Begins | E14: =IF($BK$5 = $BF$6, BS6, IF($BK$5 = $BF$7, BS7, BS8)) -> 2021-01-07 | F14: 2020-10-30 | BA14: =IFERROR(_xlfn.CONCAT(BA9, "(", $BA$10, " ", $BB$10, ")"), CONCATENATE(BA9, "(", $BA$10, " ", $BB$10, ")")) -> Cumulative cases by strategy (Contact Tracing Starts 0-Jan-1900) | BJ14: 5 | BK14: =VLOOKUP(BJ14, 'Calc - Base'!$H$35:$I$400, 2) -> 2021-01-12 | BL14: =IF($BK$5 = $BF$6, 'Case Counts'!W9, IF($BK$5 = $BF$7, 'Case Counts'!X9, 'Case Counts'!Y9)) -> 0 | BM14: ='Calc - SA_Case Counts'!L40 -> 0 | BN14: =IF($BK$5 = $BF$6, 'Case Counts'!AA9, IF($BK$5 = $BF$7, 'Case Counts'!AB9, 'Case Counts'!AC9)) -> 1.48 | BO14: 1.48 | BQ14: Contact Tracing Begins | BW14: 8 | BX14: ='D. Epi Parameters'!D21 -> 0.112677035 | BY14: 0
C15: Days after infection that isolation starts | E15: =IF($BK$5 = $BF$6, BT6, IF($BK$5 = $BF$7, BT7, BT8)) -> 6 | F15: 6 | BA15: Y-axis labels | BB15: X-axis labels | BJ15: 6 | BK15: =VLOOKUP(BJ15, 'Calc - Base'!$H$35:$I$400, 2) -> 2021-01-13 | BL15: =IF($BK$5 = $BF$6, 'Case Counts'!W10, IF($BK$5 = $BF$7, 'Case Counts'!X10, 'Case Counts'!Y10)) -> 0 | BM15: ='Calc - SA_Case Counts'!L41 -> 0 | BN15: =IF($BK$5 = $BF$6, 'Case Counts'!AA10, IF($BK$5 = $BF$7, 'Case Counts'!AB10, 'Case Counts'!AC10)) -> 1.48 | BO15: 1.48 | BQ15: Date | BR15: Day | BW15: 9 | BX15: ='D. Epi Parameters'!D22 -> 0.08101811276 | BY15: 0
C16: % CT adherence | E16: =IF($BK$5 = $BF$6, BU6, IF($BK$5 = $BF$7, BU7, BU8)) -> 0.7 | F16: 0.85 | BA16: Cases | BB16: Days | BJ16: 7 | BK16: =VLOOKUP(BJ16, 'Calc - Base'!$H$35:$I$400, 2) -> 2021-01-14 | BL16: =IF($BK$5 = $BF$6, 'Case Counts'!W11, IF($BK$5 = $BF$7, 'Case Counts'!X11, 'Case Counts'!Y11)) -> 0 | BM16: ='Calc - SA_Case Counts'!L42 -> 0 | BN16: =IF($BK$5 = $BF$6, 'Case Counts'!AA11, IF($BK$5 = $BF$7, 'Case Counts'!AB11, 'Case Counts'!AC11)) -> 1.48 | BO16: 1.48 | BP16: Base | BQ16: =E14 -> 2021-01-07 | BR16: =INDEX($BJ$9:$BJ$374, MATCH(BQ16, $BK$9:$BK$374, 0)) -> 0 | BW16: 10 | BX16: ='D. Epi Parameters'!D23 -> 0.05481117246 | BY16: 0
BA17: Staff | BJ17: 8 | BK17: =VLOOKUP(BJ17, 'Calc - Base'!$H$35:$I$400, 2) -> 2021-01-15 | BL17: =IF($BK$5 = $BF$6, 'Case Counts'!W12, IF($BK$5 = $BF$7, 'Case Counts'!X12, 'Case Counts'!Y12)) -> 0.2093688794 | BM17: ='Calc - SA_Case Counts'!L43 -> 0.2042361794 | BN17: =IF($BK$5 = $BF$6, 'Case Counts'!AA12, IF($BK$5 = $BF$7, 'Case Counts'!AB12, 'Case Counts'!AC12)) -> 1.689368879 | BO17: 1.684236179 | BP17: What-If | BQ17: =F14 -> 2020-10-30 | BR17: =INDEX($BJ$9:$BJ$374, MATCH(BQ17, $BK$9:$BK$374, 0)) ->  | BW17: 11 | BX17: ='D. Epi Parameters'!D24 -> 0.03553690464 | BY17: 0
BJ18: 9 | BK18: =VLOOKUP(BJ18, 'Calc - Base'!$H$35:$I$400, 2) -> 2021-01-16 | BL18: =IF($BK$5 = $BF$6, 'Case Counts'!W13, IF($BK$5 = $BF$7, 'Case Counts'!X13, 'Case Counts'!Y13)) -> 0.2248741297 | BM18: ='Calc - SA_Case Counts'!L44 -> 0.2193632242 | BN18: =IF($BK$5 = $BF$6, 'Case Counts'!AA13, IF($BK$5 = $BF$7, 'Case Counts'!AB13, 'Case Counts'!AC13)) -> 1.914243009 | BO18: 1.903599404 | BW18: 12 | BX18: ='D. Epi Parameters'!D25 -> 0.02262657797 | BY18: 0
BJ19: 10 | BK19: =VLOOKUP(BJ19, 'Calc - Base'!$H$35:$I$400, 2) -> 2021-01-17 | BL19: =IF($BK$5 = $BF$6, 'Case Counts'!W14, IF($BK$5 = $BF$7, 'Case Counts'!X14, 'Case Counts'!Y14)) -> 0.06386428503 | BM19: ='Calc - SA_Case Counts'!L45 -> 0.03114988456 | BN19: =IF($BK$5 = $BF$6, 'Case Counts'!AA14, IF($BK$5 = $BF$7, 'Case Counts'!AB14, 'Case Counts'!AC14)) -> 1.978107294 | BO19: 1.934749288 | BW19: 13 | BX19: ='D. Epi Parameters'!D26 -> 0.01462363492 | BY19: 0
BJ20: 11 | BK20: =VLOOKUP(BJ20, 'Calc - Base'!$H$35:$I$400, 2) -> 2021-01-18 | BL20: =IF($BK$5 = $BF$6, 'Case Counts'!W15, IF($BK$5 = $BF$7, 'Case Counts'!X15, 'Case Counts'!Y15)) -> 1.529360625 | BM20: ='Calc - SA_Case Counts'!L46 -> 1.501652362 | BN20: =IF($BK$5 = $BF$6, 'Case Counts'!AA15, IF($BK$5 = $BF$7, 'Case Counts'!AB15, 'Case Counts'!AC15)) -> 3.507467919 | BO20: 3.436401651 | BQ20: Lower | BR20: Upper | BW20: 14 | BX20: ='D. Epi Parameters'!D27 -> 0.01478414908 | BY20: 0
BJ21: 12 | BK21: =VLOOKUP(BJ21, 'Calc - Base'!$H$35:$I$400, 2) -> 2021-01-19 | BL21: =IF($BK$5 = $BF$6, 'Case Counts'!W16, IF($BK$5 = $BF$7, 'Case Counts'!X16, 'Case Counts'!Y16)) -> 0.07155606702 | BM21: ='Calc - SA_Case Counts'!L47 -> 0.04859751519 | BN21: =IF($BK$5 = $BF$6, 'Case Counts'!AA16, IF($BK$5 = $BF$7, 'Case Counts'!AB16, 'Case Counts'!AC16)) -> 3.579023986 | BO21: 3.484999166 | BP21: =BF6 -> Strategy 1 | BQ21: =MAX('Staff Needed'!V5:V370) -> 1.924923033 | BR21: =MAX('Staff Needed'!W5:W370) -> 17.34526556
BJ22: 13 | BK22: =VLOOKUP(BJ22, 'Calc - Base'!$H$35:$I$400, 2) -> 2021-01-20 | BL22: =IF($BK$5 = $BF$6, 'Case Counts'!W17, IF($BK$5 = $BF$7, 'Case Counts'!X17, 'Case Counts'!Y17)) -> 0.09363275041 | BM22: ='Calc - SA_Case Counts'!L48 -> 0.07509178629 | BN22: =IF($BK$5 = $BF$6, 'Case Counts'!AA17, IF($BK$5 = $BF$7, 'Case Counts'!AB17, 'Case Counts'!AC17)) -> 3.672656736 | BO22: 3.560090952 | BP22: =BF7 -> Strategy 2 | BQ22: =MAX('Staff Needed'!X5:X370) -> 0.6194901468 | BR22: =MAX('Staff Needed'!Y5:Y370) -> 5.972811874
BJ23: 14 | BK23: =VLOOKUP(BJ23, 'Calc - Base'!$H$35:$I$400, 2) -> 2021-01-21 | BL23: =IF($BK$5 = $BF$6, 'Case Counts'!W18, IF($BK$5 = $BF$7, 'Case Counts'!X18, 'Case Counts'!Y18)) -> 0.07250579848 | BM23: ='Calc - SA_Case Counts'!L49 -> 0.05095368873 | BN23: =IF($BK$5 = $BF$6, 'Case Counts'!AA18, IF($BK$5 = $BF$7, 'Case Counts'!AB18, 'Case Counts'!AC18)) -> 3.745162535 | BO23: 3.611044641 | BP23: =BF8 -> Strategy 3 | BQ23: =MAX('Staff Needed'!Z5:Z370) -> 0.470463118 | BR23: =MAX('Staff Needed'!AA5:AA370) -> 4.677862995
BJ24: 15 | BK24: =VLOOKUP(BJ24, 'Calc - Base'!$H$35:$I$400, 2) -> 2021-01-22 | BL24: =IF($BK$5 = $BF$6, 'Case Counts'!W19, IF($BK$5 = $BF$7, 'Case Counts'!X19, 'Case Counts'!Y19)) -> 0.2557779373 | BM24: ='Calc - SA_Case Counts'!L50 -> 0.225792604 | BN24: =IF($BK$5 = $BF$6, 'Case Counts'!AA19, IF($BK$5 = $BF$7, 'Case Counts'!AB19, 'Case Counts'!AC19)) -> 4.000940472 | BO24: 3.836837245
BJ25: 16 | BK25: =VLOOKUP(BJ25, 'Calc - Base'!$H$35:$I$400, 2) -> 2021-01-23 | BL25: =IF($BK$5 = $BF$6, 'Case Counts'!W20, IF($BK$5 = $BF$7, 'Case Counts'!X20, 'Case Counts'!Y20)) -> 0.2668897045 | BM25: ='Calc - SA_Case Counts'!L51 -> 0.239950578 | BN25: =IF($BK$5 = $BF$6, 'Case Counts'!AA20, IF($BK$5 = $BF$7, 'Case Counts'!AB20, 'Case Counts'!AC20)) -> 4.267830176 | BO25: 4.076787823 | BQ25: Lower | BR25: Upper
BJ26: 17 | BK26: =VLOOKUP(BJ26, 'Calc - Base'!$H$35:$I$400, 2) -> 2021-01-24 | BL26: =IF($BK$5 = $BF$6, 'Case Counts'!W21, IF($BK$5 = $BF$7, 'Case Counts'!X21, 'Case Counts'!Y21)) -> 0.1081723511 | BM26: ='Calc - SA_Case Counts'!L52 -> 0.05726276242 | BN26: =IF($BK$5 = $BF$6, 'Case Counts'!AA21, IF($BK$5 = $BF$7, 'Case Counts'!AB21, 'Case Counts'!AC21)) -> 4.376002528 | BO26: 4.134050585 | BP26: =K30 -> Original Scenario | BQ26: =IF($BK$5 = $BF$6, BQ21, IF($BK$5=$BF$7, BQ22,BQ23)) -> 0.470463118 | BR26: =IF($BK$5 = $BF$6, BR21, IF($BK$5=$BF$7, BR22,BR23)) -> 4.677862995
BJ27: 18 | BK27: =VLOOKUP(BJ27, 'Calc - Base'!$H$35:$I$400, 2) -> 2021-01-25 | BL27: =IF($BK$5 = $BF$6, 'Case Counts'!W22, IF($BK$5 = $BF$7, 'Case Counts'!X22, 'Case Counts'!Y22)) -> 1.567186513 | BM27: ='Calc - SA_Case Counts'!L53 -> 1.522220535 | BN27: =IF($BK$5 = $BF$6, 'Case Counts'!AA22, IF($BK$5 = $BF$7, 'Case Counts'!AB22, 'Case Counts'!AC22)) -> 5.94318904 | BO27: 5.65627112 | BP27: =L30 -> What-If | BQ27: =MAX('Calc - SA_Case Counts'!AT40:AT405) -> 0.449176643 | BR27: =MAX('Calc - SA_Case Counts'!AU40:AU405) -> 4.488259174
BJ28: 19 | BK28: =VLOOKUP(BJ28, 'Calc - Base'!$H$35:$I$400, 2) -> 2021-01-26 | BL28: =IF($BK$5 = $BF$6, 'Case Counts'!W23, IF($BK$5 = $BF$7, 'Case Counts'!X23, 'Case Counts'!Y23)) -> 0.1029910814 | BM28: ='Calc - SA_Case Counts'!L54 -> 0.06427427852 | BN28: =IF($BK$5 = $BF$6, 'Case Counts'!AA23, IF($BK$5 = $BF$7, 'Case Counts'!AB23, 'Case Counts'!AC23)) -> 6.046180122 | BO28: 5.720545399
BJ29: 20 | BK29: =VLOOKUP(BJ29, 'Calc - Base'!$H$35:$I$400, 2) -> 2021-01-27 | BL29: =IF($BK$5 = $BF$6, 'Case Counts'!W24, IF($BK$5 = $BF$7, 'Case Counts'!X24, 'Case Counts'!Y24)) -> 0.1197573591 | BM29: ='Calc - SA_Case Counts'!L55 -> 0.08581696234 | BN29: =IF($BK$5 = $BF$6, 'Case Counts'!AA24, IF($BK$5 = $BF$7, 'Case Counts'!AB24, 'Case Counts'!AC24)) -> 6.165937481 | BO29: 5.806362361 | BQ29: Base | BR29: What-If
K30: =E12 -> Original Scenario | L30: =F12 -> What-If | M30: Difference | BJ30: 21 | BK30: =VLOOKUP(BJ30, 'Calc - Base'!$H$35:$I$400, 2) -> 2021-01-28 | BL30: =IF($BK$5 = $BF$6, 'Case Counts'!W25, IF($BK$5 = $BF$7, 'Case Counts'!X25, 'Case Counts'!Y25)) -> 0.09677835132 | BM30: ='Calc - SA_Case Counts'!L56 -> 0.0614962239 | BN30: =IF($BK$5 = $BF$6, 'Case Counts'!AA25, IF($BK$5 = $BF$7, 'Case Counts'!AB25, 'Case Counts'!AC25)) -> 6.262715832 | BO30: 5.867858585 | BP30: Day of Peak | BQ30: =INDEX(BJ9:BJ374, MATCH($BQ$32, BL9:BL374, 0)) -> 25 | BR30: =INDEX(BJ9:BJ374, MATCH($BR$32, BM9:BM374, 0)) -> 18
I31: Duration (days) | K31: =IF($BL$374>=1,"> 365", SUM(COUNTIF($BL$9:$BL$374,">=1"))) -> 52 | L31: =IF($BM$374>=1,"> 365", SUM(COUNTIF($BM$9:$BM$374,">=1"))) -> 52 | M31: =IFERROR(L31-K31, "N/A") -> 0 | BJ31: 22 | BK31: =VLOOKUP(BJ31, 'Calc - Base'!$H$35:$I$400, 2) -> 2021-01-29 | BL31: =IF($BK$5 = $BF$6, 'Case Counts'!W26, IF($BK$5 = $BF$7, 'Case Counts'!X26, 'Case Counts'!Y26)) -> 0.2775031538 | BM31: ='Calc - SA_Case Counts'!L57 -> 0.2351179399 | BN31: =IF($BK$5 = $BF$6, 'Case Counts'!AA26, IF($BK$5 = $BF$7, 'Case Counts'!AB26, 'Case Counts'!AC26)) -> 6.540218986 | BO31: 6.102976525 | BP31: Date of Peak | BQ31: =INDEX(BK9:BK374, MATCH($BQ$32, BL9:BL374, 0)) -> 2021-02-01 | BR31: =INDEX(BK9:BK374, MATCH($BR$32, BM9:BM374, 0)) -> 2021-01-25
I32: Day of Peak | K32: =BQ31 -> 2021-02-01 | L32: =BR31 -> 2021-01-25 | M32: =IFERROR(L32-K32, "N/A") -> -7 | BJ32: 23 | BK32: =VLOOKUP(BJ32, 'Calc - Base'!$H$35:$I$400, 2) -> 2021-01-30 | BL32: =IF($BK$5 = $BF$6, 'Case Counts'!W27, IF($BK$5 = $BF$7, 'Case Counts'!X27, 'Case Counts'!Y27)) -> 0.2853304606 | BM32: ='Calc - SA_Case Counts'!L58 -> 0.247140469 | BN32: =IF($BK$5 = $BF$6, 'Case Counts'!AA27, IF($BK$5 = $BF$7, 'Case Counts'!AB27, 'Case Counts'!AC27)) -> 6.825549446 | BO32: 6.350116994 | BP32: Cases @ Peak | BQ32: =MAX(BL9:BL374) -> 1.574743373 | BR32: =MAX(BM9:BM374) -> 1.522220535
I33: Cases @ Peak | K33: =BQ32 -> 1.574743373 | L33: =BR32 -> 1.522220535 | M33: -0.05252283828 | BJ33: 24 | BK33: =VLOOKUP(BJ33, 'Calc - Base'!$H$35:$I$400, 2) -> 2021-01-31 | BL33: =IF($BK$5 = $BF$6, 'Case Counts'!W28, IF($BK$5 = $BF$7, 'Case Counts'!X28, 'Case Counts'!Y28)) -> 0.1241127093 | BM33: ='Calc - SA_Case Counts'!L59 -> 0.06310336949 | BN33: =IF($BK$5 = $BF$6, 'Case Counts'!AA28, IF($BK$5 = $BF$7, 'Case Counts'!AB28, 'Case Counts'!AC28)) -> 6.949662156 | BO33: 6.413220363
I34: Total number of cases | K34: =MAX(BN9:BN374) -> 116.7965041 | L34: =MAX(BO9:BO374) -> 104.5973175 | M34: =L34-K34 -> -12.19918664 | BJ34: 25 | BK34: =VLOOKUP(BJ34, 'Calc - Base'!$H$35:$I$400, 2) -> 2021-02-01 | BL34: =IF($BK$5 = $BF$6, 'Case Counts'!W29, IF($BK$5 = $BF$7, 'Case Counts'!X29, 'Case Counts'!Y29)) -> 1.574743373 | BM34: ='Calc - SA_Case Counts'!L60 -> 1.521295396 | BN34: =IF($BK$5 = $BF$6, 'Case Counts'!AA29, IF($BK$5 = $BF$7, 'Case Counts'!AB29, 'Case Counts'!AC29)) -> 8.524405529 | BO34: 7.934515759
BJ35: 26 | BK35: =VLOOKUP(BJ35, 'Calc - Base'!$H$35:$I$400, 2) -> 2021-02-02 | BL35: =IF($BK$5 = $BF$6, 'Case Counts'!W30, IF($BK$5 = $BF$7, 'Case Counts'!X30, 'Case Counts'!Y30)) -> 0.1154418519 | BM35: ='Calc - SA_Case Counts'!L61 -> 0.06847909637 | BN35: =IF($BK$5 = $BF$6, 'Case Counts'!AA30, IF($BK$5 = $BF$7, 'Case Counts'!AB30, 'Case Counts'!AC30)) -> 8.639847381 | BO35: 8.002994856
BJ36: 27 | BK36: =VLOOKUP(BJ36, 'Calc - Base'!$H$35:$I$400, 2) -> 2021-02-03 | BL36: =IF($BK$5 = $BF$6, 'Case Counts'!W31, IF($BK$5 = $BF$7, 'Case Counts'!X31, 'Case Counts'!Y31)) -> 0.130553933 | BM36: ='Calc - SA_Case Counts'!L62 -> 0.08920972643 | BN36: =IF($BK$5 = $BF$6, 'Case Counts'!AA31, IF($BK$5 = $BF$7, 'Case Counts'!AB31, 'Case Counts'!AC31)) -> 8.770401314 | BO36: 8.092204582
BJ37: 28 | BK37: =VLOOKUP(BJ37, 'Calc - Base'!$H$35:$I$400, 2) -> 2021-02-04 | BL37: =IF($BK$5 = $BF$6, 'Case Counts'!W32, IF($BK$5 = $BF$7, 'Case Counts'!X32, 'Case Counts'!Y32)) -> 0.1061085185 | BM37: ='Calc - SA_Case Counts'!L63 -> 0.06422874517 | BN37: =IF($BK$5 = $BF$6, 'Case Counts'!AA32, IF($BK$5 = $BF$7, 'Case Counts'!AB32, 'Case Counts'!AC32)) -> 8.876509832 | BO37: 8.156433327
BJ38: 29 | BK38: =VLOOKUP(BJ38, 'Calc - Base'!$H$35:$I$400, 2) -> 2021-02-05 | BL38: =IF($BK$5 = $BF$6, 'Case Counts'!W33, IF($BK$5 = $BF$7, 'Case Counts'!X33, 'Case Counts'!Y33)) -> 0.2838405169 | BM38: ='Calc - SA_Case Counts'!L64 -> 0.2358373086 | BN38: =IF($BK$5 = $BF$6, 'Case Counts'!AA33, IF($BK$5 = $BF$7, 'Case Counts'!AB33, 'Case Counts'!AC33)) -> 9.160350349 | BO38: 8.392270636
BJ39: 30 | BK39: =VLOOKUP(BJ39, 'Calc - Base'!$H$35:$I$400, 2) -> 2021-02-06 | BL39: =IF($BK$5 = $BF$6, 'Case Counts'!W34, IF($BK$5 = $BF$7, 'Case Counts'!X34, 'Case Counts'!Y34)) -> 0.2905425599 | BM39: ='Calc - SA_Case Counts'!L65 -> 0.2473738677 | BN39: =IF($BK$5 = $BF$6, 'Case Counts'!AA34, IF($BK$5 = $BF$7, 'Case Counts'!AB34, 'Case Counts'!AC34)) -> 9.450892909 | BO39: 8.639644504
BJ40: 31 | BK40: =VLOOKUP(BJ40, 'Calc - Base'!$H$35:$I$400, 2) -> 2021-02-07 | BL40: =IF($BK$5 = $BF$6, 'Case Counts'!W35, IF($BK$5 = $BF$7, 'Case Counts'!X35, 'Case Counts'!Y35)) -> 0.1298293745 | BM40: ='Calc - SA_Case Counts'!L66 -> 0.06445383773 | BN40: =IF($BK$5 = $BF$6, 'Case Counts'!AA35, IF($BK$5 = $BF$7, 'Case Counts'!AB35, 'Case Counts'!AC35)) -> 9.580722283 | BO40: 8.704098341
BJ41: 32 | BK41: =VLOOKUP(BJ41, 'Calc - Base'!$H$35:$I$400, 2) -> 2021-02-08 | BL41: =IF($BK$5 = $BF$6, 'Case Counts'!W36, IF($BK$5 = $BF$7, 'Case Counts'!X36, 'Case Counts'!Y36)) -> 1.573120665 | BM41: ='Calc - SA_Case Counts'!L67 -> 1.516638112 | BN41: =IF($BK$5 = $BF$6, 'Case Counts'!AA36, IF($BK$5 = $BF$7, 'Case Counts'!AB36, 'Case Counts'!AC36)) -> 11.15384295 | BO41: 10.22073645
BJ42: 33 | BK42: =VLOOKUP(BJ42, 'Calc - Base'!$H$35:$I$400, 2) -> 2021-02-09 | BL42: =IF($BK$5 = $BF$6, 'Case Counts'!W37, IF($BK$5 = $BF$7, 'Case Counts'!X37, 'Case Counts'!Y37)) -> 0.1194308379 | BM42: ='Calc - SA_Case Counts'!L68 -> 0.069061869 | BN42: =IF($BK$5 = $BF$6, 'Case Counts'!AA37, IF($BK$5 = $BF$7, 'Case Counts'!AB37, 'Case Counts'!AC37)) -> 11.27327379 | BO42: 10.28979832
BJ43: 34 | BK43: =VLOOKUP(BJ43, 'Calc - Base'!$H$35:$I$400, 2) -> 2021-02-10 | BL43: =IF($BK$5 = $BF$6, 'Case Counts'!W38, IF($BK$5 = $BF$7, 'Case Counts'!X38, 'Case Counts'!Y38)) -> 0.1336114454 | BM43: ='Calc - SA_Case Counts'!L69 -> 0.08929584671 | BN43: =IF($BK$5 = $BF$6, 'Case Counts'!AA38, IF($BK$5 = $BF$7, 'Case Counts'!AB38, 'Case Counts'!AC38)) -> 11.40688523 | BO43: 10.37909417
BJ44: 35 | BK44: =VLOOKUP(BJ44, 'Calc - Base'!$H$35:$I$400, 2) -> 2021-02-11 | BL44: =IF($BK$5 = $BF$6, 'Case Counts'!W39, IF($BK$5 = $BF$7, 'Case Counts'!X39, 'Case Counts'!Y39)) -> 0.1088781998 | BM44: ='Calc - SA_Case Counts'!L70 -> 0.06442015408 | BN44: =IF($BK$5 = $BF$6, 'Case Counts'!AA39, IF($BK$5 = $BF$7, 'Case Counts'!AB39, 'Case Counts'!AC39)) -> 11.51576343 | BO44: 10.44351432
BJ45: 36 | BK45: =VLOOKUP(BJ45, 'Calc - Base'!$H$35:$I$400, 2) -> 2021-02-12 | BL45: =IF($BK$5 = $BF$6, 'Case Counts'!W40, IF($BK$5 = $BF$7, 'Case Counts'!X40, 'Case Counts'!Y40)) -> 0.2845863613 | BM45: ='Calc - SA_Case Counts'!L71 -> 0.2346356581 | BN45: =IF($BK$5 = $BF$6, 'Case Counts'!AA40, IF($BK$5 = $BF$7, 'Case Counts'!AB40, 'Case Counts'!AC40)) -> 11.80034979 | BO45: 10.67814998
BJ46: 37 | BK46: =VLOOKUP(BJ46, 'Calc - Base'!$H$35:$I$400, 2) -> 2021-02-13 | BL46: =IF($BK$5 = $BF$6, 'Case Counts'!W41, IF($BK$5 = $BF$7, 'Case Counts'!X41, 'Case Counts'!Y41)) -> 0.2907598451 | BM46: ='Calc - SA_Case Counts'!L72 -> 0.2459346695 | BN46: =IF($BK$5 = $BF$6, 'Case Counts'!AA41, IF($BK$5 = $BF$7, 'Case Counts'!AB41, 'Case Counts'!AC41)) -> 12.09110964 | BO46: 10.92408465
BJ47: 38 | BK47: =VLOOKUP(BJ47, 'Calc - Base'!$H$35:$I$400, 2) -> 2021-02-14 | BL47: =IF($BK$5 = $BF$6, 'Case Counts'!W42, IF($BK$5 = $BF$7, 'Case Counts'!X42, 'Case Counts'!Y42)) -> 0.1310502549 | BM47: ='Calc - SA_Case Counts'!L73 -> 0.06428891554 | BN47: =IF($BK$5 = $BF$6, 'Case Counts'!AA42, IF($BK$5 = $BF$7, 'Case Counts'!AB42, 'Case Counts'!AC42)) -> 12.22215989 | BO47: 10.98837357
BJ48: 39 | BK48: =VLOOKUP(BJ48, 'Calc - Base'!$H$35:$I$400, 2) -> 2021-02-15 | BL48: =IF($BK$5 = $BF$6, 'Case Counts'!W43, IF($BK$5 = $BF$7, 'Case Counts'!X43, 'Case Counts'!Y43)) -> 1.567504798 | BM48: ='Calc - SA_Case Counts'!L74 -> 1.510719743 | BN48: =IF($BK$5 = $BF$6, 'Case Counts'!AA43, IF($BK$5 = $BF$7, 'Case Counts'!AB43, 'Case Counts'!AC43)) -> 13.78966469 | BO48: 12.49909331
BJ49: 40 | BK49: =VLOOKUP(BJ49, 'Calc - Base'!$H$35:$I$400, 2) -> 2021-02-16 | BL49: =IF($BK$5 = $BF$6, 'Case Counts'!W44, IF($BK$5 = $BF$7, 'Case Counts'!X44, 'Case Counts'!Y44)) -> 0.1200100673 | BM49: ='Calc - SA_Case Counts'!L75 -> 0.06864392756 | BN49: =IF($BK$5 = $BF$6, 'Case Counts'!AA44, IF($BK$5 = $BF$7, 'Case Counts'!AB44, 'Case Counts'!AC44)) -> 13.90967476 | BO49: 12.56773724
BJ50: 41 | BK50: =VLOOKUP(BJ50, 'Calc - Base'!$H$35:$I$400, 2) -> 2021-02-17 | BL50: =IF($BK$5 = $BF$6, 'Case Counts'!W45, IF($BK$5 = $BF$7, 'Case Counts'!X45, 'Case Counts'!Y45)) -> 0.1336839826 | BM50: ='Calc - SA_Case Counts'!L76 -> 0.08856705537 | BN50: =IF($BK$5 = $BF$6, 'Case Counts'!AA45, IF($BK$5 = $BF$7, 'Case Counts'!AB45, 'Case Counts'!AC45)) -> 14.04335874 | BO50: 12.65630429
BJ51: 42 | BK51: =VLOOKUP(BJ51, 'Calc - Base'!$H$35:$I$400, 2) -> 2021-02-18 | BL51: =IF($BK$5 = $BF$6, 'Case Counts'!W46, IF($BK$5 = $BF$7, 'Case Counts'!X46, 'Case Counts'!Y46)) -> 0.1089960929 | BM51: ='Calc - SA_Case Counts'!L77 -> 0.06390338738 | BN51: =IF($BK$5 = $BF$6, 'Case Counts'!AA46, IF($BK$5 = $BF$7, 'Case Counts'!AB46, 'Case Counts'!AC46)) -> 14.15235483 | BO51: 12.72020768
BJ52: 43 | BK52: =VLOOKUP(BJ52, 'Calc - Base'!$H$35:$I$400, 2) -> 2021-02-19 | BL52: =IF($BK$5 = $BF$6, 'Case Counts'!W47, IF($BK$5 = $BF$7, 'Case Counts'!X47, 'Case Counts'!Y47)) -> 0.2829864123 | BM52: ='Calc - SA_Case Counts'!L78 -> 0.2328337766 | BN52: =IF($BK$5 = $BF$6, 'Case Counts'!AA47, IF($BK$5 = $BF$7, 'Case Counts'!AB47, 'Case Counts'!AC47)) -> 14.43534125 | BO52: 12.95304146
BJ53: 44 | BK53: =VLOOKUP(BJ53, 'Calc - Base'!$H$35:$I$400, 2) -> 2021-02-20 | BL53: =IF($BK$5 = $BF$6, 'Case Counts'!W48, IF($BK$5 = $BF$7, 'Case Counts'!X48, 'Case Counts'!Y48)) -> 0.2889275108 | BM53: ='Calc - SA_Case Counts'!L79 -> 0.244005177 | BN53: =IF($BK$5 = $BF$6, 'Case Counts'!AA48, IF($BK$5 = $BF$7, 'Case Counts'!AB48, 'Case Counts'!AC48)) -> 14.72426876 | BO53: 13.19704663
BJ54: 45 | BK54: =VLOOKUP(BJ54, 'Calc - Base'!$H$35:$I$400, 2) -> 2021-02-21 | BL54: =IF($BK$5 = $BF$6, 'Case Counts'!W49, IF($BK$5 = $BF$7, 'Case Counts'!X49, 'Case Counts'!Y49)) -> 0.1304808148 | BM54: ='Calc - SA_Case Counts'!L80 -> 0.06371907685 | BN54: =IF($BK$5 = $BF$6, 'Case Counts'!AA49, IF($BK$5 = $BF$7, 'Case Counts'!AB49, 'Case Counts'!AC49)) -> 14.85474957 | BO54: 13.26076571
BJ55: 46 | BK55: =VLOOKUP(BJ55, 'Calc - Base'!$H$35:$I$400, 2) -> 2021-02-22 | BL55: =IF($BK$5 = $BF$6, 'Case Counts'!W50, IF($BK$5 = $BF$7, 'Case Counts'!X50, 'Case Counts'!Y50)) -> 1.560335603 | BM55: ='Calc - SA_Case Counts'!L81 -> 1.504492312 | BN55: =IF($BK$5 = $BF$6, 'Case Counts'!AA50, IF($BK$5 = $BF$7, 'Case Counts'!AB50, 'Case Counts'!AC50)) -> 16.41508517 | BO55: 14.76525802
BJ56: 47 | BK56: =VLOOKUP(BJ56, 'Calc - Base'!$H$35:$I$400, 2) -> 2021-02-23 | BL56: =IF($BK$5 = $BF$6, 'Case Counts'!W51, IF($BK$5 = $BF$7, 'Case Counts'!X51, 'Case Counts'!Y51)) -> 0.1192046468 | BM56: ='Calc - SA_Case Counts'!L82 -> 0.06794022378 | BN56: =IF($BK$5 = $BF$6, 'Case Counts'!AA51, IF($BK$5 = $BF$7, 'Case Counts'!AB51, 'Case Counts'!AC51)) -> 16.53428982 | BO56: 14.83319825
BJ57: 48 | BK57: =VLOOKUP(BJ57, 'Calc - Base'!$H$35:$I$400, 2) -> 2021-02-24 | BL57: =IF($BK$5 = $BF$6, 'Case Counts'!W52, IF($BK$5 = $BF$7, 'Case Counts'!X52, 'Case Counts'!Y52)) -> 0.1325426213 | BM57: ='Calc - SA_Case Counts'!L83 -> 0.08760246609 | BN57: =IF($BK$5 = $BF$6, 'Case Counts'!AA52, IF($BK$5 = $BF$7, 'Case Counts'!AB52, 'Case Counts'!AC52)) -> 16.66683244 | BO57: 14.92080071
BJ58: 49 | BK58: =VLOOKUP(BJ58, 'Calc - Base'!$H$35:$I$400, 2) -> 2021-02-25 | BL58: =IF($BK$5 = $BF$6, 'Case Counts'!W53, IF($BK$5 = $BF$7, 'Case Counts'!X53, 'Case Counts'!Y53)) -> 0.1080508127 | BM58: ='Calc - SA_Case Counts'!L84 -> 0.06319154622 | BN58: =IF($BK$5 = $BF$6, 'Case Counts'!AA53, IF($BK$5 = $BF$7, 'Case Counts'!AB53, 'Case Counts'!AC53)) -> 16.77488325 | BO58: 14.98399226
BJ59: 50 | BK59: =VLOOKUP(BJ59, 'Calc - Base'!$H$35:$I$400, 2) -> 2021-02-26 | BL59: =IF($BK$5 = $BF$6, 'Case Counts'!W54, IF($BK$5 = $BF$7, 'Case Counts'!X54, 'Case Counts'!Y54)) -> 0.2804692225 | BM59: ='Calc - SA_Case Counts'!L85 -> 0.2308829716 | BN59: =IF($BK$5 = $BF$6, 'Case Counts'!AA54, IF($BK$5 = $BF$7, 'Case Counts'!AB54, 'Case Counts'!AC54)) -> 17.05535248 | BO59: 15.21487523
BJ60: 51 | BK60: =VLOOKUP(BJ60, 'Calc - Base'!$H$35:$I$400, 2) -> 2021-02-27 | BL60: =IF($BK$5 = $BF$6, 'Case Counts'!W55, IF($BK$5 = $BF$7, 'Case Counts'!X55, 'Case Counts'!Y55)) -> 0.2862934021 | BM60: ='Calc - SA_Case Counts'!L86 -> 0.2419547579 | BN60: =IF($BK$5 = $BF$6, 'Case Counts'!AA55, IF($BK$5 = $BF$7, 'Case Counts'!AB55, 'Case Counts'!AC55)) -> 17.34164588 | BO60: 15.45682999
BJ61: 52 | BK61: =VLOOKUP(BJ61, 'Calc - Base'!$H$35:$I$400, 2) -> 2021-02-28 | BL61: =IF($BK$5 = $BF$6, 'Case Counts'!W56, IF($BK$5 = $BF$7, 'Case Counts'!X56, 'Case Counts'!Y56)) -> 0.1291982755 | BM61: ='Calc - SA_Case Counts'!L87 -> 0.06303828459 | BN61: =IF($BK$5 = $BF$6, 'Case Counts'!AA56, IF($BK$5 = $BF$7, 'Case Counts'!AB56, 'Case Counts'!AC56)) -> 17.47084415 | BO61: 15.51986827
BJ62: 53 | BK62: =VLOOKUP(BJ62, 'Calc - Base'!$H$35:$I$400, 2) -> 2021-03-01 | BL62: =IF($BK$5 = $BF$6, 'Case Counts'!W57, IF($BK$5 = $BF$7, 'Case Counts'!X57, 'Case Counts'!Y57)) -> 1.552583182 | BM62: ='Calc - SA_Case Counts'!L88 -> 1.498206733 | BN62: =IF($BK$5 = $BF$6, 'Case Counts'!AA57, IF($BK$5 = $BF$7, 'Case Counts'!AB57, 'Case Counts'!AC57)) -> 19.02342734 | BO62: 17.01807501
BJ63: 54 | BK63: =VLOOKUP(BJ63, 'Calc - Base'!$H$35:$I$400, 2) -> 2021-03-02 | BL63: =IF($BK$5 = $BF$6, 'Case Counts'!W58, IF($BK$5 = $BF$7, 'Case Counts'!X58, 'Case Counts'!Y58)) -> 0.1178578208 | BM63: ='Calc - SA_Case Counts'!L89 -> 0.06716445672 | BN63: =IF($BK$5 = $BF$6, 'Case Counts'!AA58, IF($BK$5 = $BF$7, 'Case Counts'!AB58, 'Case Counts'!AC58)) -> 19.14128516 | BO63: 17.08523946
BJ64: 55 | BK64: =VLOOKUP(BJ64, 'Calc - Base'!$H$35:$I$400, 2) -> 2021-03-03 | BL64: =IF($BK$5 = $BF$6, 'Case Counts'!W59, IF($BK$5 = $BF$7, 'Case Counts'!X59, 'Case Counts'!Y59)) -> 0.1309326211 | BM64: ='Calc - SA_Case Counts'!L90 -> 0.08658294046 | BN64: =IF($BK$5 = $BF$6, 'Case Counts'!AA59, IF($BK$5 = $BF$7, 'Case Counts'!AB59, 'Case Counts'!AC59)) -> 19.27221778 | BO64: 17.1718224
BJ65: 56 | BK65: =VLOOKUP(BJ65, 'Calc - Base'!$H$35:$I$400, 2) -> 2021-03-04 | BL65: =IF($BK$5 = $BF$6, 'Case Counts'!W60, IF($BK$5 = $BF$7, 'Case Counts'!X60, 'Case Counts'!Y60)) -> 0.1066937175 | BM65: ='Calc - SA_Case Counts'!L91 -> 0.0624326055 | BN65: =IF($BK$5 = $BF$6, 'Case Counts'!AA60, IF($BK$5 = $BF$7, 'Case Counts'!AB60, 'Case Counts'!AC60)) -> 19.3789115 | BO65: 17.23425501
BJ66: 57 | BK66: =VLOOKUP(BJ66, 'Calc - Base'!$H$35:$I$400, 2) -> 2021-03-05 | BL66: =IF($BK$5 = $BF$6, 'Case Counts'!W61, IF($BK$5 = $BF$7, 'Case Counts'!X61, 'Case Counts'!Y61)) -> 0.2776094479 | BM66: ='Calc - SA_Case Counts'!L92 -> 0.228905662 | BN66: =IF($BK$5 = $BF$6, 'Case Counts'!AA61, IF($BK$5 = $BF$7, 'Case Counts'!AB61, 'Case Counts'!AC61)) -> 19.65652094 | BO66: 17.46316067
BJ67: 58 | BK67: =VLOOKUP(BJ67, 'Calc - Base'!$H$35:$I$400, 2) -> 2021-03-06 | BL67: =IF($BK$5 = $BF$6, 'Case Counts'!W62, IF($BK$5 = $BF$7, 'Case Counts'!X62, 'Case Counts'!Y62)) -> 0.2833648589 | BM67: ='Calc - SA_Case Counts'!L93 -> 0.2398870554 | BN67: =IF($BK$5 = $BF$6, 'Case Counts'!AA62, IF($BK$5 = $BF$7, 'Case Counts'!AB62, 'Case Counts'!AC62)) -> 19.9398858 | BO67: 17.70304773
BJ68: 59 | BK68: =VLOOKUP(BJ68, 'Calc - Base'!$H$35:$I$400, 2) -> 2021-03-07 | BL68: =IF($BK$5 = $BF$6, 'Case Counts'!W63, IF($BK$5 = $BF$7, 'Case Counts'!X63, 'Case Counts'!Y63)) -> 0.127647669 | BM68: ='Calc - SA_Case Counts'!L94 -> 0.06233405654 | BN68: =IF($BK$5 = $BF$6, 'Case Counts'!AA63, IF($BK$5 = $BF$7, 'Case Counts'!AB63, 'Case Counts'!AC63)) -> 20.06753347 | BO68: 17.76538178
BJ69: 60 | BK69: =VLOOKUP(BJ69, 'Calc - Base'!$H$35:$I$400, 2) -> 2021-03-08 | BL69: =IF($BK$5 = $BF$6, 'Case Counts'!W64, IF($BK$5 = $BF$7, 'Case Counts'!X64, 'Case Counts'!Y64)) -> 1.544646077 | BM69: ='Calc - SA_Case Counts'!L95 -> 1.49193679 | BN69: =IF($BK$5 = $BF$6, 'Case Counts'!AA64, IF($BK$5 = $BF$7, 'Case Counts'!AB64, 'Case Counts'!AC64)) -> 21.61217955 | BO69: 19.25731857
BJ70: 61 | BK70: =VLOOKUP(BJ70, 'Calc - Base'!$H$35:$I$400, 2) -> 2021-03-09 | BL70: =IF($BK$5 = $BF$6, 'Case Counts'!W65, IF($BK$5 = $BF$7, 'Case Counts'!X65, 'Case Counts'!Y65)) -> 0.1163122248 | BM70: ='Calc - SA_Case Counts'!L96 -> 0.06637683692 | BN70: =IF($BK$5 = $BF$6, 'Case Counts'!AA65, IF($BK$5 = $BF$7, 'Case Counts'!AB65, 'Case Counts'!AC65)) -> 21.72849177 | BO70: 19.32369541
BJ71: 62 | BK71: =VLOOKUP(BJ71, 'Calc - Base'!$H$35:$I$400, 2) -> 2021-03-10 | BL71: =IF($BK$5 = $BF$6, 'Case Counts'!W66, IF($BK$5 = $BF$7, 'Case Counts'!X66, 'Case Counts'!Y66)) -> 0.1291557876 | BM71: ='Calc - SA_Case Counts'!L97 -> 0.08555877507 | BN71: =IF($BK$5 = $BF$6, 'Case Counts'!AA66, IF($BK$5 = $BF$7, 'Case Counts'!AB66, 'Case Counts'!AC66)) -> 21.85764756 | BO71: 19.40925418
BJ72: 63 | BK72: =VLOOKUP(BJ72, 'Calc - Base'!$H$35:$I$400, 2) -> 2021-03-11 | BL72: =IF($BK$5 = $BF$6, 'Case Counts'!W67, IF($BK$5 = $BF$7, 'Case Counts'!X67, 'Case Counts'!Y67)) -> 0.1051903461 | BM72: ='Calc - SA_Case Counts'!L98 -> 0.06166893723 | BN72: =IF($BK$5 = $BF$6, 'Case Counts'!AA67, IF($BK$5 = $BF$7, 'Case Counts'!AB67, 'Case Counts'!AC67)) -> 21.96283791 | BO72: 19.47092312
BJ73: 64 | BK73: =VLOOKUP(BJ73, 'Calc - Base'!$H$35:$I$400, 2) -> 2021-03-12 | BL73: =IF($BK$5 = $BF$6, 'Case Counts'!W68, IF($BK$5 = $BF$7, 'Case Counts'!X68, 'Case Counts'!Y68)) -> 0.2746418312 | BM73: ='Calc - SA_Case Counts'!L99 -> 0.2269374211 | BN73: =IF($BK$5 = $BF$6, 'Case Counts'!AA68, IF($BK$5 = $BF$7, 'Case Counts'!AB68, 'Case Counts'!AC68)) -> 22.23747974 | BO73: 19.69786054
BJ74: 65 | BK74: =VLOOKUP(BJ74, 'Calc - Base'!$H$35:$I$400, 2) -> 2021-03-13 | BL74: =IF($BK$5 = $BF$6, 'Case Counts'!W69, IF($BK$5 = $BF$7, 'Case Counts'!X69, 'Case Counts'!Y69)) -> 0.2803481037 | BM74: ='Calc - SA_Case Counts'!L100 -> 0.2378316385 | BN74: =IF($BK$5 = $BF$6, 'Case Counts'!AA69, IF($BK$5 = $BF$7, 'Case Counts'!AB69, 'Case Counts'!AC69)) -> 22.51782784 | BO74: 19.93569218
BJ75: 66 | BK75: =VLOOKUP(BJ75, 'Calc - Base'!$H$35:$I$400, 2) -> 2021-03-14 | BL75: =IF($BK$5 = $BF$6, 'Case Counts'!W70, IF($BK$5 = $BF$7, 'Case Counts'!X70, 'Case Counts'!Y70)) -> 0.1260091813 | BM75: ='Calc - SA_Case Counts'!L101 -> 0.06163094425 | BN75: =IF($BK$5 = $BF$6, 'Case Counts'!AA70, IF($BK$5 = $BF$7, 'Case Counts'!AB70, 'Case Counts'!AC70)) -> 22.64383702 | BO75: =BO74+BM75 -> 19.99732313
BJ76: 67 | BK76: =VLOOKUP(BJ76, 'Calc - Base'!$H$35:$I$400, 2) -> 2021-03-15 | BL76: =IF($BK$5 = $BF$6, 'Case Counts'!W71, IF($BK$5 = $BF$7, 'Case Counts'!X71, 'Case Counts'!Y71)) -> 1.53668518 | BM76: ='Calc - SA_Case Counts'!L102 -> 1.485702992 | BN76: =IF($BK$5 = $BF$6, 'Case Counts'!AA71, IF($BK$5 = $BF$7, 'Case Counts'!AB71, 'Case Counts'!AC71)) -> 24.1805222 | BO76: 21.48302612
BJ77: 68 | BK77: =VLOOKUP(BJ77, 'Calc - Base'!$H$35:$I$400, 2) -> 2021-03-16 | BL77: =IF($BK$5 = $BF$6, 'Case Counts'!W72, IF($BK$5 = $BF$7, 'Case Counts'!X72, 'Case Counts'!Y72)) -> 0.1147068445 | BM77: ='Calc - SA_Case Counts'!L103 -> 0.06559452784 | BN77: =IF($BK$5 = $BF$6, 'Case Counts'!AA72, IF($BK$5 = $BF$7, 'Case Counts'!AB72, 'Case Counts'!AC72)) -> 24.29522905 | BO77: 21.54862064
BJ78: 69 | BK78: =VLOOKUP(BJ78, 'Calc - Base'!$H$35:$I$400, 2) -> 2021-03-17 | BL78: =IF($BK$5 = $BF$6, 'Case Counts'!W73, IF($BK$5 = $BF$7, 'Case Counts'!X73, 'Case Counts'!Y73)) -> 0.1273343489 | BM78: ='Calc - SA_Case Counts'!L104 -> 0.08454426136 | BN78: =IF($BK$5 = $BF$6, 'Case Counts'!AA73, IF($BK$5 = $BF$7, 'Case Counts'!AB73, 'Case Counts'!AC73)) -> 24.4225634 | BO78: 21.63316491
BJ79: 70 | BK79: =VLOOKUP(BJ79, 'Calc - Base'!$H$35:$I$400, 2) -> 2021-03-18 | BL79: =IF($BK$5 = $BF$6, 'Case Counts'!W74, IF($BK$5 = $BF$7, 'Case Counts'!X74, 'Case Counts'!Y74)) -> 0.1036479328 | BM79: ='Calc - SA_Case Counts'!L105 -> 0.06091244314 | BN79: =IF($BK$5 = $BF$6, 'Case Counts'!AA74, IF($BK$5 = $BF$7, 'Case Counts'!AB74, 'Case Counts'!AC74)) -> 24.52621133 | BO79: 21.69407735
BJ80: 71 | BK80: =VLOOKUP(BJ80, 'Calc - Base'!$H$35:$I$400, 2) -> 2021-03-19 | BL80: =IF($BK$5 = $BF$6, 'Case Counts'!W75, IF($BK$5 = $BF$7, 'Case Counts'!X75, 'Case Counts'!Y75)) -> 0.2716607766 | BM80: ='Calc - SA_Case Counts'!L106 -> 0.2249880542 | BN80: =IF($BK$5 = $BF$6, 'Case Counts'!AA75, IF($BK$5 = $BF$7, 'Case Counts'!AB75, 'Case Counts'!AC75)) -> 24.79787211 | BO80: 21.9190654
BJ81: 72 | BK81: =VLOOKUP(BJ81, 'Calc - Base'!$H$35:$I$400, 2) -> 2021-03-20 | BL81: =IF($BK$5 = $BF$6, 'Case Counts'!W76, IF($BK$5 = $BF$7, 'Case Counts'!X76, 'Case Counts'!Y76)) -> 0.2773260106 | BM81: ='Calc - SA_Case Counts'!L107 -> 0.2357966511 | BN81: =IF($BK$5 = $BF$6, 'Case Counts'!AA76, IF($BK$5 = $BF$7, 'Case Counts'!AB76, 'Case Counts'!AC76)) -> 25.07519812 | BO81: 22.15486205
BJ82: 73 | BK82: =VLOOKUP(BJ82, 'Calc - Base'!$H$35:$I$400, 2) -> 2021-03-21 | BL82: =IF($BK$5 = $BF$6, 'Case Counts'!W77, IF($BK$5 = $BF$7, 'Case Counts'!X77, 'Case Counts'!Y77)) -> 0.1243553336 | BM82: ='Calc - SA_Case Counts'!L108 -> 0.06093582434 | BN82: =IF($BK$5 = $BF$6, 'Case Counts'!AA77, IF($BK$5 = $BF$7, 'Case Counts'!AB77, 'Case Counts'!AC77)) -> 25.19955345 | BO82: 22.21579788
BJ83: 74 | BK83: =VLOOKUP(BJ83, 'Calc - Base'!$H$35:$I$400, 2) -> 2021-03-22 | BL83: =IF($BK$5 = $BF$6, 'Case Counts'!W78, IF($BK$5 = $BF$7, 'Case Counts'!X78, 'Case Counts'!Y78)) -> 1.52876464 | BM83: ='Calc - SA_Case Counts'!L109 -> 1.479510791 | BN83: =IF($BK$5 = $BF$6, 'Case Counts'!AA78, IF($BK$5 = $BF$7, 'Case Counts'!AB78, 'Case Counts'!AC78)) -> 26.72831809 | BO83: 23.69530867
BJ84: 75 | BK84: =VLOOKUP(BJ84, 'Calc - Base'!$H$35:$I$400, 2) -> 2021-03-23 | BL84: =IF($BK$5 = $BF$6, 'Case Counts'!W79, IF($BK$5 = $BF$7, 'Case Counts'!X79, 'Case Counts'!Y79)) -> 0.1130973393 | BM84: ='Calc - SA_Case Counts'!L110 -> 0.06482222969 | BN84: =IF($BK$5 = $BF$6, 'Case Counts'!AA79, IF($BK$5 = $BF$7, 'Case Counts'!AB79, 'Case Counts'!AC79)) -> 26.84141543 | BO84: 23.7601309
BJ85: 76 | BK85: =VLOOKUP(BJ85, 'Calc - Base'!$H$35:$I$400, 2) -> 2021-03-24 | BL85: =IF($BK$5 = $BF$6, 'Case Counts'!W80, IF($BK$5 = $BF$7, 'Case Counts'!X80, 'Case Counts'!Y80)) -> 0.1255171016 | BM85: ='Calc - SA_Case Counts'!L111 -> 0.08354324389 | BN85: =IF($BK$5 = $BF$6, 'Case Counts'!AA80, IF($BK$5 = $BF$7, 'Case Counts'!AB80, 'Case Counts'!AC80)) -> 26.96693253 | BO85: 23.84367414
BJ86: 77 | BK86: =VLOOKUP(BJ86, 'Calc - Base'!$H$35:$I$400, 2) -> 2021-03-25 | BL86: =IF($BK$5 = $BF$6, 'Case Counts'!W81, IF($BK$5 = $BF$7, 'Case Counts'!X81, 'Case Counts'!Y81)) -> 0.1021092651 | BM86: ='Calc - SA_Case Counts'!L112 -> 0.06016634171 | BN86: =IF($BK$5 = $BF$6, 'Case Counts'!AA81, IF($BK$5 = $BF$7, 'Case Counts'!AB81, 'Case Counts'!AC81)) -> 27.0690418 | BO86: 23.90384048
BJ87: 78 | BK87: =VLOOKUP(BJ87, 'Calc - Base'!$H$35:$I$400, 2) -> 2021-03-26 | BL87: =IF($BK$5 = $BF$6, 'Case Counts'!W82, IF($BK$5 = $BF$7, 'Case Counts'!X82, 'Case Counts'!Y82)) -> 0.268703687 | BM87: ='Calc - SA_Case Counts'!L113 -> 0.2230600904 | BN87: =IF($BK$5 = $BF$6, 'Case Counts'!AA82, IF($BK$5 = $BF$7, 'Case Counts'!AB82, 'Case Counts'!AC82)) -> 27.33774548 | BO87: 24.12690058
BJ88: 79 | BK88: =VLOOKUP(BJ88, 'Calc - Base'!$H$35:$I$400, 2) -> 2021-03-27 | BL88: =IF($BK$5 = $BF$6, 'Case Counts'!W83, IF($BK$5 = $BF$7, 'Case Counts'!X83, 'Case Counts'!Y83)) -> 0.274331289 | BM88: ='Calc - SA_Case Counts'!L114 -> 0.2337841327 | BN88: =IF($BK$5 = $BF$6, 'Case Counts'!AA83, IF($BK$5 = $BF$7, 'Case Counts'!AB83, 'Case Counts'!AC83)) -> 27.61207677 | BO88: 24.36068471
BJ89: 80 | BK89: =VLOOKUP(BJ89, 'Calc - Base'!$H$35:$I$400, 2) -> 2021-03-28 | BL89: =IF($BK$5 = $BF$6, 'Case Counts'!W84, IF($BK$5 = $BF$7, 'Case Counts'!X84, 'Case Counts'!Y84)) -> 0.1227148166 | BM89: ='Calc - SA_Case Counts'!L115 -> 0.06025049042 | BN89: =IF($BK$5 = $BF$6, 'Case Counts'!AA84, IF($BK$5 = $BF$7, 'Case Counts'!AB84, 'Case Counts'!AC84)) -> 27.73479159 | BO89: 24.4209352
BJ90: 81 | BK90: =VLOOKUP(BJ90, 'Calc - Base'!$H$35:$I$400, 2) -> 2021-03-29 | BL90: =IF($BK$5 = $BF$6, 'Case Counts'!W85, IF($BK$5 = $BF$7, 'Case Counts'!X85, 'Case Counts'!Y85)) -> 1.520909303 | BM90: ='Calc - SA_Case Counts'!L116 -> 1.473361335 | BN90: =IF($BK$5 = $BF$6, 'Case Counts'!AA85, IF($BK$5 = $BF$7, 'Case Counts'!AB85, 'Case Counts'!AC85)) -> 29.25570089 | BO90: 25.89429653
BJ91: 82 | BK91: =VLOOKUP(BJ91, 'Calc - Base'!$H$35:$I$400, 2) -> 2021-03-30 | BL91: =IF($BK$5 = $BF$6, 'Case Counts'!W86, IF($BK$5 = $BF$7, 'Case Counts'!X86, 'Case Counts'!Y86)) -> 0.1115055766 | BM91: ='Calc - SA_Case Counts'!L117 -> 0.06406110932 | BN91: =IF($BK$5 = $BF$6, 'Case Counts'!AA86, IF($BK$5 = $BF$7, 'Case Counts'!AB86, 'Case Counts'!AC86)) -> 29.36720647 | BO91: 25.95835764
BJ92: 83 | BK92: =VLOOKUP(BJ92, 'Calc - Base'!$H$35:$I$400, 2) -> 2021-03-31 | BL92: =IF($BK$5 = $BF$6, 'Case Counts'!W87, IF($BK$5 = $BF$7, 'Case Counts'!X87, 'Case Counts'!Y87)) -> 0.1237230855 | BM92: ='Calc - SA_Case Counts'!L118 -> 0.08255660908 | BN92: =IF($BK$5 = $BF$6, 'Case Counts'!AA87, IF($BK$5 = $BF$7, 'Case Counts'!AB87, 'Case Counts'!AC87)) -> 29.49092955 | BO92: 26.04091425
BJ93: 84 | BK93: =VLOOKUP(BJ93, 'Calc - Base'!$H$35:$I$400, 2) -> 2021-04-01 | BL93: =IF($BK$5 = $BF$6, 'Case Counts'!W88, IF($BK$5 = $BF$7, 'Case Counts'!X88, 'Case Counts'!Y88)) -> 0.1005910084 | BM93: ='Calc - SA_Case Counts'!L119 -> 0.05943137864 | BN93: =IF($BK$5 = $BF$6, 'Case Counts'!AA88, IF($BK$5 = $BF$7, 'Case Counts'!AB88, 'Case Counts'!AC88)) -> 29.59152056 | BO93: 26.10034563
BJ94: 85 | BK94: =VLOOKUP(BJ94, 'Calc - Base'!$H$35:$I$400, 2) -> 2021-04-02 | BL94: =IF($BK$5 = $BF$6, 'Case Counts'!W89, IF($BK$5 = $BF$7, 'Case Counts'!X89, 'Case Counts'!Y89)) -> 0.2657848797 | BM94: ='Calc - SA_Case Counts'!L120 -> 0.2211539857 | BN94: =IF($BK$5 = $BF$6, 'Case Counts'!AA89, IF($BK$5 = $BF$7, 'Case Counts'!AB89, 'Case Counts'!AC89)) -> 29.85730544 | BO94: 26.32149962
BJ95: 86 | BK95: =VLOOKUP(BJ95, 'Calc - Base'!$H$35:$I$400, 2) -> 2021-04-03 | BL95: =IF($BK$5 = $BF$6, 'Case Counts'!W90, IF($BK$5 = $BF$7, 'Case Counts'!X90, 'Case Counts'!Y90)) -> 0.2713763611 | BM95: ='Calc - SA_Case Counts'!L121 -> 0.2317943925 | BN95: =IF($BK$5 = $BF$6, 'Case Counts'!AA90, IF($BK$5 = $BF$7, 'Case Counts'!AB90, 'Case Counts'!AC90)) -> 30.1286818 | BO95: 26.55329401
BJ96: 87 | BK96: =VLOOKUP(BJ96, 'Calc - Base'!$H$35:$I$400, 2) -> 2021-04-04 | BL96: =IF($BK$5 = $BF$6, 'Case Counts'!W91, IF($BK$5 = $BF$7, 'Case Counts'!X91, 'Case Counts'!Y91)) -> 0.1210986118 | BM96: ='Calc - SA_Case Counts'!L122 -> 0.05957529957 | BN96: =IF($BK$5 = $BF$6, 'Case Counts'!AA91, IF($BK$5 = $BF$7, 'Case Counts'!AB91, 'Case Counts'!AC91)) -> 30.24978042 | BO96: 26.61286931
BJ97: 88 | BK97: =VLOOKUP(BJ97, 'Calc - Base'!$H$35:$I$400, 2) -> 2021-04-05 | BL97: =IF($BK$5 = $BF$6, 'Case Counts'!W92, IF($BK$5 = $BF$7, 'Case Counts'!X92, 'Case Counts'!Y92)) -> 1.51312816 | BM97: ='Calc - SA_Case Counts'!L123 -> 1.46725456 | BN97: =IF($BK$5 = $BF$6, 'Case Counts'!AA92, IF($BK$5 = $BF$7, 'Case Counts'!AB92, 'Case Counts'!AC92)) -> 31.76290858 | BO97: 28.08012387
BJ98: 89 | BK98: =VLOOKUP(BJ98, 'Calc - Base'!$H$35:$I$400, 2) -> 2021-04-06 | BL98: =IF($BK$5 = $BF$6, 'Case Counts'!W93, IF($BK$5 = $BF$7, 'Case Counts'!X93, 'Case Counts'!Y93)) -> 0.1099397866 | BM98: ='Calc - SA_Case Counts'!L124 -> 0.06331133298 | BN98: =IF($BK$5 = $BF$6, 'Case Counts'!AA93, IF($BK$5 = $BF$7, 'Case Counts'!AB93, 'Case Counts'!AC93)) -> 31.87284836 | BO98: 28.1434352
BJ99: 90 | BK99: =VLOOKUP(BJ99, 'Calc - Base'!$H$35:$I$400, 2) -> 2021-04-07 | BL99: =IF($BK$5 = $BF$6, 'Case Counts'!W94, IF($BK$5 = $BF$7, 'Case Counts'!X94, 'Case Counts'!Y94)) -> 0.1219593453 | BM99: ='Calc - SA_Case Counts'!L125 -> 0.08158440786 | BN99: =IF($BK$5 = $BF$6, 'Case Counts'!AA94, IF($BK$5 = $BF$7, 'Case Counts'!AB94, 'Case Counts'!AC94)) -> 31.99480771 | BO99: 28.22501961
BJ100: 91 | BK100: =VLOOKUP(BJ100, 'Calc - Base'!$H$35:$I$400, 2) -> 2021-04-08 | BL100: =IF($BK$5 = $BF$6, 'Case Counts'!W95, IF($BK$5 = $BF$7, 'Case Counts'!X95, 'Case Counts'!Y95)) -> 0.09909930894 | BM100: ='Calc - SA_Case Counts'!L126 -> 0.0587076033 | BN100: =IF($BK$5 = $BF$6, 'Case Counts'!AA95, IF($BK$5 = $BF$7, 'Case Counts'!AB95, 'Case Counts'!AC95)) -> 32.09390702 | BO100: 28.28372721
BJ101: 92 | BK101: =VLOOKUP(BJ101, 'Calc - Base'!$H$35:$I$400, 2) -> 2021-04-09 | BL101: =IF($BK$5 = $BF$6, 'Case Counts'!W96, IF($BK$5 = $BF$7, 'Case Counts'!X96, 'Case Counts'!Y96)) -> 0.2629093893 | BM101: ='Calc - SA_Case Counts'!L127 -> 0.2192696153 | BN101: =IF($BK$5 = $BF$6, 'Case Counts'!AA96, IF($BK$5 = $BF$7, 'Case Counts'!AB96, 'Case Counts'!AC96)) -> 32.35681641 | BO101: 28.50299683
BJ102: 93 | BK102: =VLOOKUP(BJ102, 'Calc - Base'!$H$35:$I$400, 2) -> 2021-04-10 | BL102: =IF($BK$5 = $BF$6, 'Case Counts'!W97, IF($BK$5 = $BF$7, 'Case Counts'!X97, 'Case Counts'!Y97)) -> 0.2684654996 | BM102: ='Calc - SA_Case Counts'!L128 -> 0.2298272555 | BN102: =IF($BK$5 = $BF$6, 'Case Counts'!AA97, IF($BK$5 = $BF$7, 'Case Counts'!AB97, 'Case Counts'!AC97)) -> 32.62528191 | BO102: 28.73282408
BJ103: 94 | BK103: =VLOOKUP(BJ103, 'Calc - Base'!$H$35:$I$400, 2) -> 2021-04-11 | BL103: =IF($BK$5 = $BF$6, 'Case Counts'!W98, IF($BK$5 = $BF$7, 'Case Counts'!X98, 'Case Counts'!Y98)) -> 0.1195105895 | BM103: ='Calc - SA_Case Counts'!L129 -> 0.05891020576 | BN103: =IF($BK$5 = $BF$6, 'Case Counts'!AA98, IF($BK$5 = $BF$7, 'Case Counts'!AB98, 'Case Counts'!AC98)) -> 32.74479249 | BO103: 28.79173429
BJ104: 95 | BK104: =VLOOKUP(BJ104, 'Calc - Base'!$H$35:$I$400, 2) -> 2021-04-12 | BL104: =IF($BK$5 = $BF$6, 'Case Counts'!W99, IF($BK$5 = $BF$7, 'Case Counts'!X99, 'Case Counts'!Y99)) -> 1.505423847 | BM104: ='Calc - SA_Case Counts'!L130 -> 1.461190065 | BN104: =IF($BK$5 = $BF$6, 'Case Counts'!AA99, IF($BK$5 = $BF$7, 'Case Counts'!AB99, 'Case Counts'!AC99)) -> 34.25021634 | BO104: 30.25292435
BJ105: 96 | BK105: =VLOOKUP(BJ105, 'Calc - Base'!$H$35:$I$400, 2) -> 2021-04-13 | BL105: =IF($BK$5 = $BF$6, 'Case Counts'!W100, IF($BK$5 = $BF$7, 'Case Counts'!X100, 'Case Counts'!Y100)) -> 0.1084027363 | BM105: ='Calc - SA_Case Counts'!L131 -> 0.06257278835 | BN105: =IF($BK$5 = $BF$6, 'Case Counts'!AA100, IF($BK$5 = $BF$7, 'Case Counts'!AB100, 'Case Counts'!AC100)) -> 34.35861908 | BO105: 30.31549714
BJ106: 97 | BK106: =VLOOKUP(BJ106, 'Calc - Base'!$H$35:$I$400, 2) -> 2021-04-14 | BL106: =IF($BK$5 = $BF$6, 'Case Counts'!W101, IF($BK$5 = $BF$7, 'Case Counts'!X101, 'Case Counts'!Y101)) -> 0.1202281273 | BM106: ='Calc - SA_Case Counts'!L132 -> 0.08062646005 | BN106: =IF($BK$5 = $BF$6, 'Case Counts'!AA101, IF($BK$5 = $BF$7, 'Case Counts'!AB101, 'Case Counts'!AC101)) -> 34.47884721 | BO106: 30.3961236
BJ107: 98 | BK107: =VLOOKUP(BJ107, 'Calc - Base'!$H$35:$I$400, 2) -> 2021-04-15 | BL107: =IF($BK$5 = $BF$6, 'Case Counts'!W102, IF($BK$5 = $BF$7, 'Case Counts'!X102, 'Case Counts'!Y102)) -> 0.0976361086 | BM107: ='Calc - SA_Case Counts'!L133 -> 0.05799487239 | BN107: =IF($BK$5 = $BF$6, 'Case Counts'!AA102, IF($BK$5 = $BF$7, 'Case Counts'!AB102, 'Case Counts'!AC102)) -> 34.57648331 | BO107: 30.45411847
BJ108: 99 | BK108: =VLOOKUP(BJ108, 'Calc - Base'!$H$35:$I$400, 2) -> 2021-04-16 | BL108: =IF($BK$5 = $BF$6, 'Case Counts'!W103, IF($BK$5 = $BF$7, 'Case Counts'!X103, 'Case Counts'!Y103)) -> 0.2600785497 | BM108: ='Calc - SA_Case Counts'!L134 -> 0.217406696 | BN108: =IF($BK$5 = $BF$6, 'Case Counts'!AA103, IF($BK$5 = $BF$7, 'Case Counts'!AB103, 'Case Counts'!AC103)) -> 34.83656186 | BO108: 30.67152517
BJ109: 100 | BK109: =VLOOKUP(BJ109, 'Calc - Base'!$H$35:$I$400, 2) -> 2021-04-17 | BL109: =IF($BK$5 = $BF$6, 'Case Counts'!W104, IF($BK$5 = $BF$7, 'Case Counts'!X104, 'Case Counts'!Y104)) -> 0.2655997327 | BM109: ='Calc - SA_Case Counts'!L135 -> 0.2278824161 | BN109: =IF($BK$5 = $BF$6, 'Case Counts'!AA104, IF($BK$5 = $BF$7, 'Case Counts'!AB104, 'Case Counts'!AC104)) -> 35.1021616 | BO109: 30.89940759
BJ110: 101 | BK110: =VLOOKUP(BJ110, 'Calc - Base'!$H$35:$I$400, 2) -> 2021-04-18 | BL110: =IF($BK$5 = $BF$6, 'Case Counts'!W105, IF($BK$5 = $BF$7, 'Case Counts'!X105, 'Case Counts'!Y105)) -> 0.1179517894 | BM110: ='Calc - SA_Case Counts'!L136 -> 0.0582550531 | BN110: =IF($BK$5 = $BF$6, 'Case Counts'!AA105, IF($BK$5 = $BF$7, 'Case Counts'!AB105, 'Case Counts'!AC105)) -> 35.22011339 | BO110: 30.95766264
BJ111: 102 | BK111: =VLOOKUP(BJ111, 'Calc - Base'!$H$35:$I$400, 2) -> 2021-04-19 | BL111: =IF($BK$5 = $BF$6, 'Case Counts'!W106, IF($BK$5 = $BF$7, 'Case Counts'!X106, 'Case Counts'!Y106)) -> 1.497796492 | BM111: ='Calc - SA_Case Counts'!L137 -> 1.455167362 | BN111: =IF($BK$5 = $BF$6, 'Case Counts'!AA106, IF($BK$5 = $BF$7, 'Case Counts'!AB106, 'Case Counts'!AC106)) -> 36.71790988 | BO111: 32.41283
BJ112: 103 | BK112: =VLOOKUP(BJ112, 'Calc - Base'!$H$35:$I$400, 2) -> 2021-04-20 | BL112: =IF($BK$5 = $BF$6, 'Case Counts'!W107, IF($BK$5 = $BF$7, 'Case Counts'!X107, 'Case Counts'!Y107)) -> 0.1068950254 | BM112: ='Calc - SA_Case Counts'!L138 -> 0.06184528861 | BN112: =IF($BK$5 = $BF$6, 'Case Counts'!AA107, IF($BK$5 = $BF$7, 'Case Counts'!AB107, 'Case Counts'!AC107)) -> 36.8248049 | BO112: 32.47467529
BJ113: 104 | BK113: =VLOOKUP(BJ113, 'Calc - Base'!$H$35:$I$400, 2) -> 2021-04-21 | BL113: =IF($BK$5 = $BF$6, 'Case Counts'!W108, IF($BK$5 = $BF$7, 'Case Counts'!X108, 'Case Counts'!Y108)) -> 0.1185297791 | BM113: ='Calc - SA_Case Counts'!L139 -> 0.07968252508 | BN113: =IF($BK$5 = $BF$6, 'Case Counts'!AA108, IF($BK$5 = $BF$7, 'Case Counts'!AB108, 'Case Counts'!AC108)) -> 36.94333468 | BO113: 32.55435782
BJ114: 105 | BK114: =VLOOKUP(BJ114, 'Calc - Base'!$H$35:$I$400, 2) -> 2021-04-22 | BL114: =IF($BK$5 = $BF$6, 'Case Counts'!W109, IF($BK$5 = $BF$7, 'Case Counts'!X109, 'Case Counts'!Y109)) -> 0.09620168768 | BM114: ='Calc - SA_Case Counts'!L140 -> 0.05729299237 | BN114: =IF($BK$5 = $BF$6, 'Case Counts'!AA109, IF($BK$5 = $BF$7, 'Case Counts'!AB109, 'Case Counts'!AC109)) -> 37.03953637 | BO114: 32.61165081
BJ115: 106 | BK115: =VLOOKUP(BJ115, 'Calc - Base'!$H$35:$I$400, 2) -> 2021-04-23 | BL115: =IF($BK$5 = $BF$6, 'Case Counts'!W110, IF($BK$5 = $BF$7, 'Case Counts'!X110, 'Case Counts'!Y110)) -> 0.2572922393 | BM115: ='Calc - SA_Case Counts'!L141 -> 0.2155649056 | BN115: =IF($BK$5 = $BF$6, 'Case Counts'!AA110, IF($BK$5 = $BF$7, 'Case Counts'!AB110, 'Case Counts'!AC110)) -> 37.29682861 | BO115: 32.82721571
BJ116: 107 | BK116: =VLOOKUP(BJ116, 'Calc - Base'!$H$35:$I$400, 2) -> 2021-04-24 | BL116: =IF($BK$5 = $BF$6, 'Case Counts'!W111, IF($BK$5 = $BF$7, 'Case Counts'!X111, 'Case Counts'!Y111)) -> 0.2627788168 | BM116: ='Calc - SA_Case Counts'!L142 -> 0.2259595373 | BN116: =IF($BK$5 = $BF$6, 'Case Counts'!AA111, IF($BK$5 = $BF$7, 'Case Counts'!AB111, 'Case Counts'!AC111)) -> 37.55960743 | BO116: 33.05317525
BJ117: 108 | BK117: =VLOOKUP(BJ117, 'Calc - Base'!$H$35:$I$400, 2) -> 2021-04-25 | BL117: =IF($BK$5 = $BF$6, 'Case Counts'!W112, IF($BK$5 = $BF$7, 'Case Counts'!X112, 'Case Counts'!Y112)) -> 0.1164221405 | BM117: ='Calc - SA_Case Counts'!L143 -> 0.05760965848 | BN117: =IF($BK$5 = $BF$6, 'Case Counts'!AA112, IF($BK$5 = $BF$7, 'Case Counts'!AB112, 'Case Counts'!AC112)) -> 37.67602957 | BO117: 33.11078491
BJ118: 109 | BK118: =VLOOKUP(BJ118, 'Calc - Base'!$H$35:$I$400, 2) -> 2021-04-26 | BL118: =IF($BK$5 = $BF$6, 'Case Counts'!W113, IF($BK$5 = $BF$7, 'Case Counts'!X113, 'Case Counts'!Y113)) -> 1.490245246 | BM118: ='Calc - SA_Case Counts'!L144 -> 1.449185947 | BN118: =IF($BK$5 = $BF$6, 'Case Counts'!AA113, IF($BK$5 = $BF$7, 'Case Counts'!AB113, 'Case Counts'!AC113)) -> 39.16627481 | BO118: 34.55997086
BJ119: 110 | BK119: =VLOOKUP(BJ119, 'Calc - Base'!$H$35:$I$400, 2) -> 2021-04-27 | BL119: =IF($BK$5 = $BF$6, 'Case Counts'!W114, IF($BK$5 = $BF$7, 'Case Counts'!X114, 'Case Counts'!Y114)) -> 0.1054164087 | BM119: ='Calc - SA_Case Counts'!L145 -> 0.06112862988 | BN119: =IF($BK$5 = $BF$6, 'Case Counts'!AA114, IF($BK$5 = $BF$7, 'Case Counts'!AB114, 'Case Counts'!AC114)) -> 39.27169122 | BO119: 34.62109949
BJ120: 111 | BK120: =VLOOKUP(BJ120, 'Calc - Base'!$H$35:$I$400, 2) -> 2021-04-28 | BL120: =IF($BK$5 = $BF$6, 'Case Counts'!W115, IF($BK$5 = $BF$7, 'Case Counts'!X115, 'Case Counts'!Y115)) -> 0.1168639121 | BM120: ='Calc - SA_Case Counts'!L146 -> 0.07875234995 | BN120: =IF($BK$5 = $BF$6, 'Case Counts'!AA115, IF($BK$5 = $BF$7, 'Case Counts'!AB115, 'Case Counts'!AC115)) -> 39.38855513 | BO120: 34.69985184
BJ121: 112 | BK121: =VLOOKUP(BJ121, 'Calc - Base'!$H$35:$I$400, 2) -> 2021-04-29 | BL121: =IF($BK$5 = $BF$6, 'Case Counts'!W116, IF($BK$5 = $BF$7, 'Case Counts'!X116, 'Case Counts'!Y116)) -> 0.09479568336 | BM121: ='Calc - SA_Case Counts'!L147 -> 0.05660175936 | BN121: =IF($BK$5 = $BF$6, 'Case Counts'!AA116, IF($BK$5 = $BF$7, 'Case Counts'!AB116, 'Case Counts'!AC116)) -> 39.48335082 | BO121: 34.75645359
BJ122: 113 | BK122: =VLOOKUP(BJ122, 'Calc - Base'!$H$35:$I$400, 2) -> 2021-04-30 | BL122: =IF($BK$5 = $BF$6, 'Case Counts'!W117, IF($BK$5 = $BF$7, 'Case Counts'!X117, 'Case Counts'!Y117)) -> 0.25454978 | BM122: ='Calc - SA_Case Counts'!L148 -> 0.2137439161 | BN122: =IF($BK$5 = $BF$6, 'Case Counts'!AA117, IF($BK$5 = $BF$7, 'Case Counts'!AB117, 'Case Counts'!AC117)) -> 39.7379006 | BO122: 34.97019751
BJ123: 114 | BK123: =VLOOKUP(BJ123, 'Calc - Base'!$H$35:$I$400, 2) -> 2021-05-01 | BL123: =IF($BK$5 = $BF$6, 'Case Counts'!W118, IF($BK$5 = $BF$7, 'Case Counts'!X118, 'Case Counts'!Y118)) -> 0.2600020246 | BM123: ='Calc - SA_Case Counts'!L149 -> 0.224058279 | BN123: =IF($BK$5 = $BF$6, 'Case Counts'!AA118, IF($BK$5 = $BF$7, 'Case Counts'!AB118, 'Case Counts'!AC118)) -> 39.99790262 | BO123: 35.19425579
BJ124: 115 | BK124: =VLOOKUP(BJ124, 'Calc - Base'!$H$35:$I$400, 2) -> 2021-05-02 | BL124: =IF($BK$5 = $BF$6, 'Case Counts'!W119, IF($BK$5 = $BF$7, 'Case Counts'!X119, 'Case Counts'!Y119)) -> 0.1149211484 | BM124: ='Calc - SA_Case Counts'!L150 -> 0.05697383463 | BN124: =IF($BK$5 = $BF$6, 'Case Counts'!AA119, IF($BK$5 = $BF$7, 'Case Counts'!AB119, 'Case Counts'!AC119)) -> 40.11282377 | BO124: 35.25122962
BJ125: 116 | BK125: =VLOOKUP(BJ125, 'Calc - Base'!$H$35:$I$400, 2) -> 2021-05-03 | BL125: =IF($BK$5 = $BF$6, 'Case Counts'!W120, IF($BK$5 = $BF$7, 'Case Counts'!X120, 'Case Counts'!Y120)) -> 1.482768902 | BM125: ='Calc - SA_Case Counts'!L151 -> 1.443245316 | BN125: =IF($BK$5 = $BF$6, 'Case Counts'!AA120, IF($BK$5 = $BF$7, 'Case Counts'!AB120, 'Case Counts'!AC120)) -> 41.59559267 | BO125: 36.69447494
BJ126: 117 | BK126: =VLOOKUP(BJ126, 'Calc - Base'!$H$35:$I$400, 2) -> 2021-05-04 | BL126: =IF($BK$5 = $BF$6, 'Case Counts'!W121, IF($BK$5 = $BF$7, 'Case Counts'!X121, 'Case Counts'!Y121)) -> 0.103966323 | BM126: ='Calc - SA_Case Counts'!L152 -> 0.06042260716 | BN126: =IF($BK$5 = $BF$6, 'Case Counts'!AA121, IF($BK$5 = $BF$7, 'Case Counts'!AB121, 'Case Counts'!AC121)) -> 41.69955899 | BO126: 36.75489755
BJ127: 118 | BK127: =VLOOKUP(BJ127, 'Calc - Base'!$H$35:$I$400, 2) -> 2021-05-05 | BL127: =IF($BK$5 = $BF$6, 'Case Counts'!W122, IF($BK$5 = $BF$7, 'Case Counts'!X122, 'Case Counts'!Y122)) -> 0.115229864 | BM127: ='Calc - SA_Case Counts'!L153 -> 0.07783568254 | BN127: =IF($BK$5 = $BF$6, 'Case Counts'!AA122, IF($BK$5 = $BF$7, 'Case Counts'!AB122, 'Case Counts'!AC122)) -> 41.81478886 | BO127: 36.83273323
BJ128: 119 | BK128: =VLOOKUP(BJ128, 'Calc - Base'!$H$35:$I$400, 2) -> 2021-05-06 | BL128: =IF($BK$5 = $BF$6, 'Case Counts'!W123, IF($BK$5 = $BF$7, 'Case Counts'!X123, 'Case Counts'!Y123)) -> 0.09341749501 | BM128: ='Calc - SA_Case Counts'!L154 -> 0.05592097024 | BN128: =IF($BK$5 = $BF$6, 'Case Counts'!AA123, IF($BK$5 = $BF$7, 'Case Counts'!AB123, 'Case Counts'!AC123)) -> 41.90820635 | BO128: 36.8886542
BJ129: 120 | BK129: =VLOOKUP(BJ129, 'Calc - Base'!$H$35:$I$400, 2) -> 2021-05-07 | BL129: =IF($BK$5 = $BF$6, 'Case Counts'!W124, IF($BK$5 = $BF$7, 'Case Counts'!X124, 'Case Counts'!Y124)) -> 0.2518502935 | BM129: ='Calc - SA_Case Counts'!L155 -> 0.2119434029 | BN129: =IF($BK$5 = $BF$6, 'Case Counts'!AA124, IF($BK$5 = $BF$7, 'Case Counts'!AB124, 'Case Counts'!AC124)) -> 42.16005665 | BO129: 37.1005976
BJ130: 121 | BK130: =VLOOKUP(BJ130, 'Calc - Base'!$H$35:$I$400, 2) -> 2021-05-08 | BL130: =IF($BK$5 = $BF$6, 'Case Counts'!W125, IF($BK$5 = $BF$7, 'Case Counts'!X125, 'Case Counts'!Y125)) -> 0.2572684579 | BM130: ='Calc - SA_Case Counts'!L156 -> 0.2221783052 | BN130: =IF($BK$5 = $BF$6, 'Case Counts'!AA125, IF($BK$5 = $BF$7, 'Case Counts'!AB125, 'Case Counts'!AC125)) -> 42.41732511 | BO130: 37.32277591
BJ131: 122 | BK131: =VLOOKUP(BJ131, 'Calc - Base'!$H$35:$I$400, 2) -> 2021-05-09 | BL131: =IF($BK$5 = $BF$6, 'Case Counts'!W126, IF($BK$5 = $BF$7, 'Case Counts'!X126, 'Case Counts'!Y126)) -> 0.1134481674 | BM131: ='Calc - SA_Case Counts'!L157 -> 0.05634739647 | BN131: =IF($BK$5 = $BF$6, 'Case Counts'!AA126, IF($BK$5 = $BF$7, 'Case Counts'!AB126, 'Case Counts'!AC126)) -> 42.53077327 | BO131: 37.37912331
BJ132: 123 | BK132: =VLOOKUP(BJ132, 'Calc - Base'!$H$35:$I$400, 2) -> 2021-05-10 | BL132: =IF($BK$5 = $BF$6, 'Case Counts'!W127, IF($BK$5 = $BF$7, 'Case Counts'!X127, 'Case Counts'!Y127)) -> 1.475366139 | BM132: ='Calc - SA_Case Counts'!L158 -> 1.437344975 | BN132: =IF($BK$5 = $BF$6, 'Case Counts'!AA127, IF($BK$5 = $BF$7, 'Case Counts'!AB127, 'Case Counts'!AC127)) -> 44.00613941 | BO132: 38.81646828
BJ133: 124 | BK133: =VLOOKUP(BJ133, 'Calc - Base'!$H$35:$I$400, 2) -> 2021-05-11 | BL133: =IF($BK$5 = $BF$6, 'Case Counts'!W128, IF($BK$5 = $BF$7, 'Case Counts'!X128, 'Case Counts'!Y128)) -> 0.1025440961 | BM133: ='Calc - SA_Case Counts'!L159 -> 0.05972701872 | BN133: =IF($BK$5 = $BF$6, 'Case Counts'!AA128, IF($BK$5 = $BF$7, 'Case Counts'!AB128, 'Case Counts'!AC128)) -> 44.10868351 | BO133: 38.8761953
BJ134: 125 | BK134: =VLOOKUP(BJ134, 'Calc - Base'!$H$35:$I$400, 2) -> 2021-05-12 | BL134: =IF($BK$5 = $BF$6, 'Case Counts'!W129, IF($BK$5 = $BF$7, 'Case Counts'!X129, 'Case Counts'!Y129)) -> 0.1136268823 | BM134: ='Calc - SA_Case Counts'!L160 -> 0.07693227518 | BN134: =IF($BK$5 = $BF$6, 'Case Counts'!AA129, IF($BK$5 = $BF$7, 'Case Counts'!AB129, 'Case Counts'!AC129)) -> 44.22231039 | BO134: 38.95312757
BJ135: 126 | BK135: =VLOOKUP(BJ135, 'Calc - Base'!$H$35:$I$400, 2) -> 2021-05-13 | BL135: =IF($BK$5 = $BF$6, 'Case Counts'!W130, IF($BK$5 = $BF$7, 'Case Counts'!X130, 'Case Counts'!Y130)) -> 0.09206644422 | BM135: ='Calc - SA_Case Counts'!L161 -> 0.05525042562 | BN135: =IF($BK$5 = $BF$6, 'Case Counts'!AA130, IF($BK$5 = $BF$7, 'Case Counts'!AB130, 'Case Counts'!AC130)) -> 44.31437683 | BO135: 39.008378
BJ136: 127 | BK136: =VLOOKUP(BJ136, 'Calc - Base'!$H$35:$I$400, 2) -> 2021-05-14 | BL136: =IF($BK$5 = $BF$6, 'Case Counts'!W131, IF($BK$5 = $BF$7, 'Case Counts'!X131, 'Case Counts'!Y131)) -> 0.2491928428 | BM136: ='Calc - SA_Case Counts'!L162 -> 0.2101630475 | BN136: =IF($BK$5 = $BF$6, 'Case Counts'!AA131, IF($BK$5 = $BF$7, 'Case Counts'!AB131, 'Case Counts'!AC131)) -> 44.56356968 | BO136: 39.21854105
BJ137: 128 | BK137: =VLOOKUP(BJ137, 'Calc - Base'!$H$35:$I$400, 2) -> 2021-05-15 | BL137: =IF($BK$5 = $BF$6, 'Case Counts'!W132, IF($BK$5 = $BF$7, 'Case Counts'!X132, 'Case Counts'!Y132)) -> 0.2545771709 | BM137: ='Calc - SA_Case Counts'!L163 -> 0.2203192864 | BN137: =IF($BK$5 = $BF$6, 'Case Counts'!AA132, IF($BK$5 = $BF$7, 'Case Counts'!AB132, 'Case Counts'!AC132)) -> 44.81814685 | BO137: 39.43886033
BJ138: 129 | BK138: =VLOOKUP(BJ138, 'Calc - Base'!$H$35:$I$400, 2) -> 2021-05-16 | BL138: =IF($BK$5 = $BF$6, 'Case Counts'!W133, IF($BK$5 = $BF$7, 'Case Counts'!X133, 'Case Counts'!Y133)) -> 0.1120025082 | BM138: ='Calc - SA_Case Counts'!L164 -> 0.0557301628 | BN138: =IF($BK$5 = $BF$6, 'Case Counts'!AA133, IF($BK$5 = $BF$7, 'Case Counts'!AB133, 'Case Counts'!AC133)) -> 44.93014936 | BO138: 39.4945905
BJ139: 130 | BK139: =VLOOKUP(BJ139, 'Calc - Base'!$H$35:$I$400, 2) -> 2021-05-17 | BL139: =IF($BK$5 = $BF$6, 'Case Counts'!W134, IF($BK$5 = $BF$7, 'Case Counts'!X134, 'Case Counts'!Y134)) -> 1.468035613 | BM139: ='Calc - SA_Case Counts'!L165 -> 1.431484438 | BN139: =IF($BK$5 = $BF$6, 'Case Counts'!AA134, IF($BK$5 = $BF$7, 'Case Counts'!AB134, 'Case Counts'!AC134)) -> 46.39818497 | BO139: =BO138+BM139 -> 40.92607493
BJ140: 131 | BK140: =VLOOKUP(BJ140, 'Calc - Base'!$H$35:$I$400, 2) -> 2021-05-18 | BL140: =IF($BK$5 = $BF$6, 'Case Counts'!W135, IF($BK$5 = $BF$7, 'Case Counts'!X135, 'Case Counts'!Y135)) -> 0.1011490284 | BM140: ='Calc - SA_Case Counts'!L166 -> 0.05904166721 | BN140: =IF($BK$5 = $BF$6, 'Case Counts'!AA135, IF($BK$5 = $BF$7, 'Case Counts'!AB135, 'Case Counts'!AC135)) -> 46.499334 | BO140: 40.9851166
BJ141: 132 | BK141: =VLOOKUP(BJ141, 'Calc - Base'!$H$35:$I$400, 2) -> 2021-05-19 | BL141: =IF($BK$5 = $BF$6, 'Case Counts'!W136, IF($BK$5 = $BF$7, 'Case Counts'!X136, 'Case Counts'!Y136)) -> 0.1120541958 | BM141: ='Calc - SA_Case Counts'!L167 -> 0.07604188555 | BN141: =IF($BK$5 = $BF$6, 'Case Counts'!AA136, IF($BK$5 = $BF$7, 'Case Counts'!AB136, 'Case Counts'!AC136)) -> 46.61138819 | BO141: 41.06115849
BJ142: 133 | BK142: =VLOOKUP(BJ142, 'Calc - Base'!$H$35:$I$400, 2) -> 2021-05-20 | BL142: =IF($BK$5 = $BF$6, 'Case Counts'!W137, IF($BK$5 = $BF$7, 'Case Counts'!X137, 'Case Counts'!Y137)) -> 0.09074183743 | BM142: ='Calc - SA_Case Counts'!L168 -> 0.05458993057 | BN142: =IF($BK$5 = $BF$6, 'Case Counts'!AA137, IF($BK$5 = $BF$7, 'Case Counts'!AB137, 'Case Counts'!AC137)) -> 46.70213003 | BO142: 41.11574842
BJ143: 134 | BK143: =VLOOKUP(BJ143, 'Calc - Base'!$H$35:$I$400, 2) -> 2021-05-21 | BL143: =IF($BK$5 = $BF$6, 'Case Counts'!W138, IF($BK$5 = $BF$7, 'Case Counts'!X138, 'Case Counts'!Y138)) -> 0.2465764864 | BM143: ='Calc - SA_Case Counts'!L169 -> 0.2084025376 | BN143: =IF($BK$5 = $BF$6, 'Case Counts'!AA138, IF($BK$5 = $BF$7, 'Case Counts'!AB138, 'Case Counts'!AC138)) -> 46.94870652 | BO143: 41.32415096
BJ144: 135 | BK144: =VLOOKUP(BJ144, 'Calc - Base'!$H$35:$I$400, 2) -> 2021-05-22 | BL144: =IF($BK$5 = $BF$6, 'Case Counts'!W139, IF($BK$5 = $BF$7, 'Case Counts'!X139, 'Case Counts'!Y139)) -> 0.2519272182 | BM144: ='Calc - SA_Case Counts'!L170 -> 0.2184808995 | BN144: =IF($BK$5 = $BF$6, 'Case Counts'!AA139, IF($BK$5 = $BF$7, 'Case Counts'!AB139, 'Case Counts'!AC139)) -> 47.20063374 | BO144: 41.54263186
BJ145: 136 | BK145: =VLOOKUP(BJ145, 'Calc - Base'!$H$35:$I$400, 2) -> 2021-05-23 | BL145: =IF($BK$5 = $BF$6, 'Case Counts'!W140, IF($BK$5 = $BF$7, 'Case Counts'!X140, 'Case Counts'!Y140)) -> 0.1105834794 | BM145: ='Calc - SA_Case Counts'!L171 -> 0.05512195665 | BN145: =IF($BK$5 = $BF$6, 'Case Counts'!AA140, IF($BK$5 = $BF$7, 'Case Counts'!AB140, 'Case Counts'!AC140)) -> 47.31121721 | BO145: 41.59775381
BJ146: 137 | BK146: =VLOOKUP(BJ146, 'Calc - Base'!$H$35:$I$400, 2) -> 2021-05-24 | BL146: =IF($BK$5 = $BF$6, 'Case Counts'!W141, IF($BK$5 = $BF$7, 'Case Counts'!X141, 'Case Counts'!Y141)) -> 1.460775995 | BM146: ='Calc - SA_Case Counts'!L172 -> 1.425663227 | BN146: =IF($BK$5 = $BF$6, 'Case Counts'!AA141, IF($BK$5 = $BF$7, 'Case Counts'!AB141, 'Case Counts'!AC141)) -> 48.77199321 | BO146: 43.02341704
BJ147: 138 | BK147: =VLOOKUP(BJ147, 'Calc - Base'!$H$35:$I$400, 2) -> 2021-05-25 | BL147: =IF($BK$5 = $BF$6, 'Case Counts'!W142, IF($BK$5 = $BF$7, 'Case Counts'!X142, 'Case Counts'!Y142)) -> 0.09978042452 | BM147: ='Calc - SA_Case Counts'!L173 -> 0.05836635985 | BN147: =IF($BK$5 = $BF$6, 'Case Counts'!AA142, IF($BK$5 = $BF$7, 'Case Counts'!AB142, 'Case Counts'!AC142)) -> 48.87177363 | BO147: 43.0817834
BJ148: 139 | BK148: =VLOOKUP(BJ148, 'Calc - Base'!$H$35:$I$400, 2) -> 2021-05-26 | BL148: =IF($BK$5 = $BF$6, 'Case Counts'!W143, IF($BK$5 = $BF$7, 'Case Counts'!X143, 'Case Counts'!Y143)) -> 0.1105110416 | BM148: ='Calc - SA_Case Counts'!L174 -> 0.07516427681 | BN148: =IF($BK$5 = $BF$6, 'Case Counts'!AA143, IF($BK$5 = $BF$7, 'Case Counts'!AB143, 'Case Counts'!AC143)) -> 48.98228468 | BO148: 43.15694768
BJ149: 140 | BK149: =VLOOKUP(BJ149, 'Calc - Base'!$H$35:$I$400, 2) -> 2021-05-27 | BL149: =IF($BK$5 = $BF$6, 'Case Counts'!W144, IF($BK$5 = $BF$7, 'Case Counts'!X144, 'Case Counts'!Y144)) -> 0.08944298978 | BM149: ='Calc - SA_Case Counts'!L175 -> 0.05393929473 | BN149: =IF($BK$5 = $BF$6, 'Case Counts'!AA144, IF($BK$5 = $BF$7, 'Case Counts'!AB144, 'Case Counts'!AC144)) -> 49.07172766 | BO149: 43.21088697
BJ150: 141 | BK150: =VLOOKUP(BJ150, 'Calc - Base'!$H$35:$I$400, 2) -> 2021-05-28 | BL150: =IF($BK$5 = $BF$6, 'Case Counts'!W145, IF($BK$5 = $BF$7, 'Case Counts'!X145, 'Case Counts'!Y145)) -> 0.2440002995 | BM150: ='Calc - SA_Case Counts'!L176 -> 0.2066615677 | BN150: =IF($BK$5 = $BF$6, 'Case Counts'!AA145, IF($BK$5 = $BF$7, 'Case Counts'!AB145, 'Case Counts'!AC145)) -> 49.31572796 | BO150: 43.41754854
BJ151: 142 | BK151: =VLOOKUP(BJ151, 'Calc - Base'!$H$35:$I$400, 2) -> 2021-05-29 | BL151: =IF($BK$5 = $BF$6, 'Case Counts'!W146, IF($BK$5 = $BF$7, 'Case Counts'!X146, 'Case Counts'!Y146)) -> 0.2493176722 | BM151: ='Calc - SA_Case Counts'!L177 -> 0.2166628283 | BN151: =IF($BK$5 = $BF$6, 'Case Counts'!AA146, IF($BK$5 = $BF$7, 'Case Counts'!AB146, 'Case Counts'!AC146)) -> 49.56504564 | BO151: 43.63421137
BJ152: 143 | BK152: =VLOOKUP(BJ152, 'Calc - Base'!$H$35:$I$400, 2) -> 2021-05-30 | BL152: =IF($BK$5 = $BF$6, 'Case Counts'!W147, IF($BK$5 = $BF$7, 'Case Counts'!X147, 'Case Counts'!Y147)) -> 0.1091904029 | BM152: ='Calc - SA_Case Counts'!L178 -> 0.05452260531 | BN152: =IF($BK$5 = $BF$6, 'Case Counts'!AA147, IF($BK$5 = $BF$7, 'Case Counts'!AB147, 'Case Counts'!AC147)) -> 49.67423604 | BO152: 43.68873397
BJ153: 144 | BK153: =VLOOKUP(BJ153, 'Calc - Base'!$H$35:$I$400, 2) -> 2021-05-31 | BL153: =IF($BK$5 = $BF$6, 'Case Counts'!W148, IF($BK$5 = $BF$7, 'Case Counts'!X148, 'Case Counts'!Y148)) -> 1.453585987 | BM153: ='Calc - SA_Case Counts'!L179 -> 1.419880875 | BN153: =IF($BK$5 = $BF$6, 'Case Counts'!AA148, IF($BK$5 = $BF$7, 'Case Counts'!AB148, 'Case Counts'!AC148)) -> 51.12782203 | BO153: 45.10861485
BJ154: 145 | BK154: =VLOOKUP(BJ154, 'Calc - Base'!$H$35:$I$400, 2) -> 2021-06-01 | BL154: =IF($BK$5 = $BF$6, 'Case Counts'!W149, IF($BK$5 = $BF$7, 'Case Counts'!X149, 'Case Counts'!Y149)) -> 0.09843760518 | BM154: ='Calc - SA_Case Counts'!L180 -> 0.05770090839 | BN154: =IF($BK$5 = $BF$6, 'Case Counts'!AA149, IF($BK$5 = $BF$7, 'Case Counts'!AB149, 'Case Counts'!AC149)) -> 51.22625963 | BO154: 45.16631576
BJ155: 146 | BK155: =VLOOKUP(BJ155, 'Calc - Base'!$H$35:$I$400, 2) -> 2021-06-02 | BL155: =IF($BK$5 = $BF$6, 'Case Counts'!W150, IF($BK$5 = $BF$7, 'Case Counts'!X150, 'Case Counts'!Y150)) -> 0.1089966758 | BM155: ='Calc - SA_Case Counts'!L181 -> 0.07429921751 | BN155: =IF($BK$5 = $BF$6, 'Case Counts'!AA150, IF($BK$5 = $BF$7, 'Case Counts'!AB150, 'Case Counts'!AC150)) -> 51.33525631 | BO155: 45.24061497
BJ156: 147 | BK156: =VLOOKUP(BJ156, 'Calc - Base'!$H$35:$I$400, 2) -> 2021-06-03 | BL156: =IF($BK$5 = $BF$6, 'Case Counts'!W151, IF($BK$5 = $BF$7, 'Case Counts'!X151, 'Case Counts'!Y151)) -> 0.08816923385 | BM156: ='Calc - SA_Case Counts'!L182 -> 0.05329833222 | BN156: =IF($BK$5 = $BF$6, 'Case Counts'!AA151, IF($BK$5 = $BF$7, 'Case Counts'!AB151, 'Case Counts'!AC151)) -> 51.42342554 | BO156: 45.29391331
BJ157: 148 | BK157: =VLOOKUP(BJ157, 'Calc - Base'!$H$35:$I$400, 2) -> 2021-06-04 | BL157: =IF($BK$5 = $BF$6, 'Case Counts'!W152, IF($BK$5 = $BF$7, 'Case Counts'!X152, 'Case Counts'!Y152)) -> 0.2414633809 | BM157: ='Calc - SA_Case Counts'!L183 -> 0.2049398384 | BN157: =IF($BK$5 = $BF$6, 'Case Counts'!AA152, IF($BK$5 = $BF$7, 'Case Counts'!AB152, 'Case Counts'!AC152)) -> 51.66488892 | BO157: 45.49885314
BJ158: 149 | BK158: =VLOOKUP(BJ158, 'Calc - Base'!$H$35:$I$400, 2) -> 2021-06-05 | BL158: =IF($BK$5 = $BF$6, 'Case Counts'!W153, IF($BK$5 = $BF$7, 'Case Counts'!X153, 'Case Counts'!Y153)) -> 0.2467476301 | BM158: ='Calc - SA_Case Counts'!L184 -> 0.2148647631 | BN158: =IF($BK$5 = $BF$6, 'Case Counts'!AA153, IF($BK$5 = $BF$7, 'Case Counts'!AB153, 'Case Counts'!AC153)) -> 51.91163655 | BO158: 45.71371791
BJ159: 150 | BK159: =VLOOKUP(BJ159, 'Calc - Base'!$H$35:$I$400, 2) -> 2021-06-06 | BL159: =IF($BK$5 = $BF$6, 'Case Counts'!W154, IF($BK$5 = $BF$7, 'Case Counts'!X154, 'Case Counts'!Y154)) -> 0.1078226198 | BM159: ='Calc - SA_Case Counts'!L185 -> 0.05393194021 | BN159: =IF($BK$5 = $BF$6, 'Case Counts'!AA154, IF($BK$5 = $BF$7, 'Case Counts'!AB154, 'Case Counts'!AC154)) -> 52.01945917 | BO159: 45.76764985
BJ160: 151 | BK160: =VLOOKUP(BJ160, 'Calc - Base'!$H$35:$I$400, 2) -> 2021-06-07 | BL160: =IF($BK$5 = $BF$6, 'Case Counts'!W155, IF($BK$5 = $BF$7, 'Case Counts'!X155, 'Case Counts'!Y155)) -> 1.446464323 | BM160: ='Calc - SA_Case Counts'!L186 -> 1.41413692 | BN160: =IF($BK$5 = $BF$6, 'Case Counts'!AA155, IF($BK$5 = $BF$7, 'Case Counts'!AB155, 'Case Counts'!AC155)) -> 53.4659235 | BO160: 47.18178677
BJ161: 152 | BK161: =VLOOKUP(BJ161, 'Calc - Base'!$H$35:$I$400, 2) -> 2021-06-08 | BL161: =IF($BK$5 = $BF$6, 'Case Counts'!W156, IF($BK$5 = $BF$7, 'Case Counts'!X156, 'Case Counts'!Y156)) -> 0.09711991091 | BM161: ='Calc - SA_Case Counts'!L187 -> 0.057045129 | BN161: =IF($BK$5 = $BF$6, 'Case Counts'!AA156, IF($BK$5 = $BF$7, 'Case Counts'!AB156, 'Case Counts'!AC156)) -> 53.56304341 | BO161: 47.2388319
BJ162: 153 | BK162: =VLOOKUP(BJ162, 'Calc - Base'!$H$35:$I$400, 2) -> 2021-06-09 | BL162: =IF($BK$5 = $BF$6, 'Case Counts'!W157, IF($BK$5 = $BF$7, 'Case Counts'!X157, 'Case Counts'!Y157)) -> 0.1075103765 | BM162: ='Calc - SA_Case Counts'!L188 -> 0.07344648145 | BN162: =IF($BK$5 = $BF$6, 'Case Counts'!AA157, IF($BK$5 = $BF$7, 'Case Counts'!AB157, 'Case Counts'!AC157)) -> 53.67055378 | BO162: 47.31227838
BJ163: 154 | BK163: =VLOOKUP(BJ163, 'Calc - Base'!$H$35:$I$400, 2) -> 2021-06-10 | BL163: =IF($BK$5 = $BF$6, 'Case Counts'!W158, IF($BK$5 = $BF$7, 'Case Counts'!X158, 'Case Counts'!Y158)) -> 0.08691992247 | BM163: ='Calc - SA_Case Counts'!L189 -> 0.05266686156 | BN163: =IF($BK$5 = $BF$6, 'Case Counts'!AA158, IF($BK$5 = $BF$7, 'Case Counts'!AB158, 'Case Counts'!AC158)) -> 53.75747371 | BO163: 47.36494524
BJ164: 155 | BK164: =VLOOKUP(BJ164, 'Calc - Base'!$H$35:$I$400, 2) -> 2021-06-11 | BL164: =IF($BK$5 = $BF$6, 'Case Counts'!W159, IF($BK$5 = $BF$7, 'Case Counts'!X159, 'Case Counts'!Y159)) -> 0.2389648553 | BM164: ='Calc - SA_Case Counts'!L190 -> 0.2032370566 | BN164: =IF($BK$5 = $BF$6, 'Case Counts'!AA159, IF($BK$5 = $BF$7, 'Case Counts'!AB159, 'Case Counts'!AC159)) -> 53.99643856 | BO164: 47.5681823
BJ165: 156 | BK165: =VLOOKUP(BJ165, 'Calc - Base'!$H$35:$I$400, 2) -> 2021-06-12 | BL165: =IF($BK$5 = $BF$6, 'Case Counts'!W160, IF($BK$5 = $BF$7, 'Case Counts'!X160, 'Case Counts'!Y160)) -> 0.2442162151 | BM165: ='Calc - SA_Case Counts'!L191 -> 0.2130864007 | BN165: =IF($BK$5 = $BF$6, 'Case Counts'!AA160, IF($BK$5 = $BF$7, 'Case Counts'!AB160, 'Case Counts'!AC160)) -> 54.24065478 | BO165: 47.7812687
BJ166: 157 | BK166: =VLOOKUP(BJ166, 'Calc - Base'!$H$35:$I$400, 2) -> 2021-06-13 | BL166: =IF($BK$5 = $BF$6, 'Case Counts'!W161, IF($BK$5 = $BF$7, 'Case Counts'!X161, 'Case Counts'!Y161)) -> 0.1064794915 | BM166: ='Calc - SA_Case Counts'!L192 -> 0.05334979682 | BN166: =IF($BK$5 = $BF$6, 'Case Counts'!AA161, IF($BK$5 = $BF$7, 'Case Counts'!AB161, 'Case Counts'!AC161)) -> 54.34713427 | BO166: 47.83461849
BJ167: 158 | BK167: =VLOOKUP(BJ167, 'Calc - Base'!$H$35:$I$400, 2) -> 2021-06-14 | BL167: =IF($BK$5 = $BF$6, 'Case Counts'!W162, IF($BK$5 = $BF$7, 'Case Counts'!X162, 'Case Counts'!Y162)) -> 1.439409773 | BM167: ='Calc - SA_Case Counts'!L193 -> 1.408430913 | BN167: =IF($BK$5 = $BF$6, 'Case Counts'!AA162, IF($BK$5 = $BF$7, 'Case Counts'!AB162, 'Case Counts'!AC162)) -> 55.78654404 | BO167: 49.24304941
BJ168: 159 | BK168: =VLOOKUP(BJ168, 'Calc - Base'!$H$35:$I$400, 2) -> 2021-06-15 | BL168: =IF($BK$5 = $BF$6, 'Case Counts'!W163, IF($BK$5 = $BF$7, 'Case Counts'!X163, 'Case Counts'!Y163)) -> 0.09582670316 | BM168: ='Calc - SA_Case Counts'!L194 -> 0.05639884218 | BN168: =IF($BK$5 = $BF$6, 'Case Counts'!AA163, IF($BK$5 = $BF$7, 'Case Counts'!AB163, 'Case Counts'!AC163)) -> 55.88237074 | BO168: 49.29944825
BJ169: 160 | BK169: =VLOOKUP(BJ169, 'Calc - Base'!$H$35:$I$400, 2) -> 2021-06-16 | BL169: =IF($BK$5 = $BF$6, 'Case Counts'!W164, IF($BK$5 = $BF$7, 'Case Counts'!X164, 'Case Counts'!Y164)) -> 0.1060514441 | BM169: ='Calc - SA_Case Counts'!L195 -> 0.07260584757 | BN169: =IF($BK$5 = $BF$6, 'Case Counts'!AA164, IF($BK$5 = $BF$7, 'Case Counts'!AB164, 'Case Counts'!AC164)) -> 55.98842219 | BO169: 49.3720541
BJ170: 161 | BK170: =VLOOKUP(BJ170, 'Calc - Base'!$H$35:$I$400, 2) -> 2021-06-17 | BL170: =IF($BK$5 = $BF$6, 'Case Counts'!W165, IF($BK$5 = $BF$7, 'Case Counts'!X165, 'Case Counts'!Y165)) -> 0.08569442925 | BM170: ='Calc - SA_Case Counts'!L196 -> 0.0520447055 | BN170: =IF($BK$5 = $BF$6, 'Case Counts'!AA165, IF($BK$5 = $BF$7, 'Case Counts'!AB165, 'Case Counts'!AC165)) -> 56.07411662 | BO170: 49.4240988
BJ171: 162 | BK171: =VLOOKUP(BJ171, 'Calc - Base'!$H$35:$I$400, 2) -> 2021-06-18 | BL171: =IF($BK$5 = $BF$6, 'Case Counts'!W166, IF($BK$5 = $BF$7, 'Case Counts'!X166, 'Case Counts'!Y166)) -> 0.2365038736 | BM171: ='Calc - SA_Case Counts'!L197 -> 0.2015529352 | BN171: =IF($BK$5 = $BF$6, 'Case Counts'!AA166, IF($BK$5 = $BF$7, 'Case Counts'!AB166, 'Case Counts'!AC166)) -> 56.31062049 | BO171: 49.62565174
BJ172: 163 | BK172: =VLOOKUP(BJ172, 'Calc - Base'!$H$35:$I$400, 2) -> 2021-06-19 | BL172: =IF($BK$5 = $BF$6, 'Case Counts'!W167, IF($BK$5 = $BF$7, 'Case Counts'!X167, 'Case Counts'!Y167)) -> 0.2417225765 | BM172: ='Calc - SA_Case Counts'!L198 -> 0.2113274437 | BN172: =IF($BK$5 = $BF$6, 'Case Counts'!AA167, IF($BK$5 = $BF$7, 'Case Counts'!AB167, 'Case Counts'!AC167)) -> 56.55234307 | BO172: 49.83697918
BJ173: 164 | BK173: =VLOOKUP(BJ173, 'Calc - Base'!$H$35:$I$400, 2) -> 2021-06-20 | BL173: =IF($BK$5 = $BF$6, 'Case Counts'!W168, IF($BK$5 = $BF$7, 'Case Counts'!X168, 'Case Counts'!Y168)) -> 0.1051604003 | BM173: ='Calc - SA_Case Counts'!L199 -> 0.05277601454 | BN173: =IF($BK$5 = $BF$6, 'Case Counts'!AA168, IF($BK$5 = $BF$7, 'Case Counts'!AB168, 'Case Counts'!AC168)) -> 56.65750347 | BO173: 49.88975519
BJ174: 165 | BK174: =VLOOKUP(BJ174, 'Calc - Base'!$H$35:$I$400, 2) -> 2021-06-21 | BL174: =IF($BK$5 = $BF$6, 'Case Counts'!W169, IF($BK$5 = $BF$7, 'Case Counts'!X169, 'Case Counts'!Y169)) -> 1.43242114 | BM174: ='Calc - SA_Case Counts'!L200 -> 1.402762409 | BN174: =IF($BK$5 = $BF$6, 'Case Counts'!AA169, IF($BK$5 = $BF$7, 'Case Counts'!AB169, 'Case Counts'!AC169)) -> 58.08992461 | BO174: 51.2925176
BJ175: 166 | BK175: =VLOOKUP(BJ175, 'Calc - Base'!$H$35:$I$400, 2) -> 2021-06-22 | BL175: =IF($BK$5 = $BF$6, 'Case Counts'!W170, IF($BK$5 = $BF$7, 'Case Counts'!X170, 'Case Counts'!Y170)) -> 0.09455736406 | BM175: ='Calc - SA_Case Counts'!L201 -> 0.05576187259 | BN175: =IF($BK$5 = $BF$6, 'Case Counts'!AA170, IF($BK$5 = $BF$7, 'Case Counts'!AB170, 'Case Counts'!AC170)) -> 58.18448197 | BO175: 51.34827948
BJ176: 167 | BK176: =VLOOKUP(BJ176, 'Calc - Base'!$H$35:$I$400, 2) -> 2021-06-23 | BL176: =IF($BK$5 = $BF$6, 'Case Counts'!W171, IF($BK$5 = $BF$7, 'Case Counts'!X171, 'Case Counts'!Y171)) -> 0.1046192019 | BM176: ='Calc - SA_Case Counts'!L202 -> 0.07177709976 | BN176: =IF($BK$5 = $BF$6, 'Case Counts'!AA171, IF($BK$5 = $BF$7, 'Case Counts'!AB171, 'Case Counts'!AC171)) -> 58.28910117 | BO176: 51.42005658
BJ177: 168 | BK177: =VLOOKUP(BJ177, 'Calc - Base'!$H$35:$I$400, 2) -> 2021-06-24 | BL177: =IF($BK$5 = $BF$6, 'Case Counts'!W172, IF($BK$5 = $BF$7, 'Case Counts'!X172, 'Case Counts'!Y172)) -> 0.08449214826 | BM177: ='Calc - SA_Case Counts'!L203 -> 0.05143169093 | BN177: =IF($BK$5 = $BF$6, 'Case Counts'!AA172, IF($BK$5 = $BF$7, 'Case Counts'!AB172, 'Case Counts'!AC172)) -> 58.37359332 | BO177: 51.47148827
BJ178: 169 | BK178: =VLOOKUP(BJ178, 'Calc - Base'!$H$35:$I$400, 2) -> 2021-06-25 | BL178: =IF($BK$5 = $BF$6, 'Case Counts'!W173, IF($BK$5 = $BF$7, 'Case Counts'!X173, 'Case Counts'!Y173)) -> 0.2340796124 | BM178: ='Calc - SA_Case Counts'!L204 -> 0.1998871931 | BN178: =IF($BK$5 = $BF$6, 'Case Counts'!AA173, IF($BK$5 = $BF$7, 'Case Counts'!AB173, 'Case Counts'!AC173)) -> 58.60767293 | BO178: 51.67137546
BJ179: 170 | BK179: =VLOOKUP(BJ179, 'Calc - Base'!$H$35:$I$400, 2) -> 2021-06-26 | BL179: =IF($BK$5 = $BF$6, 'Case Counts'!W174, IF($BK$5 = $BF$7, 'Case Counts'!X174, 'Case Counts'!Y174)) -> 0.2392658894 | BM179: ='Calc - SA_Case Counts'!L205 -> 0.2095876013 | BN179: =IF($BK$5 = $BF$6, 'Case Counts'!AA174, IF($BK$5 = $BF$7, 'Case Counts'!AB174, 'Case Counts'!AC174)) -> 58.84693882 | BO179: 51.88096306
BJ180: 171 | BK180: =VLOOKUP(BJ180, 'Calc - Base'!$H$35:$I$400, 2) -> 2021-06-27 | BL180: =IF($BK$5 = $BF$6, 'Case Counts'!W175, IF($BK$5 = $BF$7, 'Case Counts'!X175, 'Case Counts'!Y175)) -> 0.1038647484 | BM180: ='Calc - SA_Case Counts'!L206 -> 0.05221043658 | BN180: =IF($BK$5 = $BF$6, 'Case Counts'!AA175, IF($BK$5 = $BF$7, 'Case Counts'!AB175, 'Case Counts'!AC175)) -> 58.95080357 | BO180: 51.9331735
BJ181: 172 | BK181: =VLOOKUP(BJ181, 'Calc - Base'!$H$35:$I$400, 2) -> 2021-06-28 | BL181: =IF($BK$5 = $BF$6, 'Case Counts'!W176, IF($BK$5 = $BF$7, 'Case Counts'!X176, 'Case Counts'!Y176)) -> 1.425497258 | BM181: ='Calc - SA_Case Counts'!L207 -> 1.397130975 | BN181: =IF($BK$5 = $BF$6, 'Case Counts'!AA176, IF($BK$5 = $BF$7, 'Case Counts'!AB176, 'Case Counts'!AC176)) -> 60.37630083 | BO181: 53.33030447
BJ182: 173 | BK182: =VLOOKUP(BJ182, 'Calc - Base'!$H$35:$I$400, 2) -> 2021-06-29 | BL182: =IF($BK$5 = $BF$6, 'Case Counts'!W177, IF($BK$5 = $BF$7, 'Case Counts'!X177, 'Case Counts'!Y177)) -> 0.09331129591 | BM182: ='Calc - SA_Case Counts'!L208 -> 0.05513404897 | BN182: =IF($BK$5 = $BF$6, 'Case Counts'!AA177, IF($BK$5 = $BF$7, 'Case Counts'!AB177, 'Case Counts'!AC177)) -> 60.46961212 | BO182: 53.38543852
BJ183: 174 | BK183: =VLOOKUP(BJ183, 'Calc - Base'!$H$35:$I$400, 2) -> 2021-06-30 | BL183: =IF($BK$5 = $BF$6, 'Case Counts'!W178, IF($BK$5 = $BF$7, 'Case Counts'!X178, 'Case Counts'!Y178)) -> 0.1032129943 | BM183: ='Calc - SA_Case Counts'!L209 -> 0.07096002677 | BN183: =IF($BK$5 = $BF$6, 'Case Counts'!AA178, IF($BK$5 = $BF$7, 'Case Counts'!AB178, 'Case Counts'!AC178)) -> 60.57282512 | BO183: 53.45639855
BJ184: 175 | BK184: =VLOOKUP(BJ184, 'Calc - Base'!$H$35:$I$400, 2) -> 2021-07-01 | BL184: =IF($BK$5 = $BF$6, 'Case Counts'!W179, IF($BK$5 = $BF$7, 'Case Counts'!X179, 'Case Counts'!Y179)) -> 0.08331249332 | BM184: ='Calc - SA_Case Counts'!L210 -> 0.05082764879 | BN184: =IF($BK$5 = $BF$6, 'Case Counts'!AA179, IF($BK$5 = $BF$7, 'Case Counts'!AB179, 'Case Counts'!AC179)) -> 60.65613761 | BO184: 53.5072262
BJ185: 176 | BK185: =VLOOKUP(BJ185, 'Calc - Base'!$H$35:$I$400, 2) -> 2021-07-02 | BL185: =IF($BK$5 = $BF$6, 'Case Counts'!W180, IF($BK$5 = $BF$7, 'Case Counts'!X180, 'Case Counts'!Y180)) -> 0.2316912729 | BM185: ='Calc - SA_Case Counts'!L211 -> 0.1982395547 | BN185: =IF($BK$5 = $BF$6, 'Case Counts'!AA180, IF($BK$5 = $BF$7, 'Case Counts'!AB180, 'Case Counts'!AC180)) -> 60.88782889 | BO185: 53.70546575
BJ186: 177 | BK186: =VLOOKUP(BJ186, 'Calc - Base'!$H$35:$I$400, 2) -> 2021-07-03 | BL186: =IF($BK$5 = $BF$6, 'Case Counts'!W181, IF($BK$5 = $BF$7, 'Case Counts'!X181, 'Case Counts'!Y181)) -> 0.2368453535 | BM186: ='Calc - SA_Case Counts'!L212 -> 0.2078665881 | BN186: =IF($BK$5 = $BF$6, 'Case Counts'!AA181, IF($BK$5 = $BF$7, 'Case Counts'!AB181, 'Case Counts'!AC181)) -> 61.12467424 | BO186: 53.91333234
BJ187: 178 | BK187: =VLOOKUP(BJ187, 'Calc - Base'!$H$35:$I$400, 2) -> 2021-07-04 | BL187: =IF($BK$5 = $BF$6, 'Case Counts'!W182, IF($BK$5 = $BF$7, 'Case Counts'!X182, 'Case Counts'!Y182)) -> 0.1025919576 | BM187: ='Calc - SA_Case Counts'!L213 -> 0.05165290986 | BN187: =IF($BK$5 = $BF$6, 'Case Counts'!AA182, IF($BK$5 = $BF$7, 'Case Counts'!AB182, 'Case Counts'!AC182)) -> 61.2272662 | BO187: 53.96498525
BJ188: 179 | BK188: =VLOOKUP(BJ188, 'Calc - Base'!$H$35:$I$400, 2) -> 2021-07-05 | BL188: =IF($BK$5 = $BF$6, 'Case Counts'!W183, IF($BK$5 = $BF$7, 'Case Counts'!X183, 'Case Counts'!Y183)) -> 1.418636994 | BM188: ='Calc - SA_Case Counts'!L214 -> 1.391536183 | BN188: =IF($BK$5 = $BF$6, 'Case Counts'!AA183, IF($BK$5 = $BF$7, 'Case Counts'!AB183, 'Case Counts'!AC183)) -> 62.64590319 | BO188: 55.35652143
BJ189: 180 | BK189: =VLOOKUP(BJ189, 'Calc - Base'!$H$35:$I$400, 2) -> 2021-07-06 | BL189: =IF($BK$5 = $BF$6, 'Case Counts'!W184, IF($BK$5 = $BF$7, 'Case Counts'!X184, 'Case Counts'!Y184)) -> 0.09208792037 | BM189: ='Calc - SA_Case Counts'!L215 -> 0.054515204 | BN189: =IF($BK$5 = $BF$6, 'Case Counts'!AA184, IF($BK$5 = $BF$7, 'Case Counts'!AB184, 'Case Counts'!AC184)) -> 62.73799111 | BO189: 55.41103664
BJ190: 181 | BK190: =VLOOKUP(BJ190, 'Calc - Base'!$H$35:$I$400, 2) -> 2021-07-07 | BL190: =IF($BK$5 = $BF$6, 'Case Counts'!W185, IF($BK$5 = $BF$7, 'Case Counts'!X185, 'Case Counts'!Y185)) -> 0.1018321871 | BM190: ='Calc - SA_Case Counts'!L216 -> 0.07015442206 | BN190: =IF($BK$5 = $BF$6, 'Case Counts'!AA185, IF($BK$5 = $BF$7, 'Case Counts'!AB185, 'Case Counts'!AC185)) -> 62.8398233 | BO190: 55.48119106
BJ191: 182 | BK191: =VLOOKUP(BJ191, 'Calc - Base'!$H$35:$I$400, 2) -> 2021-07-08 | BL191: =IF($BK$5 = $BF$6, 'Case Counts'!W186, IF($BK$5 = $BF$7, 'Case Counts'!X186, 'Case Counts'!Y186)) -> 0.08215489738 | BM191: ='Calc - SA_Case Counts'!L217 -> 0.05023241389 | BN191: =IF($BK$5 = $BF$6, 'Case Counts'!AA186, IF($BK$5 = $BF$7, 'Case Counts'!AB186, 'Case Counts'!AC186)) -> 62.9219782 | BO191: 55.53142347
BJ192: 183 | BK192: =VLOOKUP(BJ192, 'Calc - Base'!$H$35:$I$400, 2) -> 2021-07-09 | BL192: =IF($BK$5 = $BF$6, 'Case Counts'!W187, IF($BK$5 = $BF$7, 'Case Counts'!X187, 'Case Counts'!Y187)) -> 0.2293380801 | BM192: ='Calc - SA_Case Counts'!L218 -> 0.1966097501 | BN192: =IF($BK$5 = $BF$6, 'Case Counts'!AA187, IF($BK$5 = $BF$7, 'Case Counts'!AB187, 'Case Counts'!AC187)) -> 63.15131628 | BO192: 55.72803322
BJ193: 184 | BK193: =VLOOKUP(BJ193, 'Calc - Base'!$H$35:$I$400, 2) -> 2021-07-10 | BL193: =IF($BK$5 = $BF$6, 'Case Counts'!W188, IF($BK$5 = $BF$7, 'Case Counts'!X188, 'Case Counts'!Y188)) -> 0.2344601924 | BM193: ='Calc - SA_Case Counts'!L219 -> 0.2061641249 | BN193: =IF($BK$5 = $BF$6, 'Case Counts'!AA188, IF($BK$5 = $BF$7, 'Case Counts'!AB188, 'Case Counts'!AC188)) -> 63.38577647 | BO193: 55.93419735
BJ194: 185 | BK194: =VLOOKUP(BJ194, 'Calc - Base'!$H$35:$I$400, 2) -> 2021-07-11 | BL194: =IF($BK$5 = $BF$6, 'Case Counts'!W189, IF($BK$5 = $BF$7, 'Case Counts'!X189, 'Case Counts'!Y189)) -> 0.1013414683 | BM194: ='Calc - SA_Case Counts'!L220 -> 0.05110328489 | BN194: =IF($BK$5 = $BF$6, 'Case Counts'!AA189, IF($BK$5 = $BF$7, 'Case Counts'!AB189, 'Case Counts'!AC189)) -> 63.48711794 | BO194: 55.98530063
BJ195: 186 | BK195: =VLOOKUP(BJ195, 'Calc - Base'!$H$35:$I$400, 2) -> 2021-07-12 | BL195: =IF($BK$5 = $BF$6, 'Case Counts'!W190, IF($BK$5 = $BF$7, 'Case Counts'!X190, 'Case Counts'!Y190)) -> 1.411839248 | BM195: ='Calc - SA_Case Counts'!L221 -> 1.385977613 | BN195: =IF($BK$5 = $BF$6, 'Case Counts'!AA190, IF($BK$5 = $BF$7, 'Case Counts'!AB190, 'Case Counts'!AC190)) -> 64.89895718 | BO195: 57.37127825
BJ196: 187 | BK196: =VLOOKUP(BJ196, 'Calc - Base'!$H$35:$I$400, 2) -> 2021-07-13 | BL196: =IF($BK$5 = $BF$6, 'Case Counts'!W191, IF($BK$5 = $BF$7, 'Case Counts'!X191, 'Case Counts'!Y191)) -> 0.09088667779 | BM196: ='Calc - SA_Case Counts'!L222 -> 0.0539051742 | BN196: =IF($BK$5 = $BF$6, 'Case Counts'!AA191, IF($BK$5 = $BF$7, 'Case Counts'!AB191, 'Case Counts'!AC191)) -> 64.98984386 | BO196: 57.42518342
BJ197: 188 | BK197: =VLOOKUP(BJ197, 'Calc - Base'!$H$35:$I$400, 2) -> 2021-07-14 | BL197: =IF($BK$5 = $BF$6, 'Case Counts'!W192, IF($BK$5 = $BF$7, 'Case Counts'!X192, 'Case Counts'!Y192)) -> 0.1004761657 | BM197: ='Calc - SA_Case Counts'!L223 -> 0.06936008365 | BN197: =IF($BK$5 = $BF$6, 'Case Counts'!AA192, IF($BK$5 = $BF$7, 'Case Counts'!AB192, 'Case Counts'!AC192)) -> 65.09032003 | BO197: 57.4945435
BJ198: 189 | BK198: =VLOOKUP(BJ198, 'Calc - Base'!$H$35:$I$400, 2) -> 2021-07-15 | BL198: =IF($BK$5 = $BF$6, 'Case Counts'!W193, IF($BK$5 = $BF$7, 'Case Counts'!X193, 'Case Counts'!Y193)) -> 0.08101881166 | BM198: ='Calc - SA_Case Counts'!L224 -> 0.04964582484 | BN198: =IF($BK$5 = $BF$6, 'Case Counts'!AA193, IF($BK$5 = $BF$7, 'Case Counts'!AB193, 'Case Counts'!AC193)) -> 65.17133884 | BO198: 57.54418933
BJ199: 190 | BK199: =VLOOKUP(BJ199, 'Calc - Base'!$H$35:$I$400, 2) -> 2021-07-16 | BL199: =IF($BK$5 = $BF$6, 'Case Counts'!W194, IF($BK$5 = $BF$7, 'Case Counts'!X194, 'Case Counts'!Y194)) -> 0.2270192821 | BM199: ='Calc - SA_Case Counts'!L225 -> 0.1949975149 | BN199: =IF($BK$5 = $BF$6, 'Case Counts'!AA194, IF($BK$5 = $BF$7, 'Case Counts'!AB194, 'Case Counts'!AC194)) -> 65.39835812 | BO199: 57.73918684
BJ200: 191 | BK200: =VLOOKUP(BJ200, 'Calc - Base'!$H$35:$I$400, 2) -> 2021-07-17 | BL200: =IF($BK$5 = $BF$6, 'Case Counts'!W195, IF($BK$5 = $BF$7, 'Case Counts'!X195, 'Case Counts'!Y195)) -> 0.2321096526 | BM200: ='Calc - SA_Case Counts'!L226 -> 0.2044799378 | BN200: =IF($BK$5 = $BF$6, 'Case Counts'!AA195, IF($BK$5 = $BF$7, 'Case Counts'!AB195, 'Case Counts'!AC195)) -> 65.63046777 | BO200: 57.94366678
BJ201: 192 | BK201: =VLOOKUP(BJ201, 'Calc - Base'!$H$35:$I$400, 2) -> 2021-07-18 | BL201: =IF($BK$5 = $BF$6, 'Case Counts'!W196, IF($BK$5 = $BF$7, 'Case Counts'!X196, 'Case Counts'!Y196)) -> 0.1001127387 | BM201: ='Calc - SA_Case Counts'!L227 -> 0.05056141567 | BN201: =IF($BK$5 = $BF$6, 'Case Counts'!AA196, IF($BK$5 = $BF$7, 'Case Counts'!AB196, 'Case Counts'!AC196)) -> 65.73058051 | BO201: 57.9942282
BJ202: 193 | BK202: =VLOOKUP(BJ202, 'Calc - Base'!$H$35:$I$400, 2) -> 2021-07-19 | BL202: =IF($BK$5 = $BF$6, 'Case Counts'!W197, IF($BK$5 = $BF$7, 'Case Counts'!X197, 'Case Counts'!Y197)) -> 1.405102946 | BM202: ='Calc - SA_Case Counts'!L228 -> 1.380454854 | BN202: =IF($BK$5 = $BF$6, 'Case Counts'!AA197, IF($BK$5 = $BF$7, 'Case Counts'!AB197, 'Case Counts'!AC197)) -> 67.13568346 | BO202: 59.37468305
BJ203: 194 | BK203: =VLOOKUP(BJ203, 'Calc - Base'!$H$35:$I$400, 2) -> 2021-07-20 | BL203: =IF($BK$5 = $BF$6, 'Case Counts'!W198, IF($BK$5 = $BF$7, 'Case Counts'!X198, 'Case Counts'!Y198)) -> 0.08970702639 | BM203: ='Calc - SA_Case Counts'!L229 -> 0.05330379984 | BN203: =IF($BK$5 = $BF$6, 'Case Counts'!AA198, IF($BK$5 = $BF$7, 'Case Counts'!AB198, 'Case Counts'!AC198)) -> 67.22539048 | BO203: =BO202+BM203 -> 59.42798685
BJ204: 195 | BK204: =VLOOKUP(BJ204, 'Calc - Base'!$H$35:$I$400, 2) -> 2021-07-21 | BL204: =IF($BK$5 = $BF$6, 'Case Counts'!W199, IF($BK$5 = $BF$7, 'Case Counts'!X199, 'Case Counts'!Y199)) -> 0.09914433517 | BM204: ='Calc - SA_Case Counts'!L230 -> 0.06857681403 | BN204: =IF($BK$5 = $BF$6, 'Case Counts'!AA199, IF($BK$5 = $BF$7, 'Case Counts'!AB199, 'Case Counts'!AC199)) -> 67.32453482 | BO204: 59.49656367
... 170 more rows

Sheet SA_Resources
B5: "What-If" Sensitivity Analysis: Staffing Needs | BA5: Chart Text | BF5: Scenario Options | BJ5: Chosen Scenario | BK5: =$E$9 -> Strategy 2 | BL5: =IF($BK$5 = $BF$6, 'B. Impact of contact tracing'!$F$19, IF($BK$5 = $BF$7, 'B. Impact of contact tracing'!$G$19, 'B. Impact of contact tracing'!$H$19)) -> Contact ID | BT5: Group 1 | BX5: Group 2
BA6: Maximum staff needed on a single day | BF6: ='B. Impact of contact tracing'!F16 -> Strategy 1 | BL6: =E11 -> Original Scenario | BN6: =G11 -> "What-If" Scenario | BT6: =$BL$6 -> Original Scenario | BV6: =$BN$6 -> "What-If" Scenario | BX6: =$BL$6 -> Original Scenario | BZ6: =$BN$6 -> "What-If" Scenario
BF7: ='B. Impact of contact tracing'!G16 -> Strategy 2 | BL7: Lower | BM7: Upper | BN7: Lower | BO7: Upper | BT7: Lower | BU7: Upper | BV7: Lower | BW7: Upper | BX7: Lower | BY7: Upper | BZ7: Lower | CA7: Upper
BA8: Chart Titles | BF8: ='B. Impact of contact tracing'!H16 -> Strategy 3 | BJ8: Day | BK8: Date
B9: Step 1: | C9: Choose A Contact Tracing Strategy | E9: Strategy 2 | K9: Staffing needs would change like this: | BA9: =IFERROR(_xlfn.CONCAT($BA$6, "(", $BK$5, " vs. 'What-If' Scenario)"), CONCATENATE($BA$6, "(", $BK$5, " vs. 'What-If' Scenario)")) -> Maximum staff needed on a single day (Strategy 2 vs. 'What-If' Scenario) | BJ9: 0 | BK9: =VLOOKUP(BJ9, 'Calc - Base'!$H$35:$I$400, 2) -> 2021-01-07 | BL9: =IF($BK$5=$BF$6, 'Staff Needed'!V5, IF($BK$5=$BF$7, 'Staff Needed'!X5, 'Staff Needed'!Z5)) -> 0 | BM9: =IF($BK$5=$BF$6, 'Staff Needed'!W5, IF($BK$5=$BF$7, 'Staff Needed'!Y5, 'Staff Needed'!AA5)) -> 0 | BN9: ='Calc - SA_Resources'!AT35 -> 0 | BO9: ='Calc - SA_Resources'!AU35 -> 0 | BT9: =IF($BK$5=$BF$6, 'Staff Needed'!AB5, IF($BK$5=$BF$7, 'Staff Needed'!AD5, 'Staff Needed'!AF5)) -> 0 | BU9: =IF($BK$5=$BF$6, 'Staff Needed'!AC5, IF($BK$5=$BF$7, 'Staff Needed'!AE5, 'Staff Needed'!AG5)) -> 0 | BV9: ='Calc - SA_Resources'!BA35 -> 0 | BW9: ='Calc - SA_Resources'!BB35 -> 0 | BX9: =IF($BK$5=$BF$6, 'Staff Needed'!AH5, IF($BK$5=$BF$7, 'Staff Needed'!AJ5, 'Staff Needed'!AL5)) -> 0 | BY9: =IF($BK$5=$BF$6, 'Staff Needed'!AI5, IF($BK$5=$BF$7, 'Staff Needed'!AK5, 'Staff Needed'!AM5)) -> 0 | BZ9: ='Calc - SA_Resources'!BG35 -> 0 | CA9: ='Calc - SA_Resources'!BH35 -> 0
BJ10: 1 | BK10: =VLOOKUP(BJ10, 'Calc - Base'!$H$35:$I$400, 2) -> 2021-01-08 | BL10: =IF($BK$5=$BF$6, 'Staff Needed'!V6, IF($BK$5=$BF$7, 'Staff Needed'!X6, 'Staff Needed'!Z6)) -> 0 | BM10: =IF($BK$5=$BF$6, 'Staff Needed'!W6, IF($BK$5=$BF$7, 'Staff Needed'!Y6, 'Staff Needed'!AA6)) -> 0 | BN10: ='Calc - SA_Resources'!AT36 -> 0 | BO10: ='Calc - SA_Resources'!AU36 -> 0 | BT10: =IF($BK$5=$BF$6, 'Staff Needed'!AB6, IF($BK$5=$BF$7, 'Staff Needed'!AD6, 'Staff Needed'!AF6)) -> 0 | BU10: =IF($BK$5=$BF$6, 'Staff Needed'!AC6, IF($BK$5=$BF$7, 'Staff Needed'!AE6, 'Staff Needed'!AG6)) -> 0 | BV10: ='Calc - SA_Resources'!BA36 -> 0 | BW10: ='Calc - SA_Resources'!BB36 -> 0 | BX10: =IF($BK$5=$BF$6, 'Staff Needed'!AH6, IF($BK$5=$BF$7, 'Staff Needed'!AJ6, 'Staff Needed'!AL6)) -> 0 | BY10: =IF($BK$5=$BF$6, 'Staff Needed'!AI6, IF($BK$5=$BF$7, 'Staff Needed'!AK6, 'Staff Needed'!AM6)) -> 0 | BZ10: ='Calc - SA_Resources'!BG36 -> 0 | CA10: ='Calc - SA_Resources'!BH36 -> 0
B11: Step 2: | C11: Set your "What-If" Scenario | E11: Original Scenario | G11: "What-If" Scenario | BJ11: 2 | BK11: =VLOOKUP(BJ11, 'Calc - Base'!$H$35:$I$400, 2) -> 2021-01-09 | BL11: =IF($BK$5=$BF$6, 'Staff Needed'!V7, IF($BK$5=$BF$7, 'Staff Needed'!X7, 'Staff Needed'!Z7)) -> 0 | BM11: =IF($BK$5=$BF$6, 'Staff Needed'!W7, IF($BK$5=$BF$7, 'Staff Needed'!Y7, 'Staff Needed'!AA7)) -> 0 | BN11: ='Calc - SA_Resources'!AT37 -> 0 | BO11: ='Calc - SA_Resources'!AU37 -> 0 | BT11: =IF($BK$5=$BF$6, 'Staff Needed'!AB7, IF($BK$5=$BF$7, 'Staff Needed'!AD7, 'Staff Needed'!AF7)) -> 0 | BU11: =IF($BK$5=$BF$6, 'Staff Needed'!AC7, IF($BK$5=$BF$7, 'Staff Needed'!AE7, 'Staff Needed'!AG7)) -> 0 | BV11: ='Calc - SA_Resources'!BA37 -> 0 | BW11: ='Calc - SA_Resources'!BB37 -> 0 | BX11: =IF($BK$5=$BF$6, 'Staff Needed'!AH7, IF($BK$5=$BF$7, 'Staff Needed'!AJ7, 'Staff Needed'!AL7)) -> 0 | BY11: =IF($BK$5=$BF$6, 'Staff Needed'!AI7, IF($BK$5=$BF$7, 'Staff Needed'!AK7, 'Staff Needed'!AM7)) -> 0 | BZ11: ='Calc - SA_Resources'!BG37 -> 0 | CA11: ='Calc - SA_Resources'!BH37 -> 0
E12: Lower | F12: Upper | G12: Lower | H12: Upper | BJ12: 3 | BK12: =VLOOKUP(BJ12, 'Calc - Base'!$H$35:$I$400, 2) -> 2021-01-10 | BL12: =IF($BK$5=$BF$6, 'Staff Needed'!V8, IF($BK$5=$BF$7, 'Staff Needed'!X8, 'Staff Needed'!Z8)) -> 0 | BM12: =IF($BK$5=$BF$6, 'Staff Needed'!W8, IF($BK$5=$BF$7, 'Staff Needed'!Y8, 'Staff Needed'!AA8)) -> 0 | BN12: ='Calc - SA_Resources'!AT38 -> 0 | BO12: ='Calc - SA_Resources'!AU38 -> 0 | BT12: =IF($BK$5=$BF$6, 'Staff Needed'!AB8, IF($BK$5=$BF$7, 'Staff Needed'!AD8, 'Staff Needed'!AF8)) -> 0 | BU12: =IF($BK$5=$BF$6, 'Staff Needed'!AC8, IF($BK$5=$BF$7, 'Staff Needed'!AE8, 'Staff Needed'!AG8)) -> 0 | BV12: ='Calc - SA_Resources'!BA38 -> 0 | BW12: ='Calc - SA_Resources'!BB38 -> 0 | BX12: =IF($BK$5=$BF$6, 'Staff Needed'!AH8, IF($BK$5=$BF$7, 'Staff Needed'!AJ8, 'Staff Needed'!AL8)) -> 0 | BY12: =IF($BK$5=$BF$6, 'Staff Needed'!AI8, IF($BK$5=$BF$7, 'Staff Needed'!AK8, 'Staff Needed'!AM8)) -> 0 | BZ12: ='Calc - SA_Resources'!BG38 -> 0 | CA12: ='Calc - SA_Resources'!BH38 -> 0
C13: Contacts per Case | E13: ='C. Tracing Resources'!D9 -> 5 | F13: ='C. Tracing Resources'!E9 -> 20 | G13: 3 | H13: 10 | BJ13: 4 | BK13: =VLOOKUP(BJ13, 'Calc - Base'!$H$35:$I$400, 2) -> 2021-01-11 | BL13: =IF($BK$5=$BF$6, 'Staff Needed'!V9, IF($BK$5=$BF$7, 'Staff Needed'!X9, 'Staff Needed'!Z9)) -> 0.420875 | BM13: =IF($BK$5=$BF$6, 'Staff Needed'!W9, IF($BK$5=$BF$7, 'Staff Needed'!Y9, 'Staff Needed'!AA9)) -> 4.176375 | BN13: ='Calc - SA_Resources'!AT39 -> 0.291375 | BO13: ='Calc - SA_Resources'!AU39 -> 2.233875 | BT13: =IF($BK$5=$BF$6, 'Staff Needed'!AB9, IF($BK$5=$BF$7, 'Staff Needed'!AD9, 'Staff Needed'!AF9)) -> 0.3885 | BU13: =IF($BK$5=$BF$6, 'Staff Needed'!AC9, IF($BK$5=$BF$7, 'Staff Needed'!AE9, 'Staff Needed'!AG9)) -> 4.07925 | BV13: ='Calc - SA_Resources'!BA39 -> 0.259 | BW13: ='Calc - SA_Resources'!BB39 -> 2.13675 | BX13: =IF($BK$5=$BF$6, 'Staff Needed'!AH9, IF($BK$5=$BF$7, 'Staff Needed'!AJ9, 'Staff Needed'!AL9)) -> 0.032375 | BY13: =IF($BK$5=$BF$6, 'Staff Needed'!AI9, IF($BK$5=$BF$7, 'Staff Needed'!AK9, 'Staff Needed'!AM9)) -> 0.097125 | BZ13: ='Calc - SA_Resources'!BG39 -> 0.032375 | CA13: ='Calc - SA_Resources'!BH39 -> 0.097125
C14: Daily shift length (hours) | E14: ='C. Tracing Resources'!D14 -> 8 | F14: ='C. Tracing Resources'!E14 -> 12 | G14: 8 | H14: 12 | BJ14: 5 | BK14: =VLOOKUP(BJ14, 'Calc - Base'!$H$35:$I$400, 2) -> 2021-01-12 | BL14: =IF($BK$5=$BF$6, 'Staff Needed'!V10, IF($BK$5=$BF$7, 'Staff Needed'!X10, 'Staff Needed'!Z10)) -> 0.032375 | BM14: =IF($BK$5=$BF$6, 'Staff Needed'!W10, IF($BK$5=$BF$7, 'Staff Needed'!Y10, 'Staff Needed'!AA10)) -> 0.097125 | BN14: ='Calc - SA_Resources'!AT40 -> 0.032375 | BO14: ='Calc - SA_Resources'!AU40 -> 0.097125 | BQ14: Lower | BR14: Upper | BT14: =IF($BK$5=$BF$6, 'Staff Needed'!AB10, IF($BK$5=$BF$7, 'Staff Needed'!AD10, 'Staff Needed'!AF10)) -> 0 | BU14: =IF($BK$5=$BF$6, 'Staff Needed'!AC10, IF($BK$5=$BF$7, 'Staff Needed'!AE10, 'Staff Needed'!AG10)) -> 0 | BV14: ='Calc - SA_Resources'!BA40 -> 0 | BW14: ='Calc - SA_Resources'!BB40 -> 0 | BX14: =IF($BK$5=$BF$6, 'Staff Needed'!AH10, IF($BK$5=$BF$7, 'Staff Needed'!AJ10, 'Staff Needed'!AL10)) -> 0.032375 | BY14: =IF($BK$5=$BF$6, 'Staff Needed'!AI10, IF($BK$5=$BF$7, 'Staff Needed'!AK10, 'Staff Needed'!AM10)) -> 0.097125 | BZ14: ='Calc - SA_Resources'!BG40 -> 0.032375 | CA14: ='Calc - SA_Resources'!BH40 -> 0.097125
C15: Overhead hours (e.g., prep time, supervisory time, support staff) | E15: ='C. Tracing Resources'!D15 -> 0.05 | F15: ='C. Tracing Resources'!E15 -> 0.05 | G15: 0.05 | H15: 0.05 | BB15: =E11 -> Original Scenario | BD15: =G11 -> "What-If" Scenario | BJ15: 6 | BK15: =VLOOKUP(BJ15, 'Calc - Base'!$H$35:$I$400, 2) -> 2021-01-13 | BL15: =IF($BK$5=$BF$6, 'Staff Needed'!V11, IF($BK$5=$BF$7, 'Staff Needed'!X11, 'Staff Needed'!Z11)) -> 0.032375 | BM15: =IF($BK$5=$BF$6, 'Staff Needed'!W11, IF($BK$5=$BF$7, 'Staff Needed'!Y11, 'Staff Needed'!AA11)) -> 0.097125 | BN15: ='Calc - SA_Resources'!AT41 -> 0.032375 | BO15: ='Calc - SA_Resources'!AU41 -> 0.097125 | BP15: =BL6 -> Original Scenario | BQ15: =MAX(BL9:BL374) -> 0.6194901468 | BR15: =MAX(BM9:BM374) -> 5.972811874 | BT15: =IF($BK$5=$BF$6, 'Staff Needed'!AB11, IF($BK$5=$BF$7, 'Staff Needed'!AD11, 'Staff Needed'!AF11)) -> 0 | BU15: =IF($BK$5=$BF$6, 'Staff Needed'!AC11, IF($BK$5=$BF$7, 'Staff Needed'!AE11, 'Staff Needed'!AG11)) -> 0 | BV15: ='Calc - SA_Resources'!BA41 -> 0 | BW15: ='Calc - SA_Resources'!BB41 -> 0 | BX15: =IF($BK$5=$BF$6, 'Staff Needed'!AH11, IF($BK$5=$BF$7, 'Staff Needed'!AJ11, 'Staff Needed'!AL11)) -> 0.032375 | BY15: =IF($BK$5=$BF$6, 'Staff Needed'!AI11, IF($BK$5=$BF$7, 'Staff Needed'!AK11, 'Staff Needed'!AM11)) -> 0.097125 | BZ15: ='Calc - SA_Resources'!BG41 -> 0.032375 | CA15: ='Calc - SA_Resources'!BH41 -> 0.097125
C16: Alerts per case | E16: ='C. Tracing Resources'!D10 -> 0 | F16: ='C. Tracing Resources'!E10 -> 0 | G16: 0 | H16: 0 | BB16: Lower | BC16: Upper | BD16: Lower | BE16: Upper | BJ16: 7 | BK16: =VLOOKUP(BJ16, 'Calc - Base'!$H$35:$I$400, 2) -> 2021-01-14 | BL16: =IF($BK$5=$BF$6, 'Staff Needed'!V12, IF($BK$5=$BF$7, 'Staff Needed'!X12, 'Staff Needed'!Z12)) -> 0.032375 | BM16: =IF($BK$5=$BF$6, 'Staff Needed'!W12, IF($BK$5=$BF$7, 'Staff Needed'!Y12, 'Staff Needed'!AA12)) -> 0.097125 | BN16: ='Calc - SA_Resources'!AT42 -> 0.032375 | BO16: ='Calc - SA_Resources'!AU42 -> 0.097125 | BP16: =BN6 -> "What-If" Scenario | BQ16: =MAX(BN9:BN374) -> 0.4519052352 | BR16: =MAX(BO9:BO374) -> 3.459038199 | BT16: =IF($BK$5=$BF$6, 'Staff Needed'!AB12, IF($BK$5=$BF$7, 'Staff Needed'!AD12, 'Staff Needed'!AF12)) -> 0 | BU16: =IF($BK$5=$BF$6, 'Staff Needed'!AC12, IF($BK$5=$BF$7, 'Staff Needed'!AE12, 'Staff Needed'!AG12)) -> 0 | BV16: ='Calc - SA_Resources'!BA42 -> 0 | BW16: ='Calc - SA_Resources'!BB42 -> 0 | BX16: =IF($BK$5=$BF$6, 'Staff Needed'!AH12, IF($BK$5=$BF$7, 'Staff Needed'!AJ12, 'Staff Needed'!AL12)) -> 0.032375 | BY16: =IF($BK$5=$BF$6, 'Staff Needed'!AI12, IF($BK$5=$BF$7, 'Staff Needed'!AK12, 'Staff Needed'!AM12)) -> 0.097125 | BZ16: ='Calc - SA_Resources'!BG42 -> 0.032375 | CA16: ='Calc - SA_Resources'!BH42 -> 0.097125
C17: Time needed for alert screening interview (hours) | E17: ='C. Tracing Resources'!E20 -> 0.5 | F17: ='C. Tracing Resources'!F20 -> 1 | G17: 5 | H17: 10 | BA17: Group 1 | BB17: =SUM(BT9:BT374)/SUM(BL9:BL374) -> 0.6326123047 | BC17: =SUM(BU9:BU374)/SUM(BM9:BM374) -> 0.7520028791 | BD17: =SUM(BV9:BV374)/SUM(BN9:BN374) -> 0.5344391255 | BE17: =SUM(BW9:BW374)/SUM(BO9:BO374) -> 0.6136535117 | BJ17: 8 | BK17: =VLOOKUP(BJ17, 'Calc - Base'!$H$35:$I$400, 2) -> 2021-01-15 | BL17: =IF($BK$5=$BF$6, 'Staff Needed'!V13, IF($BK$5=$BF$7, 'Staff Needed'!X13, 'Staff Needed'!Z13)) -> 0.1144611713 | BM17: =IF($BK$5=$BF$6, 'Staff Needed'!W13, IF($BK$5=$BF$7, 'Staff Needed'!Y13, 'Staff Needed'!AA13)) -> 0.9116723917 | BN17: ='Calc - SA_Resources'!AT43 -> 0.08920388779 | BO17: ='Calc - SA_Resources'!AU43 -> 0.5328131398 | BT17: =IF($BK$5=$BF$6, 'Staff Needed'!AB13, IF($BK$5=$BF$7, 'Staff Needed'!AD13, 'Staff Needed'!AF13)) -> 0.07577185039 | BU17: =IF($BK$5=$BF$6, 'Staff Needed'!AC13, IF($BK$5=$BF$7, 'Staff Needed'!AE13, 'Staff Needed'!AG13)) -> 0.7956044291 | BV17: ='Calc - SA_Resources'!BA43 -> 0.05051456693 | BW17: ='Calc - SA_Resources'!BB43 -> 0.4167451772 | BX17: =IF($BK$5=$BF$6, 'Staff Needed'!AH13, IF($BK$5=$BF$7, 'Staff Needed'!AJ13, 'Staff Needed'!AL13)) -> 0.03868932087 | BY17: =IF($BK$5=$BF$6, 'Staff Needed'!AI13, IF($BK$5=$BF$7, 'Staff Needed'!AK13, 'Staff Needed'!AM13)) -> 0.1160679626 | BZ17: ='Calc - SA_Resources'!BG43 -> 0.03868932087 | CA17: ='Calc - SA_Resources'!BH43 -> 0.1160679626
C18: Initial case interview (hours) | E18: ='C. Tracing Resources'!E19 -> 0.5 | F18: ='C. Tracing Resources'!F19 -> 1 | G18: 1 | H18: 2 | BA18: Group 2 | BB18: =SUM(BX9:BX374)/SUM(BL9:BL374) -> 0.3673876953 | BC18: =SUM(BY9:BY374)/SUM(BM9:BM374) -> 0.2479971209 | BD18: =SUM(BZ9:BZ374)/SUM(BN9:BN374) -> 0.4655608745 | BE18: 0.3863464883 | BJ18: 9 | BK18: =VLOOKUP(BJ18, 'Calc - Base'!$H$35:$I$400, 2) -> 2021-01-16 | BL18: =IF($BK$5=$BF$6, 'Staff Needed'!V14, IF($BK$5=$BF$7, 'Staff Needed'!X14, 'Staff Needed'!Z14)) -> 0.1268427136 | BM18: =IF($BK$5=$BF$6, 'Staff Needed'!W14, IF($BK$5=$BF$7, 'Staff Needed'!Y14, 'Staff Needed'!AA14)) -> 0.9908208597 | BN18: ='Calc - SA_Resources'!AT44 -> 0.09971859275 | BO18: ='Calc - SA_Resources'!AU44 -> 0.5839590471 | BT18: =IF($BK$5=$BF$6, 'Staff Needed'!AB14, IF($BK$5=$BF$7, 'Staff Needed'!AD14, 'Staff Needed'!AF14)) -> 0.08137236252 | BU18: =IF($BK$5=$BF$6, 'Staff Needed'!AC14, IF($BK$5=$BF$7, 'Staff Needed'!AE14, 'Staff Needed'!AG14)) -> 0.8544098064 | BV18: ='Calc - SA_Resources'!BA44 -> 0.05424824168 | BW18: ='Calc - SA_Resources'!BB44 -> 0.4475479938 | BX18: =IF($BK$5=$BF$6, 'Staff Needed'!AH14, IF($BK$5=$BF$7, 'Staff Needed'!AJ14, 'Staff Needed'!AL14)) -> 0.04547035108 | BY18: =IF($BK$5=$BF$6, 'Staff Needed'!AI14, IF($BK$5=$BF$7, 'Staff Needed'!AK14, 'Staff Needed'!AM14)) -> 0.1364110532 | BZ18: ='Calc - SA_Resources'!BG44 -> 0.04547035108 | CA18: ='Calc - SA_Resources'!BH44 -> 0.1364110532
C19: Initial contact interview (hours) | E19: ='C. Tracing Resources'!E21 -> 0.5 | F19: ='C. Tracing Resources'!F21 -> 1 | G19: 0.5 | H19: 1 | BJ19: 10 | BK19: =VLOOKUP(BJ19, 'Calc - Base'!$H$35:$I$400, 2) -> 2021-01-17 | BL19: =IF($BK$5=$BF$6, 'Staff Needed'!V15, IF($BK$5=$BF$7, 'Staff Needed'!X15, 'Staff Needed'!Z15)) -> 0.08719028971 | BM19: =IF($BK$5=$BF$6, 'Staff Needed'!W15, IF($BK$5=$BF$7, 'Staff Needed'!Y15, 'Staff Needed'!AA15)) -> 0.5504012135 | BN19: ='Calc - SA_Resources'!AT45 -> 0.07435338551 | BO19: ='Calc - SA_Resources'!AU45 -> 0.3578476506 | BT19: =IF($BK$5=$BF$6, 'Staff Needed'!AB15, IF($BK$5=$BF$7, 'Staff Needed'!AD15, 'Staff Needed'!AF15)) -> 0.03851071258 | BU19: =IF($BK$5=$BF$6, 'Staff Needed'!AC15, IF($BK$5=$BF$7, 'Staff Needed'!AE15, 'Staff Needed'!AG15)) -> 0.4043624821 | BV19: ='Calc - SA_Resources'!BA45 -> 0.02567380839 | BW19: ='Calc - SA_Resources'!BB45 -> 0.2118089192 | BX19: =IF($BK$5=$BF$6, 'Staff Needed'!AH15, IF($BK$5=$BF$7, 'Staff Needed'!AJ15, 'Staff Needed'!AL15)) -> 0.04867957712 | BY19: =IF($BK$5=$BF$6, 'Staff Needed'!AI15, IF($BK$5=$BF$7, 'Staff Needed'!AK15, 'Staff Needed'!AM15)) -> 0.1460387314 | BZ19: ='Calc - SA_Resources'!BG45 -> 0.04867957712 | CA19: ='Calc - SA_Resources'!BH45 -> 0.1460387314
C20: Monitoring Hours for Cases + Contacts† | E20: ='C. Tracing Resources'!E22 -> 0.25 | F20: ='C. Tracing Resources'!F22 -> 0.5 | G20: 0.25 | H20: 1 | BJ20: 11 | BK20: =VLOOKUP(BJ20, 'Calc - Base'!$H$35:$I$400, 2) -> 2021-01-18 | BL20: =IF($BK$5=$BF$6, 'Staff Needed'!V16, IF($BK$5=$BF$7, 'Staff Needed'!X16, 'Staff Needed'!Z16)) -> 0.4710683374 | BM20: =IF($BK$5=$BF$6, 'Staff Needed'!W16, IF($BK$5=$BF$7, 'Staff Needed'!Y16, 'Staff Needed'!AA16)) -> 4.658694506 | BN20: ='Calc - SA_Resources'!AT46 -> 0.3311410265 | BO20: ='Calc - SA_Resources'!AU46 -> 2.559784843 | BT20: =IF($BK$5=$BF$6, 'Staff Needed'!AB16, IF($BK$5=$BF$7, 'Staff Needed'!AD16, 'Staff Needed'!AF16)) -> 0.4197819325 | BU20: =IF($BK$5=$BF$6, 'Staff Needed'!AC16, IF($BK$5=$BF$7, 'Staff Needed'!AE16, 'Staff Needed'!AG16)) -> 4.407710292 | BV20: ='Calc - SA_Resources'!BA46 -> 0.2798546217 | BW20: ='Calc - SA_Resources'!BB46 -> 2.308800629 | BX20: =IF($BK$5=$BF$6, 'Staff Needed'!AH16, IF($BK$5=$BF$7, 'Staff Needed'!AJ16, 'Staff Needed'!AL16)) -> 0.05128640484 | BY20: =IF($BK$5=$BF$6, 'Staff Needed'!AI16, IF($BK$5=$BF$7, 'Staff Needed'!AK16, 'Staff Needed'!AM16)) -> 0.2509842145 | BZ20: ='Calc - SA_Resources'!BG46 -> 0.05128640484 | CA20: ='Calc - SA_Resources'!BH46 -> 0.2509842145
C21: Number of days monitored | E21: ='C. Tracing Resources'!D11 -> 7 | F21: ='C. Tracing Resources'!E11 -> 14 | G21: 14 | H21: 21 | BJ21: 12 | BK21: =VLOOKUP(BJ21, 'Calc - Base'!$H$35:$I$400, 2) -> 2021-01-19 | BL21: =IF($BK$5=$BF$6, 'Staff Needed'!V17, IF($BK$5=$BF$7, 'Staff Needed'!X17, 'Staff Needed'!Z17)) -> 0.09468809028 | BM21: =IF($BK$5=$BF$6, 'Staff Needed'!W17, IF($BK$5=$BF$7, 'Staff Needed'!Y17, 'Staff Needed'!AA17)) -> 0.6816624778 | BN21: ='Calc - SA_Resources'!AT47 -> 0.08133372553 | BO21: ='Calc - SA_Resources'!AU47 -> 0.4813470065 | BT21: =IF($BK$5=$BF$6, 'Staff Needed'!AB17, IF($BK$5=$BF$7, 'Staff Needed'!AD17, 'Staff Needed'!AF17)) -> 0.04006309426 | BU21: =IF($BK$5=$BF$6, 'Staff Needed'!AC17, IF($BK$5=$BF$7, 'Staff Needed'!AE17, 'Staff Needed'!AG17)) -> 0.4206624897 | BV21: ='Calc - SA_Resources'!BA47 -> 0.02670872951 | BW21: ='Calc - SA_Resources'!BB47 -> 0.2203470184 | BX21: =IF($BK$5=$BF$6, 'Staff Needed'!AH17, IF($BK$5=$BF$7, 'Staff Needed'!AJ17, 'Staff Needed'!AL17)) -> 0.05462499602 | BY21: =IF($BK$5=$BF$6, 'Staff Needed'!AI17, IF($BK$5=$BF$7, 'Staff Needed'!AK17, 'Staff Needed'!AM17)) -> 0.2609999881 | BZ21: ='Calc - SA_Resources'!BG47 -> 0.05462499602 | CA21: ='Calc - SA_Resources'!BH47 -> 0.2609999881
BJ22: 13 | BK22: =VLOOKUP(BJ22, 'Calc - Base'!$H$35:$I$400, 2) -> 2021-01-20 | BL22: =IF($BK$5=$BF$6, 'Staff Needed'!V18, IF($BK$5=$BF$7, 'Staff Needed'!X18, 'Staff Needed'!Z18)) -> 0.108610424 | BM22: =IF($BK$5=$BF$6, 'Staff Needed'!W18, IF($BK$5=$BF$7, 'Staff Needed'!Y18, 'Staff Needed'!AA18)) -> 0.7967015426 | BN22: ='Calc - SA_Resources'!AT48 -> 0.09199952309 | BO22: ='Calc - SA_Resources'!AU48 -> 0.5475380289 | BT22: =IF($BK$5=$BF$6, 'Staff Needed'!AB18, IF($BK$5=$BF$7, 'Staff Needed'!AD18, 'Staff Needed'!AF18)) -> 0.04983270275 | BU22: =IF($BK$5=$BF$6, 'Staff Needed'!AC18, IF($BK$5=$BF$7, 'Staff Needed'!AE18, 'Staff Needed'!AG18)) -> 0.5232433789 | BV22: ='Calc - SA_Resources'!BA48 -> 0.03322180183 | BW22: ='Calc - SA_Resources'!BB48 -> 0.2740798651 | BX22: =IF($BK$5=$BF$6, 'Staff Needed'!AH18, IF($BK$5=$BF$7, 'Staff Needed'!AJ18, 'Staff Needed'!AL18)) -> 0.05877772125 | BY22: =IF($BK$5=$BF$6, 'Staff Needed'!AI18, IF($BK$5=$BF$7, 'Staff Needed'!AK18, 'Staff Needed'!AM18)) -> 0.2734581638 | BZ22: ='Calc - SA_Resources'!BG48 -> 0.05877772125 | CA22: ='Calc - SA_Resources'!BH48 -> 0.2734581638
BJ23: 14 | BK23: =VLOOKUP(BJ23, 'Calc - Base'!$H$35:$I$400, 2) -> 2021-01-21 | BL23: =IF($BK$5=$BF$6, 'Staff Needed'!V19, IF($BK$5=$BF$7, 'Staff Needed'!X19, 'Staff Needed'!Z19)) -> 0.106722458 | BM23: =IF($BK$5=$BF$6, 'Staff Needed'!W19, IF($BK$5=$BF$7, 'Staff Needed'!Y19, 'Staff Needed'!AA19)) -> 0.7492174741 | BN23: ='Calc - SA_Resources'!AT49 -> 0.09197023128 | BO23: ='Calc - SA_Resources'!AU49 -> 0.5279340739 | BT23: =IF($BK$5=$BF$6, 'Staff Needed'!AB19, IF($BK$5=$BF$7, 'Staff Needed'!AD19, 'Staff Needed'!AF19)) -> 0.04425668003 | BU23: =IF($BK$5=$BF$6, 'Staff Needed'!AC19, IF($BK$5=$BF$7, 'Staff Needed'!AE19, 'Staff Needed'!AG19)) -> 0.4646951403 | BV23: ='Calc - SA_Resources'!BA49 -> 0.02950445335 | BW23: ='Calc - SA_Resources'!BB49 -> 0.2434117402 | BX23: =IF($BK$5=$BF$6, 'Staff Needed'!AH19, IF($BK$5=$BF$7, 'Staff Needed'!AJ19, 'Staff Needed'!AL19)) -> 0.06246577792 | BY23: =IF($BK$5=$BF$6, 'Staff Needed'!AI19, IF($BK$5=$BF$7, 'Staff Needed'!AK19, 'Staff Needed'!AM19)) -> 0.2845223338 | BZ23: ='Calc - SA_Resources'!BG49 -> 0.06246577792 | CA23: ='Calc - SA_Resources'!BH49 -> 0.2845223338
BJ24: 15 | BK24: =VLOOKUP(BJ24, 'Calc - Base'!$H$35:$I$400, 2) -> 2021-01-22 | BL24: =IF($BK$5=$BF$6, 'Staff Needed'!V20, IF($BK$5=$BF$7, 'Staff Needed'!X20, 'Staff Needed'!Z20)) -> 0.1773684895 | BM24: =IF($BK$5=$BF$6, 'Staff Needed'!W20, IF($BK$5=$BF$7, 'Staff Needed'!Y20, 'Staff Needed'!AA20)) -> 1.487368271 | BN24: ='Calc - SA_Resources'!AT50 -> 0.1400709411 | BO24: ='Calc - SA_Resources'!AU50 -> 0.9279050445 | BT24: =IF($BK$5=$BF$6, 'Staff Needed'!AB20, IF($BK$5=$BF$7, 'Staff Needed'!AD20, 'Staff Needed'!AF20)) -> 0.1118926453 | BU24: =IF($BK$5=$BF$6, 'Staff Needed'!AC20, IF($BK$5=$BF$7, 'Staff Needed'!AE20, 'Staff Needed'!AG20)) -> 1.174872776 | BV24: ='Calc - SA_Resources'!BA50 -> 0.07459509689 | BW24: ='Calc - SA_Resources'!BB50 -> 0.6154095494 | BX24: =IF($BK$5=$BF$6, 'Staff Needed'!AH20, IF($BK$5=$BF$7, 'Staff Needed'!AJ20, 'Staff Needed'!AL20)) -> 0.06547584417 | BY24: =IF($BK$5=$BF$6, 'Staff Needed'!AI20, IF($BK$5=$BF$7, 'Staff Needed'!AK20, 'Staff Needed'!AM20)) -> 0.3124954951 | BZ24: ='Calc - SA_Resources'!BG50 -> 0.06547584417 | CA24: ='Calc - SA_Resources'!BH50 -> 0.3124954951
BJ25: 16 | BK25: =VLOOKUP(BJ25, 'Calc - Base'!$H$35:$I$400, 2) -> 2021-01-23 | BL25: =IF($BK$5=$BF$6, 'Staff Needed'!V21, IF($BK$5=$BF$7, 'Staff Needed'!X21, 'Staff Needed'!Z21)) -> 0.1842462042 | BM25: =IF($BK$5=$BF$6, 'Staff Needed'!W21, IF($BK$5=$BF$7, 'Staff Needed'!Y21, 'Staff Needed'!AA21)) -> 1.558351598 | BN25: ='Calc - SA_Resources'!AT51 -> 0.1456150072 | BO25: ='Calc - SA_Resources'!AU51 -> 0.9788836432 | BT25: =IF($BK$5=$BF$6, 'Staff Needed'!AB21, IF($BK$5=$BF$7, 'Staff Needed'!AD21, 'Staff Needed'!AF21)) -> 0.115893591 | BU25: =IF($BK$5=$BF$6, 'Staff Needed'!AC21, IF($BK$5=$BF$7, 'Staff Needed'!AE21, 'Staff Needed'!AG21)) -> 1.216882705 | BV25: ='Calc - SA_Resources'!BA51 -> 0.07726239398 | BW25: ='Calc - SA_Resources'!BB51 -> 0.6374147504 | BX25: =IF($BK$5=$BF$6, 'Staff Needed'!AH21, IF($BK$5=$BF$7, 'Staff Needed'!AJ21, 'Staff Needed'!AL21)) -> 0.06835261321 | BY25: =IF($BK$5=$BF$6, 'Staff Needed'!AI21, IF($BK$5=$BF$7, 'Staff Needed'!AK21, 'Staff Needed'!AM21)) -> 0.3414688928 | BZ25: ='Calc - SA_Resources'!BG51 -> 0.06835261321 | CA25: ='Calc - SA_Resources'!BH51 -> 0.3414688928
BJ26: 17 | BK26: =VLOOKUP(BJ26, 'Calc - Base'!$H$35:$I$400, 2) -> 2021-01-24 | BL26: =IF($BK$5=$BF$6, 'Staff Needed'!V22, IF($BK$5=$BF$7, 'Staff Needed'!X22, 'Staff Needed'!Z22)) -> 0.1461159333 | BM26: =IF($BK$5=$BF$6, 'Staff Needed'!W22, IF($BK$5=$BF$7, 'Staff Needed'!Y22, 'Staff Needed'!AA22)) -> 1.144965697 | BN26: ='Calc - SA_Resources'!AT52 -> 0.1212013037 | BO26: ='Calc - SA_Resources'!AU52 -> 0.7712462531 | BT26: =IF($BK$5=$BF$6, 'Staff Needed'!AB22, IF($BK$5=$BF$7, 'Staff Needed'!AD22, 'Staff Needed'!AF22)) -> 0.07474388873 | BU26: =IF($BK$5=$BF$6, 'Staff Needed'!AC22, IF($BK$5=$BF$7, 'Staff Needed'!AE22, 'Staff Needed'!AG22)) -> 0.7848108317 | BV26: ='Calc - SA_Resources'!BA52 -> 0.04982925916 | BW26: ='Calc - SA_Resources'!BB52 -> 0.411091388 | BX26: =IF($BK$5=$BF$6, 'Staff Needed'!AH22, IF($BK$5=$BF$7, 'Staff Needed'!AJ22, 'Staff Needed'!AL22)) -> 0.07137204455 | BY26: =IF($BK$5=$BF$6, 'Staff Needed'!AI22, IF($BK$5=$BF$7, 'Staff Needed'!AK22, 'Staff Needed'!AM22)) -> 0.360154865 | BZ26: ='Calc - SA_Resources'!BG52 -> 0.07137204455 | CA26: ='Calc - SA_Resources'!BH52 -> 0.360154865
BJ27: 18 | BK27: =VLOOKUP(BJ27, 'Calc - Base'!$H$35:$I$400, 2) -> 2021-01-25 | BL27: =IF($BK$5=$BF$6, 'Staff Needed'!V23, IF($BK$5=$BF$7, 'Staff Needed'!X23, 'Staff Needed'!Z23)) -> 0.5293061962 | BM27: =IF($BK$5=$BF$6, 'Staff Needed'!W23, IF($BK$5=$BF$7, 'Staff Needed'!Y23, 'Staff Needed'!AA23)) -> 5.154273044 | BN27: ='Calc - SA_Resources'!AT53 -> 0.377639741 | BO27: ='Calc - SA_Resources'!AU53 -> 2.879276217 | BT27: =IF($BK$5=$BF$6, 'Staff Needed'!AB23, IF($BK$5=$BF$7, 'Staff Needed'!AD23, 'Staff Needed'!AF23)) -> 0.4549993655 | BU27: =IF($BK$5=$BF$6, 'Staff Needed'!AC23, IF($BK$5=$BF$7, 'Staff Needed'!AE23, 'Staff Needed'!AG23)) -> 4.777493338 | BV27: ='Calc - SA_Resources'!BA53 -> 0.3033329104 | BW27: ='Calc - SA_Resources'!BB53 -> 2.50249651 | BX27: =IF($BK$5=$BF$6, 'Staff Needed'!AH23, IF($BK$5=$BF$7, 'Staff Needed'!AJ23, 'Staff Needed'!AL23)) -> 0.07430683063 | BY27: =IF($BK$5=$BF$6, 'Staff Needed'!AI23, IF($BK$5=$BF$7, 'Staff Needed'!AK23, 'Staff Needed'!AM23)) -> 0.3767797064 | BZ27: ='Calc - SA_Resources'!BG53 -> 0.07430683063 | CA27: ='Calc - SA_Resources'!BH53 -> 0.3767797064
BJ28: 19 | BK28: =VLOOKUP(BJ28, 'Calc - Base'!$H$35:$I$400, 2) -> 2021-01-26 | BL28: =IF($BK$5=$BF$6, 'Staff Needed'!V24, IF($BK$5=$BF$7, 'Staff Needed'!X24, 'Staff Needed'!Z24)) -> 0.1491618165 | BM28: =IF($BK$5=$BF$6, 'Staff Needed'!W24, IF($BK$5=$BF$7, 'Staff Needed'!Y24, 'Staff Needed'!AA24)) -> 1.152700586 | BN28: ='Calc - SA_Resources'!AT54 -> 0.1251022543 | BO28: ='Calc - SA_Resources'!AU54 -> 0.7918071538 | BT28: =IF($BK$5=$BF$6, 'Staff Needed'!AB24, IF($BK$5=$BF$7, 'Staff Needed'!AD24, 'Staff Needed'!AF24)) -> 0.07217868649 | BU28: =IF($BK$5=$BF$6, 'Staff Needed'!AC24, IF($BK$5=$BF$7, 'Staff Needed'!AE24, 'Staff Needed'!AG24)) -> 0.7578762082 | BV28: ='Calc - SA_Resources'!BA54 -> 0.04811912433 | BW28: ='Calc - SA_Resources'!BB54 -> 0.3969827757 | BX28: =IF($BK$5=$BF$6, 'Staff Needed'!AH24, IF($BK$5=$BF$7, 'Staff Needed'!AJ24, 'Staff Needed'!AL24)) -> 0.07698312999 | BY28: =IF($BK$5=$BF$6, 'Staff Needed'!AI24, IF($BK$5=$BF$7, 'Staff Needed'!AK24, 'Staff Needed'!AM24)) -> 0.394824378 | BZ28: ='Calc - SA_Resources'!BG54 -> 0.07698312999 | CA28: ='Calc - SA_Resources'!BH54 -> 0.394824378
BJ29: 20 | BK29: =VLOOKUP(BJ29, 'Calc - Base'!$H$35:$I$400, 2) -> 2021-01-27 | BL29: =IF($BK$5=$BF$6, 'Staff Needed'!V25, IF($BK$5=$BF$7, 'Staff Needed'!X25, 'Staff Needed'!Z25)) -> 0.1596268537 | BM29: =IF($BK$5=$BF$6, 'Staff Needed'!W25, IF($BK$5=$BF$7, 'Staff Needed'!Y25, 'Staff Needed'!AA25)) -> 1.256112218 | BN29: ='Calc - SA_Resources'!AT55 -> 0.132920254 | BO29: ='Calc - SA_Resources'!AU55 -> 0.8555132226 | BT29: =IF($BK$5=$BF$6, 'Staff Needed'!AB25, IF($BK$5=$BF$7, 'Staff Needed'!AD25, 'Staff Needed'!AF25)) -> 0.08011979905 | BU29: =IF($BK$5=$BF$6, 'Staff Needed'!AC25, IF($BK$5=$BF$7, 'Staff Needed'!AE25, 'Staff Needed'!AG25)) -> 0.84125789 | BV29: ='Calc - SA_Resources'!BA55 -> 0.05341319936 | BW29: ='Calc - SA_Resources'!BB55 -> 0.4406588948 | BX29: =IF($BK$5=$BF$6, 'Staff Needed'!AH25, IF($BK$5=$BF$7, 'Staff Needed'!AJ25, 'Staff Needed'!AL25)) -> 0.07950705468 | BY29: =IF($BK$5=$BF$6, 'Staff Needed'!AI25, IF($BK$5=$BF$7, 'Staff Needed'!AK25, 'Staff Needed'!AM25)) -> 0.4148543278 | BZ29: ='Calc - SA_Resources'!BG55 -> 0.07950705468 | CA29: ='Calc - SA_Resources'!BH55 -> 0.4148543278
BJ30: 21 | BK30: =VLOOKUP(BJ30, 'Calc - Base'!$H$35:$I$400, 2) -> 2021-01-28 | BL30: =IF($BK$5=$BF$6, 'Staff Needed'!V26, IF($BK$5=$BF$7, 'Staff Needed'!X26, 'Staff Needed'!Z26)) -> 0.1559156656 | BM30: =IF($BK$5=$BF$6, 'Staff Needed'!W26, IF($BK$5=$BF$7, 'Staff Needed'!Y26, 'Staff Needed'!AA26)) -> 1.209659722 | BN30: ='Calc - SA_Resources'!AT56 -> 0.1312705371 | BO30: ='Calc - SA_Resources'!AU56 -> 0.8399827944 | BT30: =IF($BK$5=$BF$6, 'Staff Needed'!AB26, IF($BK$5=$BF$7, 'Staff Needed'!AD26, 'Staff Needed'!AF26)) -> 0.07393538549 | BU30: =IF($BK$5=$BF$6, 'Staff Needed'!AC26, IF($BK$5=$BF$7, 'Staff Needed'!AE26, 'Staff Needed'!AG26)) -> 0.7763215477 | BV30: ='Calc - SA_Resources'!BA56 -> 0.049290257 | BW30: ='Calc - SA_Resources'!BB56 -> 0.4066446202 | BX30: =IF($BK$5=$BF$6, 'Staff Needed'!AH26, IF($BK$5=$BF$7, 'Staff Needed'!AJ26, 'Staff Needed'!AL26)) -> 0.08198028013 | BY30: =IF($BK$5=$BF$6, 'Staff Needed'!AI26, IF($BK$5=$BF$7, 'Staff Needed'!AK26, 'Staff Needed'!AM26)) -> 0.4333381742 | BZ30: ='Calc - SA_Resources'!BG56 -> 0.08198028013 | CA30: ='Calc - SA_Resources'!BH56 -> 0.4333381742
BJ31: 22 | BK31: =VLOOKUP(BJ31, 'Calc - Base'!$H$35:$I$400, 2) -> 2021-01-29 | BL31: =IF($BK$5=$BF$6, 'Staff Needed'!V27, IF($BK$5=$BF$7, 'Staff Needed'!X27, 'Staff Needed'!Z27)) -> 0.2251852547 | BM31: =IF($BK$5=$BF$6, 'Staff Needed'!W27, IF($BK$5=$BF$7, 'Staff Needed'!Y27, 'Staff Needed'!AA27)) -> 1.927955801 | BN31: ='Calc - SA_Resources'!AT57 -> 0.1782531434 | BO31: ='Calc - SA_Resources'!AU57 -> 1.223974131 | BT31: =IF($BK$5=$BF$6, 'Staff Needed'!AB27, IF($BK$5=$BF$7, 'Staff Needed'!AD27, 'Staff Needed'!AF27)) -> 0.1407963339 | BU31: =IF($BK$5=$BF$6, 'Staff Needed'!AC27, IF($BK$5=$BF$7, 'Staff Needed'!AE27, 'Staff Needed'!AG27)) -> 1.478361505 | BV31: ='Calc - SA_Resources'!BA57 -> 0.09386422257 | BW31: ='Calc - SA_Resources'!BB57 -> 0.7743798362 | BX31: =IF($BK$5=$BF$6, 'Staff Needed'!AH27, IF($BK$5=$BF$7, 'Staff Needed'!AJ27, 'Staff Needed'!AL27)) -> 0.08438892084 | BY31: =IF($BK$5=$BF$6, 'Staff Needed'!AI27, IF($BK$5=$BF$7, 'Staff Needed'!AK27, 'Staff Needed'!AM27)) -> 0.449594295 | BZ31: ='Calc - SA_Resources'!BG57 -> 0.08438892084 | CA31: ='Calc - SA_Resources'!BH57 -> 0.449594295
BJ32: 23 | BK32: =VLOOKUP(BJ32, 'Calc - Base'!$H$35:$I$400, 2) -> 2021-01-30 | BL32: =IF($BK$5=$BF$6, 'Staff Needed'!V28, IF($BK$5=$BF$7, 'Staff Needed'!X28, 'Staff Needed'!Z28)) -> 0.229911451 | BM32: =IF($BK$5=$BF$6, 'Staff Needed'!W28, IF($BK$5=$BF$7, 'Staff Needed'!Y28, 'Staff Needed'!AA28)) -> 1.96911755 | BN32: ='Calc - SA_Resources'!AT58 -> 0.1821636573 | BO32: ='Calc - SA_Resources'!AU58 -> 1.252900645 | BT32: =IF($BK$5=$BF$6, 'Staff Needed'!AB28, IF($BK$5=$BF$7, 'Staff Needed'!AD28, 'Staff Needed'!AF28)) -> 0.143243381 | BU32: =IF($BK$5=$BF$6, 'Staff Needed'!AC28, IF($BK$5=$BF$7, 'Staff Needed'!AE28, 'Staff Needed'!AG28)) -> 1.5040555 | BV32: ='Calc - SA_Resources'!BA58 -> 0.09549558732 | BW32: ='Calc - SA_Resources'!BB58 -> 0.7878385954 | BX32: =IF($BK$5=$BF$6, 'Staff Needed'!AH28, IF($BK$5=$BF$7, 'Staff Needed'!AJ28, 'Staff Needed'!AL28)) -> 0.08666807001 | BY32: =IF($BK$5=$BF$6, 'Staff Needed'!AI28, IF($BK$5=$BF$7, 'Staff Needed'!AK28, 'Staff Needed'!AM28)) -> 0.4650620497 | BZ32: ='Calc - SA_Resources'!BG58 -> 0.08666807001 | CA32: ='Calc - SA_Resources'!BH58 -> 0.4650620497
BJ33: 24 | BK33: =VLOOKUP(BJ33, 'Calc - Base'!$H$35:$I$400, 2) -> 2021-01-31 | BL33: =IF($BK$5=$BF$6, 'Staff Needed'!V29, IF($BK$5=$BF$7, 'Staff Needed'!X29, 'Staff Needed'!Z29)) -> 0.1894289669 | BM33: =IF($BK$5=$BF$6, 'Staff Needed'!W29, IF($BK$5=$BF$7, 'Staff Needed'!Y29, 'Staff Needed'!AA29)) -> 1.536946102 | BN33: ='Calc - SA_Resources'!AT59 -> 0.1558937194 | BO33: ='Calc - SA_Resources'!AU59 -> 1.03391739 | BT33: =IF($BK$5=$BF$6, 'Staff Needed'!AB29, IF($BK$5=$BF$7, 'Staff Needed'!AD29, 'Staff Needed'!AF29)) -> 0.1006057424 | BU33: =IF($BK$5=$BF$6, 'Staff Needed'!AC29, IF($BK$5=$BF$7, 'Staff Needed'!AE29, 'Staff Needed'!AG29)) -> 1.056360295 | BV33: ='Calc - SA_Resources'!BA59 -> 0.06707049494 | BW33: ='Calc - SA_Resources'!BB59 -> 0.5533315833 | BX33: =IF($BK$5=$BF$6, 'Staff Needed'!AH29, IF($BK$5=$BF$7, 'Staff Needed'!AJ29, 'Staff Needed'!AL29)) -> 0.08882322448 | BY33: =IF($BK$5=$BF$6, 'Staff Needed'!AI29, IF($BK$5=$BF$7, 'Staff Needed'!AK29, 'Staff Needed'!AM29)) -> 0.4805858071 | BZ33: ='Calc - SA_Resources'!BG59 -> 0.08882322448 | CA33: ='Calc - SA_Resources'!BH59 -> 0.4805858071
BJ34: 25 | BK34: =VLOOKUP(BJ34, 'Calc - Base'!$H$35:$I$400, 2) -> 2021-02-01 | BL34: =IF($BK$5=$BF$6, 'Staff Needed'!V30, IF($BK$5=$BF$7, 'Staff Needed'!X30, 'Staff Needed'!Z30)) -> 0.5677882782 | BM34: =IF($BK$5=$BF$6, 'Staff Needed'!W30, IF($BK$5=$BF$7, 'Staff Needed'!Y30, 'Staff Needed'!AA30)) -> 5.504696871 | BN34: ='Calc - SA_Resources'!AT60 -> 0.4087477651 | BO34: ='Calc - SA_Resources'!AU60 -> 3.119089175 | BT34: =IF($BK$5=$BF$6, 'Staff Needed'!AB30, IF($BK$5=$BF$7, 'Staff Needed'!AD30, 'Staff Needed'!AF30)) -> 0.4771215393 | BU34: =IF($BK$5=$BF$6, 'Staff Needed'!AC30, IF($BK$5=$BF$7, 'Staff Needed'!AE30, 'Staff Needed'!AG30)) -> 5.009776162 | BV34: ='Calc - SA_Resources'!BA60 -> 0.3180810262 | BW34: ='Calc - SA_Resources'!BB60 -> 2.624168466 | BX34: =IF($BK$5=$BF$6, 'Staff Needed'!AH30, IF($BK$5=$BF$7, 'Staff Needed'!AJ30, 'Staff Needed'!AL30)) -> 0.09066673896 | BY34: =IF($BK$5=$BF$6, 'Staff Needed'!AI30, IF($BK$5=$BF$7, 'Staff Needed'!AK30, 'Staff Needed'!AM30)) -> 0.4949207088 | BZ34: ='Calc - SA_Resources'!BG60 -> 0.09066673896 | CA34: ='Calc - SA_Resources'!BH60 -> 0.4949207088
BJ35: 26 | BK35: =VLOOKUP(BJ35, 'Calc - Base'!$H$35:$I$400, 2) -> 2021-02-02 | BL35: =IF($BK$5=$BF$6, 'Staff Needed'!V31, IF($BK$5=$BF$7, 'Staff Needed'!X31, 'Staff Needed'!Z31)) -> 0.1886875165 | BM35: =IF($BK$5=$BF$6, 'Staff Needed'!W31, IF($BK$5=$BF$7, 'Staff Needed'!Y31, 'Staff Needed'!AA31)) -> 1.517258872 | BN35: ='Calc - SA_Resources'!AT61 -> 0.1566765417 | BO35: ='Calc - SA_Resources'!AU61 -> 1.03709425 | BT35: =IF($BK$5=$BF$6, 'Staff Needed'!AB31, IF($BK$5=$BF$7, 'Staff Needed'!AD31, 'Staff Needed'!AF31)) -> 0.09603292437 | BU35: =IF($BK$5=$BF$6, 'Staff Needed'!AC31, IF($BK$5=$BF$7, 'Staff Needed'!AE31, 'Staff Needed'!AG31)) -> 1.008345706 | BV35: ='Calc - SA_Resources'!BA61 -> 0.06402194958 | BW35: ='Calc - SA_Resources'!BB61 -> 0.5281810841 | BX35: =IF($BK$5=$BF$6, 'Staff Needed'!AH31, IF($BK$5=$BF$7, 'Staff Needed'!AJ31, 'Staff Needed'!AL31)) -> 0.09265459212 | BY35: =IF($BK$5=$BF$6, 'Staff Needed'!AI31, IF($BK$5=$BF$7, 'Staff Needed'!AK31, 'Staff Needed'!AM31)) -> 0.5089131663 | BZ35: ='Calc - SA_Resources'!BG61 -> 0.09265459212 | CA35: ='Calc - SA_Resources'!BH61 -> 0.5089131663
BJ36: 27 | BK36: =VLOOKUP(BJ36, 'Calc - Base'!$H$35:$I$400, 2) -> 2021-02-03 | BL36: =IF($BK$5=$BF$6, 'Staff Needed'!V32, IF($BK$5=$BF$7, 'Staff Needed'!X32, 'Staff Needed'!Z32)) -> 0.1974817788 | BM36: =IF($BK$5=$BF$6, 'Staff Needed'!W32, IF($BK$5=$BF$7, 'Staff Needed'!Y32, 'Staff Needed'!AA32)) -> 1.602916139 | BN36: ='Calc - SA_Resources'!AT62 -> 0.163172906 | BO36: ='Calc - SA_Resources'!AU62 -> 1.088283047 | BT36: =IF($BK$5=$BF$6, 'Staff Needed'!AB32, IF($BK$5=$BF$7, 'Staff Needed'!AD32, 'Staff Needed'!AF32)) -> 0.1029266184 | BU36: =IF($BK$5=$BF$6, 'Staff Needed'!AC32, IF($BK$5=$BF$7, 'Staff Needed'!AE32, 'Staff Needed'!AG32)) -> 1.080729494 | BV36: ='Calc - SA_Resources'!BA62 -> 0.06861774562 | BW36: ='Calc - SA_Resources'!BB62 -> 0.5660964014 | BX36: =IF($BK$5=$BF$6, 'Staff Needed'!AH32, IF($BK$5=$BF$7, 'Staff Needed'!AJ32, 'Staff Needed'!AL32)) -> 0.0945551604 | BY36: =IF($BK$5=$BF$6, 'Staff Needed'!AI32, IF($BK$5=$BF$7, 'Staff Needed'!AK32, 'Staff Needed'!AM32)) -> 0.5221866452 | BZ36: ='Calc - SA_Resources'!BG62 -> 0.0945551604 | CA36: ='Calc - SA_Resources'!BH62 -> 0.5221866452
BJ37: 28 | BK37: =VLOOKUP(BJ37, 'Calc - Base'!$H$35:$I$400, 2) -> 2021-02-04 | BL37: =IF($BK$5=$BF$6, 'Staff Needed'!V33, IF($BK$5=$BF$7, 'Staff Needed'!X33, 'Staff Needed'!Z33)) -> 0.1919990805 | BM37: =IF($BK$5=$BF$6, 'Staff Needed'!W33, IF($BK$5=$BF$7, 'Staff Needed'!Y33, 'Staff Needed'!AA33)) -> 1.539204867 | BN37: ='Calc - SA_Resources'!AT63 -> 0.1601205568 | BO37: ='Calc - SA_Resources'!AU63 -> 1.06102701 | BT37: =IF($BK$5=$BF$6, 'Staff Needed'!AB33, IF($BK$5=$BF$7, 'Staff Needed'!AD33, 'Staff Needed'!AF33)) -> 0.09563557132 | BU37: =IF($BK$5=$BF$6, 'Staff Needed'!AC33, IF($BK$5=$BF$7, 'Staff Needed'!AE33, 'Staff Needed'!AG33)) -> 1.004173499 | BV37: ='Calc - SA_Resources'!BA63 -> 0.06375704755 | BW37: ='Calc - SA_Resources'!BB63 -> 0.5259956423 | BX37: =IF($BK$5=$BF$6, 'Staff Needed'!AH33, IF($BK$5=$BF$7, 'Staff Needed'!AJ33, 'Staff Needed'!AL33)) -> 0.09636350922 | BY37: =IF($BK$5=$BF$6, 'Staff Needed'!AI33, IF($BK$5=$BF$7, 'Staff Needed'!AK33, 'Staff Needed'!AM33)) -> 0.5350313681 | BZ37: ='Calc - SA_Resources'!BG63 -> 0.09636350922 | CA37: ='Calc - SA_Resources'!BH63 -> 0.5350313681
BJ38: 29 | BK38: =VLOOKUP(BJ38, 'Calc - Base'!$H$35:$I$400, 2) -> 2021-02-05 | BL38: =IF($BK$5=$BF$6, 'Staff Needed'!V34, IF($BK$5=$BF$7, 'Staff Needed'!X34, 'Staff Needed'!Z34)) -> 0.2584286695 | BM38: =IF($BK$5=$BF$6, 'Staff Needed'!W34, IF($BK$5=$BF$7, 'Staff Needed'!Y34, 'Staff Needed'!AA34)) -> 2.231670996 | BN38: ='Calc - SA_Resources'!AT64 -> 0.2049523039 | BO38: ='Calc - SA_Resources'!AU64 -> 1.429525513 | BT38: =IF($BK$5=$BF$6, 'Staff Needed'!AB34, IF($BK$5=$BF$7, 'Staff Needed'!AD34, 'Staff Needed'!AF34)) -> 0.1604290967 | BU38: =IF($BK$5=$BF$6, 'Staff Needed'!AC34, IF($BK$5=$BF$7, 'Staff Needed'!AE34, 'Staff Needed'!AG34)) -> 1.684505515 | BV38: ='Calc - SA_Resources'!BA64 -> 0.1069527311 | BW38: ='Calc - SA_Resources'!BB64 -> 0.8823600317 | BX38: =IF($BK$5=$BF$6, 'Staff Needed'!AH34, IF($BK$5=$BF$7, 'Staff Needed'!AJ34, 'Staff Needed'!AL34)) -> 0.09799957279 | BY38: =IF($BK$5=$BF$6, 'Staff Needed'!AI34, IF($BK$5=$BF$7, 'Staff Needed'!AK34, 'Staff Needed'!AM34)) -> 0.5471654809 | BZ38: ='Calc - SA_Resources'!BG64 -> 0.09799957279 | CA38: ='Calc - SA_Resources'!BH64 -> 0.5471654809
BJ39: 30 | BK39: =VLOOKUP(BJ39, 'Calc - Base'!$H$35:$I$400, 2) -> 2021-02-06 | BL39: =IF($BK$5=$BF$6, 'Staff Needed'!V35, IF($BK$5=$BF$7, 'Staff Needed'!X35, 'Staff Needed'!Z35)) -> 0.2614500262 | BM39: =IF($BK$5=$BF$6, 'Staff Needed'!W35, IF($BK$5=$BF$7, 'Staff Needed'!Y35, 'Staff Needed'!AA35)) -> 2.258574763 | BN39: ='Calc - SA_Resources'!AT65 -> 0.2074846718 | BO39: ='Calc - SA_Resources'!AU65 -> 1.449094447 | BT39: =IF($BK$5=$BF$6, 'Staff Needed'!AB35, IF($BK$5=$BF$7, 'Staff Needed'!AD35, 'Staff Needed'!AF35)) -> 0.1618960633 | BU39: =IF($BK$5=$BF$6, 'Staff Needed'!AC35, IF($BK$5=$BF$7, 'Staff Needed'!AE35, 'Staff Needed'!AG35)) -> 1.699908664 | BV39: ='Calc - SA_Resources'!BA65 -> 0.1079307088 | BW39: ='Calc - SA_Resources'!BB65 -> 0.890428348 | BX39: =IF($BK$5=$BF$6, 'Staff Needed'!AH35, IF($BK$5=$BF$7, 'Staff Needed'!AJ35, 'Staff Needed'!AL35)) -> 0.09955396298 | BY39: =IF($BK$5=$BF$6, 'Staff Needed'!AI35, IF($BK$5=$BF$7, 'Staff Needed'!AK35, 'Staff Needed'!AM35)) -> 0.558666099 | BZ39: ='Calc - SA_Resources'!BG65 -> 0.09955396298 | CA39: ='Calc - SA_Resources'!BH65 -> 0.558666099
BJ40: 31 | BK40: =VLOOKUP(BJ40, 'Calc - Base'!$H$35:$I$400, 2) -> 2021-02-07 | BL40: =IF($BK$5=$BF$6, 'Staff Needed'!V36, IF($BK$5=$BF$7, 'Staff Needed'!X36, 'Staff Needed'!Z36)) -> 0.220081936 | BM40: =IF($BK$5=$BF$6, 'Staff Needed'!W36, IF($BK$5=$BF$7, 'Staff Needed'!Y36, 'Staff Needed'!AA36)) -> 1.819181685 | BN40: ='Calc - SA_Resources'!AT66 -> 0.1804167714 | BO40: ='Calc - SA_Resources'!AU66 -> 1.224204216 | BT40: =IF($BK$5=$BF$6, 'Staff Needed'!AB36, IF($BK$5=$BF$7, 'Staff Needed'!AD36, 'Staff Needed'!AF36)) -> 0.1189954938 | BU40: =IF($BK$5=$BF$6, 'Staff Needed'!AC36, IF($BK$5=$BF$7, 'Staff Needed'!AE36, 'Staff Needed'!AG36)) -> 1.249452685 | BV40: ='Calc - SA_Resources'!BA66 -> 0.07933032918 | BW40: ='Calc - SA_Resources'!BB66 -> 0.6544752157 | BX40: =IF($BK$5=$BF$6, 'Staff Needed'!AH36, IF($BK$5=$BF$7, 'Staff Needed'!AJ36, 'Staff Needed'!AL36)) -> 0.1010864423 | BY40: =IF($BK$5=$BF$6, 'Staff Needed'!AI36, IF($BK$5=$BF$7, 'Staff Needed'!AK36, 'Staff Needed'!AM36)) -> 0.5697290002 | BZ40: ='Calc - SA_Resources'!BG66 -> 0.1010864423 | CA40: ='Calc - SA_Resources'!BH66 -> 0.5697290002
BJ41: 32 | BK41: =VLOOKUP(BJ41, 'Calc - Base'!$H$35:$I$400, 2) -> 2021-02-08 | BL41: =IF($BK$5=$BF$6, 'Staff Needed'!V37, IF($BK$5=$BF$7, 'Staff Needed'!X37, 'Staff Needed'!Z37)) -> 0.5939672254 | BM41: =IF($BK$5=$BF$6, 'Staff Needed'!W37, IF($BK$5=$BF$7, 'Staff Needed'!Y37, 'Staff Needed'!AA37)) -> 5.741415895 | BN41: ='Calc - SA_Resources'!AT67 -> 0.4300777142 | BO41: ='Calc - SA_Resources'!AU67 -> 3.283073227 | BT41: =IF($BK$5=$BF$6, 'Staff Needed'!AB37, IF($BK$5=$BF$7, 'Staff Needed'!AD37, 'Staff Needed'!AF37)) -> 0.4916685336 | BU41: =IF($BK$5=$BF$6, 'Staff Needed'!AC37, IF($BK$5=$BF$7, 'Staff Needed'!AE37, 'Staff Needed'!AG37)) -> 5.162519603 | BV41: ='Calc - SA_Resources'!BA67 -> 0.3277790224 | BW41: ='Calc - SA_Resources'!BB67 -> 2.704176935 | BX41: =IF($BK$5=$BF$6, 'Staff Needed'!AH37, IF($BK$5=$BF$7, 'Staff Needed'!AJ37, 'Staff Needed'!AL37)) -> 0.1022986918 | BY41: =IF($BK$5=$BF$6, 'Staff Needed'!AI37, IF($BK$5=$BF$7, 'Staff Needed'!AK37, 'Staff Needed'!AM37)) -> 0.5788962922 | BZ41: ='Calc - SA_Resources'!BG67 -> 0.1022986918 | CA41: ='Calc - SA_Resources'!BH67 -> 0.5788962922
BJ42: 33 | BK42: =VLOOKUP(BJ42, 'Calc - Base'!$H$35:$I$400, 2) -> 2021-02-09 | BL42: =IF($BK$5=$BF$6, 'Staff Needed'!V38, IF($BK$5=$BF$7, 'Staff Needed'!X38, 'Staff Needed'!Z38)) -> 0.2162078759 | BM42: =IF($BK$5=$BF$6, 'Staff Needed'!W38, IF($BK$5=$BF$7, 'Staff Needed'!Y38, 'Staff Needed'!AA38)) -> 1.770593058 | BN42: ='Calc - SA_Resources'!AT68 -> 0.1786965135 | BO42: ='Calc - SA_Resources'!AU68 -> 1.207922622 | BT42: =IF($BK$5=$BF$6, 'Staff Needed'!AB38, IF($BK$5=$BF$7, 'Staff Needed'!AD38, 'Staff Needed'!AF38)) -> 0.1125340872 | BU42: =IF($BK$5=$BF$6, 'Staff Needed'!AC38, IF($BK$5=$BF$7, 'Staff Needed'!AE38, 'Staff Needed'!AG38)) -> 1.181607915 | BV42: ='Calc - SA_Resources'!BA68 -> 0.07502272478 | BW42: ='Calc - SA_Resources'!BB68 -> 0.6189374795 | BX42: =IF($BK$5=$BF$6, 'Staff Needed'!AH38, IF($BK$5=$BF$7, 'Staff Needed'!AJ38, 'Staff Needed'!AL38)) -> 0.1036737887 | BY42: =IF($BK$5=$BF$6, 'Staff Needed'!AI38, IF($BK$5=$BF$7, 'Staff Needed'!AK38, 'Staff Needed'!AM38)) -> 0.5889851424 | BZ42: ='Calc - SA_Resources'!BG68 -> 0.1036737887 | CA42: ='Calc - SA_Resources'!BH68 -> 0.5889851424
BJ43: 34 | BK43: =VLOOKUP(BJ43, 'Calc - Base'!$H$35:$I$400, 2) -> 2021-02-10 | BL43: =IF($BK$5=$BF$6, 'Staff Needed'!V39, IF($BK$5=$BF$7, 'Staff Needed'!X39, 'Staff Needed'!Z39)) -> 0.2233385086 | BM43: =IF($BK$5=$BF$6, 'Staff Needed'!W39, IF($BK$5=$BF$7, 'Staff Needed'!Y39, 'Staff Needed'!AA39)) -> 1.841509809 | BN43: ='Calc - SA_Resources'!AT69 -> 0.1838794507 | BO43: ='Calc - SA_Resources'!AU69 -> 1.249623941 | BT43: =IF($BK$5=$BF$6, 'Staff Needed'!AB39, IF($BK$5=$BF$7, 'Staff Needed'!AD39, 'Staff Needed'!AF39)) -> 0.1183771736 | BU43: =IF($BK$5=$BF$6, 'Staff Needed'!AC39, IF($BK$5=$BF$7, 'Staff Needed'!AE39, 'Staff Needed'!AG39)) -> 1.242960323 | BV43: ='Calc - SA_Resources'!BA69 -> 0.07891811576 | BW43: ='Calc - SA_Resources'!BB69 -> 0.651074455 | BX43: =IF($BK$5=$BF$6, 'Staff Needed'!AH39, IF($BK$5=$BF$7, 'Staff Needed'!AJ39, 'Staff Needed'!AL39)) -> 0.104961335 | BY43: =IF($BK$5=$BF$6, 'Staff Needed'!AI39, IF($BK$5=$BF$7, 'Staff Needed'!AK39, 'Staff Needed'!AM39)) -> 0.5985494861 | BZ43: ='Calc - SA_Resources'!BG69 -> 0.104961335 | CA43: ='Calc - SA_Resources'!BH69 -> 0.5985494861
BJ44: 35 | BK44: =VLOOKUP(BJ44, 'Calc - Base'!$H$35:$I$400, 2) -> 2021-02-11 | BL44: =IF($BK$5=$BF$6, 'Staff Needed'!V40, IF($BK$5=$BF$7, 'Staff Needed'!X40, 'Staff Needed'!Z40)) -> 0.2166104064 | BM44: =IF($BK$5=$BF$6, 'Staff Needed'!W40, IF($BK$5=$BF$7, 'Staff Needed'!Y40, 'Staff Needed'!AA40)) -> 1.767051225 | BN44: ='Calc - SA_Resources'!AT70 -> 0.1798046518 | BO44: ='Calc - SA_Resources'!AU70 -> 1.214964906 | BT44: =IF($BK$5=$BF$6, 'Staff Needed'!AB40, IF($BK$5=$BF$7, 'Staff Needed'!AD40, 'Staff Needed'!AF40)) -> 0.1104172638 | BU44: =IF($BK$5=$BF$6, 'Staff Needed'!AC40, IF($BK$5=$BF$7, 'Staff Needed'!AE40, 'Staff Needed'!AG40)) -> 1.159381269 | BV44: ='Calc - SA_Resources'!BA70 -> 0.07361150917 | BW44: ='Calc - SA_Resources'!BB70 -> 0.6072949507 | BX44: =IF($BK$5=$BF$6, 'Staff Needed'!AH40, IF($BK$5=$BF$7, 'Staff Needed'!AJ40, 'Staff Needed'!AL40)) -> 0.1061931427 | BY44: =IF($BK$5=$BF$6, 'Staff Needed'!AI40, IF($BK$5=$BF$7, 'Staff Needed'!AK40, 'Staff Needed'!AM40)) -> 0.6076699556 | BZ44: ='Calc - SA_Resources'!BG70 -> 0.1061931427 | CA44: ='Calc - SA_Resources'!BH70 -> 0.6076699556
BJ45: 36 | BK45: =VLOOKUP(BJ45, 'Calc - Base'!$H$35:$I$400, 2) -> 2021-02-12 | BL45: =IF($BK$5=$BF$6, 'Staff Needed'!V41, IF($BK$5=$BF$7, 'Staff Needed'!X41, 'Staff Needed'!Z41)) -> 0.280696885 | BM45: =IF($BK$5=$BF$6, 'Staff Needed'!W41, IF($BK$5=$BF$7, 'Staff Needed'!Y41, 'Staff Needed'!AA41)) -> 2.436747453 | BN45: ='Calc - SA_Resources'!AT71 -> 0.2228898592 | BO45: ='Calc - SA_Resources'!AU71 -> 1.569642066 | BT45: =IF($BK$5=$BF$6, 'Staff Needed'!AB41, IF($BK$5=$BF$7, 'Staff Needed'!AD41, 'Staff Needed'!AF41)) -> 0.1734210773 | BU45: =IF($BK$5=$BF$6, 'Staff Needed'!AC41, IF($BK$5=$BF$7, 'Staff Needed'!AE41, 'Staff Needed'!AG41)) -> 1.820921311 | BV45: ='Calc - SA_Resources'!BA71 -> 0.1156140515 | BW45: ='Calc - SA_Resources'!BB71 -> 0.9538159249 | BX45: =IF($BK$5=$BF$6, 'Staff Needed'!AH41, IF($BK$5=$BF$7, 'Staff Needed'!AJ41, 'Staff Needed'!AL41)) -> 0.1072758077 | BY45: =IF($BK$5=$BF$6, 'Staff Needed'!AI41, IF($BK$5=$BF$7, 'Staff Needed'!AK41, 'Staff Needed'!AM41)) -> 0.6158261415 | BZ45: ='Calc - SA_Resources'!BG71 -> 0.1072758077 | CA45: ='Calc - SA_Resources'!BH71 -> 0.6158261415
BJ46: 37 | BK46: =VLOOKUP(BJ46, 'Calc - Base'!$H$35:$I$400, 2) -> 2021-02-13 | BL46: =IF($BK$5=$BF$6, 'Staff Needed'!V42, IF($BK$5=$BF$7, 'Staff Needed'!X42, 'Staff Needed'!Z42)) -> 0.2823635231 | BM46: =IF($BK$5=$BF$6, 'Staff Needed'!W42, IF($BK$5=$BF$7, 'Staff Needed'!Y42, 'Staff Needed'!AA42)) -> 2.451299755 | BN46: ='Calc - SA_Resources'!AT72 -> 0.2243391988 | BO46: ='Calc - SA_Resources'!AU72 -> 1.580934891 | BT46: =IF($BK$5=$BF$6, 'Staff Needed'!AB42, IF($BK$5=$BF$7, 'Staff Needed'!AD42, 'Staff Needed'!AF42)) -> 0.1740729729 | BU46: =IF($BK$5=$BF$6, 'Staff Needed'!AC42, IF($BK$5=$BF$7, 'Staff Needed'!AE42, 'Staff Needed'!AG42)) -> 1.827766216 | BV46: ='Calc - SA_Resources'!BA72 -> 0.1160486486 | BW46: ='Calc - SA_Resources'!BB72 -> 0.9574013512 | BX46: =IF($BK$5=$BF$6, 'Staff Needed'!AH42, IF($BK$5=$BF$7, 'Staff Needed'!AJ42, 'Staff Needed'!AL42)) -> 0.1082905502 | BY46: =IF($BK$5=$BF$6, 'Staff Needed'!AI42, IF($BK$5=$BF$7, 'Staff Needed'!AK42, 'Staff Needed'!AM42)) -> 0.6235335395 | BZ46: ='Calc - SA_Resources'!BG72 -> 0.1082905502 | CA46: ='Calc - SA_Resources'!BH72 -> 0.6235335395
BJ47: 38 | BK47: =VLOOKUP(BJ47, 'Calc - Base'!$H$35:$I$400, 2) -> 2021-02-14 | BL47: =IF($BK$5=$BF$6, 'Staff Needed'!V43, IF($BK$5=$BF$7, 'Staff Needed'!X43, 'Staff Needed'!Z43)) -> 0.2403810636 | BM47: =IF($BK$5=$BF$6, 'Staff Needed'!W43, IF($BK$5=$BF$7, 'Staff Needed'!Y43, 'Staff Needed'!AA43)) -> 2.007526549 | BN47: ='Calc - SA_Resources'!AT73 -> 0.1966866622 | BO47: ='Calc - SA_Resources'!AU73 -> 1.352110528 | BT47: =IF($BK$5=$BF$6, 'Staff Needed'!AB43, IF($BK$5=$BF$7, 'Staff Needed'!AD43, 'Staff Needed'!AF43)) -> 0.1310832042 | BU47: =IF($BK$5=$BF$6, 'Staff Needed'!AC43, IF($BK$5=$BF$7, 'Staff Needed'!AE43, 'Staff Needed'!AG43)) -> 1.376373644 | BV47: ='Calc - SA_Resources'!BA73 -> 0.08738880279 | BW47: ='Calc - SA_Resources'!BB73 -> 0.720957623 | BX47: =IF($BK$5=$BF$6, 'Staff Needed'!AH43, IF($BK$5=$BF$7, 'Staff Needed'!AJ43, 'Staff Needed'!AL43)) -> 0.1092978594 | BY47: =IF($BK$5=$BF$6, 'Staff Needed'!AI43, IF($BK$5=$BF$7, 'Staff Needed'!AK43, 'Staff Needed'!AM43)) -> 0.6311529049 | BZ47: ='Calc - SA_Resources'!BG73 -> 0.1092978594 | CA47: ='Calc - SA_Resources'!BH73 -> 0.6311529049
BJ48: 39 | BK48: =VLOOKUP(BJ48, 'Calc - Base'!$H$35:$I$400, 2) -> 2021-02-15 | BL48: =IF($BK$5=$BF$6, 'Staff Needed'!V44, IF($BK$5=$BF$7, 'Staff Needed'!X44, 'Staff Needed'!Z44)) -> 0.6098488082 | BM48: =IF($BK$5=$BF$6, 'Staff Needed'!W44, IF($BK$5=$BF$7, 'Staff Needed'!Y44, 'Staff Needed'!AA44)) -> 5.885450146 | BN48: ='Calc - SA_Resources'!AT74 -> 0.4432262462 | BO48: ='Calc - SA_Resources'!AU74 -> 3.386111715 | BT48: =IF($BK$5=$BF$6, 'Staff Needed'!AB44, IF($BK$5=$BF$7, 'Staff Needed'!AD44, 'Staff Needed'!AF44)) -> 0.4998676861 | BU48: =IF($BK$5=$BF$6, 'Staff Needed'!AC44, IF($BK$5=$BF$7, 'Staff Needed'!AE44, 'Staff Needed'!AG44)) -> 5.248610704 | BV48: ='Calc - SA_Resources'!BA74 -> 0.3332451241 | BW48: ='Calc - SA_Resources'!BB74 -> 2.749272274 | BX48: =IF($BK$5=$BF$6, 'Staff Needed'!AH44, IF($BK$5=$BF$7, 'Staff Needed'!AJ44, 'Staff Needed'!AL44)) -> 0.1099811221 | BY48: =IF($BK$5=$BF$6, 'Staff Needed'!AI44, IF($BK$5=$BF$7, 'Staff Needed'!AK44, 'Staff Needed'!AM44)) -> 0.6368394416 | BZ48: ='Calc - SA_Resources'!BG74 -> 0.1099811221 | CA48: ='Calc - SA_Resources'!BH74 -> 0.6368394416
BJ49: 40 | BK49: =VLOOKUP(BJ49, 'Calc - Base'!$H$35:$I$400, 2) -> 2021-02-16 | BL49: =IF($BK$5=$BF$6, 'Staff Needed'!V45, IF($BK$5=$BF$7, 'Staff Needed'!X45, 'Staff Needed'!Z45)) -> 0.2340824335 | BM49: =IF($BK$5=$BF$6, 'Staff Needed'!W45, IF($BK$5=$BF$7, 'Staff Needed'!Y45, 'Staff Needed'!AA45)) -> 1.937355104 | BN49: ='Calc - SA_Resources'!AT75 -> 0.1930119252 | BO49: ='Calc - SA_Resources'!AU75 -> 1.321297479 | BT49: =IF($BK$5=$BF$6, 'Staff Needed'!AB45, IF($BK$5=$BF$7, 'Staff Needed'!AD45, 'Staff Needed'!AF45)) -> 0.123211525 | BU49: =IF($BK$5=$BF$6, 'Staff Needed'!AC45, IF($BK$5=$BF$7, 'Staff Needed'!AE45, 'Staff Needed'!AG45)) -> 1.293721012 | BV49: ='Calc - SA_Resources'!BA75 -> 0.08214101663 | BW49: ='Calc - SA_Resources'!BB75 -> 0.6776633872 | BX49: =IF($BK$5=$BF$6, 'Staff Needed'!AH45, IF($BK$5=$BF$7, 'Staff Needed'!AJ45, 'Staff Needed'!AL45)) -> 0.1108709086 | BY49: =IF($BK$5=$BF$6, 'Staff Needed'!AI45, IF($BK$5=$BF$7, 'Staff Needed'!AK45, 'Staff Needed'!AM45)) -> 0.6436340918 | BZ49: ='Calc - SA_Resources'!BG75 -> 0.1108709086 | CA49: ='Calc - SA_Resources'!BH75 -> 0.6436340918
BJ50: 41 | BK50: =VLOOKUP(BJ50, 'Calc - Base'!$H$35:$I$400, 2) -> 2021-02-17 | BL50: =IF($BK$5=$BF$6, 'Staff Needed'!V46, IF($BK$5=$BF$7, 'Staff Needed'!X46, 'Staff Needed'!Z46)) -> 0.2398855521 | BM50: =IF($BK$5=$BF$6, 'Staff Needed'!W46, IF($BK$5=$BF$7, 'Staff Needed'!Y46, 'Staff Needed'!AA46)) -> 1.996013486 | BN50: ='Calc - SA_Resources'!AT76 -> 0.1971534266 | BO50: ='Calc - SA_Resources'!AU76 -> 1.355031603 | BT50: =IF($BK$5=$BF$6, 'Staff Needed'!AB46, IF($BK$5=$BF$7, 'Staff Needed'!AD46, 'Staff Needed'!AF46)) -> 0.1281963766 | BU50: =IF($BK$5=$BF$6, 'Staff Needed'!AC46, IF($BK$5=$BF$7, 'Staff Needed'!AE46, 'Staff Needed'!AG46)) -> 1.346061955 | BV50: ='Calc - SA_Resources'!BA76 -> 0.08546425108 | BW50: ='Calc - SA_Resources'!BB76 -> 0.7050800714 | BX50: =IF($BK$5=$BF$6, 'Staff Needed'!AH46, IF($BK$5=$BF$7, 'Staff Needed'!AJ46, 'Staff Needed'!AL46)) -> 0.1116891755 | BY50: =IF($BK$5=$BF$6, 'Staff Needed'!AI46, IF($BK$5=$BF$7, 'Staff Needed'!AK46, 'Staff Needed'!AM46)) -> 0.6499515313 | BZ50: ='Calc - SA_Resources'!BG76 -> 0.1116891755 | CA50: ='Calc - SA_Resources'!BH76 -> 0.6499515313
BJ51: 42 | BK51: =VLOOKUP(BJ51, 'Calc - Base'!$H$35:$I$400, 2) -> 2021-02-18 | BL51: =IF($BK$5=$BF$6, 'Staff Needed'!V47, IF($BK$5=$BF$7, 'Staff Needed'!X47, 'Staff Needed'!Z47)) -> 0.2322084565 | BM51: =IF($BK$5=$BF$6, 'Staff Needed'!W47, IF($BK$5=$BF$7, 'Staff Needed'!Y47, 'Staff Needed'!AA47)) -> 1.913271318 | BN51: ='Calc - SA_Resources'!AT77 -> 0.1922943889 | BO51: ='Calc - SA_Resources'!AU77 -> 1.314560304 | BT51: =IF($BK$5=$BF$6, 'Staff Needed'!AB47, IF($BK$5=$BF$7, 'Staff Needed'!AD47, 'Staff Needed'!AF47)) -> 0.1197422027 | BU51: =IF($BK$5=$BF$6, 'Staff Needed'!AC47, IF($BK$5=$BF$7, 'Staff Needed'!AE47, 'Staff Needed'!AG47)) -> 1.257293129 | BV51: ='Calc - SA_Resources'!BA77 -> 0.07982813515 | BW51: ='Calc - SA_Resources'!BB77 -> 0.658582115 | BX51: =IF($BK$5=$BF$6, 'Staff Needed'!AH47, IF($BK$5=$BF$7, 'Staff Needed'!AJ47, 'Staff Needed'!AL47)) -> 0.1124662537 | BY51: =IF($BK$5=$BF$6, 'Staff Needed'!AI47, IF($BK$5=$BF$7, 'Staff Needed'!AK47, 'Staff Needed'!AM47)) -> 0.6559781892 | BZ51: ='Calc - SA_Resources'!BG77 -> 0.1124662537 | CA51: ='Calc - SA_Resources'!BH77 -> 0.6559781892
BJ52: 43 | BK52: =VLOOKUP(BJ52, 'Calc - Base'!$H$35:$I$400, 2) -> 2021-02-19 | BL52: =IF($BK$5=$BF$6, 'Staff Needed'!V48, IF($BK$5=$BF$7, 'Staff Needed'!X48, 'Staff Needed'!Z48)) -> 0.2941611532 | BM52: =IF($BK$5=$BF$6, 'Staff Needed'!W48, IF($BK$5=$BF$7, 'Staff Needed'!Y48, 'Staff Needed'!AA48)) -> 2.56224927 | BN52: ='Calc - SA_Resources'!AT78 -> 0.233808336 | BO52: ='Calc - SA_Resources'!AU78 -> 1.656957012 | BT52: =IF($BK$5=$BF$6, 'Staff Needed'!AB48, IF($BK$5=$BF$7, 'Staff Needed'!AD48, 'Staff Needed'!AF48)) -> 0.1810584516 | BU52: =IF($BK$5=$BF$6, 'Staff Needed'!AC48, IF($BK$5=$BF$7, 'Staff Needed'!AE48, 'Staff Needed'!AG48)) -> 1.901113742 | BV52: ='Calc - SA_Resources'!BA78 -> 0.1207056344 | BW52: ='Calc - SA_Resources'!BB78 -> 0.9958214838 | BX52: =IF($BK$5=$BF$6, 'Staff Needed'!AH48, IF($BK$5=$BF$7, 'Staff Needed'!AJ48, 'Staff Needed'!AL48)) -> 0.1131027016 | BY52: =IF($BK$5=$BF$6, 'Staff Needed'!AI48, IF($BK$5=$BF$7, 'Staff Needed'!AK48, 'Staff Needed'!AM48)) -> 0.6611355279 | BZ52: ='Calc - SA_Resources'!BG78 -> 0.1131027016 | CA52: ='Calc - SA_Resources'!BH78 -> 0.6611355279
BJ53: 44 | BK53: =VLOOKUP(BJ53, 'Calc - Base'!$H$35:$I$400, 2) -> 2021-02-20 | BL53: =IF($BK$5=$BF$6, 'Staff Needed'!V49, IF($BK$5=$BF$7, 'Staff Needed'!X49, 'Staff Needed'!Z49)) -> 0.2947808139 | BM53: =IF($BK$5=$BF$6, 'Staff Needed'!W49, IF($BK$5=$BF$7, 'Staff Needed'!Y49, 'Staff Needed'!AA49)) -> 2.567412354 | BN53: ='Calc - SA_Resources'!AT79 -> 0.2344164467 | BO53: ='Calc - SA_Resources'!AU79 -> 1.661946846 | BT53: =IF($BK$5=$BF$6, 'Staff Needed'!AB49, IF($BK$5=$BF$7, 'Staff Needed'!AD49, 'Staff Needed'!AF49)) -> 0.1810931016 | BU53: =IF($BK$5=$BF$6, 'Staff Needed'!AC49, IF($BK$5=$BF$7, 'Staff Needed'!AE49, 'Staff Needed'!AG49)) -> 1.901477566 | BV53: ='Calc - SA_Resources'!BA79 -> 0.1207287344 | BW53: ='Calc - SA_Resources'!BB79 -> 0.9960120586 | BX53: =IF($BK$5=$BF$6, 'Staff Needed'!AH49, IF($BK$5=$BF$7, 'Staff Needed'!AJ49, 'Staff Needed'!AL49)) -> 0.1136877123 | BY53: =IF($BK$5=$BF$6, 'Staff Needed'!AI49, IF($BK$5=$BF$7, 'Staff Needed'!AK49, 'Staff Needed'!AM49)) -> 0.6659347875 | BZ53: ='Calc - SA_Resources'!BG79 -> 0.1136877123 | CA53: ='Calc - SA_Resources'!BH79 -> 0.6659347875
BJ54: 45 | BK54: =VLOOKUP(BJ54, 'Calc - Base'!$H$35:$I$400, 2) -> 2021-02-21 | BL54: =IF($BK$5=$BF$6, 'Staff Needed'!V50, IF($BK$5=$BF$7, 'Staff Needed'!X50, 'Staff Needed'!Z50)) -> 0.252535076 | BM54: =IF($BK$5=$BF$6, 'Staff Needed'!W50, IF($BK$5=$BF$7, 'Staff Needed'!Y50, 'Staff Needed'!AA50)) -> 2.122374711 | BN54: ='Calc - SA_Resources'!AT80 -> 0.2064517025 | BO54: ='Calc - SA_Resources'!AU80 -> 1.431124108 | BT54: =IF($BK$5=$BF$6, 'Staff Needed'!AB50, IF($BK$5=$BF$7, 'Staff Needed'!AD50, 'Staff Needed'!AF50)) -> 0.1382501207 | BU54: =IF($BK$5=$BF$6, 'Staff Needed'!AC50, IF($BK$5=$BF$7, 'Staff Needed'!AE50, 'Staff Needed'!AG50)) -> 1.451626267 | BV54: ='Calc - SA_Resources'!BA80 -> 0.09216674712 | BW54: ='Calc - SA_Resources'!BB80 -> 0.7603756638 | BX54: =IF($BK$5=$BF$6, 'Staff Needed'!AH50, IF($BK$5=$BF$7, 'Staff Needed'!AJ50, 'Staff Needed'!AL50)) -> 0.1142849554 | BY54: =IF($BK$5=$BF$6, 'Staff Needed'!AI50, IF($BK$5=$BF$7, 'Staff Needed'!AK50, 'Staff Needed'!AM50)) -> 0.6707484442 | BZ54: ='Calc - SA_Resources'!BG80 -> 0.1142849554 | CA54: ='Calc - SA_Resources'!BH80 -> 0.6707484442
BJ55: 46 | BK55: =VLOOKUP(BJ55, 'Calc - Base'!$H$35:$I$400, 2) -> 2021-02-22 | BL55: =IF($BK$5=$BF$6, 'Staff Needed'!V51, IF($BK$5=$BF$7, 'Staff Needed'!X51, 'Staff Needed'!Z51)) -> 0.6177322151 | BM55: =IF($BK$5=$BF$6, 'Staff Needed'!W51, IF($BK$5=$BF$7, 'Staff Needed'!Y51, 'Staff Needed'!AA51)) -> 5.956929321 | BN55: ='Calc - SA_Resources'!AT81 -> 0.4500082458 | BO55: ='Calc - SA_Resources'!AU81 -> 3.441069781 | BT55: =IF($BK$5=$BF$6, 'Staff Needed'!AB51, IF($BK$5=$BF$7, 'Staff Needed'!AD51, 'Staff Needed'!AF51)) -> 0.5031719079 | BU55: =IF($BK$5=$BF$6, 'Staff Needed'!AC51, IF($BK$5=$BF$7, 'Staff Needed'!AE51, 'Staff Needed'!AG51)) -> 5.283305033 | BV55: ='Calc - SA_Resources'!BA81 -> 0.3354479386 | BW55: ='Calc - SA_Resources'!BB81 -> 2.767445493 | BX55: =IF($BK$5=$BF$6, 'Staff Needed'!AH51, IF($BK$5=$BF$7, 'Staff Needed'!AJ51, 'Staff Needed'!AL51)) -> 0.1145603072 | BY55: =IF($BK$5=$BF$6, 'Staff Needed'!AI51, IF($BK$5=$BF$7, 'Staff Needed'!AK51, 'Staff Needed'!AM51)) -> 0.6736242878 | BZ55: ='Calc - SA_Resources'!BG81 -> 0.1145603072 | CA55: ='Calc - SA_Resources'!BH81 -> 0.6736242878
BJ56: 47 | BK56: =VLOOKUP(BJ56, 'Calc - Base'!$H$35:$I$400, 2) -> 2021-02-23 | BL56: =IF($BK$5=$BF$6, 'Staff Needed'!V52, IF($BK$5=$BF$7, 'Staff Needed'!X52, 'Staff Needed'!Z52)) -> 0.2443817952 | BM56: =IF($BK$5=$BF$6, 'Staff Needed'!W52, IF($BK$5=$BF$7, 'Staff Needed'!Y52, 'Staff Needed'!AA52)) -> 2.035605831 | BN56: ='Calc - SA_Resources'!AT82 -> 0.2012774521 | BO56: ='Calc - SA_Resources'!AU82 -> 1.389040685 | BT56: =IF($BK$5=$BF$6, 'Staff Needed'!AB52, IF($BK$5=$BF$7, 'Staff Needed'!AD52, 'Staff Needed'!AF52)) -> 0.1293130293 | BU56: =IF($BK$5=$BF$6, 'Staff Needed'!AC52, IF($BK$5=$BF$7, 'Staff Needed'!AE52, 'Staff Needed'!AG52)) -> 1.357786808 | BV56: ='Calc - SA_Resources'!BA82 -> 0.08620868623 | BW56: ='Calc - SA_Resources'!BB82 -> 0.7112216614 | BX56: =IF($BK$5=$BF$6, 'Staff Needed'!AH52, IF($BK$5=$BF$7, 'Staff Needed'!AJ52, 'Staff Needed'!AL52)) -> 0.1150687659 | BY56: =IF($BK$5=$BF$6, 'Staff Needed'!AI52, IF($BK$5=$BF$7, 'Staff Needed'!AK52, 'Staff Needed'!AM52)) -> 0.6778190233 | BZ56: ='Calc - SA_Resources'!BG82 -> 0.1150687659 | CA56: ='Calc - SA_Resources'!BH82 -> 0.6778190233
BJ57: 48 | BK57: =VLOOKUP(BJ57, 'Calc - Base'!$H$35:$I$400, 2) -> 2021-02-24 | BL57: =IF($BK$5=$BF$6, 'Staff Needed'!V53, IF($BK$5=$BF$7, 'Staff Needed'!X53, 'Staff Needed'!Z53)) -> 0.2491129457 | BM57: =IF($BK$5=$BF$6, 'Staff Needed'!W53, IF($BK$5=$BF$7, 'Staff Needed'!Y53, 'Staff Needed'!AA53)) -> 2.08436398 | BN57: ='Calc - SA_Resources'!AT83 -> 0.2045814961 | BO57: ='Calc - SA_Resources'!AU83 -> 1.416392236 | BT57: =IF($BK$5=$BF$6, 'Staff Needed'!AB53, IF($BK$5=$BF$7, 'Staff Needed'!AD53, 'Staff Needed'!AF53)) -> 0.1335943488 | BU57: =IF($BK$5=$BF$6, 'Staff Needed'!AC53, IF($BK$5=$BF$7, 'Staff Needed'!AE53, 'Staff Needed'!AG53)) -> 1.402740663 | BV57: ='Calc - SA_Resources'!BA83 -> 0.08906289922 | BW57: ='Calc - SA_Resources'!BB83 -> 0.7347689186 | BX57: =IF($BK$5=$BF$6, 'Staff Needed'!AH53, IF($BK$5=$BF$7, 'Staff Needed'!AJ53, 'Staff Needed'!AL53)) -> 0.1155185969 | BY57: =IF($BK$5=$BF$6, 'Staff Needed'!AI53, IF($BK$5=$BF$7, 'Staff Needed'!AK53, 'Staff Needed'!AM53)) -> 0.6816233171 | BZ57: ='Calc - SA_Resources'!BG83 -> 0.1155185969 | CA57: ='Calc - SA_Resources'!BH83 -> 0.6816233171
BJ58: 49 | BK58: =VLOOKUP(BJ58, 'Calc - Base'!$H$35:$I$400, 2) -> 2021-02-25 | BL58: =IF($BK$5=$BF$6, 'Staff Needed'!V54, IF($BK$5=$BF$7, 'Staff Needed'!X54, 'Staff Needed'!Z54)) -> 0.2407595191 | BM58: =IF($BK$5=$BF$6, 'Staff Needed'!W54, IF($BK$5=$BF$7, 'Staff Needed'!Y54, 'Staff Needed'!AA54)) -> 1.995811897 | BN58: ='Calc - SA_Resources'!AT84 -> 0.1991535378 | BO58: ='Calc - SA_Resources'!AU84 -> 1.371722178 | BT58: =IF($BK$5=$BF$6, 'Staff Needed'!AB54, IF($BK$5=$BF$7, 'Staff Needed'!AD54, 'Staff Needed'!AF54)) -> 0.1248179438 | BU58: =IF($BK$5=$BF$6, 'Staff Needed'!AC54, IF($BK$5=$BF$7, 'Staff Needed'!AE54, 'Staff Needed'!AG54)) -> 1.310588409 | BV58: ='Calc - SA_Resources'!BA84 -> 0.0832119625 | BW58: ='Calc - SA_Resources'!BB84 -> 0.6864986906 | BX58: =IF($BK$5=$BF$6, 'Staff Needed'!AH54, IF($BK$5=$BF$7, 'Staff Needed'!AJ54, 'Staff Needed'!AL54)) -> 0.1159415753 | BY58: =IF($BK$5=$BF$6, 'Staff Needed'!AI54, IF($BK$5=$BF$7, 'Staff Needed'!AK54, 'Staff Needed'!AM54)) -> 0.6852234871 | BZ58: ='Calc - SA_Resources'!BG84 -> 0.1159415753 | CA58: ='Calc - SA_Resources'!BH84 -> 0.6852234871
BJ59: 50 | BK59: =VLOOKUP(BJ59, 'Calc - Base'!$H$35:$I$400, 2) -> 2021-02-26 | BL59: =IF($BK$5=$BF$6, 'Staff Needed'!V55, IF($BK$5=$BF$7, 'Staff Needed'!X55, 'Staff Needed'!Z55)) -> 0.3008097352 | BM59: =IF($BK$5=$BF$6, 'Staff Needed'!W55, IF($BK$5=$BF$7, 'Staff Needed'!Y55, 'Staff Needed'!AA55)) -> 2.626050601 | BN59: ='Calc - SA_Resources'!AT85 -> 0.2392847001 | BO59: ='Calc - SA_Resources'!AU85 -> 1.703175074 | BT59: =IF($BK$5=$BF$6, 'Staff Needed'!AB55, IF($BK$5=$BF$7, 'Staff Needed'!AD55, 'Staff Needed'!AF55)) -> 0.1845751054 | BU59: =IF($BK$5=$BF$6, 'Staff Needed'!AC55, IF($BK$5=$BF$7, 'Staff Needed'!AE55, 'Staff Needed'!AG55)) -> 1.938038607 | BV59: ='Calc - SA_Resources'!BA85 -> 0.1230500703 | BW59: ='Calc - SA_Resources'!BB85 -> 1.01516308 | BX59: =IF($BK$5=$BF$6, 'Staff Needed'!AH55, IF($BK$5=$BF$7, 'Staff Needed'!AJ55, 'Staff Needed'!AL55)) -> 0.1162346298 | BY59: =IF($BK$5=$BF$6, 'Staff Needed'!AI55, IF($BK$5=$BF$7, 'Staff Needed'!AK55, 'Staff Needed'!AM55)) -> 0.6880119942 | BZ59: ='Calc - SA_Resources'!BG85 -> 0.1162346298 | CA59: ='Calc - SA_Resources'!BH85 -> 0.6880119942
BJ60: 51 | BK60: =VLOOKUP(BJ60, 'Calc - Base'!$H$35:$I$400, 2) -> 2021-02-27 | BL60: =IF($BK$5=$BF$6, 'Staff Needed'!V56, IF($BK$5=$BF$7, 'Staff Needed'!X56, 'Staff Needed'!Z56)) -> 0.300637093 | BM60: =IF($BK$5=$BF$6, 'Staff Needed'!W56, IF($BK$5=$BF$7, 'Staff Needed'!Y56, 'Staff Needed'!AA56)) -> 2.624083643 | BN60: ='Calc - SA_Resources'!AT86 -> 0.2392544607 | BO60: ='Calc - SA_Resources'!AU86 -> 1.703344158 | BT60: =IF($BK$5=$BF$6, 'Staff Needed'!AB56, IF($BK$5=$BF$7, 'Staff Needed'!AD56, 'Staff Needed'!AF56)) -> 0.1841478969 | BU60: =IF($BK$5=$BF$6, 'Staff Needed'!AC56, IF($BK$5=$BF$7, 'Staff Needed'!AE56, 'Staff Needed'!AG56)) -> 1.933552918 | BV60: ='Calc - SA_Resources'!BA86 -> 0.1227652646 | BW60: ='Calc - SA_Resources'!BB86 -> 1.012813433 | BX60: =IF($BK$5=$BF$6, 'Staff Needed'!AH56, IF($BK$5=$BF$7, 'Staff Needed'!AJ56, 'Staff Needed'!AL56)) -> 0.1164891961 | BY60: =IF($BK$5=$BF$6, 'Staff Needed'!AI56, IF($BK$5=$BF$7, 'Staff Needed'!AK56, 'Staff Needed'!AM56)) -> 0.6905307251 | BZ60: ='Calc - SA_Resources'!BG86 -> 0.1164891961 | CA60: ='Calc - SA_Resources'!BH86 -> 0.6905307251
BJ61: 52 | BK61: =VLOOKUP(BJ61, 'Calc - Base'!$H$35:$I$400, 2) -> 2021-02-28 | BL61: =IF($BK$5=$BF$6, 'Staff Needed'!V57, IF($BK$5=$BF$7, 'Staff Needed'!X57, 'Staff Needed'!Z57)) -> 0.2583920589 | BM61: =IF($BK$5=$BF$6, 'Staff Needed'!W57, IF($BK$5=$BF$7, 'Staff Needed'!Y57, 'Staff Needed'!AA57)) -> 2.180195163 | BN61: ='Calc - SA_Resources'!AT87 -> 0.2111847647 | BO61: ='Calc - SA_Resources'!AU87 -> 1.472085749 | BT61: =IF($BK$5=$BF$6, 'Staff Needed'!AB57, IF($BK$5=$BF$7, 'Staff Needed'!AD57, 'Staff Needed'!AF57)) -> 0.1416218827 | BU61: =IF($BK$5=$BF$6, 'Staff Needed'!AC57, IF($BK$5=$BF$7, 'Staff Needed'!AE57, 'Staff Needed'!AG57)) -> 1.487029768 | BV61: ='Calc - SA_Resources'!BA87 -> 0.09441458845 | BW61: ='Calc - SA_Resources'!BB87 -> 0.7789203547 | BX61: =IF($BK$5=$BF$6, 'Staff Needed'!AH57, IF($BK$5=$BF$7, 'Staff Needed'!AJ57, 'Staff Needed'!AL57)) -> 0.1167701762 | BY61: =IF($BK$5=$BF$6, 'Staff Needed'!AI57, IF($BK$5=$BF$7, 'Staff Needed'!AK57, 'Staff Needed'!AM57)) -> 0.6931653948 | BZ61: ='Calc - SA_Resources'!BG87 -> 0.1167701762 | CA61: ='Calc - SA_Resources'!BH87 -> 0.6931653948
BJ62: 53 | BK62: =VLOOKUP(BJ62, 'Calc - Base'!$H$35:$I$400, 2) -> 2021-03-01 | BL62: =IF($BK$5=$BF$6, 'Staff Needed'!V58, IF($BK$5=$BF$7, 'Staff Needed'!X58, 'Staff Needed'!Z58)) -> 0.6194901468 | BM62: =IF($BK$5=$BF$6, 'Staff Needed'!W58, IF($BK$5=$BF$7, 'Staff Needed'!Y58, 'Staff Needed'!AA58)) -> 5.972811874 | BN62: ='Calc - SA_Resources'!AT88 -> 0.4519052352 | BO62: ='Calc - SA_Resources'!AU88 -> 3.459038199 | BT62: =IF($BK$5=$BF$6, 'Staff Needed'!AB58, IF($BK$5=$BF$7, 'Staff Needed'!AD58, 'Staff Needed'!AF58)) -> 0.502754735 | BU62: =IF($BK$5=$BF$6, 'Staff Needed'!AC58, IF($BK$5=$BF$7, 'Staff Needed'!AE58, 'Staff Needed'!AG58)) -> 5.278924717 | BV62: ='Calc - SA_Resources'!BA88 -> 0.3351698233 | BW62: ='Calc - SA_Resources'!BB88 -> 2.765151042 | BX62: =IF($BK$5=$BF$6, 'Staff Needed'!AH58, IF($BK$5=$BF$7, 'Staff Needed'!AJ58, 'Staff Needed'!AL58)) -> 0.1167354118 | BY62: =IF($BK$5=$BF$6, 'Staff Needed'!AI58, IF($BK$5=$BF$7, 'Staff Needed'!AK58, 'Staff Needed'!AM58)) -> 0.693887157 | BZ62: ='Calc - SA_Resources'!BG88 -> 0.1167354118 | CA62: ='Calc - SA_Resources'!BH88 -> 0.693887157
BJ63: 54 | BK63: =VLOOKUP(BJ63, 'Calc - Base'!$H$35:$I$400, 2) -> 2021-03-02 | BL63: =IF($BK$5=$BF$6, 'Staff Needed'!V59, IF($BK$5=$BF$7, 'Staff Needed'!X59, 'Staff Needed'!Z59)) -> 0.248873037 | BM63: =IF($BK$5=$BF$6, 'Staff Needed'!W59, IF($BK$5=$BF$7, 'Staff Needed'!Y59, 'Staff Needed'!AA59)) -> 2.081228023 | BN63: ='Calc - SA_Resources'!AT89 -> 0.2048995875 | BO63: ='Calc - SA_Resources'!AU89 -> 1.42162628 | BT63: =IF($BK$5=$BF$6, 'Staff Needed'!AB59, IF($BK$5=$BF$7, 'Staff Needed'!AD59, 'Staff Needed'!AF59)) -> 0.1319203486 | BU63: =IF($BK$5=$BF$6, 'Staff Needed'!AC59, IF($BK$5=$BF$7, 'Staff Needed'!AE59, 'Staff Needed'!AG59)) -> 1.38516366 | BV63: ='Calc - SA_Resources'!BA89 -> 0.08794689907 | BW63: ='Calc - SA_Resources'!BB89 -> 0.7255619174 | BX63: =IF($BK$5=$BF$6, 'Staff Needed'!AH59, IF($BK$5=$BF$7, 'Staff Needed'!AJ59, 'Staff Needed'!AL59)) -> 0.1169526884 | BY63: =IF($BK$5=$BF$6, 'Staff Needed'!AI59, IF($BK$5=$BF$7, 'Staff Needed'!AK59, 'Staff Needed'!AM59)) -> 0.6960643629 | BZ63: ='Calc - SA_Resources'!BG89 -> 0.1169526884 | CA63: ='Calc - SA_Resources'!BH89 -> 0.6960643629
BJ64: 55 | BK64: =VLOOKUP(BJ64, 'Calc - Base'!$H$35:$I$400, 2) -> 2021-03-03 | BL64: =IF($BK$5=$BF$6, 'Staff Needed'!V60, IF($BK$5=$BF$7, 'Staff Needed'!X60, 'Staff Needed'!Z60)) -> 0.252756895 | BM64: =IF($BK$5=$BF$6, 'Staff Needed'!W60, IF($BK$5=$BF$7, 'Staff Needed'!Y60, 'Staff Needed'!AA60)) -> 2.122083107 | BN64: ='Calc - SA_Resources'!AT90 -> 0.2075454892 | BO64: ='Calc - SA_Resources'!AU90 -> 1.44391202 | BT64: =IF($BK$5=$BF$6, 'Staff Needed'!AB60, IF($BK$5=$BF$7, 'Staff Needed'!AD60, 'Staff Needed'!AF60)) -> 0.1356342176 | BU64: =IF($BK$5=$BF$6, 'Staff Needed'!AC60, IF($BK$5=$BF$7, 'Staff Needed'!AE60, 'Staff Needed'!AG60)) -> 1.424159284 | BV64: ='Calc - SA_Resources'!BA90 -> 0.0904228117 | BW64: ='Calc - SA_Resources'!BB90 -> 0.7459881965 | BX64: =IF($BK$5=$BF$6, 'Staff Needed'!AH60, IF($BK$5=$BF$7, 'Staff Needed'!AJ60, 'Staff Needed'!AL60)) -> 0.1171226775 | BY64: =IF($BK$5=$BF$6, 'Staff Needed'!AI60, IF($BK$5=$BF$7, 'Staff Needed'!AK60, 'Staff Needed'!AM60)) -> 0.6979238231 | BZ64: ='Calc - SA_Resources'!BG90 -> 0.1171226775 | CA64: ='Calc - SA_Resources'!BH90 -> 0.6979238231
BJ65: 56 | BK65: =VLOOKUP(BJ65, 'Calc - Base'!$H$35:$I$400, 2) -> 2021-03-04 | BL65: =IF($BK$5=$BF$6, 'Staff Needed'!V61, IF($BK$5=$BF$7, 'Staff Needed'!X61, 'Staff Needed'!Z61)) -> 0.2439488902 | BM65: =IF($BK$5=$BF$6, 'Staff Needed'!W61, IF($BK$5=$BF$7, 'Staff Needed'!Y61, 'Staff Needed'!AA61)) -> 2.029709375 | BN65: ='Calc - SA_Resources'!AT91 -> 0.20172498 | BO65: ='Calc - SA_Resources'!AU91 -> 1.396350723 | BT65: =IF($BK$5=$BF$6, 'Staff Needed'!AB61, IF($BK$5=$BF$7, 'Staff Needed'!AD61, 'Staff Needed'!AF61)) -> 0.1266717304 | BU65: =IF($BK$5=$BF$6, 'Staff Needed'!AC61, IF($BK$5=$BF$7, 'Staff Needed'!AE61, 'Staff Needed'!AG61)) -> 1.33005317 | BV65: ='Calc - SA_Resources'!BA91 -> 0.0844478203 | BW65: ='Calc - SA_Resources'!BB91 -> 0.6966945175 | BX65: =IF($BK$5=$BF$6, 'Staff Needed'!AH61, IF($BK$5=$BF$7, 'Staff Needed'!AJ61, 'Staff Needed'!AL61)) -> 0.1172771597 | BY65: =IF($BK$5=$BF$6, 'Staff Needed'!AI61, IF($BK$5=$BF$7, 'Staff Needed'!AK61, 'Staff Needed'!AM61)) -> 0.6996562051 | BZ65: ='Calc - SA_Resources'!BG91 -> 0.1172771597 | CA65: ='Calc - SA_Resources'!BH91 -> 0.6996562051
BJ66: 57 | BK66: =VLOOKUP(BJ66, 'Calc - Base'!$H$35:$I$400, 2) -> 2021-03-05 | BL66: =IF($BK$5=$BF$6, 'Staff Needed'!V62, IF($BK$5=$BF$7, 'Staff Needed'!X62, 'Staff Needed'!Z62)) -> 0.3023040726 | BM66: =IF($BK$5=$BF$6, 'Staff Needed'!W62, IF($BK$5=$BF$7, 'Staff Needed'!Y62, 'Staff Needed'!AA62)) -> 2.643057295 | BN66: ='Calc - SA_Resources'!AT92 -> 0.2406400198 | BO66: ='Calc - SA_Resources'!AU92 -> 1.718096503 | BT66: =IF($BK$5=$BF$6, 'Staff Needed'!AB62, IF($BK$5=$BF$7, 'Staff Needed'!AD62, 'Staff Needed'!AF62)) -> 0.1849921584 | BU66: =IF($BK$5=$BF$6, 'Staff Needed'!AC62, IF($BK$5=$BF$7, 'Staff Needed'!AE62, 'Staff Needed'!AG62)) -> 1.942417664 | BV66: ='Calc - SA_Resources'!BA92 -> 0.1233281056 | BW66: ='Calc - SA_Resources'!BB92 -> 1.017456871 | BX66: =IF($BK$5=$BF$6, 'Staff Needed'!AH62, IF($BK$5=$BF$7, 'Staff Needed'!AJ62, 'Staff Needed'!AL62)) -> 0.1173119141 | BY66: =IF($BK$5=$BF$6, 'Staff Needed'!AI62, IF($BK$5=$BF$7, 'Staff Needed'!AK62, 'Staff Needed'!AM62)) -> 0.7006396318 | BZ66: ='Calc - SA_Resources'!BG92 -> 0.1173119141 | CA66: ='Calc - SA_Resources'!BH92 -> 0.7006396318
BJ67: 58 | BK67: =VLOOKUP(BJ67, 'Calc - Base'!$H$35:$I$400, 2) -> 2021-03-06 | BL67: =IF($BK$5=$BF$6, 'Staff Needed'!V63, IF($BK$5=$BF$7, 'Staff Needed'!X63, 'Staff Needed'!Z63)) -> 0.3015533767 | BM67: =IF($BK$5=$BF$6, 'Staff Needed'!W63, IF($BK$5=$BF$7, 'Staff Needed'!Y63, 'Staff Needed'!AA63)) -> 2.635884708 | BN67: ='Calc - SA_Resources'!AT93 -> 0.240141955 | BO67: ='Calc - SA_Resources'!AU93 -> 1.714713381 | BT67: =IF($BK$5=$BF$6, 'Staff Needed'!AB63, IF($BK$5=$BF$7, 'Staff Needed'!AD63, 'Staff Needed'!AF63)) -> 0.1842342652 | BU67: =IF($BK$5=$BF$6, 'Staff Needed'!AC63, IF($BK$5=$BF$7, 'Staff Needed'!AE63, 'Staff Needed'!AG63)) -> 1.934459785 | BV67: ='Calc - SA_Resources'!BA93 -> 0.1228228435 | BW67: ='Calc - SA_Resources'!BB93 -> 1.013288459 | BX67: =IF($BK$5=$BF$6, 'Staff Needed'!AH63, IF($BK$5=$BF$7, 'Staff Needed'!AJ63, 'Staff Needed'!AL63)) -> 0.1173191115 | BY67: =IF($BK$5=$BF$6, 'Staff Needed'!AI63, IF($BK$5=$BF$7, 'Staff Needed'!AK63, 'Staff Needed'!AM63)) -> 0.7014249227 | BZ67: ='Calc - SA_Resources'!BG93 -> 0.1173191115 | CA67: ='Calc - SA_Resources'!BH93 -> 0.7014249227
BJ68: 59 | BK68: =VLOOKUP(BJ68, 'Calc - Base'!$H$35:$I$400, 2) -> 2021-03-07 | BL68: =IF($BK$5=$BF$6, 'Staff Needed'!V64, IF($BK$5=$BF$7, 'Staff Needed'!X64, 'Staff Needed'!Z64)) -> 0.2595203854 | BM68: =IF($BK$5=$BF$6, 'Staff Needed'!W64, IF($BK$5=$BF$7, 'Staff Needed'!Y64, 'Staff Needed'!AA64)) -> 2.195046975 | BN68: ='Calc - SA_Resources'!AT94 -> 0.212134817 | BO68: ='Calc - SA_Resources'!AU94 -> 1.484263448 | BT68: =IF($BK$5=$BF$6, 'Staff Needed'!AB64, IF($BK$5=$BF$7, 'Staff Needed'!AD64, 'Staff Needed'!AF64)) -> 0.1421567053 | BU68: =IF($BK$5=$BF$6, 'Staff Needed'!AC64, IF($BK$5=$BF$7, 'Staff Needed'!AE64, 'Staff Needed'!AG64)) -> 1.492645406 | BV68: ='Calc - SA_Resources'!BA94 -> 0.0947711369 | BW68: ='Calc - SA_Resources'!BB94 -> 0.7818618794 | BX68: =IF($BK$5=$BF$6, 'Staff Needed'!AH64, IF($BK$5=$BF$7, 'Staff Needed'!AJ64, 'Staff Needed'!AL64)) -> 0.1173636801 | BY68: =IF($BK$5=$BF$6, 'Staff Needed'!AI64, IF($BK$5=$BF$7, 'Staff Needed'!AK64, 'Staff Needed'!AM64)) -> 0.7024015689 | BZ68: ='Calc - SA_Resources'!BG94 -> 0.1173636801 | CA68: ='Calc - SA_Resources'!BH94 -> 0.7024015689
BJ69: 60 | BK69: =VLOOKUP(BJ69, 'Calc - Base'!$H$35:$I$400, 2) -> 2021-03-08 | BL69: =IF($BK$5=$BF$6, 'Staff Needed'!V65, IF($BK$5=$BF$7, 'Staff Needed'!X65, 'Staff Needed'!Z65)) -> 0.6167045264 | BM69: =IF($BK$5=$BF$6, 'Staff Needed'!W65, IF($BK$5=$BF$7, 'Staff Needed'!Y65, 'Staff Needed'!AA65)) -> 5.947345713 | BN69: ='Calc - SA_Resources'!AT95 -> 0.450170042 | BO69: ='Calc - SA_Resources'!AU95 -> 3.449328447 | BT69: =IF($BK$5=$BF$6, 'Staff Needed'!AB65, IF($BK$5=$BF$7, 'Staff Needed'!AD65, 'Staff Needed'!AF65)) -> 0.4996034531 | BU69: =IF($BK$5=$BF$6, 'Staff Needed'!AC65, IF($BK$5=$BF$7, 'Staff Needed'!AE65, 'Staff Needed'!AG65)) -> 5.245836258 | BV69: ='Calc - SA_Resources'!BA95 -> 0.3330689688 | BW69: ='Calc - SA_Resources'!BB95 -> 2.747818992 | BX69: =IF($BK$5=$BF$6, 'Staff Needed'!AH65, IF($BK$5=$BF$7, 'Staff Needed'!AJ65, 'Staff Needed'!AL65)) -> 0.1171010732 | BY69: =IF($BK$5=$BF$6, 'Staff Needed'!AI65, IF($BK$5=$BF$7, 'Staff Needed'!AK65, 'Staff Needed'!AM65)) -> 0.7015094552 | BZ69: ='Calc - SA_Resources'!BG95 -> 0.1171010732 | CA69: ='Calc - SA_Resources'!BH95 -> 0.7015094552
BJ70: 61 | BK70: =VLOOKUP(BJ70, 'Calc - Base'!$H$35:$I$400, 2) -> 2021-03-09 | BL70: =IF($BK$5=$BF$6, 'Staff Needed'!V66, IF($BK$5=$BF$7, 'Staff Needed'!X66, 'Staff Needed'!Z66)) -> 0.2490395724 | BM70: =IF($BK$5=$BF$6, 'Staff Needed'!W66, IF($BK$5=$BF$7, 'Staff Needed'!Y66, 'Staff Needed'!AA66)) -> 2.087505055 | BN70: ='Calc - SA_Resources'!AT96 -> 0.2050605381 | BO70: ='Calc - SA_Resources'!AU96 -> 1.42781954 | BT70: =IF($BK$5=$BF$6, 'Staff Needed'!AB66, IF($BK$5=$BF$7, 'Staff Needed'!AD66, 'Staff Needed'!AF66)) -> 0.131937103 | BU70: =IF($BK$5=$BF$6, 'Staff Needed'!AC66, IF($BK$5=$BF$7, 'Staff Needed'!AE66, 'Staff Needed'!AG66)) -> 1.385339582 | BV70: ='Calc - SA_Resources'!BA96 -> 0.08795806867 | BW70: ='Calc - SA_Resources'!BB96 -> 0.7256540665 | BX70: =IF($BK$5=$BF$6, 'Staff Needed'!AH66, IF($BK$5=$BF$7, 'Staff Needed'!AJ66, 'Staff Needed'!AL66)) -> 0.1171024694 | BY70: =IF($BK$5=$BF$6, 'Staff Needed'!AI66, IF($BK$5=$BF$7, 'Staff Needed'!AK66, 'Staff Needed'!AM66)) -> 0.7021654736 | BZ70: ='Calc - SA_Resources'!BG96 -> 0.1171024694 | CA70: ='Calc - SA_Resources'!BH96 -> 0.7021654736
BJ71: 62 | BK71: =VLOOKUP(BJ71, 'Calc - Base'!$H$35:$I$400, 2) -> 2021-03-10 | BL71: =IF($BK$5=$BF$6, 'Staff Needed'!V67, IF($BK$5=$BF$7, 'Staff Needed'!X67, 'Staff Needed'!Z67)) -> 0.2522652695 | BM71: =IF($BK$5=$BF$6, 'Staff Needed'!W67, IF($BK$5=$BF$7, 'Staff Needed'!Y67, 'Staff Needed'!AA67)) -> 2.122156813 | BN71: ='Calc - SA_Resources'!AT97 -> 0.2071989152 | BO71: ='Calc - SA_Resources'!AU97 -> 1.446161498 | BT71: =IF($BK$5=$BF$6, 'Staff Needed'!AB67, IF($BK$5=$BF$7, 'Staff Needed'!AD67, 'Staff Needed'!AF67)) -> 0.135199063 | BU71: =IF($BK$5=$BF$6, 'Staff Needed'!AC67, IF($BK$5=$BF$7, 'Staff Needed'!AE67, 'Staff Needed'!AG67)) -> 1.419590161 | BV71: ='Calc - SA_Resources'!BA97 -> 0.09013270864 | BW71: ='Calc - SA_Resources'!BB97 -> 0.7435948463 | BX71: =IF($BK$5=$BF$6, 'Staff Needed'!AH67, IF($BK$5=$BF$7, 'Staff Needed'!AJ67, 'Staff Needed'!AL67)) -> 0.1170662065 | BY71: =IF($BK$5=$BF$6, 'Staff Needed'!AI67, IF($BK$5=$BF$7, 'Staff Needed'!AK67, 'Staff Needed'!AM67)) -> 0.7025666521 | BZ71: ='Calc - SA_Resources'!BG97 -> 0.1170662065 | CA71: ='Calc - SA_Resources'!BH97 -> 0.7025666521
BJ72: 63 | BK72: =VLOOKUP(BJ72, 'Calc - Base'!$H$35:$I$400, 2) -> 2021-03-11 | BL72: =IF($BK$5=$BF$6, 'Staff Needed'!V68, IF($BK$5=$BF$7, 'Staff Needed'!X68, 'Staff Needed'!Z68)) -> 0.2431838033 | BM72: =IF($BK$5=$BF$6, 'Staff Needed'!W68, IF($BK$5=$BF$7, 'Staff Needed'!Y68, 'Staff Needed'!AA68)) -> 2.027584558 | BN72: ='Calc - SA_Resources'!AT98 -> 0.2011303959 | BO72: ='Calc - SA_Resources'!AU98 -> 1.396783445 | BT72: =IF($BK$5=$BF$6, 'Staff Needed'!AB68, IF($BK$5=$BF$7, 'Staff Needed'!AD68, 'Staff Needed'!AF68)) -> 0.1261602225 | BU72: =IF($BK$5=$BF$6, 'Staff Needed'!AC68, IF($BK$5=$BF$7, 'Staff Needed'!AE68, 'Staff Needed'!AG68)) -> 1.324682336 | BV72: ='Calc - SA_Resources'!BA98 -> 0.08410681497 | BW72: ='Calc - SA_Resources'!BB98 -> 0.6938812235 | BX72: =IF($BK$5=$BF$6, 'Staff Needed'!AH68, IF($BK$5=$BF$7, 'Staff Needed'!AJ68, 'Staff Needed'!AL68)) -> 0.1170235809 | BY72: =IF($BK$5=$BF$6, 'Staff Needed'!AI68, IF($BK$5=$BF$7, 'Staff Needed'!AK68, 'Staff Needed'!AM68)) -> 0.7029022218 | BZ72: ='Calc - SA_Resources'!BG98 -> 0.1170235809 | CA72: ='Calc - SA_Resources'!BH98 -> 0.7029022218
BJ73: 64 | BK73: =VLOOKUP(BJ73, 'Calc - Base'!$H$35:$I$400, 2) -> 2021-03-12 | BL73: =IF($BK$5=$BF$6, 'Staff Needed'!V69, IF($BK$5=$BF$7, 'Staff Needed'!X69, 'Staff Needed'!Z69)) -> 0.3000299797 | BM73: =IF($BK$5=$BF$6, 'Staff Needed'!W69, IF($BK$5=$BF$7, 'Staff Needed'!Y69, 'Staff Needed'!AA69)) -> 2.625719303 | BN73: ='Calc - SA_Resources'!AT99 -> 0.2389769298 | BO73: ='Calc - SA_Resources'!AU99 -> 1.709923555 | BT73: =IF($BK$5=$BF$6, 'Staff Needed'!AB69, IF($BK$5=$BF$7, 'Staff Needed'!AD69, 'Staff Needed'!AF69)) -> 0.1831591496 | BU73: =IF($BK$5=$BF$6, 'Staff Needed'!AC69, IF($BK$5=$BF$7, 'Staff Needed'!AE69, 'Staff Needed'!AG69)) -> 1.92317107 | BV73: ='Calc - SA_Resources'!BA99 -> 0.1221060997 | BW73: ='Calc - SA_Resources'!BB99 -> 1.007375323 | BX73: =IF($BK$5=$BF$6, 'Staff Needed'!AH69, IF($BK$5=$BF$7, 'Staff Needed'!AJ69, 'Staff Needed'!AL69)) -> 0.1168708301 | BY73: =IF($BK$5=$BF$6, 'Staff Needed'!AI69, IF($BK$5=$BF$7, 'Staff Needed'!AK69, 'Staff Needed'!AM69)) -> 0.7025482328 | BZ73: ='Calc - SA_Resources'!BG99 -> 0.1168708301 | CA73: ='Calc - SA_Resources'!BH99 -> 0.7025482328
BJ74: 65 | BK74: =VLOOKUP(BJ74, 'Calc - Base'!$H$35:$I$400, 2) -> 2021-03-13 | BL74: =IF($BK$5=$BF$6, 'Staff Needed'!V70, IF($BK$5=$BF$7, 'Staff Needed'!X70, 'Staff Needed'!Z70)) -> 0.2988763276 | BM74: =IF($BK$5=$BF$6, 'Staff Needed'!W70, IF($BK$5=$BF$7, 'Staff Needed'!Y70, 'Staff Needed'!AA70)) -> 2.614913376 | BN74: ='Calc - SA_Resources'!AT100 -> 0.2381506806 | BO74: ='Calc - SA_Resources'!AU100 -> 1.70402867 | BT74: =IF($BK$5=$BF$6, 'Staff Needed'!AB70, IF($BK$5=$BF$7, 'Staff Needed'!AD70, 'Staff Needed'!AF70)) -> 0.1821769412 | BU74: =IF($BK$5=$BF$6, 'Staff Needed'!AC70, IF($BK$5=$BF$7, 'Staff Needed'!AE70, 'Staff Needed'!AG70)) -> 1.912857882 | BV74: ='Calc - SA_Resources'!BA100 -> 0.1214512941 | BW74: ='Calc - SA_Resources'!BB100 -> 1.001973176 | BX74: =IF($BK$5=$BF$6, 'Staff Needed'!AH70, IF($BK$5=$BF$7, 'Staff Needed'!AJ70, 'Staff Needed'!AL70)) -> 0.1166993865 | BY74: =IF($BK$5=$BF$6, 'Staff Needed'!AI70, IF($BK$5=$BF$7, 'Staff Needed'!AK70, 'Staff Needed'!AM70)) -> 0.7020554939 | BZ74: ='Calc - SA_Resources'!BG100 -> 0.1166993865 | CA74: ='Calc - SA_Resources'!BH100 -> 0.7020554939
BJ75: 66 | BK75: =VLOOKUP(BJ75, 'Calc - Base'!$H$35:$I$400, 2) -> 2021-03-14 | BL75: =IF($BK$5=$BF$6, 'Staff Needed'!V71, IF($BK$5=$BF$7, 'Staff Needed'!X71, 'Staff Needed'!Z71)) -> 0.2572174625 | BM75: =IF($BK$5=$BF$6, 'Staff Needed'!W71, IF($BK$5=$BF$7, 'Staff Needed'!Y71, 'Staff Needed'!AA71)) -> 2.178574361 | BN75: ='Calc - SA_Resources'!AT101 -> 0.2103360877 | BO75: ='Calc - SA_Resources'!AU101 -> 1.475353739 | BT75: =IF($BK$5=$BF$6, 'Staff Needed'!AB71, IF($BK$5=$BF$7, 'Staff Needed'!AD71, 'Staff Needed'!AF71)) -> 0.1406441245 | BU75: =IF($BK$5=$BF$6, 'Staff Needed'!AC71, IF($BK$5=$BF$7, 'Staff Needed'!AE71, 'Staff Needed'!AG71)) -> 1.476763307 | BV75: ='Calc - SA_Resources'!BA101 -> 0.09376274965 | BW75: ='Calc - SA_Resources'!BB101 -> 0.7735426847 | BX75: =IF($BK$5=$BF$6, 'Staff Needed'!AH71, IF($BK$5=$BF$7, 'Staff Needed'!AJ71, 'Staff Needed'!AL71)) -> 0.1165733381 | BY75: =IF($BK$5=$BF$6, 'Staff Needed'!AI71, IF($BK$5=$BF$7, 'Staff Needed'!AK71, 'Staff Needed'!AM71)) -> 0.7018110544 | BZ75: ='Calc - SA_Resources'!BG101 -> 0.1165733381 | CA75: ='Calc - SA_Resources'!BH101 -> 0.7018110544
BJ76: 67 | BK76: =VLOOKUP(BJ76, 'Calc - Base'!$H$35:$I$400, 2) -> 2021-03-15 | BL76: =IF($BK$5=$BF$6, 'Staff Needed'!V72, IF($BK$5=$BF$7, 'Staff Needed'!X72, 'Staff Needed'!Z72)) -> 0.6106747359 | BM76: =IF($BK$5=$BF$6, 'Staff Needed'!W72, IF($BK$5=$BF$7, 'Staff Needed'!Y72, 'Staff Needed'!AA72)) -> 5.892262174 | BN76: ='Calc - SA_Resources'!AT102 -> 0.4458331916 | BO76: ='Calc - SA_Resources'!AU102 -> 3.41963901 | BT76: =IF($BK$5=$BF$6, 'Staff Needed'!AB72, IF($BK$5=$BF$7, 'Staff Needed'!AD72, 'Staff Needed'!AF72)) -> 0.4945246329 | BU76: =IF($BK$5=$BF$6, 'Staff Needed'!AC72, IF($BK$5=$BF$7, 'Staff Needed'!AE72, 'Staff Needed'!AG72)) -> 5.192508645 | BV76: ='Calc - SA_Resources'!BA102 -> 0.3296830886 | BW76: ='Calc - SA_Resources'!BB102 -> 2.719885481 | BX76: =IF($BK$5=$BF$6, 'Staff Needed'!AH72, IF($BK$5=$BF$7, 'Staff Needed'!AJ72, 'Staff Needed'!AL72)) -> 0.116150103 | BY76: =IF($BK$5=$BF$6, 'Staff Needed'!AI72, IF($BK$5=$BF$7, 'Staff Needed'!AK72, 'Staff Needed'!AM72)) -> 0.6997535288 | BZ76: ='Calc - SA_Resources'!BG102 -> 0.116150103 | CA76: ='Calc - SA_Resources'!BH102 -> 0.6997535288
BJ77: 68 | BK77: =VLOOKUP(BJ77, 'Calc - Base'!$H$35:$I$400, 2) -> 2021-03-16 | BL77: =IF($BK$5=$BF$6, 'Staff Needed'!V73, IF($BK$5=$BF$7, 'Staff Needed'!X73, 'Staff Needed'!Z73)) -> 0.2461024399 | BM77: =IF($BK$5=$BF$6, 'Staff Needed'!W73, IF($BK$5=$BF$7, 'Staff Needed'!Y73, 'Staff Needed'!AA73)) -> 2.065402312 | BN77: ='Calc - SA_Resources'!AT103 -> 0.2027341029 | BO77: ='Calc - SA_Resources'!AU103 -> 1.414877256 | BT77: =IF($BK$5=$BF$6, 'Staff Needed'!AB73, IF($BK$5=$BF$7, 'Staff Needed'!AD73, 'Staff Needed'!AF73)) -> 0.1301050112 | BU77: =IF($BK$5=$BF$6, 'Staff Needed'!AC73, IF($BK$5=$BF$7, 'Staff Needed'!AE73, 'Staff Needed'!AG73)) -> 1.366102617 | BV77: ='Calc - SA_Resources'!BA103 -> 0.08673667412 | BW77: ='Calc - SA_Resources'!BB103 -> 0.7155775615 | BX77: =IF($BK$5=$BF$6, 'Staff Needed'!AH73, IF($BK$5=$BF$7, 'Staff Needed'!AJ73, 'Staff Needed'!AL73)) -> 0.1159974287 | BY77: =IF($BK$5=$BF$6, 'Staff Needed'!AI73, IF($BK$5=$BF$7, 'Staff Needed'!AK73, 'Staff Needed'!AM73)) -> 0.6992996945 | BZ77: ='Calc - SA_Resources'!BG103 -> 0.1159974287 | CA77: ='Calc - SA_Resources'!BH103 -> 0.6992996945
BJ78: 69 | BK78: =VLOOKUP(BJ78, 'Calc - Base'!$H$35:$I$400, 2) -> 2021-03-17 | BL78: =IF($BK$5=$BF$6, 'Staff Needed'!V74, IF($BK$5=$BF$7, 'Staff Needed'!X74, 'Staff Needed'!Z74)) -> 0.2488260272 | BM78: =IF($BK$5=$BF$6, 'Staff Needed'!W74, IF($BK$5=$BF$7, 'Staff Needed'!Y74, 'Staff Needed'!AA74)) -> 2.095258766 | BN78: ='Calc - SA_Resources'!AT104 -> 0.2044890466 | BO78: ='Calc - SA_Resources'!AU104 -> 1.430204056 | BT78: =IF($BK$5=$BF$6, 'Staff Needed'!AB74, IF($BK$5=$BF$7, 'Staff Needed'!AD74, 'Staff Needed'!AF74)) -> 0.1330109419 | BU78: =IF($BK$5=$BF$6, 'Staff Needed'!AC74, IF($BK$5=$BF$7, 'Staff Needed'!AE74, 'Staff Needed'!AG74)) -> 1.39661489 | BV78: ='Calc - SA_Resources'!BA104 -> 0.08867396127 | BW78: ='Calc - SA_Resources'!BB104 -> 0.7315601805 | BX78: =IF($BK$5=$BF$6, 'Staff Needed'!AH74, IF($BK$5=$BF$7, 'Staff Needed'!AJ74, 'Staff Needed'!AL74)) -> 0.1158150853 | BY78: =IF($BK$5=$BF$6, 'Staff Needed'!AI74, IF($BK$5=$BF$7, 'Staff Needed'!AK74, 'Staff Needed'!AM74)) -> 0.6986438756 | BZ78: ='Calc - SA_Resources'!BG104 -> 0.1158150853 | CA78: ='Calc - SA_Resources'!BH104 -> 0.6986438756
BJ79: 70 | BK79: =VLOOKUP(BJ79, 'Calc - Base'!$H$35:$I$400, 2) -> 2021-03-18 | BL79: =IF($BK$5=$BF$6, 'Staff Needed'!V75, IF($BK$5=$BF$7, 'Staff Needed'!X75, 'Staff Needed'!Z75)) -> 0.239614586 | BM79: =IF($BK$5=$BF$6, 'Staff Needed'!W75, IF($BK$5=$BF$7, 'Staff Needed'!Y75, 'Staff Needed'!AA75)) -> 1.999772711 | BN79: ='Calc - SA_Resources'!AT105 -> 0.1982875544 | BO79: ='Calc - SA_Resources'!AU105 -> 1.379867237 | BT79: =IF($BK$5=$BF$6, 'Staff Needed'!AB75, IF($BK$5=$BF$7, 'Staff Needed'!AD75, 'Staff Needed'!AF75)) -> 0.1239810947 | BU79: =IF($BK$5=$BF$6, 'Staff Needed'!AC75, IF($BK$5=$BF$7, 'Staff Needed'!AE75, 'Staff Needed'!AG75)) -> 1.301801494 | BV79: ='Calc - SA_Resources'!BA105 -> 0.08265406312 | BW79: ='Calc - SA_Resources'!BB105 -> 0.6818960208 | BX79: =IF($BK$5=$BF$6, 'Staff Needed'!AH75, IF($BK$5=$BF$7, 'Staff Needed'!AJ75, 'Staff Needed'!AL75)) -> 0.1156334913 | BY79: =IF($BK$5=$BF$6, 'Staff Needed'!AI75, IF($BK$5=$BF$7, 'Staff Needed'!AK75, 'Staff Needed'!AM75)) -> 0.6979712166 | BZ79: ='Calc - SA_Resources'!BG105 -> 0.1156334913 | CA79: ='Calc - SA_Resources'!BH105 -> 0.6979712166
BJ80: 71 | BK80: =VLOOKUP(BJ80, 'Calc - Base'!$H$35:$I$400, 2) -> 2021-03-19 | BL80: =IF($BK$5=$BF$6, 'Staff Needed'!V76, IF($BK$5=$BF$7, 'Staff Needed'!X76, 'Staff Needed'!Z76)) -> 0.2951139487 | BM80: =IF($BK$5=$BF$6, 'Staff Needed'!W76, IF($BK$5=$BF$7, 'Staff Needed'!Y76, 'Staff Needed'!AA76)) -> 2.58418009 | BN80: ='Calc - SA_Resources'!AT106 -> 0.2351928042 | BO80: ='Calc - SA_Resources'!AU106 -> 1.685362921 | BT80: =IF($BK$5=$BF$6, 'Staff Needed'!AB76, IF($BK$5=$BF$7, 'Staff Needed'!AD76, 'Staff Needed'!AF76)) -> 0.1797634337 | BU80: =IF($BK$5=$BF$6, 'Staff Needed'!AC76, IF($BK$5=$BF$7, 'Staff Needed'!AE76, 'Staff Needed'!AG76)) -> 1.887516054 | BV80: ='Calc - SA_Resources'!BA106 -> 0.1198422892 | BW80: ='Calc - SA_Resources'!BB106 -> 0.9886988856 | BX80: =IF($BK$5=$BF$6, 'Staff Needed'!AH76, IF($BK$5=$BF$7, 'Staff Needed'!AJ76, 'Staff Needed'!AL76)) -> 0.115350515 | BY80: =IF($BK$5=$BF$6, 'Staff Needed'!AI76, IF($BK$5=$BF$7, 'Staff Needed'!AK76, 'Staff Needed'!AM76)) -> 0.6966640354 | BZ80: ='Calc - SA_Resources'!BG106 -> 0.115350515 | CA80: ='Calc - SA_Resources'!BH106 -> 0.6966640354
BJ81: 72 | BK81: =VLOOKUP(BJ81, 'Calc - Base'!$H$35:$I$400, 2) -> 2021-03-20 | BL81: =IF($BK$5=$BF$6, 'Staff Needed'!V77, IF($BK$5=$BF$7, 'Staff Needed'!X77, 'Staff Needed'!Z77)) -> 0.2936970721 | BM81: =IF($BK$5=$BF$6, 'Staff Needed'!W77, IF($BK$5=$BF$7, 'Staff Needed'!Y77, 'Staff Needed'!AA77)) -> 2.570998391 | BN81: ='Calc - SA_Resources'!AT107 -> 0.2341500048 | BO81: ='Calc - SA_Resources'!AU107 -> 1.677792381 | BT81: =IF($BK$5=$BF$6, 'Staff Needed'!AB77, IF($BK$5=$BF$7, 'Staff Needed'!AD77, 'Staff Needed'!AF77)) -> 0.178641202 | BU81: =IF($BK$5=$BF$6, 'Staff Needed'!AC77, IF($BK$5=$BF$7, 'Staff Needed'!AE77, 'Staff Needed'!AG77)) -> 1.875732621 | BV81: ='Calc - SA_Resources'!BA107 -> 0.1190941347 | BW81: ='Calc - SA_Resources'!BB107 -> 0.9825266112 | BX81: =IF($BK$5=$BF$6, 'Staff Needed'!AH77, IF($BK$5=$BF$7, 'Staff Needed'!AJ77, 'Staff Needed'!AL77)) -> 0.1150558701 | BY81: =IF($BK$5=$BF$6, 'Staff Needed'!AI77, IF($BK$5=$BF$7, 'Staff Needed'!AK77, 'Staff Needed'!AM77)) -> 0.6952657696 | BZ81: ='Calc - SA_Resources'!BG107 -> 0.1150558701 | CA81: ='Calc - SA_Resources'!BH107 -> 0.6952657696
BJ82: 73 | BK82: =VLOOKUP(BJ82, 'Calc - Base'!$H$35:$I$400, 2) -> 2021-03-21 | BL82: =IF($BK$5=$BF$6, 'Staff Needed'!V78, IF($BK$5=$BF$7, 'Staff Needed'!X78, 'Staff Needed'!Z78)) -> 0.2525323764 | BM82: =IF($BK$5=$BF$6, 'Staff Needed'!W78, IF($BK$5=$BF$7, 'Staff Needed'!Y78, 'Staff Needed'!AA78)) -> 2.140218413 | BN82: ='Calc - SA_Resources'!AT108 -> 0.2066256533 | BO82: ='Calc - SA_Resources'!AU108 -> 1.451617566 | BT82: =IF($BK$5=$BF$6, 'Staff Needed'!AB78, IF($BK$5=$BF$7, 'Staff Needed'!AD78, 'Staff Needed'!AF78)) -> 0.1377201693 | BU82: =IF($BK$5=$BF$6, 'Staff Needed'!AC78, IF($BK$5=$BF$7, 'Staff Needed'!AE78, 'Staff Needed'!AG78)) -> 1.446061777 | BV82: ='Calc - SA_Resources'!BA108 -> 0.09181344617 | BW82: ='Calc - SA_Resources'!BB108 -> 0.7574609309 | BX82: =IF($BK$5=$BF$6, 'Staff Needed'!AH78, IF($BK$5=$BF$7, 'Staff Needed'!AJ78, 'Staff Needed'!AL78)) -> 0.1148122071 | BY82: =IF($BK$5=$BF$6, 'Staff Needed'!AI78, IF($BK$5=$BF$7, 'Staff Needed'!AK78, 'Staff Needed'!AM78)) -> 0.6941566356 | BZ82: ='Calc - SA_Resources'!BG108 -> 0.1148122071 | CA82: ='Calc - SA_Resources'!BH108 -> 0.6941566356
BJ83: 74 | BK83: =VLOOKUP(BJ83, 'Calc - Base'!$H$35:$I$400, 2) -> 2021-03-22 | BL83: =IF($BK$5=$BF$6, 'Staff Needed'!V79, IF($BK$5=$BF$7, 'Staff Needed'!X79, 'Staff Needed'!Z79)) -> 0.6024434873 | BM83: =IF($BK$5=$BF$6, 'Staff Needed'!W79, IF($BK$5=$BF$7, 'Staff Needed'!Y79, 'Staff Needed'!AA79)) -> 5.816992307 | BN83: ='Calc - SA_Resources'!AT109 -> 0.4397229746 | BO83: ='Calc - SA_Resources'!AU109 -> 3.376184616 | BT83: =IF($BK$5=$BF$6, 'Staff Needed'!AB79, IF($BK$5=$BF$7, 'Staff Needed'!AD79, 'Staff Needed'!AF79)) -> 0.4881615381 | BU83: =IF($BK$5=$BF$6, 'Staff Needed'!AC79, IF($BK$5=$BF$7, 'Staff Needed'!AE79, 'Staff Needed'!AG79)) -> 5.12569615 | BV83: ='Calc - SA_Resources'!BA109 -> 0.3254410254 | BW83: ='Calc - SA_Resources'!BB109 -> 2.68488846 | BX83: =IF($BK$5=$BF$6, 'Staff Needed'!AH79, IF($BK$5=$BF$7, 'Staff Needed'!AJ79, 'Staff Needed'!AL79)) -> 0.1142819492 | BY83: =IF($BK$5=$BF$6, 'Staff Needed'!AI79, IF($BK$5=$BF$7, 'Staff Needed'!AK79, 'Staff Needed'!AM79)) -> 0.6912961569 | BZ83: ='Calc - SA_Resources'!BG109 -> 0.1142819492 | CA83: ='Calc - SA_Resources'!BH109 -> 0.6912961569
BJ84: 75 | BK84: =VLOOKUP(BJ84, 'Calc - Base'!$H$35:$I$400, 2) -> 2021-03-23 | BL84: =IF($BK$5=$BF$6, 'Staff Needed'!V80, IF($BK$5=$BF$7, 'Staff Needed'!X80, 'Staff Needed'!Z80)) -> 0.2410414849 | BM84: =IF($BK$5=$BF$6, 'Staff Needed'!W80, IF($BK$5=$BF$7, 'Staff Needed'!Y80, 'Staff Needed'!AA80)) -> 2.023743341 | BN84: ='Calc - SA_Resources'!AT110 -> 0.1987025249 | BO84: ='Calc - SA_Resources'!AU110 -> 1.388658941 | BT84: =IF($BK$5=$BF$6, 'Staff Needed'!AB80, IF($BK$5=$BF$7, 'Staff Needed'!AD80, 'Staff Needed'!AF80)) -> 0.12701688 | BU84: =IF($BK$5=$BF$6, 'Staff Needed'!AC80, IF($BK$5=$BF$7, 'Staff Needed'!AE80, 'Staff Needed'!AG80)) -> 1.33367724 | BV84: ='Calc - SA_Resources'!BA110 -> 0.08467791997 | BW84: ='Calc - SA_Resources'!BB110 -> 0.6985928398 | BX84: =IF($BK$5=$BF$6, 'Staff Needed'!AH80, IF($BK$5=$BF$7, 'Staff Needed'!AJ80, 'Staff Needed'!AL80)) -> 0.114024605 | BY84: =IF($BK$5=$BF$6, 'Staff Needed'!AI80, IF($BK$5=$BF$7, 'Staff Needed'!AK80, 'Staff Needed'!AM80)) -> 0.6900661011 | BZ84: ='Calc - SA_Resources'!BG110 -> 0.114024605 | CA84: ='Calc - SA_Resources'!BH110 -> 0.6900661011
BJ85: 76 | BK85: =VLOOKUP(BJ85, 'Calc - Base'!$H$35:$I$400, 2) -> 2021-03-24 | BL85: =IF($BK$5=$BF$6, 'Staff Needed'!V81, IF($BK$5=$BF$7, 'Staff Needed'!X81, 'Staff Needed'!Z81)) -> 0.2433884526 | BM85: =IF($BK$5=$BF$6, 'Staff Needed'!W81, IF($BK$5=$BF$7, 'Staff Needed'!Y81, 'Staff Needed'!AA81)) -> 2.049943563 | BN85: ='Calc - SA_Resources'!AT111 -> 0.2001736548 | BO85: ='Calc - SA_Resources'!AU111 -> 1.401721597 | BT85: =IF($BK$5=$BF$6, 'Staff Needed'!AB81, IF($BK$5=$BF$7, 'Staff Needed'!AD81, 'Staff Needed'!AF81)) -> 0.1296443933 | BU85: =IF($BK$5=$BF$6, 'Staff Needed'!AC81, IF($BK$5=$BF$7, 'Staff Needed'!AE81, 'Staff Needed'!AG81)) -> 1.36126613 | BV85: ='Calc - SA_Resources'!BA111 -> 0.08642959554 | BW85: ='Calc - SA_Resources'!BB111 -> 0.7130441632 | BX85: =IF($BK$5=$BF$6, 'Staff Needed'!AH81, IF($BK$5=$BF$7, 'Staff Needed'!AJ81, 'Staff Needed'!AL81)) -> 0.1137440593 | BY85: =IF($BK$5=$BF$6, 'Staff Needed'!AI81, IF($BK$5=$BF$7, 'Staff Needed'!AK81, 'Staff Needed'!AM81)) -> 0.6886774337 | BZ85: ='Calc - SA_Resources'!BG111 -> 0.1137440593 | CA85: ='Calc - SA_Resources'!BH111 -> 0.6886774337
BJ86: 77 | BK86: =VLOOKUP(BJ86, 'Calc - Base'!$H$35:$I$400, 2) -> 2021-03-25 | BL86: =IF($BK$5=$BF$6, 'Staff Needed'!V82, IF($BK$5=$BF$7, 'Staff Needed'!X82, 'Staff Needed'!Z82)) -> 0.2341573805 | BM86: =IF($BK$5=$BF$6, 'Staff Needed'!W82, IF($BK$5=$BF$7, 'Staff Needed'!Y82, 'Staff Needed'!AA82)) -> 1.954530855 | BN86: ='Calc - SA_Resources'!AT112 -> 0.1939281254 | BO86: ='Calc - SA_Resources'!AU112 -> 1.351092029 | BT86: =IF($BK$5=$BF$6, 'Staff Needed'!AB82, IF($BK$5=$BF$7, 'Staff Needed'!AD82, 'Staff Needed'!AF82)) -> 0.1206877653 | BU86: =IF($BK$5=$BF$6, 'Staff Needed'!AC82, IF($BK$5=$BF$7, 'Staff Needed'!AE82, 'Staff Needed'!AG82)) -> 1.267221536 | BV86: ='Calc - SA_Resources'!BA112 -> 0.08045851023 | BW86: ='Calc - SA_Resources'!BB112 -> 0.6637827094 | BX86: =IF($BK$5=$BF$6, 'Staff Needed'!AH82, IF($BK$5=$BF$7, 'Staff Needed'!AJ82, 'Staff Needed'!AL82)) -> 0.1134696151 | BY86: =IF($BK$5=$BF$6, 'Staff Needed'!AI82, IF($BK$5=$BF$7, 'Staff Needed'!AK82, 'Staff Needed'!AM82)) -> 0.6873093194 | BZ86: ='Calc - SA_Resources'!BG112 -> 0.1134696151 | CA86: ='Calc - SA_Resources'!BH112 -> 0.6873093194
BJ87: 78 | BK87: =VLOOKUP(BJ87, 'Calc - Base'!$H$35:$I$400, 2) -> 2021-03-26 | BL87: =IF($BK$5=$BF$6, 'Staff Needed'!V83, IF($BK$5=$BF$7, 'Staff Needed'!X83, 'Staff Needed'!Z83)) -> 0.2884482566 | BM87: =IF($BK$5=$BF$6, 'Staff Needed'!W83, IF($BK$5=$BF$7, 'Staff Needed'!Y83, 'Staff Needed'!AA83)) -> 2.526496583 | BN87: ='Calc - SA_Resources'!AT113 -> 0.2299993558 | BO87: ='Calc - SA_Resources'!AU113 -> 1.649763071 | BT87: =IF($BK$5=$BF$6, 'Staff Needed'!AB83, IF($BK$5=$BF$7, 'Staff Needed'!AD83, 'Staff Needed'!AF83)) -> 0.1753467024 | BU87: =IF($BK$5=$BF$6, 'Staff Needed'!AC83, IF($BK$5=$BF$7, 'Staff Needed'!AE83, 'Staff Needed'!AG83)) -> 1.841140376 | BV87: ='Calc - SA_Resources'!BA113 -> 0.1168978016 | BW87: ='Calc - SA_Resources'!BB113 -> 0.9644068634 | BX87: =IF($BK$5=$BF$6, 'Staff Needed'!AH83, IF($BK$5=$BF$7, 'Staff Needed'!AJ83, 'Staff Needed'!AL83)) -> 0.1131015542 | BY87: =IF($BK$5=$BF$6, 'Staff Needed'!AI83, IF($BK$5=$BF$7, 'Staff Needed'!AK83, 'Staff Needed'!AM83)) -> 0.6853562076 | BZ87: ='Calc - SA_Resources'!BG113 -> 0.1131015542 | CA87: ='Calc - SA_Resources'!BH113 -> 0.6853562076
BJ88: 79 | BK88: =VLOOKUP(BJ88, 'Calc - Base'!$H$35:$I$400, 2) -> 2021-03-27 | BL88: =IF($BK$5=$BF$6, 'Staff Needed'!V84, IF($BK$5=$BF$7, 'Staff Needed'!X84, 'Staff Needed'!Z84)) -> 0.2868764538 | BM88: =IF($BK$5=$BF$6, 'Staff Needed'!W84, IF($BK$5=$BF$7, 'Staff Needed'!Y84, 'Staff Needed'!AA84)) -> 2.5119162 | BN88: ='Calc - SA_Resources'!AT114 -> 0.2288267103 | BO88: ='Calc - SA_Resources'!AU114 -> 1.641170048 | BT88: =IF($BK$5=$BF$6, 'Staff Needed'!AB84, IF($BK$5=$BF$7, 'Staff Needed'!AD84, 'Staff Needed'!AF84)) -> 0.1741492305 | BU88: =IF($BK$5=$BF$6, 'Staff Needed'!AC84, IF($BK$5=$BF$7, 'Staff Needed'!AE84, 'Staff Needed'!AG84)) -> 1.82856692 | BV88: ='Calc - SA_Resources'!BA114 -> 0.116099487 | BW88: ='Calc - SA_Resources'!BB114 -> 0.9578207679 | BX88: =IF($BK$5=$BF$6, 'Staff Needed'!AH84, IF($BK$5=$BF$7, 'Staff Needed'!AJ84, 'Staff Needed'!AL84)) -> 0.1127272232 | BY88: =IF($BK$5=$BF$6, 'Staff Needed'!AI84, IF($BK$5=$BF$7, 'Staff Needed'!AK84, 'Staff Needed'!AM84)) -> 0.68334928 | BZ88: ='Calc - SA_Resources'!BG114 -> 0.1127272232 | CA88: ='Calc - SA_Resources'!BH114 -> 0.68334928
BJ89: 80 | BK89: =VLOOKUP(BJ89, 'Calc - Base'!$H$35:$I$400, 2) -> 2021-03-28 | BL89: =IF($BK$5=$BF$6, 'Staff Needed'!V85, IF($BK$5=$BF$7, 'Staff Needed'!X85, 'Staff Needed'!Z85)) -> 0.2462904511 | BM89: =IF($BK$5=$BF$6, 'Staff Needed'!W85, IF($BK$5=$BF$7, 'Staff Needed'!Y85, 'Staff Needed'!AA85)) -> 2.087430419 | BN89: ='Calc - SA_Resources'!AT115 -> 0.2016627869 | BO89: ='Calc - SA_Resources'!AU115 -> 1.418015456 | BT89: =IF($BK$5=$BF$6, 'Staff Needed'!AB85, IF($BK$5=$BF$7, 'Staff Needed'!AD85, 'Staff Needed'!AF85)) -> 0.1338829926 | BU89: =IF($BK$5=$BF$6, 'Staff Needed'!AC85, IF($BK$5=$BF$7, 'Staff Needed'!AE85, 'Staff Needed'!AG85)) -> 1.405771422 | BV89: ='Calc - SA_Resources'!BA115 -> 0.08925532839 | BW89: ='Calc - SA_Resources'!BB115 -> 0.7363564592 | BX89: =IF($BK$5=$BF$6, 'Staff Needed'!AH85, IF($BK$5=$BF$7, 'Staff Needed'!AJ85, 'Staff Needed'!AL85)) -> 0.1124074585 | BY89: =IF($BK$5=$BF$6, 'Staff Needed'!AI85, IF($BK$5=$BF$7, 'Staff Needed'!AK85, 'Staff Needed'!AM85)) -> 0.681658997 | BZ89: ='Calc - SA_Resources'!BG115 -> 0.1124074585 | CA89: ='Calc - SA_Resources'!BH115 -> 0.681658997
BJ90: 81 | BK90: =VLOOKUP(BJ90, 'Calc - Base'!$H$35:$I$400, 2) -> 2021-03-29 | BL90: =IF($BK$5=$BF$6, 'Staff Needed'!V86, IF($BK$5=$BF$7, 'Staff Needed'!X86, 'Staff Needed'!Z86)) -> 0.5928244624 | BM90: =IF($BK$5=$BF$6, 'Staff Needed'!W86, IF($BK$5=$BF$7, 'Staff Needed'!Y86, 'Staff Needed'!AA86)) -> 5.728914765 | BN90: ='Calc - SA_Resources'!AT116 -> 0.4324868833 | BO90: ='Calc - SA_Resources'!AU116 -> 3.323851078 | BT90: =IF($BK$5=$BF$6, 'Staff Needed'!AB86, IF($BK$5=$BF$7, 'Staff Needed'!AD86, 'Staff Needed'!AF86)) -> 0.4810127373 | BU90: =IF($BK$5=$BF$6, 'Staff Needed'!AC86, IF($BK$5=$BF$7, 'Staff Needed'!AE86, 'Staff Needed'!AG86)) -> 5.050633741 | BV90: ='Calc - SA_Resources'!BA116 -> 0.3206751582 | BW90: ='Calc - SA_Resources'!BB116 -> 2.645570055 | BX90: =IF($BK$5=$BF$6, 'Staff Needed'!AH86, IF($BK$5=$BF$7, 'Staff Needed'!AJ86, 'Staff Needed'!AL86)) -> 0.1118117251 | BY90: =IF($BK$5=$BF$6, 'Staff Needed'!AI86, IF($BK$5=$BF$7, 'Staff Needed'!AK86, 'Staff Needed'!AM86)) -> 0.6782810231 | BZ90: ='Calc - SA_Resources'!BG116 -> 0.1118117251 | CA90: ='Calc - SA_Resources'!BH116 -> 0.6782810231
BJ91: 82 | BK91: =VLOOKUP(BJ91, 'Calc - Base'!$H$35:$I$400, 2) -> 2021-03-30 | BL91: =IF($BK$5=$BF$6, 'Staff Needed'!V87, IF($BK$5=$BF$7, 'Staff Needed'!X87, 'Staff Needed'!Z87)) -> 0.234621399 | BM91: =IF($BK$5=$BF$6, 'Staff Needed'!W87, IF($BK$5=$BF$7, 'Staff Needed'!Y87, 'Staff Needed'!AA87)) -> 1.969437801 | BN91: ='Calc - SA_Resources'!AT117 -> 0.193576964 | BO91: ='Calc - SA_Resources'!AU117 -> 1.353771275 | BT91: =IF($BK$5=$BF$6, 'Staff Needed'!AB87, IF($BK$5=$BF$7, 'Staff Needed'!AD87, 'Staff Needed'!AF87)) -> 0.1231333052 | BU91: =IF($BK$5=$BF$6, 'Staff Needed'!AC87, IF($BK$5=$BF$7, 'Staff Needed'!AE87, 'Staff Needed'!AG87)) -> 1.292899704 | BV91: ='Calc - SA_Resources'!BA117 -> 0.0820888701 | BW91: ='Calc - SA_Resources'!BB117 -> 0.6772331784 | BX91: =IF($BK$5=$BF$6, 'Staff Needed'!AH87, IF($BK$5=$BF$7, 'Staff Needed'!AJ87, 'Staff Needed'!AL87)) -> 0.1114880939 | BY91: =IF($BK$5=$BF$6, 'Staff Needed'!AI87, IF($BK$5=$BF$7, 'Staff Needed'!AK87, 'Staff Needed'!AM87)) -> 0.6765380966 | BZ91: ='Calc - SA_Resources'!BG117 -> 0.1114880939 | CA91: ='Calc - SA_Resources'!BH117 -> 0.6765380966
BJ92: 83 | BK92: =VLOOKUP(BJ92, 'Calc - Base'!$H$35:$I$400, 2) -> 2021-03-31 | BL92: =IF($BK$5=$BF$6, 'Staff Needed'!V88, IF($BK$5=$BF$7, 'Staff Needed'!X88, 'Staff Needed'!Z88)) -> 0.2366900341 | BM92: =IF($BK$5=$BF$6, 'Staff Needed'!W88, IF($BK$5=$BF$7, 'Staff Needed'!Y88, 'Staff Needed'!AA88)) -> 1.992879786 | BN92: ='Calc - SA_Resources'!AT118 -> 0.194842145 | BO92: ='Calc - SA_Resources'!AU118 -> 1.365161449 | BT92: =IF($BK$5=$BF$6, 'Staff Needed'!AB88, IF($BK$5=$BF$7, 'Staff Needed'!AD88, 'Staff Needed'!AF88)) -> 0.1255436674 | BU92: =IF($BK$5=$BF$6, 'Staff Needed'!AC88, IF($BK$5=$BF$7, 'Staff Needed'!AE88, 'Staff Needed'!AG88)) -> 1.318208508 | BV92: ='Calc - SA_Resources'!BA118 -> 0.08369577827 | BW92: ='Calc - SA_Resources'!BB118 -> 0.6904901707 | BX92: =IF($BK$5=$BF$6, 'Staff Needed'!AH88, IF($BK$5=$BF$7, 'Staff Needed'!AJ88, 'Staff Needed'!AL88)) -> 0.1111463667 | BY92: =IF($BK$5=$BF$6, 'Staff Needed'!AI88, IF($BK$5=$BF$7, 'Staff Needed'!AK88, 'Staff Needed'!AM88)) -> 0.674671278 | BZ92: ='Calc - SA_Resources'!BG118 -> 0.1111463667 | CA92: ='Calc - SA_Resources'!BH118 -> 0.674671278
BJ93: 84 | BK93: =VLOOKUP(BJ93, 'Calc - Base'!$H$35:$I$400, 2) -> 2021-04-01 | BL93: =IF($BK$5=$BF$6, 'Staff Needed'!V89, IF($BK$5=$BF$7, 'Staff Needed'!X89, 'Staff Needed'!Z89)) -> 0.2275211967 | BM93: =IF($BK$5=$BF$6, 'Staff Needed'!W89, IF($BK$5=$BF$7, 'Staff Needed'!Y89, 'Staff Needed'!AA89)) -> 1.898271892 | BN93: ='Calc - SA_Resources'!AT119 -> 0.1886189986 | BO93: ='Calc - SA_Resources'!AU119 -> 1.314738921 | BT93: =IF($BK$5=$BF$6, 'Staff Needed'!AB89, IF($BK$5=$BF$7, 'Staff Needed'!AD89, 'Staff Needed'!AF89)) -> 0.1167065942 | BU93: =IF($BK$5=$BF$6, 'Staff Needed'!AC89, IF($BK$5=$BF$7, 'Staff Needed'!AE89, 'Staff Needed'!AG89)) -> 1.225419239 | BV93: ='Calc - SA_Resources'!BA119 -> 0.07780439615 | BW93: ='Calc - SA_Resources'!BB119 -> 0.6418862682 | BX93: =IF($BK$5=$BF$6, 'Staff Needed'!AH89, IF($BK$5=$BF$7, 'Staff Needed'!AJ89, 'Staff Needed'!AL89)) -> 0.1108146025 | BY93: =IF($BK$5=$BF$6, 'Staff Needed'!AI89, IF($BK$5=$BF$7, 'Staff Needed'!AK89, 'Staff Needed'!AM89)) -> 0.6728526528 | BZ93: ='Calc - SA_Resources'!BG119 -> 0.1108146025 | CA93: ='Calc - SA_Resources'!BH119 -> 0.6728526528
BJ94: 85 | BK94: =VLOOKUP(BJ94, 'Calc - Base'!$H$35:$I$400, 2) -> 2021-04-02 | BL94: =IF($BK$5=$BF$6, 'Staff Needed'!V90, IF($BK$5=$BF$7, 'Staff Needed'!X90, 'Staff Needed'!Z90)) -> 0.2807193044 | BM94: =IF($BK$5=$BF$6, 'Staff Needed'!W90, IF($BK$5=$BF$7, 'Staff Needed'!Y90, 'Staff Needed'!AA90)) -> 2.458887455 | BN94: ='Calc - SA_Resources'!AT120 -> 0.2239448652 | BO94: ='Calc - SA_Resources'!AU120 -> 1.607270869 | BT94: =IF($BK$5=$BF$6, 'Staff Needed'!AB90, IF($BK$5=$BF$7, 'Staff Needed'!AD90, 'Staff Needed'!AF90)) -> 0.1703233173 | BU94: =IF($BK$5=$BF$6, 'Staff Needed'!AC90, IF($BK$5=$BF$7, 'Staff Needed'!AE90, 'Staff Needed'!AG90)) -> 1.788394832 | BV94: ='Calc - SA_Resources'!BA120 -> 0.1135488782 | BW94: ='Calc - SA_Resources'!BB120 -> 0.9367782452 | BX94: =IF($BK$5=$BF$6, 'Staff Needed'!AH90, IF($BK$5=$BF$7, 'Staff Needed'!AJ90, 'Staff Needed'!AL90)) -> 0.110395987 | BY94: =IF($BK$5=$BF$6, 'Staff Needed'!AI90, IF($BK$5=$BF$7, 'Staff Needed'!AK90, 'Staff Needed'!AM90)) -> 0.6704926237 | BZ94: ='Calc - SA_Resources'!BG120 -> 0.110395987 | CA94: ='Calc - SA_Resources'!BH120 -> 0.6704926237
BJ95: 86 | BK95: =VLOOKUP(BJ95, 'Calc - Base'!$H$35:$I$400, 2) -> 2021-04-03 | BL95: =IF($BK$5=$BF$6, 'Staff Needed'!V91, IF($BK$5=$BF$7, 'Staff Needed'!X91, 'Staff Needed'!Z91)) -> 0.2790738749 | BM95: =IF($BK$5=$BF$6, 'Staff Needed'!W91, IF($BK$5=$BF$7, 'Staff Needed'!Y91, 'Staff Needed'!AA91)) -> 2.443643998 | BN95: ='Calc - SA_Resources'!AT121 -> 0.2227076215 | BO95: ='Calc - SA_Resources'!AU121 -> 1.598150196 | BT95: =IF($BK$5=$BF$6, 'Staff Needed'!AB91, IF($BK$5=$BF$7, 'Staff Needed'!AD91, 'Staff Needed'!AF91)) -> 0.1690987604 | BU95: =IF($BK$5=$BF$6, 'Staff Needed'!AC91, IF($BK$5=$BF$7, 'Staff Needed'!AE91, 'Staff Needed'!AG91)) -> 1.775536984 | BV95: ='Calc - SA_Resources'!BA121 -> 0.1127325069 | BW95: ='Calc - SA_Resources'!BB121 -> 0.9300431822 | BX95: =IF($BK$5=$BF$6, 'Staff Needed'!AH91, IF($BK$5=$BF$7, 'Staff Needed'!AJ91, 'Staff Needed'!AL91)) -> 0.1099751145 | BY95: =IF($BK$5=$BF$6, 'Staff Needed'!AI91, IF($BK$5=$BF$7, 'Staff Needed'!AK91, 'Staff Needed'!AM91)) -> 0.6681070133 | BZ95: ='Calc - SA_Resources'!BG121 -> 0.1099751145 | CA95: ='Calc - SA_Resources'!BH121 -> 0.6681070133
BJ96: 87 | BK96: =VLOOKUP(BJ96, 'Calc - Base'!$H$35:$I$400, 2) -> 2021-04-04 | BL96: =IF($BK$5=$BF$6, 'Staff Needed'!V92, IF($BK$5=$BF$7, 'Staff Needed'!X92, 'Staff Needed'!Z92)) -> 0.2391219641 | BM96: =IF($BK$5=$BF$6, 'Staff Needed'!W92, IF($BK$5=$BF$7, 'Staff Needed'!Y92, 'Staff Needed'!AA92)) -> 2.02592203 | BN96: ='Calc - SA_Resources'!AT122 -> 0.1959515747 | BO96: ='Calc - SA_Resources'!AU122 -> 1.378366189 | BT96: =IF($BK$5=$BF$6, 'Staff Needed'!AB92, IF($BK$5=$BF$7, 'Staff Needed'!AD92, 'Staff Needed'!AF92)) -> 0.1295111683 | BU96: =IF($BK$5=$BF$6, 'Staff Needed'!AC92, IF($BK$5=$BF$7, 'Staff Needed'!AE92, 'Staff Needed'!AG92)) -> 1.359867267 | BV96: ='Calc - SA_Resources'!BA122 -> 0.08634077886 | BW96: ='Calc - SA_Resources'!BB122 -> 0.7123114256 | BX96: =IF($BK$5=$BF$6, 'Staff Needed'!AH92, IF($BK$5=$BF$7, 'Staff Needed'!AJ92, 'Staff Needed'!AL92)) -> 0.1096107958 | BY96: =IF($BK$5=$BF$6, 'Staff Needed'!AI92, IF($BK$5=$BF$7, 'Staff Needed'!AK92, 'Staff Needed'!AM92)) -> 0.6660547631 | BZ96: ='Calc - SA_Resources'!BG122 -> 0.1096107958 | CA96: ='Calc - SA_Resources'!BH122 -> 0.6660547631
BJ97: 88 | BK97: =VLOOKUP(BJ97, 'Calc - Base'!$H$35:$I$400, 2) -> 2021-04-05 | BL97: =IF($BK$5=$BF$6, 'Staff Needed'!V93, IF($BK$5=$BF$7, 'Staff Needed'!X93, 'Staff Needed'!Z93)) -> 0.5824335402 | BM97: =IF($BK$5=$BF$6, 'Staff Needed'!W93, IF($BK$5=$BF$7, 'Staff Needed'!Y93, 'Staff Needed'!AA93)) -> 5.633631375 | BN97: ='Calc - SA_Resources'!AT123 -> 0.424615959 | BO97: ='Calc - SA_Resources'!AU123 -> 3.266367656 | BT97: =IF($BK$5=$BF$6, 'Staff Needed'!AB93, IF($BK$5=$BF$7, 'Staff Needed'!AD93, 'Staff Needed'!AF93)) -> 0.4734527439 | BU97: =IF($BK$5=$BF$6, 'Staff Needed'!AC93, IF($BK$5=$BF$7, 'Staff Needed'!AE93, 'Staff Needed'!AG93)) -> 4.97125381 | BV97: ='Calc - SA_Resources'!BA123 -> 0.3156351626 | BW97: ='Calc - SA_Resources'!BB123 -> 2.603990091 | BX97: =IF($BK$5=$BF$6, 'Staff Needed'!AH93, IF($BK$5=$BF$7, 'Staff Needed'!AJ93, 'Staff Needed'!AL93)) -> 0.1089807964 | BY97: =IF($BK$5=$BF$6, 'Staff Needed'!AI93, IF($BK$5=$BF$7, 'Staff Needed'!AK93, 'Staff Needed'!AM93)) -> 0.6623775645 | BZ97: ='Calc - SA_Resources'!BG123 -> 0.1089807964 | CA97: ='Calc - SA_Resources'!BH123 -> 0.6623775645
BJ98: 89 | BK98: =VLOOKUP(BJ98, 'Calc - Base'!$H$35:$I$400, 2) -> 2021-04-06 | BL98: =IF($BK$5=$BF$6, 'Staff Needed'!V94, IF($BK$5=$BF$7, 'Staff Needed'!X94, 'Staff Needed'!Z94)) -> 0.2274210253 | BM98: =IF($BK$5=$BF$6, 'Staff Needed'!W94, IF($BK$5=$BF$7, 'Staff Needed'!Y94, 'Staff Needed'!AA94)) -> 1.907736618 | BN98: ='Calc - SA_Resources'!AT124 -> 0.1878206137 | BO98: ='Calc - SA_Resources'!AU124 -> 1.313730444 | BT98: =IF($BK$5=$BF$6, 'Staff Needed'!AB94, IF($BK$5=$BF$7, 'Staff Needed'!AD94, 'Staff Needed'!AF94)) -> 0.1188012347 | BU98: =IF($BK$5=$BF$6, 'Staff Needed'!AC94, IF($BK$5=$BF$7, 'Staff Needed'!AE94, 'Staff Needed'!AG94)) -> 1.247412965 | BV98: ='Calc - SA_Resources'!BA124 -> 0.07920082316 | BW98: ='Calc - SA_Resources'!BB124 -> 0.6534067911 | BX98: =IF($BK$5=$BF$6, 'Staff Needed'!AH94, IF($BK$5=$BF$7, 'Staff Needed'!AJ94, 'Staff Needed'!AL94)) -> 0.1086197905 | BY98: =IF($BK$5=$BF$6, 'Staff Needed'!AI94, IF($BK$5=$BF$7, 'Staff Needed'!AK94, 'Staff Needed'!AM94)) -> 0.6603236532 | BZ98: ='Calc - SA_Resources'!BG124 -> 0.1086197905 | CA98: ='Calc - SA_Resources'!BH124 -> 0.6603236532
BJ99: 90 | BK99: =VLOOKUP(BJ99, 'Calc - Base'!$H$35:$I$400, 2) -> 2021-04-07 | BL99: =IF($BK$5=$BF$6, 'Staff Needed'!V95, IF($BK$5=$BF$7, 'Staff Needed'!X95, 'Staff Needed'!Z95)) -> 0.2292862571 | BM99: =IF($BK$5=$BF$6, 'Staff Needed'!W95, IF($BK$5=$BF$7, 'Staff Needed'!Y95, 'Staff Needed'!AA95)) -> 1.92911014 | BN99: ='Calc - SA_Resources'!AT125 -> 0.1889390451 | BO99: ='Calc - SA_Resources'!AU125 -> 1.323901961 | BT99: =IF($BK$5=$BF$6, 'Staff Needed'!AB95, IF($BK$5=$BF$7, 'Staff Needed'!AD95, 'Staff Needed'!AF95)) -> 0.1210416358 | BU99: =IF($BK$5=$BF$6, 'Staff Needed'!AC95, IF($BK$5=$BF$7, 'Staff Needed'!AE95, 'Staff Needed'!AG95)) -> 1.270937176 | BV99: ='Calc - SA_Resources'!BA125 -> 0.08069442389 | BW99: ='Calc - SA_Resources'!BB125 -> 0.6657289971 | BX99: =IF($BK$5=$BF$6, 'Staff Needed'!AH95, IF($BK$5=$BF$7, 'Staff Needed'!AJ95, 'Staff Needed'!AL95)) -> 0.1082446212 | BY99: =IF($BK$5=$BF$6, 'Staff Needed'!AI95, IF($BK$5=$BF$7, 'Staff Needed'!AK95, 'Staff Needed'!AM95)) -> 0.6581729638 | BZ99: ='Calc - SA_Resources'!BG125 -> 0.1082446212 | CA99: ='Calc - SA_Resources'!BH125 -> 0.6581729638
BJ100: 91 | BK100: =VLOOKUP(BJ100, 'Calc - Base'!$H$35:$I$400, 2) -> 2021-04-08 | BL100: =IF($BK$5=$BF$6, 'Staff Needed'!V96, IF($BK$5=$BF$7, 'Staff Needed'!X96, 'Staff Needed'!Z96)) -> 0.2202378469 | BM100: =IF($BK$5=$BF$6, 'Staff Needed'!W96, IF($BK$5=$BF$7, 'Staff Needed'!Y96, 'Staff Needed'!AA96)) -> 1.835825792 | BN100: ='Calc - SA_Resources'!AT126 -> 0.1827859161 | BO100: ='Calc - SA_Resources'!AU126 -> 1.274046829 | BT100: =IF($BK$5=$BF$6, 'Staff Needed'!AB96, IF($BK$5=$BF$7, 'Staff Needed'!AD96, 'Staff Needed'!AF96)) -> 0.1123557925 | BU100: =IF($BK$5=$BF$6, 'Staff Needed'!AC96, IF($BK$5=$BF$7, 'Staff Needed'!AE96, 'Staff Needed'!AG96)) -> 1.179735821 | BV100: ='Calc - SA_Resources'!BA126 -> 0.07490386168 | BW100: ='Calc - SA_Resources'!BB126 -> 0.6179568588 | BX100: =IF($BK$5=$BF$6, 'Staff Needed'!AH96, IF($BK$5=$BF$7, 'Staff Needed'!AJ96, 'Staff Needed'!AL96)) -> 0.1078820544 | BY100: =IF($BK$5=$BF$6, 'Staff Needed'!AI96, IF($BK$5=$BF$7, 'Staff Needed'!AK96, 'Staff Needed'!AM96)) -> 0.6560899706 | BZ100: ='Calc - SA_Resources'!BG126 -> 0.1078820544 | CA100: ='Calc - SA_Resources'!BH126 -> 0.6560899706
BJ101: 92 | BK101: =VLOOKUP(BJ101, 'Calc - Base'!$H$35:$I$400, 2) -> 2021-04-09 | BL101: =IF($BK$5=$BF$6, 'Staff Needed'!V97, IF($BK$5=$BF$7, 'Staff Needed'!X97, 'Staff Needed'!Z97)) -> 0.2724385334 | BM101: =IF($BK$5=$BF$6, 'Staff Needed'!W97, IF($BK$5=$BF$7, 'Staff Needed'!Y97, 'Staff Needed'!AA97)) -> 2.386004176 | BN101: ='Calc - SA_Resources'!AT127 -> 0.2174385061 | BO101: ='Calc - SA_Resources'!AU127 -> 1.561003766 | BT101: =IF($BK$5=$BF$6, 'Staff Needed'!AB97, IF($BK$5=$BF$7, 'Staff Needed'!AD97, 'Staff Needed'!AF97)) -> 0.165000082 | BU101: =IF($BK$5=$BF$6, 'Staff Needed'!AC97, IF($BK$5=$BF$7, 'Staff Needed'!AE97, 'Staff Needed'!AG97)) -> 1.73250086 | BV101: ='Calc - SA_Resources'!BA127 -> 0.1100000546 | BW101: ='Calc - SA_Resources'!BB127 -> 0.9075004507 | BX101: =IF($BK$5=$BF$6, 'Staff Needed'!AH97, IF($BK$5=$BF$7, 'Staff Needed'!AJ97, 'Staff Needed'!AL97)) -> 0.1074384515 | BY101: =IF($BK$5=$BF$6, 'Staff Needed'!AI97, IF($BK$5=$BF$7, 'Staff Needed'!AK97, 'Staff Needed'!AM97)) -> 0.6535033155 | BZ101: ='Calc - SA_Resources'!BG127 -> 0.1074384515 | CA101: ='Calc - SA_Resources'!BH127 -> 0.6535033155
BJ102: 93 | BK102: =VLOOKUP(BJ102, 'Calc - Base'!$H$35:$I$400, 2) -> 2021-04-10 | BL102: =IF($BK$5=$BF$6, 'Staff Needed'!V98, IF($BK$5=$BF$7, 'Staff Needed'!X98, 'Staff Needed'!Z98)) -> 0.2707783441 | BM102: =IF($BK$5=$BF$6, 'Staff Needed'!W98, IF($BK$5=$BF$7, 'Staff Needed'!Y98, 'Staff Needed'!AA98)) -> 2.370631994 | BN102: ='Calc - SA_Resources'!AT128 -> 0.2161840499 | BO102: ='Calc - SA_Resources'!AU128 -> 1.551717582 | BT102: =IF($BK$5=$BF$6, 'Staff Needed'!AB98, IF($BK$5=$BF$7, 'Staff Needed'!AD98, 'Staff Needed'!AF98)) -> 0.1637828824 | BU102: =IF($BK$5=$BF$6, 'Staff Needed'!AC98, IF($BK$5=$BF$7, 'Staff Needed'!AE98, 'Staff Needed'!AG98)) -> 1.719720266 | BV102: ='Calc - SA_Resources'!BA128 -> 0.1091885883 | BW102: ='Calc - SA_Resources'!BB128 -> 0.9008058534 | BX102: =IF($BK$5=$BF$6, 'Staff Needed'!AH98, IF($BK$5=$BF$7, 'Staff Needed'!AJ98, 'Staff Needed'!AL98)) -> 0.1069954616 | BY102: =IF($BK$5=$BF$6, 'Staff Needed'!AI98, IF($BK$5=$BF$7, 'Staff Needed'!AK98, 'Staff Needed'!AM98)) -> 0.6509117285 | BZ102: ='Calc - SA_Resources'!BG128 -> 0.1069954616 | CA102: ='Calc - SA_Resources'!BH128 -> 0.6509117285
BJ103: 94 | BK103: =VLOOKUP(BJ103, 'Calc - Base'!$H$35:$I$400, 2) -> 2021-04-11 | BL103: =IF($BK$5=$BF$6, 'Staff Needed'!V99, IF($BK$5=$BF$7, 'Staff Needed'!X99, 'Staff Needed'!Z99)) -> 0.2314927786 | BM103: =IF($BK$5=$BF$6, 'Staff Needed'!W99, IF($BK$5=$BF$7, 'Staff Needed'!Y99, 'Staff Needed'!AA99)) -> 1.959933207 | BN103: ='Calc - SA_Resources'!AT129 -> 0.1898651127 | BO103: ='Calc - SA_Resources'!AU129 -> 1.335518218 | BT103: =IF($BK$5=$BF$6, 'Staff Needed'!AB99, IF($BK$5=$BF$7, 'Staff Needed'!AD99, 'Staff Needed'!AF99)) -> 0.1248829978 | BU103: =IF($BK$5=$BF$6, 'Staff Needed'!AC99, IF($BK$5=$BF$7, 'Staff Needed'!AE99, 'Staff Needed'!AG99)) -> 1.311271477 | BV103: ='Calc - SA_Resources'!BA129 -> 0.08325533189 | BW103: ='Calc - SA_Resources'!BB129 -> 0.6868564881 | BX103: =IF($BK$5=$BF$6, 'Staff Needed'!AH99, IF($BK$5=$BF$7, 'Staff Needed'!AJ99, 'Staff Needed'!AL99)) -> 0.1066097808 | BY103: =IF($BK$5=$BF$6, 'Staff Needed'!AI99, IF($BK$5=$BF$7, 'Staff Needed'!AK99, 'Staff Needed'!AM99)) -> 0.6486617298 | BZ103: ='Calc - SA_Resources'!BG129 -> 0.1066097808 | CA103: ='Calc - SA_Resources'!BH129 -> 0.6486617298
BJ104: 95 | BK104: =VLOOKUP(BJ104, 'Calc - Base'!$H$35:$I$400, 2) -> 2021-04-12 | BL104: =IF($BK$5=$BF$6, 'Staff Needed'!V100, IF($BK$5=$BF$7, 'Staff Needed'!X100, 'Staff Needed'!Z100)) -> 0.5717213342 | BM104: =IF($BK$5=$BF$6, 'Staff Needed'!W100, IF($BK$5=$BF$7, 'Staff Needed'!Y100, 'Staff Needed'!AA100)) -> 5.535255268 | BN104: ='Calc - SA_Resources'!AT130 -> 0.416470273 | BO104: ='Calc - SA_Resources'!AU130 -> 3.20648935 | BT104: =IF($BK$5=$BF$6, 'Staff Needed'!AB100, IF($BK$5=$BF$7, 'Staff Needed'!AD100, 'Staff Needed'!AF100)) -> 0.4657531834 | BU104: =IF($BK$5=$BF$6, 'Staff Needed'!AC100, IF($BK$5=$BF$7, 'Staff Needed'!AE100, 'Staff Needed'!AG100)) -> 4.890408426 | BV104: ='Calc - SA_Resources'!BA130 -> 0.3105021223 | BW104: ='Calc - SA_Resources'!BB130 -> 2.561642509 | BX104: =IF($BK$5=$BF$6, 'Staff Needed'!AH100, IF($BK$5=$BF$7, 'Staff Needed'!AJ100, 'Staff Needed'!AL100)) -> 0.1059681507 | BY104: =IF($BK$5=$BF$6, 'Staff Needed'!AI100, IF($BK$5=$BF$7, 'Staff Needed'!AK100, 'Staff Needed'!AM100)) -> 0.6448468414 | BZ104: ='Calc - SA_Resources'!BG130 -> 0.1059681507 | CA104: ='Calc - SA_Resources'!BH130 -> 0.6448468414
BJ105: 96 | BK105: =VLOOKUP(BJ105, 'Calc - Base'!$H$35:$I$400, 2) -> 2021-04-13 | BL105: =IF($BK$5=$BF$6, 'Staff Needed'!V101, IF($BK$5=$BF$7, 'Staff Needed'!X101, 'Staff Needed'!Z101)) -> 0.2198640413 | BM105: =IF($BK$5=$BF$6, 'Staff Needed'!W101, IF($BK$5=$BF$7, 'Staff Needed'!Y101, 'Staff Needed'!AA101)) -> 1.842500681 | BN105: ='Calc - SA_Resources'!AT131 -> 0.1817729664 | BO105: ='Calc - SA_Resources'!AU131 -> 1.271134558 | BT105: =IF($BK$5=$BF$6, 'Staff Needed'!AB101, IF($BK$5=$BF$7, 'Staff Needed'!AD101, 'Staff Needed'!AF101)) -> 0.1142732248 | BU105: =IF($BK$5=$BF$6, 'Staff Needed'!AC101, IF($BK$5=$BF$7, 'Staff Needed'!AE101, 'Staff Needed'!AG101)) -> 1.19986886 | BV105: ='Calc - SA_Resources'!BA131 -> 0.07618214985 | BW105: ='Calc - SA_Resources'!BB131 -> 0.6285027363 | BX105: =IF($BK$5=$BF$6, 'Staff Needed'!AH101, IF($BK$5=$BF$7, 'Staff Needed'!AJ101, 'Staff Needed'!AL101)) -> 0.1055908166 | BY105: =IF($BK$5=$BF$6, 'Staff Needed'!AI101, IF($BK$5=$BF$7, 'Staff Needed'!AK101, 'Staff Needed'!AM101)) -> 0.6426318213 | BZ105: ='Calc - SA_Resources'!BG131 -> 0.1055908166 | CA105: ='Calc - SA_Resources'!BH131 -> 0.6426318213
BJ106: 97 | BK106: =VLOOKUP(BJ106, 'Calc - Base'!$H$35:$I$400, 2) -> 2021-04-14 | BL106: =IF($BK$5=$BF$6, 'Staff Needed'!V102, IF($BK$5=$BF$7, 'Staff Needed'!X102, 'Staff Needed'!Z102)) -> 0.2215814359 | BM106: =IF($BK$5=$BF$6, 'Staff Needed'!W102, IF($BK$5=$BF$7, 'Staff Needed'!Y102, 'Staff Needed'!AA102)) -> 1.862321865 | BN106: ='Calc - SA_Resources'!AT132 -> 0.1827883829 | BO106: ='Calc - SA_Resources'!AU132 -> 1.280426069 | BT106: =IF($BK$5=$BF$6, 'Staff Needed'!AB102, IF($BK$5=$BF$7, 'Staff Needed'!AD102, 'Staff Needed'!AF102)) -> 0.1163791591 | BU106: =IF($BK$5=$BF$6, 'Staff Needed'!AC102, IF($BK$5=$BF$7, 'Staff Needed'!AE102, 'Staff Needed'!AG102)) -> 1.22198117 | BV106: ='Calc - SA_Resources'!BA132 -> 0.07758610605 | BW106: ='Calc - SA_Resources'!BB132 -> 0.6400853749 | BX106: =IF($BK$5=$BF$6, 'Staff Needed'!AH102, IF($BK$5=$BF$7, 'Staff Needed'!AJ102, 'Staff Needed'!AL102)) -> 0.1052022768 | BY106: =IF($BK$5=$BF$6, 'Staff Needed'!AI102, IF($BK$5=$BF$7, 'Staff Needed'!AK102, 'Staff Needed'!AM102)) -> 0.6403406942 | BZ106: ='Calc - SA_Resources'!BG132 -> 0.1052022768 | CA106: ='Calc - SA_Resources'!BH132 -> 0.6403406942
BJ107: 98 | BK107: =VLOOKUP(BJ107, 'Calc - Base'!$H$35:$I$400, 2) -> 2021-04-15 | BL107: =IF($BK$5=$BF$6, 'Staff Needed'!V103, IF($BK$5=$BF$7, 'Staff Needed'!X103, 'Staff Needed'!Z103)) -> 0.2126926106 | BM107: =IF($BK$5=$BF$6, 'Staff Needed'!W103, IF($BK$5=$BF$7, 'Staff Needed'!Y103, 'Staff Needed'!AA103)) -> 1.770708493 | BN107: ='Calc - SA_Resources'!AT133 -> 0.176737744 | BO107: ='Calc - SA_Resources'!AU133 -> 1.231385494 | BT107: =IF($BK$5=$BF$6, 'Staff Needed'!AB103, IF($BK$5=$BF$7, 'Staff Needed'!AD103, 'Staff Needed'!AF103)) -> 0.1078645998 | BU107: =IF($BK$5=$BF$6, 'Staff Needed'!AC103, IF($BK$5=$BF$7, 'Staff Needed'!AE103, 'Staff Needed'!AG103)) -> 1.132578298 | BV107: ='Calc - SA_Resources'!BA133 -> 0.0719097332 | BW107: ='Calc - SA_Resources'!BB133 -> 0.5932552989 | BX107: =IF($BK$5=$BF$6, 'Staff Needed'!AH103, IF($BK$5=$BF$7, 'Staff Needed'!AJ103, 'Staff Needed'!AL103)) -> 0.1048280108 | BY107: =IF($BK$5=$BF$6, 'Staff Needed'!AI103, IF($BK$5=$BF$7, 'Staff Needed'!AK103, 'Staff Needed'!AM103)) -> 0.6381301956 | BZ107: ='Calc - SA_Resources'!BG133 -> 0.1048280108 | CA107: ='Calc - SA_Resources'!BH133 -> 0.6381301956
BJ108: 99 | BK108: =VLOOKUP(BJ108, 'Calc - Base'!$H$35:$I$400, 2) -> 2021-04-16 | BL108: =IF($BK$5=$BF$6, 'Staff Needed'!V104, IF($BK$5=$BF$7, 'Staff Needed'!X104, 'Staff Needed'!Z104)) -> 0.2639736191 | BM108: =IF($BK$5=$BF$6, 'Staff Needed'!W104, IF($BK$5=$BF$7, 'Staff Needed'!Y104, 'Staff Needed'!AA104)) -> 2.311205855 | BN108: ='Calc - SA_Resources'!AT134 -> 0.2107749683 | BO108: ='Calc - SA_Resources'!AU134 -> 1.513226093 | BT108: =IF($BK$5=$BF$6, 'Staff Needed'!AB104, IF($BK$5=$BF$7, 'Staff Needed'!AD104, 'Staff Needed'!AF104)) -> 0.1595959524 | BU108: =IF($BK$5=$BF$6, 'Staff Needed'!AC104, IF($BK$5=$BF$7, 'Staff Needed'!AE104, 'Staff Needed'!AG104)) -> 1.675757501 | BV108: ='Calc - SA_Resources'!BA134 -> 0.1063973016 | BW108: ='Calc - SA_Resources'!BB134 -> 0.8777777384 | BX108: =IF($BK$5=$BF$6, 'Staff Needed'!AH104, IF($BK$5=$BF$7, 'Staff Needed'!AJ104, 'Staff Needed'!AL104)) -> 0.1043776667 | BY108: =IF($BK$5=$BF$6, 'Staff Needed'!AI104, IF($BK$5=$BF$7, 'Staff Needed'!AK104, 'Staff Needed'!AM104)) -> 0.6354483543 | BZ108: ='Calc - SA_Resources'!BG134 -> 0.1043776667 | CA108: ='Calc - SA_Resources'!BH134 -> 0.6354483543
BJ109: 100 | BK109: =VLOOKUP(BJ109, 'Calc - Base'!$H$35:$I$400, 2) -> 2021-04-17 | BL109: =IF($BK$5=$BF$6, 'Staff Needed'!V105, IF($BK$5=$BF$7, 'Staff Needed'!X105, 'Staff Needed'!Z105)) -> 0.262339513 | BM109: =IF($BK$5=$BF$6, 'Staff Needed'!W105, IF($BK$5=$BF$7, 'Staff Needed'!Y105, 'Staff Needed'!AA105)) -> 2.296077061 | BN109: ='Calc - SA_Resources'!AT135 -> 0.2095363068 | BO109: ='Calc - SA_Resources'!AU135 -> 1.50402897 | BT109: =IF($BK$5=$BF$6, 'Staff Needed'!AB105, IF($BK$5=$BF$7, 'Staff Needed'!AD105, 'Staff Needed'!AF105)) -> 0.1584096183 | BU109: =IF($BK$5=$BF$6, 'Staff Needed'!AC105, IF($BK$5=$BF$7, 'Staff Needed'!AE105, 'Staff Needed'!AG105)) -> 1.663300992 | BV109: ='Calc - SA_Resources'!BA135 -> 0.1056064122 | BW109: ='Calc - SA_Resources'!BB135 -> 0.8712529007 | BX109: =IF($BK$5=$BF$6, 'Staff Needed'!AH105, IF($BK$5=$BF$7, 'Staff Needed'!AJ105, 'Staff Needed'!AL105)) -> 0.1039298946 | BY109: =IF($BK$5=$BF$6, 'Staff Needed'!AI105, IF($BK$5=$BF$7, 'Staff Needed'!AK105, 'Staff Needed'!AM105)) -> 0.6327760688 | BZ109: ='Calc - SA_Resources'!BG135 -> 0.1039298946 | CA109: ='Calc - SA_Resources'!BH135 -> 0.6327760688
BJ110: 101 | BK110: =VLOOKUP(BJ110, 'Calc - Base'!$H$35:$I$400, 2) -> 2021-04-18 | BL110: =IF($BK$5=$BF$6, 'Staff Needed'!V106, IF($BK$5=$BF$7, 'Staff Needed'!X106, 'Staff Needed'!Z106)) -> 0.2237347756 | BM110: =IF($BK$5=$BF$6, 'Staff Needed'!W106, IF($BK$5=$BF$7, 'Staff Needed'!Y106, 'Staff Needed'!AA106)) -> 1.892499959 | BN110: ='Calc - SA_Resources'!AT136 -> 0.1836696071 | BO110: ='Calc - SA_Resources'!AU136 -> 1.291522432 | BT110: =IF($BK$5=$BF$6, 'Staff Needed'!AB106, IF($BK$5=$BF$7, 'Staff Needed'!AD106, 'Staff Needed'!AF106)) -> 0.1201955053 | BU110: =IF($BK$5=$BF$6, 'Staff Needed'!AC106, IF($BK$5=$BF$7, 'Staff Needed'!AE106, 'Staff Needed'!AG106)) -> 1.262052806 | BV110: ='Calc - SA_Resources'!BA136 -> 0.08013033687 | BW110: ='Calc - SA_Resources'!BB136 -> 0.6610752791 | BX110: =IF($BK$5=$BF$6, 'Staff Needed'!AH106, IF($BK$5=$BF$7, 'Staff Needed'!AJ106, 'Staff Needed'!AL106)) -> 0.1035392703 | BY110: =IF($BK$5=$BF$6, 'Staff Needed'!AI106, IF($BK$5=$BF$7, 'Staff Needed'!AK106, 'Staff Needed'!AM106)) -> 0.6304471531 | BZ110: ='Calc - SA_Resources'!BG136 -> 0.1035392703 | CA110: ='Calc - SA_Resources'!BH136 -> 0.6304471531
BJ111: 102 | BK111: =VLOOKUP(BJ111, 'Calc - Base'!$H$35:$I$400, 2) -> 2021-04-19 | BL111: =IF($BK$5=$BF$6, 'Staff Needed'!V107, IF($BK$5=$BF$7, 'Staff Needed'!X107, 'Staff Needed'!Z107)) -> 0.5610049085 | BM111: =IF($BK$5=$BF$6, 'Staff Needed'!W107, IF($BK$5=$BF$7, 'Staff Needed'!Y107, 'Staff Needed'!AA107)) -> 5.43669274 | BN111: ='Calc - SA_Resources'!AT137 -> 0.4083038612 | BO111: ='Calc - SA_Resources'!AU137 -> 3.146177032 | BT111: =IF($BK$5=$BF$6, 'Staff Needed'!AB107, IF($BK$5=$BF$7, 'Staff Needed'!AD107, 'Staff Needed'!AF107)) -> 0.4581031417 | BU111: =IF($BK$5=$BF$6, 'Staff Needed'!AC107, IF($BK$5=$BF$7, 'Staff Needed'!AE107, 'Staff Needed'!AG107)) -> 4.810082988 | BV111: ='Calc - SA_Resources'!BA137 -> 0.3054020945 | BW111: ='Calc - SA_Resources'!BB137 -> 2.519567279 | BX111: =IF($BK$5=$BF$6, 'Staff Needed'!AH107, IF($BK$5=$BF$7, 'Staff Needed'!AJ107, 'Staff Needed'!AL107)) -> 0.1029017668 | BY111: =IF($BK$5=$BF$6, 'Staff Needed'!AI107, IF($BK$5=$BF$7, 'Staff Needed'!AK107, 'Staff Needed'!AM107)) -> 0.6266097525 | BZ111: ='Calc - SA_Resources'!BG137 -> 0.1029017668 | CA111: ='Calc - SA_Resources'!BH137 -> 0.6266097525
BJ112: 103 | BK112: =VLOOKUP(BJ112, 'Calc - Base'!$H$35:$I$400, 2) -> 2021-04-20 | BL112: =IF($BK$5=$BF$6, 'Staff Needed'!V108, IF($BK$5=$BF$7, 'Staff Needed'!X108, 'Staff Needed'!Z108)) -> 0.2122488636 | BM112: =IF($BK$5=$BF$6, 'Staff Needed'!W108, IF($BK$5=$BF$7, 'Staff Needed'!Y108, 'Staff Needed'!AA108)) -> 1.776464263 | BN112: ='Calc - SA_Resources'!AT138 -> 0.1756735203 | BO112: ='Calc - SA_Resources'!AU138 -> 1.227834115 | BT112: =IF($BK$5=$BF$6, 'Staff Needed'!AB108, IF($BK$5=$BF$7, 'Staff Needed'!AD108, 'Staff Needed'!AF108)) -> 0.1097260297 | BU112: =IF($BK$5=$BF$6, 'Staff Needed'!AC108, IF($BK$5=$BF$7, 'Staff Needed'!AE108, 'Staff Needed'!AG108)) -> 1.152123312 | BV112: ='Calc - SA_Resources'!BA138 -> 0.07315068648 | BW112: ='Calc - SA_Resources'!BB138 -> 0.6034931635 | BX112: =IF($BK$5=$BF$6, 'Staff Needed'!AH108, IF($BK$5=$BF$7, 'Staff Needed'!AJ108, 'Staff Needed'!AL108)) -> 0.1025228339 | BY112: =IF($BK$5=$BF$6, 'Staff Needed'!AI108, IF($BK$5=$BF$7, 'Staff Needed'!AK108, 'Staff Needed'!AM108)) -> 0.6243409513 | BZ112: ='Calc - SA_Resources'!BG138 -> 0.1025228339 | CA112: ='Calc - SA_Resources'!BH138 -> 0.6243409513
BJ113: 104 | BK113: =VLOOKUP(BJ113, 'Calc - Base'!$H$35:$I$400, 2) -> 2021-04-21 | BL113: =IF($BK$5=$BF$6, 'Staff Needed'!V109, IF($BK$5=$BF$7, 'Staff Needed'!X109, 'Staff Needed'!Z109)) -> 0.2138584653 | BM113: =IF($BK$5=$BF$6, 'Staff Needed'!W109, IF($BK$5=$BF$7, 'Staff Needed'!Y109, 'Staff Needed'!AA109)) -> 1.79510919 | BN113: ='Calc - SA_Resources'!AT139 -> 0.1766172669 | BO113: ='Calc - SA_Resources'!AU139 -> 1.236491214 | BT113: =IF($BK$5=$BF$6, 'Staff Needed'!AB109, IF($BK$5=$BF$7, 'Staff Needed'!AD109, 'Staff Needed'!AF109)) -> 0.1117235951 | BU113: =IF($BK$5=$BF$6, 'Staff Needed'!AC109, IF($BK$5=$BF$7, 'Staff Needed'!AE109, 'Staff Needed'!AG109)) -> 1.173097749 | BV113: ='Calc - SA_Resources'!BA139 -> 0.07448239674 | BW113: ='Calc - SA_Resources'!BB139 -> 0.6144797731 | BX113: =IF($BK$5=$BF$6, 'Staff Needed'!AH109, IF($BK$5=$BF$7, 'Staff Needed'!AJ109, 'Staff Needed'!AL109)) -> 0.1021348702 | BY113: =IF($BK$5=$BF$6, 'Staff Needed'!AI109, IF($BK$5=$BF$7, 'Staff Needed'!AK109, 'Staff Needed'!AM109)) -> 0.6220114411 | BZ113: ='Calc - SA_Resources'!BG139 -> 0.1021348702 | CA113: ='Calc - SA_Resources'!BH139 -> 0.6220114411
BJ114: 105 | BK114: =VLOOKUP(BJ114, 'Calc - Base'!$H$35:$I$400, 2) -> 2021-04-22 | BL114: =IF($BK$5=$BF$6, 'Staff Needed'!V110, IF($BK$5=$BF$7, 'Staff Needed'!X110, 'Staff Needed'!Z110)) -> 0.2051535859 | BM114: =IF($BK$5=$BF$6, 'Staff Needed'!W110, IF($BK$5=$BF$7, 'Staff Needed'!Y110, 'Staff Needed'!AA110)) -> 1.70538086 | BN114: ='Calc - SA_Resources'!AT140 -> 0.1706897605 | BO114: ='Calc - SA_Resources'!AU140 -> 1.18842348 | BT114: =IF($BK$5=$BF$6, 'Staff Needed'!AB110, IF($BK$5=$BF$7, 'Staff Needed'!AD110, 'Staff Needed'!AF110)) -> 0.103391476 | BU114: =IF($BK$5=$BF$6, 'Staff Needed'!AC110, IF($BK$5=$BF$7, 'Staff Needed'!AE110, 'Staff Needed'!AG110)) -> 1.085610498 | BV114: ='Calc - SA_Resources'!BA140 -> 0.06892765065 | BW114: ='Calc - SA_Resources'!BB140 -> 0.5686531179 | BX114: =IF($BK$5=$BF$6, 'Staff Needed'!AH110, IF($BK$5=$BF$7, 'Staff Needed'!AJ110, 'Staff Needed'!AL110)) -> 0.1017621099 | BY114: =IF($BK$5=$BF$6, 'Staff Needed'!AI110, IF($BK$5=$BF$7, 'Staff Needed'!AK110, 'Staff Needed'!AM110)) -> 0.619770362 | BZ114: ='Calc - SA_Resources'!BG140 -> 0.1017621099 | CA114: ='Calc - SA_Resources'!BH140 -> 0.619770362
BJ115: 106 | BK115: =VLOOKUP(BJ115, 'Calc - Base'!$H$35:$I$400, 2) -> 2021-04-23 | BL115: =IF($BK$5=$BF$6, 'Staff Needed'!V111, IF($BK$5=$BF$7, 'Staff Needed'!X111, 'Staff Needed'!Z111)) -> 0.2555779739 | BM115: =IF($BK$5=$BF$6, 'Staff Needed'!W111, IF($BK$5=$BF$7, 'Staff Needed'!Y111, 'Staff Needed'!AA111)) -> 2.236820569 | BN115: ='Calc - SA_Resources'!AT141 -> 0.2041578119 | BO115: ='Calc - SA_Resources'!AU141 -> 1.465518137 | BT115: =IF($BK$5=$BF$6, 'Staff Needed'!AB111, IF($BK$5=$BF$7, 'Staff Needed'!AD111, 'Staff Needed'!AF111)) -> 0.1542604862 | BU115: =IF($BK$5=$BF$6, 'Staff Needed'!AC111, IF($BK$5=$BF$7, 'Staff Needed'!AE111, 'Staff Needed'!AG111)) -> 1.619735106 | BV115: ='Calc - SA_Resources'!BA141 -> 0.1028403242 | BW115: ='Calc - SA_Resources'!BB141 -> 0.8484326743 | BX115: =IF($BK$5=$BF$6, 'Staff Needed'!AH111, IF($BK$5=$BF$7, 'Staff Needed'!AJ111, 'Staff Needed'!AL111)) -> 0.1013174877 | BY115: =IF($BK$5=$BF$6, 'Staff Needed'!AI111, IF($BK$5=$BF$7, 'Staff Needed'!AK111, 'Staff Needed'!AM111)) -> 0.617085463 | BZ115: ='Calc - SA_Resources'!BG141 -> 0.1013174877 | CA115: ='Calc - SA_Resources'!BH141 -> 0.617085463
BJ116: 107 | BK116: =VLOOKUP(BJ116, 'Calc - Base'!$H$35:$I$400, 2) -> 2021-04-24 | BL116: =IF($BK$5=$BF$6, 'Staff Needed'!V112, IF($BK$5=$BF$7, 'Staff Needed'!X112, 'Staff Needed'!Z112)) -> 0.2539967872 | BM116: =IF($BK$5=$BF$6, 'Staff Needed'!W112, IF($BK$5=$BF$7, 'Staff Needed'!Y112, 'Staff Needed'!AA112)) -> 2.222180745 | BN116: ='Calc - SA_Resources'!AT142 -> 0.2029567561 | BO116: ='Calc - SA_Resources'!AU142 -> 1.456580279 | BT116: =IF($BK$5=$BF$6, 'Staff Needed'!AB112, IF($BK$5=$BF$7, 'Staff Needed'!AD112, 'Staff Needed'!AF112)) -> 0.1531200932 | BU116: =IF($BK$5=$BF$6, 'Staff Needed'!AC112, IF($BK$5=$BF$7, 'Staff Needed'!AE112, 'Staff Needed'!AG112)) -> 1.607760979 | BV116: ='Calc - SA_Resources'!BA142 -> 0.1020800622 | BW116: ='Calc - SA_Resources'!BB142 -> 0.8421605128 | BX116: =IF($BK$5=$BF$6, 'Staff Needed'!AH112, IF($BK$5=$BF$7, 'Staff Needed'!AJ112, 'Staff Needed'!AL112)) -> 0.1008766939 | BY116: =IF($BK$5=$BF$6, 'Staff Needed'!AI112, IF($BK$5=$BF$7, 'Staff Needed'!AK112, 'Staff Needed'!AM112)) -> 0.6144197657 | BZ116: ='Calc - SA_Resources'!BG142 -> 0.1008766939 | CA116: ='Calc - SA_Resources'!BH142 -> 0.6144197657
BJ117: 108 | BK117: =VLOOKUP(BJ117, 'Calc - Base'!$H$35:$I$400, 2) -> 2021-04-25 | BL117: =IF($BK$5=$BF$6, 'Staff Needed'!V113, IF($BK$5=$BF$7, 'Staff Needed'!X113, 'Staff Needed'!Z113)) -> 0.2160742223 | BM117: =IF($BK$5=$BF$6, 'Staff Needed'!W113, IF($BK$5=$BF$7, 'Staff Needed'!Y113, 'Staff Needed'!AA113)) -> 1.825705389 | BN117: ='Calc - SA_Resources'!AT143 -> 0.177546893 | BO117: ='Calc - SA_Resources'!AU143 -> 1.247795448 | BT117: =IF($BK$5=$BF$6, 'Staff Needed'!AB113, IF($BK$5=$BF$7, 'Staff Needed'!AD113, 'Staff Needed'!AF113)) -> 0.1155819882 | BU117: =IF($BK$5=$BF$6, 'Staff Needed'!AC113, IF($BK$5=$BF$7, 'Staff Needed'!AE113, 'Staff Needed'!AG113)) -> 1.213610876 | BV117: ='Calc - SA_Resources'!BA143 -> 0.07705465877 | BW117: ='Calc - SA_Resources'!BB143 -> 0.6357009349 | BX117: =IF($BK$5=$BF$6, 'Staff Needed'!AH113, IF($BK$5=$BF$7, 'Staff Needed'!AJ113, 'Staff Needed'!AL113)) -> 0.1004922342 | BY117: =IF($BK$5=$BF$6, 'Staff Needed'!AI113, IF($BK$5=$BF$7, 'Staff Needed'!AK113, 'Staff Needed'!AM113)) -> 0.6120945133 | BZ117: ='Calc - SA_Resources'!BG143 -> 0.1004922342 | CA117: ='Calc - SA_Resources'!BH143 -> 0.6120945133
BJ118: 109 | BK118: =VLOOKUP(BJ118, 'Calc - Base'!$H$35:$I$400, 2) -> 2021-04-26 | BL118: =IF($BK$5=$BF$6, 'Staff Needed'!V114, IF($BK$5=$BF$7, 'Staff Needed'!X114, 'Staff Needed'!Z114)) -> 0.5504969102 | BM118: =IF($BK$5=$BF$6, 'Staff Needed'!W114, IF($BK$5=$BF$7, 'Staff Needed'!Y114, 'Staff Needed'!AA114)) -> 5.339903293 | BN118: ='Calc - SA_Resources'!AT144 -> 0.4002876986 | BO118: ='Calc - SA_Resources'!AU144 -> 3.086765118 | BT118: =IF($BK$5=$BF$6, 'Staff Needed'!AB114, IF($BK$5=$BF$7, 'Staff Needed'!AD114, 'Staff Needed'!AF114)) -> 0.450627635 | BU118: =IF($BK$5=$BF$6, 'Staff Needed'!AC114, IF($BK$5=$BF$7, 'Staff Needed'!AE114, 'Staff Needed'!AG114)) -> 4.731590167 | BV118: ='Calc - SA_Resources'!BA144 -> 0.3004184233 | BW118: ='Calc - SA_Resources'!BB144 -> 2.478451992 | BX118: =IF($BK$5=$BF$6, 'Staff Needed'!AH114, IF($BK$5=$BF$7, 'Staff Needed'!AJ114, 'Staff Needed'!AL114)) -> 0.09986927528 | BY118: =IF($BK$5=$BF$6, 'Staff Needed'!AI114, IF($BK$5=$BF$7, 'Staff Needed'!AK114, 'Staff Needed'!AM114)) -> 0.6083131262 | BZ118: ='Calc - SA_Resources'!BG144 -> 0.09986927528 | CA118: ='Calc - SA_Resources'!BH144 -> 0.6083131262
BJ119: 110 | BK119: =VLOOKUP(BJ119, 'Calc - Base'!$H$35:$I$400, 2) -> 2021-04-27 | BL119: =IF($BK$5=$BF$6, 'Staff Needed'!V115, IF($BK$5=$BF$7, 'Staff Needed'!X115, 'Staff Needed'!Z115)) -> 0.2047760808 | BM119: =IF($BK$5=$BF$6, 'Staff Needed'!W115, IF($BK$5=$BF$7, 'Staff Needed'!Y115, 'Staff Needed'!AA115)) -> 1.711478107 | BN119: ='Calc - SA_Resources'!AT145 -> 0.1696835758 | BO119: ='Calc - SA_Resources'!AU145 -> 1.185090532 | BT119: =IF($BK$5=$BF$6, 'Staff Needed'!AB115, IF($BK$5=$BF$7, 'Staff Needed'!AD115, 'Staff Needed'!AF115)) -> 0.1052775151 | BU119: =IF($BK$5=$BF$6, 'Staff Needed'!AC115, IF($BK$5=$BF$7, 'Staff Needed'!AE115, 'Staff Needed'!AG115)) -> 1.105413908 | BV119: ='Calc - SA_Resources'!BA145 -> 0.07018501004 | BW119: ='Calc - SA_Resources'!BB145 -> 0.5790263329 | BX119: =IF($BK$5=$BF$6, 'Staff Needed'!AH115, IF($BK$5=$BF$7, 'Staff Needed'!AJ115, 'Staff Needed'!AL115)) -> 0.09949856573 | BY119: =IF($BK$5=$BF$6, 'Staff Needed'!AI115, IF($BK$5=$BF$7, 'Staff Needed'!AK115, 'Staff Needed'!AM115)) -> 0.6060641988 | BZ119: ='Calc - SA_Resources'!BG145 -> 0.09949856573 | CA119: ='Calc - SA_Resources'!BH145 -> 0.6060641988
BJ120: 111 | BK120: =VLOOKUP(BJ120, 'Calc - Base'!$H$35:$I$400, 2) -> 2021-04-28 | BL120: =IF($BK$5=$BF$6, 'Staff Needed'!V116, IF($BK$5=$BF$7, 'Staff Needed'!X116, 'Staff Needed'!Z116)) -> 0.2063058847 | BM120: =IF($BK$5=$BF$6, 'Staff Needed'!W116, IF($BK$5=$BF$7, 'Staff Needed'!Y116, 'Staff Needed'!AA116)) -> 1.72921347 | BN120: ='Calc - SA_Resources'!AT146 -> 0.1705773867 | BO120: ='Calc - SA_Resources'!AU146 -> 1.193286 | BT120: =IF($BK$5=$BF$6, 'Staff Needed'!AB116, IF($BK$5=$BF$7, 'Staff Needed'!AD116, 'Staff Needed'!AF116)) -> 0.1071854941 | BU120: =IF($BK$5=$BF$6, 'Staff Needed'!AC116, IF($BK$5=$BF$7, 'Staff Needed'!AE116, 'Staff Needed'!AG116)) -> 1.125447688 | BV120: ='Calc - SA_Resources'!BA146 -> 0.07145699605 | BW120: ='Calc - SA_Resources'!BB146 -> 0.5895202174 | BX120: =IF($BK$5=$BF$6, 'Staff Needed'!AH116, IF($BK$5=$BF$7, 'Staff Needed'!AJ116, 'Staff Needed'!AL116)) -> 0.09912039064 | BY120: =IF($BK$5=$BF$6, 'Staff Needed'!AI116, IF($BK$5=$BF$7, 'Staff Needed'!AK116, 'Staff Needed'!AM116)) -> 0.6037657825 | BZ120: ='Calc - SA_Resources'!BG146 -> 0.09912039064 | CA120: ='Calc - SA_Resources'!BH146 -> 0.6037657825
